Workbook

Sheet INTRO
B2: PC Joint Reporting Form v.3.1
B4: The purpose of this template Joint Reporting Form (JRF) - available as an Excel file - is to provide national health authorities and data managers with a standardized tool to address these reporting challenges, facilitate integration and thereby further contribute to improving overall programme management. This template aims to standardize national reporting of programme implementation outcomes, improve availability and coordination of preventive chemotherapy data across the World Health Organization regions. National authorities are requested to complete this form for submission to the World Health Organization any time before 15 August of the current year for reporting data on PC interventions implemented during the previous year.
B6: Structure of the application (worksheets):
B8: INTRO | C8: This worksheet includes guides on how to complete the joint reporting form and information about status of PC for endemic diseases in the country
B9: COUNTRY_INFO | C9: This worksheet includes information about administrative structure of the country, population by age group, status of endemicity for each disease, population requiring PC, planned interventions and interventions implemented
B10: MDA1, MDA2, MDA3, T1, T2 and T3 | C10: These worksheets include information about endemic districts targeted for treatment with specified PC medicines, treatment plan, and number of people who received treatment by age group
B11: DISTRICT | C11: This worksheet includes summary of people treated by disease at the level of implementation. If data by gender is available, it requires to enter.
B12: SUMMARY | C12: This worksheet includes summary of people treated by disease and by PC intervention. Before generating the report (run macros) please select the disease for which you need the report. Follow the same rule to generate various reports. This worksheet should be printed and submitted as a Joint Report (see the instruction for submission in the SUMMARY worksheet).
B14: Instruction for data entry
B16: Most of the cells in the above-mentioned worksheets include formula that are calculated automatically according to the treatment policy recommended by WHO for each disease. See the link http://www.who.int/neglected_diseases/preventive_chemotherapy/pct_manual/en/index.html
B18: Please enter your data into the cells according to their colour code:
C20: White - cell is not protected. Please enter the value of the requested indicator.
C22: Yellow - cell is protected and includes name of indicator. No data entry required.
C24: Orange - cell is not protected and includes a drop-down menu. Please select the value from the drop-down list.
C27: Green - cell is not protected and includes formula. Please change the value only if your data are different from those that are calculated automatically.
C30: Blue - cell is protected and includes formula. No data entry required.
B32: Country data
B34: COUNTRY | E34: Tanzania
B36: Year of reporting data | E36: 2021
B38: Is country endemic for lymphatic filariasis (LF)? | E38: Endemic
B40: Is country endemic for onchocerciasis (ONCHO)? | E40: Endemic
B42: Is country endemic for soil-transmitted helminthiases (STH)? | E42: Endemic
B44: Is country endemic for schistosomiasis (SCH)? | E44: Endemic
B46: How many administrative units in the country? | E46: 184
B47: If demographical data at the second administrative level are not available by age group, please enter the proportion (%) of population by age group in the country. If data are available, please leave these cells blank.
B48: 1-4 years age | C48: Preschool-age children (PreSAC) | E48: 0.133
B49: 5-14 years age | C49: School-age children (SAC) | E49: 0.273
B50: 15 years + | C50: Adults | E50: 0.564

Sheet COUNTRY_INFO
A1: COUNTRY INFORMATION
A2: Administrative structure, population by age group, endemicity status, planned interventions and interventions implemented
A4: TOTAL | D4: =SUM(D$9:D$1000) -> 56133119 | E4: =SUM(E$9:E$1000) -> 7465705 | F4: =SUM(F$9:F$1000) -> 15324342 | G4: =SUM(G$9:G$1000) -> 31659076 | L4: =SUM(L$9:L$1000) -> 6288903 | M4: =SUM(M$9:M$1000) -> 6752340 | N4: =SUM(N$9:N$1000) -> 22790047 | O4: =SUM(O$9:O$1000) -> 17194430.2
A6: Country administrative structure | D6: Population | H6: Endemicity | L6: Population requiring PC | P6: Number of treatment rounds planned for the year | T6: PC implemented | V6: Click to see the recommended strategy
A7: Country | B7: Province/State | C7: District | D7: Total | E7: PreSAC | F7: SAC | G7: Adults | H7: LF | I7: Oncho | J7: STH | K7: SCH | L7: LF | M7: Oncho | N7: STH | O7: SCH | P7: LF | Q7: Oncho | R7: STH | S7: SCH | T7: ROUND 1 | U7: ROUND2 | X7: x | Y7: IU_ID | Z7: IU_Name | AA7: x | AB7: x | AC7: x | AD7: x | AE7: x | AF7: x | AG7: x | AH7: x | AI7: x | AJ7: x | AK7: x | AL7: x | AM7: x | AN7: x | AO7: x | AP7: x | AQ7: x | AR7: x | AS7: x | AT7: x | AU7: x | AV7: x | AW7: x | AX7: x | AY7: x | AZ7: x | BA7: x | BB7: x | BC7: x | BD7: x | BE7: x | BF7: x | BG7: x | BH7: x | BI7: x | BJ7: x | BK7: x | BL7: x | BM7: x
A9: =IF(INTRO!$E$34<>0,INTRO!$E$34,"") -> Tanzania | B9: Arusha | C9: Arusha City Council | D9: 531326 | E9: =IF(INTRO!$E$48="","",ROUND($D9*INTRO!$E$48,0)) -> 70666 | F9: =IF(INTRO!$E$49="","",ROUND($D9*INTRO!$E$49,0)) -> 145052 | G9: =IF(INTRO!$E$50="","",ROUND($D9*INTRO!$E$50,0)) -> 299668 | H9: 0 | I9: 0 | J9: 3 | K9: 2 | L9: =IF(INTRO!$E$38="Endemic", IF($H9>0, IF($H9=4,"Unknown", IF($H9=99,"Stopped", $D9)), 0),"Not required") -> 0 | M9: =IF(INTRO!$E$40="Endemic", IF($I9>0, IF($I9=4,"Unknown",IF($I9=99,"Stopped", $D9)), 0),"Not required") -> 0 | N9: =IF(INTRO!$E$42="Endemic", IF(AND($J9>1,$J9<5), IF($J9=4, "Unknown", E9+F9), 0),"Not required") -> 215718 | O9: =IF(INTRO!$E$44="Endemic", IF(AND($K9>0,$K9<5), IF($K9=4,"Unknown", IF($K9=1, $F9*0.33, IF($K9=2, $F9*0.5+$G9*0.2, SUM(F9:G9)))), 0),"Not required") -> 132459.6 | P9: 0 | Q9: 0 | R9: 1 | S9: 1 | U9: T1 (PZQ+ALB/MBD) | V9: T1 | W9: T3 | Y9: 46459 | Z9: Arusha City Council | AC9: 0 | AD9: 0 | AE9: 3 | AF9: 2 | AG9: =AC9=H9 -> TRUE | AH9: =AD9=I9 -> TRUE | AI9: TRUE | AJ9: TRUE
A10: =IF(INTRO!$E$34<>0,INTRO!$E$34,"") -> Tanzania | B10: Arusha | C10: Arusha District Council | D10: 412357 | E10: =IF(INTRO!$E$48="","",ROUND($D10*INTRO!$E$48,0)) -> 54843 | F10: =IF(INTRO!$E$49="","",ROUND($D10*INTRO!$E$49,0)) -> 112573 | G10: =IF(INTRO!$E$50="","",ROUND($D10*INTRO!$E$50,0)) -> 232569 | H10: 0 | I10: 0 | J10: 3 | K10: 2 | L10: =IF(INTRO!$E$38="Endemic", IF($H10>0, IF($H10=4,"Unknown", IF($H10=99,"Stopped", $D10)), 0),"Not required") -> 0 | M10: =IF(INTRO!$E$40="Endemic", IF($I10>0, IF($I10=4,"Unknown",IF($I10=99,"Stopped", $D10)), 0),"Not required") -> 0 | N10: =IF(INTRO!$E$42="Endemic", IF(AND($J10>1,$J10<5), IF($J10=4, "Unknown", E10+F10), 0),"Not required") -> 167416 | O10: =IF(INTRO!$E$44="Endemic", IF(AND($K10>0,$K10<5), IF($K10=4,"Unknown", IF($K10=1, $F10*0.33, IF($K10=2, $F10*0.5+$G10*0.2, SUM(F10:G10)))), 0),"Not required") -> 102800.3 | P10: 0 | Q10: 0 | R10: 1 | S10: 1 | U10: T1 (PZQ+ALB/MBD) | V10: T1 | W10: T3 | Y10: 46460 | Z10: Arusha District Council | AC10: 0 | AD10: 0 | AE10: 3 | AF10: 2 | AG10: =AC10=H10 -> TRUE | AH10: =AD10=I10 -> TRUE | AI10: =AE10=J10 -> TRUE | AJ10: =AF10=K10 -> TRUE
A11: =IF(INTRO!$E$34<>0,INTRO!$E$34,"") -> Tanzania | B11: Arusha | C11: Karatu District Council | D11: 293662 | E11: =IF(INTRO!$E$48="","",ROUND($D11*INTRO!$E$48,0)) -> 39057 | F11: =IF(INTRO!$E$49="","",ROUND($D11*INTRO!$E$49,0)) -> 80170 | G11: =IF(INTRO!$E$50="","",ROUND($D11*INTRO!$E$50,0)) -> 165625 | H11: 0 | I11: 0 | J11: 3 | K11: 2 | L11: =IF(INTRO!$E$38="Endemic", IF($H11>0, IF($H11=4,"Unknown", IF($H11=99,"Stopped", $D11)), 0),"Not required") -> 0 | M11: =IF(INTRO!$E$40="Endemic", IF($I11>0, IF($I11=4,"Unknown",IF($I11=99,"Stopped", $D11)), 0),"Not required") -> 0 | N11: =IF(INTRO!$E$42="Endemic", IF(AND($J11>1,$J11<5), IF($J11=4, "Unknown", E11+F11), 0),"Not required") -> 119227 | O11: =IF(INTRO!$E$44="Endemic", IF(AND($K11>0,$K11<5), IF($K11=4,"Unknown", IF($K11=1, $F11*0.33, IF($K11=2, $F11*0.5+$G11*0.2, SUM(F11:G11)))), 0),"Not required") -> 73210 | P11: 0 | Q11: 0 | R11: 1 | S11: 1 | U11: T1 (PZQ+ALB/MBD) | V11: T1 | W11: T3 | Y11: 46461 | Z11: Karatu District Council | AC11: 0 | AD11: 0 | AE11: 3 | AF11: 2 | AG11: TRUE | AH11: TRUE | AI11: TRUE | AJ11: TRUE
A12: =IF(INTRO!$E$34<>0,INTRO!$E$34,"") -> Tanzania | B12: Arusha | C12: Longido District Council | D12: 157125 | E12: =IF(INTRO!$E$48="","",ROUND($D12*INTRO!$E$48,0)) -> 20898 | F12: =IF(INTRO!$E$49="","",ROUND($D12*INTRO!$E$49,0)) -> 42895 | G12: =IF(INTRO!$E$50="","",ROUND($D12*INTRO!$E$50,0)) -> 88619 | H12: 0 | I12: 0 | J12: 3 | K12: 2 | L12: =IF(INTRO!$E$38="Endemic", IF($H12>0, IF($H12=4,"Unknown", IF($H12=99,"Stopped", $D12)), 0),"Not required") -> 0 | M12: =IF(INTRO!$E$40="Endemic", IF($I12>0, IF($I12=4,"Unknown",IF($I12=99,"Stopped", $D12)), 0),"Not required") -> 0 | N12: =IF(INTRO!$E$42="Endemic", IF(AND($J12>1,$J12<5), IF($J12=4, "Unknown", E12+F12), 0),"Not required") -> 63793 | O12: =IF(INTRO!$E$44="Endemic", IF(AND($K12>0,$K12<5), IF($K12=4,"Unknown", IF($K12=1, $F12*0.33, IF($K12=2, $F12*0.5+$G12*0.2, SUM(F12:G12)))), 0),"Not required") -> 39171.3 | P12: 0 | Q12: 0 | R12: 1 | S12: 1 | U12: T1 (PZQ+ALB/MBD) | V12: T1 | W12: T3 | Y12: 46462 | Z12: Longido District Council | AC12: 0 | AD12: 0 | AE12: 3 | AF12: 2 | AG12: TRUE | AH12: TRUE | AI12: TRUE | AJ12: TRUE
A13: =IF(INTRO!$E$34<>0,INTRO!$E$34,"") -> Tanzania | B13: Arusha | C13: Meru District Council | D13: 342116 | E13: =IF(INTRO!$E$48="","",ROUND($D13*INTRO!$E$48,0)) -> 45501 | F13: =IF(INTRO!$E$49="","",ROUND($D13*INTRO!$E$49,0)) -> 93398 | G13: =IF(INTRO!$E$50="","",ROUND($D13*INTRO!$E$50,0)) -> 192953 | H13: 0 | I13: 0 | J13: 3 | K13: 2 | L13: =IF(INTRO!$E$38="Endemic", IF($H13>0, IF($H13=4,"Unknown", IF($H13=99,"Stopped", $D13)), 0),"Not required") -> 0 | M13: =IF(INTRO!$E$40="Endemic", IF($I13>0, IF($I13=4,"Unknown",IF($I13=99,"Stopped", $D13)), 0),"Not required") -> 0 | N13: =IF(INTRO!$E$42="Endemic", IF(AND($J13>1,$J13<5), IF($J13=4, "Unknown", E13+F13), 0),"Not required") -> 138899 | O13: =IF(INTRO!$E$44="Endemic", IF(AND($K13>0,$K13<5), IF($K13=4,"Unknown", IF($K13=1, $F13*0.33, IF($K13=2, $F13*0.5+$G13*0.2, SUM(F13:G13)))), 0),"Not required") -> 85289.6 | P13: 0 | Q13: 0 | R13: 1 | S13: 1 | U13: T1 (PZQ+ALB/MBD) | V13: T1 | W13: T3 | Y13: 46463 | Z13: Meru District Council | AC13: 0 | AD13: 0 | AE13: 3 | AF13: 2 | AG13: TRUE | AH13: TRUE | AI13: TRUE | AJ13: TRUE
A14: =IF(INTRO!$E$34<>0,INTRO!$E$34,"") -> Tanzania | B14: Arusha | C14: Monduli District Council | D14: 202771 | E14: =IF(INTRO!$E$48="","",ROUND($D14*INTRO!$E$48,0)) -> 26969 | F14: =IF(INTRO!$E$49="","",ROUND($D14*INTRO!$E$49,0)) -> 55356 | G14: =IF(INTRO!$E$50="","",ROUND($D14*INTRO!$E$50,0)) -> 114363 | H14: 0 | I14: 0 | J14: 3 | K14: 2 | L14: =IF(INTRO!$E$38="Endemic", IF($H14>0, IF($H14=4,"Unknown", IF($H14=99,"Stopped", $D14)), 0),"Not required") -> 0 | M14: =IF(INTRO!$E$40="Endemic", IF($I14>0, IF($I14=4,"Unknown",IF($I14=99,"Stopped", $D14)), 0),"Not required") -> 0 | N14: =IF(INTRO!$E$42="Endemic", IF(AND($J14>1,$J14<5), IF($J14=4, "Unknown", E14+F14), 0),"Not required") -> 82325 | O14: =IF(INTRO!$E$44="Endemic", IF(AND($K14>0,$K14<5), IF($K14=4,"Unknown", IF($K14=1, $F14*0.33, IF($K14=2, $F14*0.5+$G14*0.2, SUM(F14:G14)))), 0),"Not required") -> 50550.6 | P14: 0 | Q14: 0 | R14: 1 | S14: 1 | U14: T1 (PZQ+ALB/MBD) | V14: T1 | W14: T3 | Y14: 46464 | Z14: Monduli District Council | AC14: 0 | AD14: 0 | AE14: 3 | AF14: 2 | AG14: TRUE | AH14: TRUE | AI14: TRUE | AJ14: TRUE
A15: =IF(INTRO!$E$34<>0,INTRO!$E$34,"") -> Tanzania | B15: Arusha | C15: Ngorongoro District Council | D15: 255446 | E15: =IF(INTRO!$E$48="","",ROUND($D15*INTRO!$E$48,0)) -> 33974 | F15: =IF(INTRO!$E$49="","",ROUND($D15*INTRO!$E$49,0)) -> 69737 | G15: =IF(INTRO!$E$50="","",ROUND($D15*INTRO!$E$50,0)) -> 144072 | H15: 0 | I15: 0 | J15: 3 | K15: 2 | L15: =IF(INTRO!$E$38="Endemic", IF($H15>0, IF($H15=4,"Unknown", IF($H15=99,"Stopped", $D15)), 0),"Not required") -> 0 | M15: =IF(INTRO!$E$40="Endemic", IF($I15>0, IF($I15=4,"Unknown",IF($I15=99,"Stopped", $D15)), 0),"Not required") -> 0 | N15: =IF(INTRO!$E$42="Endemic", IF(AND($J15>1,$J15<5), IF($J15=4, "Unknown", E15+F15), 0),"Not required") -> 103711 | O15: =IF(INTRO!$E$44="Endemic", IF(AND($K15>0,$K15<5), IF($K15=4,"Unknown", IF($K15=1, $F15*0.33, IF($K15=2, $F15*0.5+$G15*0.2, SUM(F15:G15)))), 0),"Not required") -> 63682.9 | P15: 0 | Q15: 0 | R15: 1 | S15: 1 | U15: T1 (PZQ+ALB/MBD) | V15: T1 | W15: T3 | Y15: 46465 | Z15: Ngorongoro District Council | AC15: 0 | AD15: 0 | AE15: 3 | AF15: 2 | AG15: TRUE | AH15: TRUE | AI15: TRUE | AJ15: TRUE
A16: =IF(INTRO!$E$34<>0,INTRO!$E$34,"") -> Tanzania | B16: Dar Es Salaam | C16: Dar es Salaam City Council | D16: 2010662 | E16: =IF(INTRO!$E$48="","",ROUND($D16*INTRO!$E$48,0)) -> 267418 | F16: =IF(INTRO!$E$49="","",ROUND($D16*INTRO!$E$49,0)) -> 548911 | G16: =IF(INTRO!$E$50="","",ROUND($D16*INTRO!$E$50,0)) -> 1134013 | H16: 1 | I16: 0 | J16: 3 | K16: 2 | L16: =IF(INTRO!$E$38="Endemic", IF($H16>0, IF($H16=4,"Unknown", IF($H16=99,"Stopped", $D16)), 0),"Not required") -> 2010662 | M16: =IF(INTRO!$E$40="Endemic", IF($I16>0, IF($I16=4,"Unknown",IF($I16=99,"Stopped", $D16)), 0),"Not required") -> 0 | N16: =IF(INTRO!$E$42="Endemic", IF(AND($J16>1,$J16<5), IF($J16=4, "Unknown", E16+F16), 0),"Not required") -> 816329 | O16: =IF(INTRO!$E$44="Endemic", IF(AND($K16>0,$K16<5), IF($K16=4,"Unknown", IF($K16=1, $F16*0.33, IF($K16=2, $F16*0.5+$G16*0.2, SUM(F16:G16)))), 0),"Not required") -> 501258.1 | P16: 1 | Q16: 0 | R16: 2 | S16: 1 | T16: MDA1 (IVM+ALB) | V16: MDA 1 | W16: T1 | Y16: 46466 | Z16: Dar es Salaam City Council (former Ilala Municipal Council) | AC16: 1 | AD16: 0 | AE16: 3 | AF16: 2 | AG16: TRUE | AH16: TRUE | AI16: TRUE | AJ16: TRUE
A17: =IF(INTRO!$E$34<>0,INTRO!$E$34,"") -> Tanzania | B17: Dar Es Salaam | C17: Kigamboni Municipal Council | D17: 268391 | E17: =IF(INTRO!$E$48="","",ROUND($D17*INTRO!$E$48,0)) -> 35696 | F17: =IF(INTRO!$E$49="","",ROUND($D17*INTRO!$E$49,0)) -> 73271 | G17: =IF(INTRO!$E$50="","",ROUND($D17*INTRO!$E$50,0)) -> 151373 | H17: 99 | I17: 0 | J17: 3 | K17: 2 | L17: =IF(INTRO!$E$38="Endemic", IF($H17>0, IF($H17=4,"Unknown", IF($H17=99,"Stopped", $D17)), 0),"Not required") -> Stopped | M17: =IF(INTRO!$E$40="Endemic", IF($I17>0, IF($I17=4,"Unknown",IF($I17=99,"Stopped", $D17)), 0),"Not required") -> 0 | N17: =IF(INTRO!$E$42="Endemic", IF(AND($J17>1,$J17<5), IF($J17=4, "Unknown", E17+F17), 0),"Not required") -> 108967 | O17: =IF(INTRO!$E$44="Endemic", IF(AND($K17>0,$K17<5), IF($K17=4,"Unknown", IF($K17=1, $F17*0.33, IF($K17=2, $F17*0.5+$G17*0.2, SUM(F17:G17)))), 0),"Not required") -> 66910.1 | P17: 0 | Q17: 0 | R17: 0 | S17: 1 | V17: MDA 1 | W17: T1 | Y17: 46624 | Z17: Kigamboni Municipal Council | AC17: 1 | AD17: 0 | AE17: 3 | AF17: 2 | AG17: FALSE | AH17: TRUE | AI17: TRUE | AJ17: TRUE
A18: =IF(INTRO!$E$34<>0,INTRO!$E$34,"") -> Tanzania | B18: Dar Es Salaam | C18: Kinondoni Municipal Council | D18: 1531424 | E18: =IF(INTRO!$E$48="","",ROUND($D18*INTRO!$E$48,0)) -> 203679 | F18: =IF(INTRO!$E$49="","",ROUND($D18*INTRO!$E$49,0)) -> 418079 | G18: =IF(INTRO!$E$50="","",ROUND($D18*INTRO!$E$50,0)) -> 863723 | H18: 1 | I18: 0 | J18: 3 | K18: 2 | L18: =IF(INTRO!$E$38="Endemic", IF($H18>0, IF($H18=4,"Unknown", IF($H18=99,"Stopped", $D18)), 0),"Not required") -> 1531424 | M18: =IF(INTRO!$E$40="Endemic", IF($I18>0, IF($I18=4,"Unknown",IF($I18=99,"Stopped", $D18)), 0),"Not required") -> 0 | N18: =IF(INTRO!$E$42="Endemic", IF(AND($J18>1,$J18<5), IF($J18=4, "Unknown", E18+F18), 0),"Not required") -> 621758 | O18: =IF(INTRO!$E$44="Endemic", IF(AND($K18>0,$K18<5), IF($K18=4,"Unknown", IF($K18=1, $F18*0.33, IF($K18=2, $F18*0.5+$G18*0.2, SUM(F18:G18)))), 0),"Not required") -> 381784.1 | P18: 1 | Q18: 0 | R18: 1 | S18: 1 | T18: MDA1 (IVM+ALB) | V18: MDA 1 | W18: T1 | Y18: 46467 | Z18: Kinondoni Municipal Council | AC18: 1 | AD18: 0 | AE18: 3 | AF18: 2 | AG18: TRUE | AH18: TRUE | AI18: TRUE | AJ18: TRUE
A19: =IF(INTRO!$E$34<>0,INTRO!$E$34,"") -> Tanzania | B19: Dar Es Salaam | C19: Temeke Municipal Council | D19: 1986512 | E19: =IF(INTRO!$E$48="","",ROUND($D19*INTRO!$E$48,0)) -> 264206 | F19: =IF(INTRO!$E$49="","",ROUND($D19*INTRO!$E$49,0)) -> 542318 | G19: =IF(INTRO!$E$50="","",ROUND($D19*INTRO!$E$50,0)) -> 1120393 | H19: 1 | I19: 0 | J19: 3 | K19: 2 | L19: =IF(INTRO!$E$38="Endemic", IF($H19>0, IF($H19=4,"Unknown", IF($H19=99,"Stopped", $D19)), 0),"Not required") -> 1986512 | M19: =IF(INTRO!$E$40="Endemic", IF($I19>0, IF($I19=4,"Unknown",IF($I19=99,"Stopped", $D19)), 0),"Not required") -> 0 | N19: =IF(INTRO!$E$42="Endemic", IF(AND($J19>1,$J19<5), IF($J19=4, "Unknown", E19+F19), 0),"Not required") -> 806524 | O19: =IF(INTRO!$E$44="Endemic", IF(AND($K19>0,$K19<5), IF($K19=4,"Unknown", IF($K19=1, $F19*0.33, IF($K19=2, $F19*0.5+$G19*0.2, SUM(F19:G19)))), 0),"Not required") -> 495237.6 | P19: 1 | Q19: 0 | R19: 2 | S19: 1 | T19: MDA1 (IVM+ALB) | V19: MDA 1 | W19: T1 | Y19: 46468 | Z19: Temeke Municipal Council | AC19: 1 | AD19: 0 | AE19: 3 | AF19: 2 | AG19: TRUE | AH19: TRUE | AI19: TRUE | AJ19: TRUE
A20: =IF(INTRO!$E$34<>0,INTRO!$E$34,"") -> Tanzania | B20: Dar Es Salaam | C20: Ubungo Municipal Council | D20: 1392540 | E20: =IF(INTRO!$E$48="","",ROUND($D20*INTRO!$E$48,0)) -> 185208 | F20: =IF(INTRO!$E$49="","",ROUND($D20*INTRO!$E$49,0)) -> 380163 | G20: =IF(INTRO!$E$50="","",ROUND($D20*INTRO!$E$50,0)) -> 785393 | H20: 99 | I20: 0 | J20: 3 | K20: 2 | L20: =IF(INTRO!$E$38="Endemic", IF($H20>0, IF($H20=4,"Unknown", IF($H20=99,"Stopped", $D20)), 0),"Not required") -> Stopped | M20: =IF(INTRO!$E$40="Endemic", IF($I20>0, IF($I20=4,"Unknown",IF($I20=99,"Stopped", $D20)), 0),"Not required") -> 0 | N20: =IF(INTRO!$E$42="Endemic", IF(AND($J20>1,$J20<5), IF($J20=4, "Unknown", E20+F20), 0),"Not required") -> 565371 | O20: =IF(INTRO!$E$44="Endemic", IF(AND($K20>0,$K20<5), IF($K20=4,"Unknown", IF($K20=1, $F20*0.33, IF($K20=2, $F20*0.5+$G20*0.2, SUM(F20:G20)))), 0),"Not required") -> 347160.1 | P20: 0 | Q20: 0 | R20: 0 | S20: 1 | V20: MDA 1 | W20: T1 | Y20: 46625 | Z20: Ubungo Municipal Council | AC20: 1 | AD20: 0 | AE20: 3 | AF20: 2 | AG20: FALSE | AH20: TRUE | AI20: TRUE | AJ20: TRUE
A21: =IF(INTRO!$E$34<>0,INTRO!$E$34,"") -> Tanzania | B21: Dodoma | C21: Bahi District Council | D21: 267279 | E21: =IF(INTRO!$E$48="","",ROUND($D21*INTRO!$E$48,0)) -> 35548 | F21: =IF(INTRO!$E$49="","",ROUND($D21*INTRO!$E$49,0)) -> 72967 | G21: =IF(INTRO!$E$50="","",ROUND($D21*INTRO!$E$50,0)) -> 150745 | H21: 99 | I21: 0 | J21: 3 | K21: 2 | L21: =IF(INTRO!$E$38="Endemic", IF($H21>0, IF($H21=4,"Unknown", IF($H21=99,"Stopped", $D21)), 0),"Not required") -> Stopped | M21: =IF(INTRO!$E$40="Endemic", IF($I21>0, IF($I21=4,"Unknown",IF($I21=99,"Stopped", $D21)), 0),"Not required") -> 0 | N21: =IF(INTRO!$E$42="Endemic", IF(AND($J21>1,$J21<5), IF($J21=4, "Unknown", E21+F21), 0),"Not required") -> 108515 | O21: =IF(INTRO!$E$44="Endemic", IF(AND($K21>0,$K21<5), IF($K21=4,"Unknown", IF($K21=1, $F21*0.33, IF($K21=2, $F21*0.5+$G21*0.2, SUM(F21:G21)))), 0),"Not required") -> 66632.5 | P21: 0 | Q21: 0 | R21: 1 | S21: 1 | U21: T1 (PZQ+ALB/MBD) | V21: T1 | W21: T3 | Y21: 46469 | Z21: Bahi District Council | AC21: 99 | AD21: 0 | AE21: 3 | AF21: 2 | AG21: TRUE | AH21: TRUE | AI21: TRUE | AJ21: TRUE
A22: =IF(INTRO!$E$34<>0,INTRO!$E$34,"") -> Tanzania | B22: Dodoma | C22: Chamwino District Council | D22: 398594 | E22: =IF(INTRO!$E$48="","",ROUND($D22*INTRO!$E$48,0)) -> 53013 | F22: =IF(INTRO!$E$49="","",ROUND($D22*INTRO!$E$49,0)) -> 108816 | G22: =IF(INTRO!$E$50="","",ROUND($D22*INTRO!$E$50,0)) -> 224807 | H22: 99 | I22: 0 | J22: 3 | K22: 2 | L22: =IF(INTRO!$E$38="Endemic", IF($H22>0, IF($H22=4,"Unknown", IF($H22=99,"Stopped", $D22)), 0),"Not required") -> Stopped | M22: =IF(INTRO!$E$40="Endemic", IF($I22>0, IF($I22=4,"Unknown",IF($I22=99,"Stopped", $D22)), 0),"Not required") -> 0 | N22: =IF(INTRO!$E$42="Endemic", IF(AND($J22>1,$J22<5), IF($J22=4, "Unknown", E22+F22), 0),"Not required") -> 161829 | O22: =IF(INTRO!$E$44="Endemic", IF(AND($K22>0,$K22<5), IF($K22=4,"Unknown", IF($K22=1, $F22*0.33, IF($K22=2, $F22*0.5+$G22*0.2, SUM(F22:G22)))), 0),"Not required") -> 99369.4 | P22: 0 | Q22: 0 | R22: 1 | S22: 1 | U22: T1 (PZQ+ALB/MBD) | V22: T1 | W22: T3 | Y22: 46470 | Z22: Chamwino District Council | AC22: 99 | AD22: 0 | AE22: 3 | AF22: 2 | AG22: TRUE | AH22: TRUE | AI22: TRUE | AJ22: TRUE
A23: =IF(INTRO!$E$34<>0,INTRO!$E$34,"") -> Tanzania | B23: Dodoma | C23: Chemba District Council | D23: 328728 | E23: =IF(INTRO!$E$48="","",ROUND($D23*INTRO!$E$48,0)) -> 43721 | F23: =IF(INTRO!$E$49="","",ROUND($D23*INTRO!$E$49,0)) -> 89743 | G23: =IF(INTRO!$E$50="","",ROUND($D23*INTRO!$E$50,0)) -> 185403 | H23: 99 | I23: 0 | J23: 3 | K23: 2 | L23: =IF(INTRO!$E$38="Endemic", IF($H23>0, IF($H23=4,"Unknown", IF($H23=99,"Stopped", $D23)), 0),"Not required") -> Stopped | M23: =IF(INTRO!$E$40="Endemic", IF($I23>0, IF($I23=4,"Unknown",IF($I23=99,"Stopped", $D23)), 0),"Not required") -> 0 | N23: =IF(INTRO!$E$42="Endemic", IF(AND($J23>1,$J23<5), IF($J23=4, "Unknown", E23+F23), 0),"Not required") -> 133464 | O23: =IF(INTRO!$E$44="Endemic", IF(AND($K23>0,$K23<5), IF($K23=4,"Unknown", IF($K23=1, $F23*0.33, IF($K23=2, $F23*0.5+$G23*0.2, SUM(F23:G23)))), 0),"Not required") -> 81952.1 | P23: 0 | Q23: 0 | R23: 1 | S23: 1 | U23: T1 (PZQ+ALB/MBD) | V23: T1 | W23: T3 | Y23: 46471 | Z23: Chemba District Council | AC23: 99 | AD23: 0 | AE23: 3 | AF23: 2 | AG23: TRUE | AH23: TRUE | AI23: TRUE | AJ23: TRUE
A24: =IF(INTRO!$E$34<>0,INTRO!$E$34,"") -> Tanzania | B24: Dodoma | C24: Dodoma City Council | D24: 495563 | E24: =IF(INTRO!$E$48="","",ROUND($D24*INTRO!$E$48,0)) -> 65910 | F24: =IF(INTRO!$E$49="","",ROUND($D24*INTRO!$E$49,0)) -> 135289 | G24: =IF(INTRO!$E$50="","",ROUND($D24*INTRO!$E$50,0)) -> 279498 | H24: 99 | I24: 0 | J24: 3 | K24: 2 | L24: =IF(INTRO!$E$38="Endemic", IF($H24>0, IF($H24=4,"Unknown", IF($H24=99,"Stopped", $D24)), 0),"Not required") -> Stopped | M24: =IF(INTRO!$E$40="Endemic", IF($I24>0, IF($I24=4,"Unknown",IF($I24=99,"Stopped", $D24)), 0),"Not required") -> 0 | N24: =IF(INTRO!$E$42="Endemic", IF(AND($J24>1,$J24<5), IF($J24=4, "Unknown", E24+F24), 0),"Not required") -> 201199 | O24: =IF(INTRO!$E$44="Endemic", IF(AND($K24>0,$K24<5), IF($K24=4,"Unknown", IF($K24=1, $F24*0.33, IF($K24=2, $F24*0.5+$G24*0.2, SUM(F24:G24)))), 0),"Not required") -> 123544.1 | P24: 0 | Q24: 0 | R24: 1 | S24: 1 | U24: T1 (PZQ+ALB/MBD) | V24: T1 | W24: T3 | Y24: 46472 | Z24: Dodoma Municipal Council | AC24: 99 | AD24: 0 | AE24: 3 | AF24: 2 | AG24: TRUE | AH24: TRUE | AI24: TRUE | AJ24: TRUE
A25: =IF(INTRO!$E$34<>0,INTRO!$E$34,"") -> Tanzania | B25: Dodoma | C25: Kondoa District Council | D25: 254058 | E25: =IF(INTRO!$E$48="","",ROUND($D25*INTRO!$E$48,0)) -> 33790 | F25: =IF(INTRO!$E$49="","",ROUND($D25*INTRO!$E$49,0)) -> 69358 | G25: =IF(INTRO!$E$50="","",ROUND($D25*INTRO!$E$50,0)) -> 143289 | H25: 99 | I25: 0 | J25: 3 | K25: 2 | L25: =IF(INTRO!$E$38="Endemic", IF($H25>0, IF($H25=4,"Unknown", IF($H25=99,"Stopped", $D25)), 0),"Not required") -> Stopped | M25: =IF(INTRO!$E$40="Endemic", IF($I25>0, IF($I25=4,"Unknown",IF($I25=99,"Stopped", $D25)), 0),"Not required") -> 0 | N25: =IF(INTRO!$E$42="Endemic", IF(AND($J25>1,$J25<5), IF($J25=4, "Unknown", E25+F25), 0),"Not required") -> 103148 | O25: =IF(INTRO!$E$44="Endemic", IF(AND($K25>0,$K25<5), IF($K25=4,"Unknown", IF($K25=1, $F25*0.33, IF($K25=2, $F25*0.5+$G25*0.2, SUM(F25:G25)))), 0),"Not required") -> 63336.8 | P25: 0 | Q25: 0 | R25: 1 | S25: 1 | U25: T1 (PZQ+ALB/MBD) | V25: T1 | W25: T3 | Y25: 46473 | Z25: Kondoa District Council | AC25: 99 | AD25: 0 | AE25: 3 | AF25: 2 | AG25: TRUE | AH25: TRUE | AI25: TRUE | AJ25: TRUE
A26: =IF(INTRO!$E$34<>0,INTRO!$E$34,"") -> Tanzania | B26: Dodoma | C26: Kondoa Town Council | D26: 71172 | E26: =IF(INTRO!$E$48="","",ROUND($D26*INTRO!$E$48,0)) -> 9466 | F26: =IF(INTRO!$E$49="","",ROUND($D26*INTRO!$E$49,0)) -> 19430 | G26: =IF(INTRO!$E$50="","",ROUND($D26*INTRO!$E$50,0)) -> 40141 | H26: 99 | I26: 0 | J26: 3 | K26: 2 | L26: =IF(INTRO!$E$38="Endemic", IF($H26>0, IF($H26=4,"Unknown", IF($H26=99,"Stopped", $D26)), 0),"Not required") -> Stopped | M26: =IF(INTRO!$E$40="Endemic", IF($I26>0, IF($I26=4,"Unknown",IF($I26=99,"Stopped", $D26)), 0),"Not required") -> 0 | N26: =IF(INTRO!$E$42="Endemic", IF(AND($J26>1,$J26<5), IF($J26=4, "Unknown", E26+F26), 0),"Not required") -> 28896 | O26: =IF(INTRO!$E$44="Endemic", IF(AND($K26>0,$K26<5), IF($K26=4,"Unknown", IF($K26=1, $F26*0.33, IF($K26=2, $F26*0.5+$G26*0.2, SUM(F26:G26)))), 0),"Not required") -> 17743.2 | P26: 0 | Q26: 0 | R26: 1 | S26: 1 | U26: T1 (PZQ+ALB/MBD) | V26: T1 | W26: T3 | Y26: 46626 | Z26: Kondoa Town Council | AC26: 99 | AD26: 0 | AE26: 3 | AF26: 2 | AG26: TRUE | AH26: TRUE | AI26: TRUE | AJ26: TRUE
A27: =IF(INTRO!$E$34<>0,INTRO!$E$34,"") -> Tanzania | B27: Dodoma | C27: Kongwa District Council | D27: 373791 | E27: =IF(INTRO!$E$48="","",ROUND($D27*INTRO!$E$48,0)) -> 49714 | F27: =IF(INTRO!$E$49="","",ROUND($D27*INTRO!$E$49,0)) -> 102045 | G27: =IF(INTRO!$E$50="","",ROUND($D27*INTRO!$E$50,0)) -> 210818 | H27: 99 | I27: 0 | J27: 3 | K27: 2 | L27: =IF(INTRO!$E$38="Endemic", IF($H27>0, IF($H27=4,"Unknown", IF($H27=99,"Stopped", $D27)), 0),"Not required") -> Stopped | M27: =IF(INTRO!$E$40="Endemic", IF($I27>0, IF($I27=4,"Unknown",IF($I27=99,"Stopped", $D27)), 0),"Not required") -> 0 | N27: =IF(INTRO!$E$42="Endemic", IF(AND($J27>1,$J27<5), IF($J27=4, "Unknown", E27+F27), 0),"Not required") -> 151759 | O27: =IF(INTRO!$E$44="Endemic", IF(AND($K27>0,$K27<5), IF($K27=4,"Unknown", IF($K27=1, $F27*0.33, IF($K27=2, $F27*0.5+$G27*0.2, SUM(F27:G27)))), 0),"Not required") -> 93186.1 | P27: 0 | Q27: 0 | R27: 1 | S27: 1 | U27: T1 (PZQ+ALB/MBD) | V27: T1 | W27: T3 | Y27: 46474 | Z27: Kongwa District Council | AC27: 99 | AD27: 0 | AE27: 3 | AF27: 2 | AG27: TRUE | AH27: TRUE | AI27: TRUE | AJ27: TRUE
A28: =IF(INTRO!$E$34<>0,INTRO!$E$34,"") -> Tanzania | B28: Dodoma | C28: Mpwapwa District Council | D28: 367861 | E28: =IF(INTRO!$E$48="","",ROUND($D28*INTRO!$E$48,0)) -> 48926 | F28: =IF(INTRO!$E$49="","",ROUND($D28*INTRO!$E$49,0)) -> 100426 | G28: =IF(INTRO!$E$50="","",ROUND($D28*INTRO!$E$50,0)) -> 207474 | H28: 99 | I28: 0 | J28: 3 | K28: 2 | L28: =IF(INTRO!$E$38="Endemic", IF($H28>0, IF($H28=4,"Unknown", IF($H28=99,"Stopped", $D28)), 0),"Not required") -> Stopped | M28: =IF(INTRO!$E$40="Endemic", IF($I28>0, IF($I28=4,"Unknown",IF($I28=99,"Stopped", $D28)), 0),"Not required") -> 0 | N28: =IF(INTRO!$E$42="Endemic", IF(AND($J28>1,$J28<5), IF($J28=4, "Unknown", E28+F28), 0),"Not required") -> 149352 | O28: =IF(INTRO!$E$44="Endemic", IF(AND($K28>0,$K28<5), IF($K28=4,"Unknown", IF($K28=1, $F28*0.33, IF($K28=2, $F28*0.5+$G28*0.2, SUM(F28:G28)))), 0),"Not required") -> 91707.8 | P28: 0 | Q28: 0 | R28: 1 | S28: 1 | U28: T1 (PZQ+ALB/MBD) | V28: T1 | W28: T3 | Y28: 46475 | Z28: Mpwapwa District Council | AC28: 99 | AD28: 0 | AE28: 3 | AF28: 2 | AG28: TRUE | AH28: TRUE | AI28: TRUE | AJ28: TRUE
A29: =IF(INTRO!$E$34<>0,INTRO!$E$34,"") -> Tanzania | B29: Geita | C29: Bukombe District Council | D29: 283739 | E29: =IF(INTRO!$E$48="","",ROUND($D29*INTRO!$E$48,0)) -> 37737 | F29: =IF(INTRO!$E$49="","",ROUND($D29*INTRO!$E$49,0)) -> 77461 | G29: =IF(INTRO!$E$50="","",ROUND($D29*INTRO!$E$50,0)) -> 160029 | H29: 0 | I29: 0 | J29: 3 | K29: 2 | L29: =IF(INTRO!$E$38="Endemic", IF($H29>0, IF($H29=4,"Unknown", IF($H29=99,"Stopped", $D29)), 0),"Not required") -> 0 | M29: =IF(INTRO!$E$40="Endemic", IF($I29>0, IF($I29=4,"Unknown",IF($I29=99,"Stopped", $D29)), 0),"Not required") -> 0 | N29: =IF(INTRO!$E$42="Endemic", IF(AND($J29>1,$J29<5), IF($J29=4, "Unknown", E29+F29), 0),"Not required") -> 115198 | O29: =IF(INTRO!$E$44="Endemic", IF(AND($K29>0,$K29<5), IF($K29=4,"Unknown", IF($K29=1, $F29*0.33, IF($K29=2, $F29*0.5+$G29*0.2, SUM(F29:G29)))), 0),"Not required") -> 70736.3 | P29: 0 | Q29: 0 | R29: 1 | S29: 1 | U29: T1 (PZQ+ALB/MBD) | V29: T1 | W29: T3 | Y29: 46476 | Z29: Bukombe District Council | AC29: 0 | AD29: 0 | AE29: 3 | AF29: 2 | AG29: TRUE | AH29: TRUE | AI29: TRUE | AJ29: TRUE
A30: =IF(INTRO!$E$34<>0,INTRO!$E$34,"") -> Tanzania | B30: Geita | C30: Chato District Council | D30: 461389 | E30: =IF(INTRO!$E$48="","",ROUND($D30*INTRO!$E$48,0)) -> 61365 | F30: =IF(INTRO!$E$49="","",ROUND($D30*INTRO!$E$49,0)) -> 125959 | G30: =IF(INTRO!$E$50="","",ROUND($D30*INTRO!$E$50,0)) -> 260223 | H30: 0 | I30: 0 | J30: 3 | K30: 2 | L30: =IF(INTRO!$E$38="Endemic", IF($H30>0, IF($H30=4,"Unknown", IF($H30=99,"Stopped", $D30)), 0),"Not required") -> 0 | M30: =IF(INTRO!$E$40="Endemic", IF($I30>0, IF($I30=4,"Unknown",IF($I30=99,"Stopped", $D30)), 0),"Not required") -> 0 | N30: =IF(INTRO!$E$42="Endemic", IF(AND($J30>1,$J30<5), IF($J30=4, "Unknown", E30+F30), 0),"Not required") -> 187324 | O30: =IF(INTRO!$E$44="Endemic", IF(AND($K30>0,$K30<5), IF($K30=4,"Unknown", IF($K30=1, $F30*0.33, IF($K30=2, $F30*0.5+$G30*0.2, SUM(F30:G30)))), 0),"Not required") -> 115024.1 | P30: 0 | Q30: 0 | R30: 1 | S30: 1 | U30: T1 (PZQ+ALB/MBD) | V30: T1 | W30: T3 | Y30: 46477 | Z30: Chato District Council | AC30: 0 | AD30: 0 | AE30: 3 | AF30: 2 | AG30: TRUE | AH30: TRUE | AI30: TRUE | AJ30: TRUE
A31: =IF(INTRO!$E$34<>0,INTRO!$E$34,"") -> Tanzania | B31: Geita | C31: Geita District Council | D31: 777030 | E31: =IF(INTRO!$E$48="","",ROUND($D31*INTRO!$E$48,0)) -> 103345 | F31: =IF(INTRO!$E$49="","",ROUND($D31*INTRO!$E$49,0)) -> 212129 | G31: =IF(INTRO!$E$50="","",ROUND($D31*INTRO!$E$50,0)) -> 438245 | H31: 0 | I31: 0 | J31: 3 | K31: 2 | L31: =IF(INTRO!$E$38="Endemic", IF($H31>0, IF($H31=4,"Unknown", IF($H31=99,"Stopped", $D31)), 0),"Not required") -> 0 | M31: =IF(INTRO!$E$40="Endemic", IF($I31>0, IF($I31=4,"Unknown",IF($I31=99,"Stopped", $D31)), 0),"Not required") -> 0 | N31: =IF(INTRO!$E$42="Endemic", IF(AND($J31>1,$J31<5), IF($J31=4, "Unknown", E31+F31), 0),"Not required") -> 315474 | O31: =IF(INTRO!$E$44="Endemic", IF(AND($K31>0,$K31<5), IF($K31=4,"Unknown", IF($K31=1, $F31*0.33, IF($K31=2, $F31*0.5+$G31*0.2, SUM(F31:G31)))), 0),"Not required") -> 193713.5 | P31: 0 | Q31: 0 | R31: 1 | S31: 1 | U31: T1 (PZQ+ALB/MBD) | V31: T1 | W31: T3 | Y31: 46478 | Z31: Geita District Council | AC31: 0 | AD31: 0 | AE31: 3 | AF31: 2 | AG31: TRUE | AH31: TRUE | AI31: TRUE | AJ31: TRUE
A32: =IF(INTRO!$E$34<>0,INTRO!$E$34,"") -> Tanzania | B32: Geita | C32: Geita Town Council | D32: 243512 | E32: =IF(INTRO!$E$48="","",ROUND($D32*INTRO!$E$48,0)) -> 32387 | F32: =IF(INTRO!$E$49="","",ROUND($D32*INTRO!$E$49,0)) -> 66479 | G32: =IF(INTRO!$E$50="","",ROUND($D32*INTRO!$E$50,0)) -> 137341 | H32: 0 | I32: 0 | J32: 3 | K32: 2 | L32: =IF(INTRO!$E$38="Endemic", IF($H32>0, IF($H32=4,"Unknown", IF($H32=99,"Stopped", $D32)), 0),"Not required") -> 0 | M32: =IF(INTRO!$E$40="Endemic", IF($I32>0, IF($I32=4,"Unknown",IF($I32=99,"Stopped", $D32)), 0),"Not required") -> 0 | N32: =IF(INTRO!$E$42="Endemic", IF(AND($J32>1,$J32<5), IF($J32=4, "Unknown", E32+F32), 0),"Not required") -> 98866 | O32: =IF(INTRO!$E$44="Endemic", IF(AND($K32>0,$K32<5), IF($K32=4,"Unknown", IF($K32=1, $F32*0.33, IF($K32=2, $F32*0.5+$G32*0.2, SUM(F32:G32)))), 0),"Not required") -> 60707.7 | P32: 0 | Q32: 0 | R32: 1 | S32: 1 | U32: T1 (PZQ+ALB/MBD) | V32: T1 | W32: T3 | Y32: 46627 | Z32: Geita Town Council | AC32: 0 | AD32: 0 | AE32: 3 | AF32: 2 | AG32: TRUE | AH32: TRUE | AI32: TRUE | AJ32: TRUE
A33: =IF(INTRO!$E$34<>0,INTRO!$E$34,"") -> Tanzania | B33: Geita | C33: Mbogwe District Council | D33: 245047 | E33: =IF(INTRO!$E$48="","",ROUND($D33*INTRO!$E$48,0)) -> 32591 | F33: =IF(INTRO!$E$49="","",ROUND($D33*INTRO!$E$49,0)) -> 66898 | G33: =IF(INTRO!$E$50="","",ROUND($D33*INTRO!$E$50,0)) -> 138207 | H33: 0 | I33: 0 | J33: 3 | K33: 2 | L33: =IF(INTRO!$E$38="Endemic", IF($H33>0, IF($H33=4,"Unknown", IF($H33=99,"Stopped", $D33)), 0),"Not required") -> 0 | M33: =IF(INTRO!$E$40="Endemic", IF($I33>0, IF($I33=4,"Unknown",IF($I33=99,"Stopped", $D33)), 0),"Not required") -> 0 | N33: =IF(INTRO!$E$42="Endemic", IF(AND($J33>1,$J33<5), IF($J33=4, "Unknown", E33+F33), 0),"Not required") -> 99489 | O33: =IF(INTRO!$E$44="Endemic", IF(AND($K33>0,$K33<5), IF($K33=4,"Unknown", IF($K33=1, $F33*0.33, IF($K33=2, $F33*0.5+$G33*0.2, SUM(F33:G33)))), 0),"Not required") -> 61090.4 | P33: 0 | Q33: 0 | R33: 1 | S33: 1 | U33: T1 (PZQ+ALB/MBD) | V33: T1 | W33: T3 | Y33: 46479 | Z33: Mbogwe District Council | AC33: 0 | AD33: 0 | AE33: 3 | AF33: 2 | AG33: TRUE | AH33: TRUE | AI33: TRUE | AJ33: TRUE
A34: =IF(INTRO!$E$34<>0,INTRO!$E$34,"") -> Tanzania | B34: Geita | C34: Nyang'hwale District Council | D34: 187421 | E34: =IF(INTRO!$E$48="","",ROUND($D34*INTRO!$E$48,0)) -> 24927 | F34: =IF(INTRO!$E$49="","",ROUND($D34*INTRO!$E$49,0)) -> 51166 | G34: =IF(INTRO!$E$50="","",ROUND($D34*INTRO!$E$50,0)) -> 105705 | H34: 0 | I34: 0 | J34: 3 | K34: 2 | L34: =IF(INTRO!$E$38="Endemic", IF($H34>0, IF($H34=4,"Unknown", IF($H34=99,"Stopped", $D34)), 0),"Not required") -> 0 | M34: =IF(INTRO!$E$40="Endemic", IF($I34>0, IF($I34=4,"Unknown",IF($I34=99,"Stopped", $D34)), 0),"Not required") -> 0 | N34: =IF(INTRO!$E$42="Endemic", IF(AND($J34>1,$J34<5), IF($J34=4, "Unknown", E34+F34), 0),"Not required") -> 76093 | O34: =IF(INTRO!$E$44="Endemic", IF(AND($K34>0,$K34<5), IF($K34=4,"Unknown", IF($K34=1, $F34*0.33, IF($K34=2, $F34*0.5+$G34*0.2, SUM(F34:G34)))), 0),"Not required") -> 46724 | P34: 0 | Q34: 0 | R34: 1 | S34: 1 | U34: T1 (PZQ+ALB/MBD) | V34: T1 | W34: T3 | Y34: 46480 | Z34: Nyang'hwale District Council | AC34: 0 | AD34: 0 | AE34: 3 | AF34: 2 | AG34: TRUE | AH34: TRUE | AI34: TRUE | AJ34: TRUE
A35: =IF(INTRO!$E$34<>0,INTRO!$E$34,"") -> Tanzania | B35: Iringa | C35: Iringa District Council | D35: 280866 | E35: =IF(INTRO!$E$48="","",ROUND($D35*INTRO!$E$48,0)) -> 37355 | F35: =IF(INTRO!$E$49="","",ROUND($D35*INTRO!$E$49,0)) -> 76676 | G35: =IF(INTRO!$E$50="","",ROUND($D35*INTRO!$E$50,0)) -> 158408 | H35: 99 | I35: 0 | J35: 3 | K35: 2 | L35: =IF(INTRO!$E$38="Endemic", IF($H35>0, IF($H35=4,"Unknown", IF($H35=99,"Stopped", $D35)), 0),"Not required") -> Stopped | M35: =IF(INTRO!$E$40="Endemic", IF($I35>0, IF($I35=4,"Unknown",IF($I35=99,"Stopped", $D35)), 0),"Not required") -> 0 | N35: =IF(INTRO!$E$42="Endemic", IF(AND($J35>1,$J35<5), IF($J35=4, "Unknown", E35+F35), 0),"Not required") -> 114031 | O35: =IF(INTRO!$E$44="Endemic", IF(AND($K35>0,$K35<5), IF($K35=4,"Unknown", IF($K35=1, $F35*0.33, IF($K35=2, $F35*0.5+$G35*0.2, SUM(F35:G35)))), 0),"Not required") -> 70019.6 | P35: 0 | Q35: 0 | R35: 1 | S35: 0 | U35: T3 (ALB/MBD) | V35: T1 | W35: T3 | Y35: 46481 | Z35: Iringa District Council | AC35: 99 | AD35: 0 | AE35: 3 | AF35: 2 | AG35: TRUE | AH35: TRUE | AI35: TRUE | AJ35: TRUE
A36: =IF(INTRO!$E$34<>0,INTRO!$E$34,"") -> Tanzania | B36: Iringa | C36: Iringa Municipal Council | D36: 167331 | E36: =IF(INTRO!$E$48="","",ROUND($D36*INTRO!$E$48,0)) -> 22255 | F36: =IF(INTRO!$E$49="","",ROUND($D36*INTRO!$E$49,0)) -> 45681 | G36: =IF(INTRO!$E$50="","",ROUND($D36*INTRO!$E$50,0)) -> 94375 | H36: 99 | I36: 0 | J36: 3 | K36: 2 | L36: =IF(INTRO!$E$38="Endemic", IF($H36>0, IF($H36=4,"Unknown", IF($H36=99,"Stopped", $D36)), 0),"Not required") -> Stopped | M36: =IF(INTRO!$E$40="Endemic", IF($I36>0, IF($I36=4,"Unknown",IF($I36=99,"Stopped", $D36)), 0),"Not required") -> 0 | N36: =IF(INTRO!$E$42="Endemic", IF(AND($J36>1,$J36<5), IF($J36=4, "Unknown", E36+F36), 0),"Not required") -> 67936 | O36: =IF(INTRO!$E$44="Endemic", IF(AND($K36>0,$K36<5), IF($K36=4,"Unknown", IF($K36=1, $F36*0.33, IF($K36=2, $F36*0.5+$G36*0.2, SUM(F36:G36)))), 0),"Not required") -> 41715.5 | P36: 0 | Q36: 0 | R36: 1 | S36: 0 | U36: T3 (ALB/MBD) | V36: T1 | W36: T3 | Y36: 46482 | Z36: Iringa Municipal Council | AC36: 99 | AD36: 0 | AE36: 3 | AF36: 2 | AG36: TRUE | AH36: TRUE | AI36: TRUE | AJ36: TRUE
A37: =IF(INTRO!$E$34<>0,INTRO!$E$34,"") -> Tanzania | B37: Iringa | C37: Kilolo District Council | D37: 241173 | E37: =IF(INTRO!$E$48="","",ROUND($D37*INTRO!$E$48,0)) -> 32076 | F37: =IF(INTRO!$E$49="","",ROUND($D37*INTRO!$E$49,0)) -> 65840 | G37: =IF(INTRO!$E$50="","",ROUND($D37*INTRO!$E$50,0)) -> 136022 | H37: 99 | I37: 0 | J37: 3 | K37: 2 | L37: =IF(INTRO!$E$38="Endemic", IF($H37>0, IF($H37=4,"Unknown", IF($H37=99,"Stopped", $D37)), 0),"Not required") -> Stopped | M37: =IF(INTRO!$E$40="Endemic", IF($I37>0, IF($I37=4,"Unknown",IF($I37=99,"Stopped", $D37)), 0),"Not required") -> 0 | N37: =IF(INTRO!$E$42="Endemic", IF(AND($J37>1,$J37<5), IF($J37=4, "Unknown", E37+F37), 0),"Not required") -> 97916 | O37: =IF(INTRO!$E$44="Endemic", IF(AND($K37>0,$K37<5), IF($K37=4,"Unknown", IF($K37=1, $F37*0.33, IF($K37=2, $F37*0.5+$G37*0.2, SUM(F37:G37)))), 0),"Not required") -> 60124.4 | P37: 0 | Q37: 0 | R37: 1 | S37: 0 | U37: T3 (ALB/MBD) | V37: T1 | W37: T3 | Y37: 46483 | Z37: Kilolo District Council | AC37: 99 | AD37: 0 | AE37: 3 | AF37: 2 | AG37: TRUE | AH37: TRUE | AI37: TRUE | AJ37: TRUE
A38: =IF(INTRO!$E$34<>0,INTRO!$E$34,"") -> Tanzania | B38: Iringa | C38: Mafinga Town Council | D38: 79209 | E38: =IF(INTRO!$E$48="","",ROUND($D38*INTRO!$E$48,0)) -> 10535 | F38: =IF(INTRO!$E$49="","",ROUND($D38*INTRO!$E$49,0)) -> 21624 | G38: =IF(INTRO!$E$50="","",ROUND($D38*INTRO!$E$50,0)) -> 44674 | H38: 99 | I38: 0 | J38: 3 | K38: 2 | L38: =IF(INTRO!$E$38="Endemic", IF($H38>0, IF($H38=4,"Unknown", IF($H38=99,"Stopped", $D38)), 0),"Not required") -> Stopped | M38: =IF(INTRO!$E$40="Endemic", IF($I38>0, IF($I38=4,"Unknown",IF($I38=99,"Stopped", $D38)), 0),"Not required") -> 0 | N38: =IF(INTRO!$E$42="Endemic", IF(AND($J38>1,$J38<5), IF($J38=4, "Unknown", E38+F38), 0),"Not required") -> 32159 | O38: =IF(INTRO!$E$44="Endemic", IF(AND($K38>0,$K38<5), IF($K38=4,"Unknown", IF($K38=1, $F38*0.33, IF($K38=2, $F38*0.5+$G38*0.2, SUM(F38:G38)))), 0),"Not required") -> 19746.8 | P38: 0 | Q38: 0 | R38: 1 | S38: 0 | U38: T3 (ALB/MBD) | V38: T1 | W38: T3 | Y38: 46484 | Z38: Mafinga Town Council | AC38: 99 | AD38: 0 | AE38: 3 | AF38: 2 | AG38: TRUE | AH38: TRUE | AI38: TRUE | AJ38: TRUE
A39: =IF(INTRO!$E$34<>0,INTRO!$E$34,"") -> Tanzania | B39: Iringa | C39: Mufindi District Council | D39: 288139 | E39: =IF(INTRO!$E$48="","",ROUND($D39*INTRO!$E$48,0)) -> 38322 | F39: =IF(INTRO!$E$49="","",ROUND($D39*INTRO!$E$49,0)) -> 78662 | G39: =IF(INTRO!$E$50="","",ROUND($D39*INTRO!$E$50,0)) -> 162510 | H39: 99 | I39: 1 | J39: 3 | K39: 2 | L39: =IF(INTRO!$E$38="Endemic", IF($H39>0, IF($H39=4,"Unknown", IF($H39=99,"Stopped", $D39)), 0),"Not required") -> Stopped | M39: =IF(INTRO!$E$40="Endemic", IF($I39>0, IF($I39=4,"Unknown",IF($I39=99,"Stopped", $D39)), 0),"Not required") -> 288139 | N39: =IF(INTRO!$E$42="Endemic", IF(AND($J39>1,$J39<5), IF($J39=4, "Unknown", E39+F39), 0),"Not required") -> 116984 | O39: =IF(INTRO!$E$44="Endemic", IF(AND($K39>0,$K39<5), IF($K39=4,"Unknown", IF($K39=1, $F39*0.33, IF($K39=2, $F39*0.5+$G39*0.2, SUM(F39:G39)))), 0),"Not required") -> 71833 | P39: 0 | Q39: 1 | R39: 1 | S39: 0 | T39: MDA3 (IVM) | U39: T3 (ALB/MBD) | V39: MDA 1 | W39: T1 | Y39: 46485 | Z39: Mufindi District Council | AC39: 99 | AD39: 1 | AE39: 3 | AF39: 2 | AG39: TRUE | AH39: TRUE | AI39: TRUE | AJ39: TRUE
A40: =IF(INTRO!$E$34<>0,INTRO!$E$34,"") -> Tanzania | B40: Kagera | C40: Biharamulo District Council | D40: 429797 | E40: =IF(INTRO!$E$48="","",ROUND($D40*INTRO!$E$48,0)) -> 57163 | F40: =IF(INTRO!$E$49="","",ROUND($D40*INTRO!$E$49,0)) -> 117335 | G40: =IF(INTRO!$E$50="","",ROUND($D40*INTRO!$E$50,0)) -> 242406 | H40: 0 | I40: 0 | J40: 3 | K40: 2 | L40: =IF(INTRO!$E$38="Endemic", IF($H40>0, IF($H40=4,"Unknown", IF($H40=99,"Stopped", $D40)), 0),"Not required") -> 0 | M40: =IF(INTRO!$E$40="Endemic", IF($I40>0, IF($I40=4,"Unknown",IF($I40=99,"Stopped", $D40)), 0),"Not required") -> 0 | N40: =IF(INTRO!$E$42="Endemic", IF(AND($J40>1,$J40<5), IF($J40=4, "Unknown", E40+F40), 0),"Not required") -> 174498 | O40: =IF(INTRO!$E$44="Endemic", IF(AND($K40>0,$K40<5), IF($K40=4,"Unknown", IF($K40=1, $F40*0.33, IF($K40=2, $F40*0.5+$G40*0.2, SUM(F40:G40)))), 0),"Not required") -> 107148.7 | P40: 0 | Q40: 0 | R40: 1 | S40: 1 | U40: T1 (PZQ+ALB/MBD) | V40: T1 | W40: T3 | Y40: 46486 | Z40: Biharamulo District Council | AC40: 0 | AD40: 0 | AE40: 3 | AF40: 2 | AG40: TRUE | AH40: TRUE | AI40: TRUE | AJ40: TRUE
A41: =IF(INTRO!$E$34<>0,INTRO!$E$34,"") -> Tanzania | B41: Kagera | C41: Bukoba District Council | D41: 384906 | E41: =IF(INTRO!$E$48="","",ROUND($D41*INTRO!$E$48,0)) -> 51192 | F41: =IF(INTRO!$E$49="","",ROUND($D41*INTRO!$E$49,0)) -> 105079 | G41: =IF(INTRO!$E$50="","",ROUND($D41*INTRO!$E$50,0)) -> 217087 | H41: 0 | I41: 0 | J41: 3 | K41: 2 | L41: =IF(INTRO!$E$38="Endemic", IF($H41>0, IF($H41=4,"Unknown", IF($H41=99,"Stopped", $D41)), 0),"Not required") -> 0 | M41: =IF(INTRO!$E$40="Endemic", IF($I41>0, IF($I41=4,"Unknown",IF($I41=99,"Stopped", $D41)), 0),"Not required") -> 0 | N41: =IF(INTRO!$E$42="Endemic", IF(AND($J41>1,$J41<5), IF($J41=4, "Unknown", E41+F41), 0),"Not required") -> 156271 | O41: =IF(INTRO!$E$44="Endemic", IF(AND($K41>0,$K41<5), IF($K41=4,"Unknown", IF($K41=1, $F41*0.33, IF($K41=2, $F41*0.5+$G41*0.2, SUM(F41:G41)))), 0),"Not required") -> 95956.9 | P41: 0 | Q41: 0 | R41: 1 | S41: 1 | U41: T1 (PZQ+ALB/MBD) | V41: T1 | W41: T3 | Y41: 46487 | Z41: Bukoba District Council | AC41: 0 | AD41: 0 | AE41: 3 | AF41: 2 | AG41: TRUE | AH41: TRUE | AI41: TRUE | AJ41: TRUE
A42: =IF(INTRO!$E$34<>0,INTRO!$E$34,"") -> Tanzania | B42: Kagera | C42: Bukoba Municipal Council | D42: 171123 | E42: =IF(INTRO!$E$48="","",ROUND($D42*INTRO!$E$48,0)) -> 22759 | F42: =IF(INTRO!$E$49="","",ROUND($D42*INTRO!$E$49,0)) -> 46717 | G42: =IF(INTRO!$E$50="","",ROUND($D42*INTRO!$E$50,0)) -> 96513 | H42: 0 | I42: 0 | J42: 3 | K42: 2 | L42: =IF(INTRO!$E$38="Endemic", IF($H42>0, IF($H42=4,"Unknown", IF($H42=99,"Stopped", $D42)), 0),"Not required") -> 0 | M42: =IF(INTRO!$E$40="Endemic", IF($I42>0, IF($I42=4,"Unknown",IF($I42=99,"Stopped", $D42)), 0),"Not required") -> 0 | N42: =IF(INTRO!$E$42="Endemic", IF(AND($J42>1,$J42<5), IF($J42=4, "Unknown", E42+F42), 0),"Not required") -> 69476 | O42: =IF(INTRO!$E$44="Endemic", IF(AND($K42>0,$K42<5), IF($K42=4,"Unknown", IF($K42=1, $F42*0.33, IF($K42=2, $F42*0.5+$G42*0.2, SUM(F42:G42)))), 0),"Not required") -> 42661.1 | P42: 0 | Q42: 0 | R42: 1 | S42: 1 | U42: T1 (PZQ+ALB/MBD) | V42: T1 | W42: T3 | Y42: 46488 | Z42: Bukoba Municipal Council | AC42: 0 | AD42: 0 | AE42: 3 | AF42: 2 | AG42: TRUE | AH42: TRUE | AI42: TRUE | AJ42: TRUE
A43: =IF(INTRO!$E$34<>0,INTRO!$E$34,"") -> Tanzania | B43: Kagera | C43: Karagwe District Council | D43: 441135 | E43: =IF(INTRO!$E$48="","",ROUND($D43*INTRO!$E$48,0)) -> 58671 | F43: =IF(INTRO!$E$49="","",ROUND($D43*INTRO!$E$49,0)) -> 120430 | G43: =IF(INTRO!$E$50="","",ROUND($D43*INTRO!$E$50,0)) -> 248800 | H43: 0 | I43: 0 | J43: 3 | K43: 2 | L43: =IF(INTRO!$E$38="Endemic", IF($H43>0, IF($H43=4,"Unknown", IF($H43=99,"Stopped", $D43)), 0),"Not required") -> 0 | M43: =IF(INTRO!$E$40="Endemic", IF($I43>0, IF($I43=4,"Unknown",IF($I43=99,"Stopped", $D43)), 0),"Not required") -> 0 | N43: =IF(INTRO!$E$42="Endemic", IF(AND($J43>1,$J43<5), IF($J43=4, "Unknown", E43+F43), 0),"Not required") -> 179101 | O43: =IF(INTRO!$E$44="Endemic", IF(AND($K43>0,$K43<5), IF($K43=4,"Unknown", IF($K43=1, $F43*0.33, IF($K43=2, $F43*0.5+$G43*0.2, SUM(F43:G43)))), 0),"Not required") -> 109975 | P43: 0 | Q43: 0 | R43: 1 | S43: 1 | U43: T1 (PZQ+ALB/MBD) | V43: T1 | W43: T3 | Y43: 46489 | Z43: Karagwe District Council | AC43: 0 | AD43: 0 | AE43: 3 | AF43: 2 | AG43: TRUE | AH43: TRUE | AI43: TRUE | AJ43: TRUE
A44: =IF(INTRO!$E$34<>0,INTRO!$E$34,"") -> Tanzania | B44: Kagera | C44: Kyerwa District Council | D44: 426529 | E44: =IF(INTRO!$E$48="","",ROUND($D44*INTRO!$E$48,0)) -> 56728 | F44: =IF(INTRO!$E$49="","",ROUND($D44*INTRO!$E$49,0)) -> 116442 | G44: =IF(INTRO!$E$50="","",ROUND($D44*INTRO!$E$50,0)) -> 240562 | H44: 0 | I44: 0 | J44: 3 | K44: 2 | L44: =IF(INTRO!$E$38="Endemic", IF($H44>0, IF($H44=4,"Unknown", IF($H44=99,"Stopped", $D44)), 0),"Not required") -> 0 | M44: =IF(INTRO!$E$40="Endemic", IF($I44>0, IF($I44=4,"Unknown",IF($I44=99,"Stopped", $D44)), 0),"Not required") -> 0 | N44: =IF(INTRO!$E$42="Endemic", IF(AND($J44>1,$J44<5), IF($J44=4, "Unknown", E44+F44), 0),"Not required") -> 173170 | O44: =IF(INTRO!$E$44="Endemic", IF(AND($K44>0,$K44<5), IF($K44=4,"Unknown", IF($K44=1, $F44*0.33, IF($K44=2, $F44*0.5+$G44*0.2, SUM(F44:G44)))), 0),"Not required") -> 106333.4 | P44: 0 | Q44: 0 | R44: 1 | S44: 1 | U44: T1 (PZQ+ALB/MBD) | V44: T1 | W44: T3 | Y44: 46490 | Z44: Kyerwa District Council | AC44: 0 | AD44: 0 | AE44: 3 | AF44: 2 | AG44: TRUE | AH44: TRUE | AI44: TRUE | AJ44: TRUE
A45: =IF(INTRO!$E$34<>0,INTRO!$E$34,"") -> Tanzania | B45: Kagera | C45: Missenyi District Council | D45: 269226 | E45: =IF(INTRO!$E$48="","",ROUND($D45*INTRO!$E$48,0)) -> 35807 | F45: =IF(INTRO!$E$49="","",ROUND($D45*INTRO!$E$49,0)) -> 73499 | G45: =IF(INTRO!$E$50="","",ROUND($D45*INTRO!$E$50,0)) -> 151843 | H45: 0 | I45: 0 | J45: 3 | K45: 2 | L45: =IF(INTRO!$E$38="Endemic", IF($H45>0, IF($H45=4,"Unknown", IF($H45=99,"Stopped", $D45)), 0),"Not required") -> 0 | M45: =IF(INTRO!$E$40="Endemic", IF($I45>0, IF($I45=4,"Unknown",IF($I45=99,"Stopped", $D45)), 0),"Not required") -> 0 | N45: =IF(INTRO!$E$42="Endemic", IF(AND($J45>1,$J45<5), IF($J45=4, "Unknown", E45+F45), 0),"Not required") -> 109306 | O45: =IF(INTRO!$E$44="Endemic", IF(AND($K45>0,$K45<5), IF($K45=4,"Unknown", IF($K45=1, $F45*0.33, IF($K45=2, $F45*0.5+$G45*0.2, SUM(F45:G45)))), 0),"Not required") -> 67118.1 | P45: 0 | Q45: 0 | R45: 1 | S45: 1 | U45: T1 (PZQ+ALB/MBD) | V45: T1 | W45: T3 | Y45: 46491 | Z45: Missenyi District Council | AC45: 0 | AD45: 0 | AE45: 3 | AF45: 2 | AG45: TRUE | AH45: TRUE | AI45: TRUE | AJ45: TRUE
A46: =IF(INTRO!$E$34<>0,INTRO!$E$34,"") -> Tanzania | B46: Kagera | C46: Muleba District Council | D46: 717880 | E46: =IF(INTRO!$E$48="","",ROUND($D46*INTRO!$E$48,0)) -> 95478 | F46: =IF(INTRO!$E$49="","",ROUND($D46*INTRO!$E$49,0)) -> 195981 | G46: =IF(INTRO!$E$50="","",ROUND($D46*INTRO!$E$50,0)) -> 404884 | H46: 0 | I46: 0 | J46: 3 | K46: 2 | L46: =IF(INTRO!$E$38="Endemic", IF($H46>0, IF($H46=4,"Unknown", IF($H46=99,"Stopped", $D46)), 0),"Not required") -> 0 | M46: =IF(INTRO!$E$40="Endemic", IF($I46>0, IF($I46=4,"Unknown",IF($I46=99,"Stopped", $D46)), 0),"Not required") -> 0 | N46: =IF(INTRO!$E$42="Endemic", IF(AND($J46>1,$J46<5), IF($J46=4, "Unknown", E46+F46), 0),"Not required") -> 291459 | O46: =IF(INTRO!$E$44="Endemic", IF(AND($K46>0,$K46<5), IF($K46=4,"Unknown", IF($K46=1, $F46*0.33, IF($K46=2, $F46*0.5+$G46*0.2, SUM(F46:G46)))), 0),"Not required") -> 178967.3 | P46: 0 | Q46: 0 | R46: 1 | S46: 1 | U46: T1 (PZQ+ALB/MBD) | V46: T1 | W46: T3 | Y46: 46492 | Z46: Muleba District Council | AC46: 0 | AD46: 0 | AE46: 3 | AF46: 2 | AG46: TRUE | AH46: TRUE | AI46: TRUE | AJ46: TRUE
A47: =IF(INTRO!$E$34<>0,INTRO!$E$34,"") -> Tanzania | B47: Kagera | C47: Ngara District Council | D47: 425242 | E47: =IF(INTRO!$E$48="","",ROUND($D47*INTRO!$E$48,0)) -> 56557 | F47: =IF(INTRO!$E$49="","",ROUND($D47*INTRO!$E$49,0)) -> 116091 | G47: =IF(INTRO!$E$50="","",ROUND($D47*INTRO!$E$50,0)) -> 239836 | H47: 0 | I47: 0 | J47: 3 | K47: 2 | L47: =IF(INTRO!$E$38="Endemic", IF($H47>0, IF($H47=4,"Unknown", IF($H47=99,"Stopped", $D47)), 0),"Not required") -> 0 | M47: =IF(INTRO!$E$40="Endemic", IF($I47>0, IF($I47=4,"Unknown",IF($I47=99,"Stopped", $D47)), 0),"Not required") -> 0 | N47: =IF(INTRO!$E$42="Endemic", IF(AND($J47>1,$J47<5), IF($J47=4, "Unknown", E47+F47), 0),"Not required") -> 172648 | O47: =IF(INTRO!$E$44="Endemic", IF(AND($K47>0,$K47<5), IF($K47=4,"Unknown", IF($K47=1, $F47*0.33, IF($K47=2, $F47*0.5+$G47*0.2, SUM(F47:G47)))), 0),"Not required") -> 106012.7 | P47: 0 | Q47: 0 | R47: 1 | S47: 1 | U47: T1 (PZQ+ALB/MBD) | V47: T1 | W47: T3 | Y47: 46493 | Z47: Ngara District Council | AC47: 0 | AD47: 0 | AE47: 3 | AF47: 2 | AG47: TRUE | AH47: TRUE | AI47: TRUE | AJ47: TRUE
A48: =IF(INTRO!$E$34<>0,INTRO!$E$34,"") -> Tanzania | B48: Katavi | C48: Mlele District Council | D48: 57675 | E48: =IF(INTRO!$E$48="","",ROUND($D48*INTRO!$E$48,0)) -> 7671 | F48: =IF(INTRO!$E$49="","",ROUND($D48*INTRO!$E$49,0)) -> 15745 | G48: =IF(INTRO!$E$50="","",ROUND($D48*INTRO!$E$50,0)) -> 32529 | H48: 99 | I48: 0 | J48: 3 | K48: 2 | L48: =IF(INTRO!$E$38="Endemic", IF($H48>0, IF($H48=4,"Unknown", IF($H48=99,"Stopped", $D48)), 0),"Not required") -> Stopped | M48: =IF(INTRO!$E$40="Endemic", IF($I48>0, IF($I48=4,"Unknown",IF($I48=99,"Stopped", $D48)), 0),"Not required") -> 0 | N48: =IF(INTRO!$E$42="Endemic", IF(AND($J48>1,$J48<5), IF($J48=4, "Unknown", E48+F48), 0),"Not required") -> 23416 | O48: =IF(INTRO!$E$44="Endemic", IF(AND($K48>0,$K48<5), IF($K48=4,"Unknown", IF($K48=1, $F48*0.33, IF($K48=2, $F48*0.5+$G48*0.2, SUM(F48:G48)))), 0),"Not required") -> 14378.3 | P48: 0 | Q48: 0 | R48: 1 | S48: 1 | U48: T1 (PZQ+ALB/MBD) | V48: T1 | W48: T3 | Y48: 46494 | Z48: Mlele District Council | AC48: 99 | AD48: 0 | AE48: 3 | AF48: 2 | AG48: TRUE | AH48: TRUE | AI48: TRUE | AJ48: TRUE
A49: =IF(INTRO!$E$34<>0,INTRO!$E$34,"") -> Tanzania | B49: Katavi | C49: Mpanda District Council | D49: 238848 | E49: =IF(INTRO!$E$48="","",ROUND($D49*INTRO!$E$48,0)) -> 31767 | F49: =IF(INTRO!$E$49="","",ROUND($D49*INTRO!$E$49,0)) -> 65206 | G49: =IF(INTRO!$E$50="","",ROUND($D49*INTRO!$E$50,0)) -> 134710 | H49: 99 | I49: 0 | J49: 3 | K49: 2 | L49: =IF(INTRO!$E$38="Endemic", IF($H49>0, IF($H49=4,"Unknown", IF($H49=99,"Stopped", $D49)), 0),"Not required") -> Stopped | M49: =IF(INTRO!$E$40="Endemic", IF($I49>0, IF($I49=4,"Unknown",IF($I49=99,"Stopped", $D49)), 0),"Not required") -> 0 | N49: =IF(INTRO!$E$42="Endemic", IF(AND($J49>1,$J49<5), IF($J49=4, "Unknown", E49+F49), 0),"Not required") -> 96973 | O49: =IF(INTRO!$E$44="Endemic", IF(AND($K49>0,$K49<5), IF($K49=4,"Unknown", IF($K49=1, $F49*0.33, IF($K49=2, $F49*0.5+$G49*0.2, SUM(F49:G49)))), 0),"Not required") -> 59545 | P49: 0 | Q49: 0 | R49: 1 | S49: 1 | U49: T1 (PZQ+ALB/MBD) | V49: T1 | W49: T3 | Y49: 46495 | Z49: Mpanda District Council | AC49: 99 | AD49: 0 | AE49: 3 | AF49: 2 | AG49: TRUE | AH49: TRUE | AI49: TRUE | AJ49: TRUE
A50: =IF(INTRO!$E$34<>0,INTRO!$E$34,"") -> Tanzania | B50: Katavi | C50: Mpanda Municipal Council | D50: 146737 | E50: =IF(INTRO!$E$48="","",ROUND($D50*INTRO!$E$48,0)) -> 19516 | F50: =IF(INTRO!$E$49="","",ROUND($D50*INTRO!$E$49,0)) -> 40059 | G50: =IF(INTRO!$E$50="","",ROUND($D50*INTRO!$E$50,0)) -> 82760 | H50: 99 | I50: 0 | J50: 3 | K50: 2 | L50: =IF(INTRO!$E$38="Endemic", IF($H50>0, IF($H50=4,"Unknown", IF($H50=99,"Stopped", $D50)), 0),"Not required") -> Stopped | M50: =IF(INTRO!$E$40="Endemic", IF($I50>0, IF($I50=4,"Unknown",IF($I50=99,"Stopped", $D50)), 0),"Not required") -> 0 | N50: =IF(INTRO!$E$42="Endemic", IF(AND($J50>1,$J50<5), IF($J50=4, "Unknown", E50+F50), 0),"Not required") -> 59575 | O50: =IF(INTRO!$E$44="Endemic", IF(AND($K50>0,$K50<5), IF($K50=4,"Unknown", IF($K50=1, $F50*0.33, IF($K50=2, $F50*0.5+$G50*0.2, SUM(F50:G50)))), 0),"Not required") -> 36581.5 | P50: 0 | Q50: 0 | R50: 1 | S50: 1 | U50: T1 (PZQ+ALB/MBD) | V50: T1 | W50: T3 | Y50: 46496 | Z50: Mpanda Municipal Council | AC50: 99 | AD50: 0 | AE50: 3 | AF50: 2 | AG50: TRUE | AH50: TRUE | AI50: TRUE | AJ50: TRUE
A51: =IF(INTRO!$E$34<>0,INTRO!$E$34,"") -> Tanzania | B51: Katavi | C51: Mpimbwe District Council | D51: 138166 | E51: =IF(INTRO!$E$48="","",ROUND($D51*INTRO!$E$48,0)) -> 18376 | F51: =IF(INTRO!$E$49="","",ROUND($D51*INTRO!$E$49,0)) -> 37719 | G51: =IF(INTRO!$E$50="","",ROUND($D51*INTRO!$E$50,0)) -> 77926 | H51: 99 | I51: 0 | J51: 3 | K51: 2 | L51: =IF(INTRO!$E$38="Endemic", IF($H51>0, IF($H51=4,"Unknown", IF($H51=99,"Stopped", $D51)), 0),"Not required") -> Stopped | M51: =IF(INTRO!$E$40="Endemic", IF($I51>0, IF($I51=4,"Unknown",IF($I51=99,"Stopped", $D51)), 0),"Not required") -> 0 | N51: =IF(INTRO!$E$42="Endemic", IF(AND($J51>1,$J51<5), IF($J51=4, "Unknown", E51+F51), 0),"Not required") -> 56095 | O51: =IF(INTRO!$E$44="Endemic", IF(AND($K51>0,$K51<5), IF($K51=4,"Unknown", IF($K51=1, $F51*0.33, IF($K51=2, $F51*0.5+$G51*0.2, SUM(F51:G51)))), 0),"Not required") -> 34444.7 | P51: 0 | Q51: 0 | R51: 1 | S51: 1 | U51: T1 (PZQ+ALB/MBD) | V51: T1 | W51: T3 | Y51: 46628 | Z51: Mpimbwe District Council | AC51: 99 | AD51: 0 | AE51: 3 | AF51: 2 | AG51: TRUE | AH51: TRUE | AI51: TRUE | AJ51: TRUE
A52: =IF(INTRO!$E$34<>0,INTRO!$E$34,"") -> Tanzania | B52: Katavi | C52: Nsimbo District Council | D52: 171378 | E52: =IF(INTRO!$E$48="","",ROUND($D52*INTRO!$E$48,0)) -> 22793 | F52: =IF(INTRO!$E$49="","",ROUND($D52*INTRO!$E$49,0)) -> 46786 | G52: =IF(INTRO!$E$50="","",ROUND($D52*INTRO!$E$50,0)) -> 96657 | H52: 99 | I52: 0 | J52: 3 | K52: 2 | L52: =IF(INTRO!$E$38="Endemic", IF($H52>0, IF($H52=4,"Unknown", IF($H52=99,"Stopped", $D52)), 0),"Not required") -> Stopped | M52: =IF(INTRO!$E$40="Endemic", IF($I52>0, IF($I52=4,"Unknown",IF($I52=99,"Stopped", $D52)), 0),"Not required") -> 0 | N52: =IF(INTRO!$E$42="Endemic", IF(AND($J52>1,$J52<5), IF($J52=4, "Unknown", E52+F52), 0),"Not required") -> 69579 | O52: =IF(INTRO!$E$44="Endemic", IF(AND($K52>0,$K52<5), IF($K52=4,"Unknown", IF($K52=1, $F52*0.33, IF($K52=2, $F52*0.5+$G52*0.2, SUM(F52:G52)))), 0),"Not required") -> 42724.4 | P52: 0 | Q52: 0 | R52: 1 | S52: 1 | U52: T1 (PZQ+ALB/MBD) | V52: T1 | W52: T3 | Y52: 46497 | Z52: Nsimbo District Council | AC52: 99 | AD52: 0 | AE52: 3 | AF52: 2 | AG52: TRUE | AH52: TRUE | AI52: TRUE | AJ52: TRUE
A53: =IF(INTRO!$E$34<>0,INTRO!$E$34,"") -> Tanzania | B53: Kigoma | C53: Buhigwe District Council | D53: 325260 | E53: =IF(INTRO!$E$48="","",ROUND($D53*INTRO!$E$48,0)) -> 43260 | F53: =IF(INTRO!$E$49="","",ROUND($D53*INTRO!$E$49,0)) -> 88796 | G53: =IF(INTRO!$E$50="","",ROUND($D53*INTRO!$E$50,0)) -> 183447 | H53: 0 | I53: 0 | J53: 3 | K53: 2 | L53: =IF(INTRO!$E$38="Endemic", IF($H53>0, IF($H53=4,"Unknown", IF($H53=99,"Stopped", $D53)), 0),"Not required") -> 0 | M53: =IF(INTRO!$E$40="Endemic", IF($I53>0, IF($I53=4,"Unknown",IF($I53=99,"Stopped", $D53)), 0),"Not required") -> 0 | N53: =IF(INTRO!$E$42="Endemic", IF(AND($J53>1,$J53<5), IF($J53=4, "Unknown", E53+F53), 0),"Not required") -> 132056 | O53: =IF(INTRO!$E$44="Endemic", IF(AND($K53>0,$K53<5), IF($K53=4,"Unknown", IF($K53=1, $F53*0.33, IF($K53=2, $F53*0.5+$G53*0.2, SUM(F53:G53)))), 0),"Not required") -> 81087.4 | P53: 0 | Q53: 0 | R53: 1 | S53: 1 | U53: T1 (PZQ+ALB/MBD) | V53: T1 | W53: T3 | Y53: 46498 | Z53: Buhigwe District Council | AC53: 0 | AD53: 0 | AE53: 3 | AF53: 2 | AG53: TRUE | AH53: TRUE | AI53: TRUE | AJ53: TRUE
A54: =IF(INTRO!$E$34<>0,INTRO!$E$34,"") -> Tanzania | B54: Kigoma | C54: Kakonko District Council | D54: 214276 | E54: =IF(INTRO!$E$48="","",ROUND($D54*INTRO!$E$48,0)) -> 28499 | F54: =IF(INTRO!$E$49="","",ROUND($D54*INTRO!$E$49,0)) -> 58497 | G54: =IF(INTRO!$E$50="","",ROUND($D54*INTRO!$E$50,0)) -> 120852 | H54: 0 | I54: 0 | J54: 3 | K54: 2 | L54: =IF(INTRO!$E$38="Endemic", IF($H54>0, IF($H54=4,"Unknown", IF($H54=99,"Stopped", $D54)), 0),"Not required") -> 0 | M54: =IF(INTRO!$E$40="Endemic", IF($I54>0, IF($I54=4,"Unknown",IF($I54=99,"Stopped", $D54)), 0),"Not required") -> 0 | N54: =IF(INTRO!$E$42="Endemic", IF(AND($J54>1,$J54<5), IF($J54=4, "Unknown", E54+F54), 0),"Not required") -> 86996 | O54: =IF(INTRO!$E$44="Endemic", IF(AND($K54>0,$K54<5), IF($K54=4,"Unknown", IF($K54=1, $F54*0.33, IF($K54=2, $F54*0.5+$G54*0.2, SUM(F54:G54)))), 0),"Not required") -> 53418.9 | P54: 0 | Q54: 0 | R54: 1 | S54: 1 | U54: T1 (PZQ+ALB/MBD) | V54: T1 | W54: T3 | Y54: 46499 | Z54: Kakonko District Council | AC54: 0 | AD54: 0 | AE54: 3 | AF54: 2 | AG54: TRUE | AH54: TRUE | AI54: TRUE | AJ54: TRUE
A55: =IF(INTRO!$E$34<>0,INTRO!$E$34,"") -> Tanzania | B55: Kigoma | C55: Kasulu District Council | D55: 544517 | E55: =IF(INTRO!$E$48="","",ROUND($D55*INTRO!$E$48,0)) -> 72421 | F55: =IF(INTRO!$E$49="","",ROUND($D55*INTRO!$E$49,0)) -> 148653 | G55: =IF(INTRO!$E$50="","",ROUND($D55*INTRO!$E$50,0)) -> 307108 | H55: 0 | I55: 0 | J55: 3 | K55: 2 | L55: =IF(INTRO!$E$38="Endemic", IF($H55>0, IF($H55=4,"Unknown", IF($H55=99,"Stopped", $D55)), 0),"Not required") -> 0 | M55: =IF(INTRO!$E$40="Endemic", IF($I55>0, IF($I55=4,"Unknown",IF($I55=99,"Stopped", $D55)), 0),"Not required") -> 0 | N55: =IF(INTRO!$E$42="Endemic", IF(AND($J55>1,$J55<5), IF($J55=4, "Unknown", E55+F55), 0),"Not required") -> 221074 | O55: =IF(INTRO!$E$44="Endemic", IF(AND($K55>0,$K55<5), IF($K55=4,"Unknown", IF($K55=1, $F55*0.33, IF($K55=2, $F55*0.5+$G55*0.2, SUM(F55:G55)))), 0),"Not required") -> 135748.1 | P55: 0 | Q55: 0 | R55: 1 | S55: 1 | U55: T1 (PZQ+ALB/MBD) | V55: T1 | W55: T3 | Y55: 46500 | Z55: Kasulu District Council | AC55: 0 | AD55: 0 | AE55: 3 | AF55: 2 | AG55: TRUE | AH55: TRUE | AI55: TRUE | AJ55: TRUE
A56: =IF(INTRO!$E$34<>0,INTRO!$E$34,"") -> Tanzania | B56: Kigoma | C56: Kasulu Town Council | D56: 266307 | E56: =IF(INTRO!$E$48="","",ROUND($D56*INTRO!$E$48,0)) -> 35419 | F56: =IF(INTRO!$E$49="","",ROUND($D56*INTRO!$E$49,0)) -> 72702 | G56: =IF(INTRO!$E$50="","",ROUND($D56*INTRO!$E$50,0)) -> 150197 | H56: 0 | I56: 0 | J56: 3 | K56: 2 | L56: =IF(INTRO!$E$38="Endemic", IF($H56>0, IF($H56=4,"Unknown", IF($H56=99,"Stopped", $D56)), 0),"Not required") -> 0 | M56: =IF(INTRO!$E$40="Endemic", IF($I56>0, IF($I56=4,"Unknown",IF($I56=99,"Stopped", $D56)), 0),"Not required") -> 0 | N56: =IF(INTRO!$E$42="Endemic", IF(AND($J56>1,$J56<5), IF($J56=4, "Unknown", E56+F56), 0),"Not required") -> 108121 | O56: =IF(INTRO!$E$44="Endemic", IF(AND($K56>0,$K56<5), IF($K56=4,"Unknown", IF($K56=1, $F56*0.33, IF($K56=2, $F56*0.5+$G56*0.2, SUM(F56:G56)))), 0),"Not required") -> 66390.4 | P56: 0 | Q56: 0 | R56: 1 | S56: 1 | U56: T1 (PZQ+ALB/MBD) | V56: T1 | W56: T3 | Y56: 46501 | Z56: Kasulu Town Council | AC56: 0 | AD56: 0 | AE56: 3 | AF56: 2 | AG56: TRUE | AH56: TRUE | AI56: TRUE | AJ56: TRUE
A57: =IF(INTRO!$E$34<>0,INTRO!$E$34,"") -> Tanzania | B57: Kigoma | C57: Kibondo District Council | D57: 334198 | E57: =IF(INTRO!$E$48="","",ROUND($D57*INTRO!$E$48,0)) -> 44448 | F57: =IF(INTRO!$E$49="","",ROUND($D57*INTRO!$E$49,0)) -> 91236 | G57: =IF(INTRO!$E$50="","",ROUND($D57*INTRO!$E$50,0)) -> 188488 | H57: 0 | I57: 0 | J57: 3 | K57: 2 | L57: =IF(INTRO!$E$38="Endemic", IF($H57>0, IF($H57=4,"Unknown", IF($H57=99,"Stopped", $D57)), 0),"Not required") -> 0 | M57: =IF(INTRO!$E$40="Endemic", IF($I57>0, IF($I57=4,"Unknown",IF($I57=99,"Stopped", $D57)), 0),"Not required") -> 0 | N57: =IF(INTRO!$E$42="Endemic", IF(AND($J57>1,$J57<5), IF($J57=4, "Unknown", E57+F57), 0),"Not required") -> 135684 | O57: =IF(INTRO!$E$44="Endemic", IF(AND($K57>0,$K57<5), IF($K57=4,"Unknown", IF($K57=1, $F57*0.33, IF($K57=2, $F57*0.5+$G57*0.2, SUM(F57:G57)))), 0),"Not required") -> 83315.6 | P57: 0 | Q57: 0 | R57: 1 | S57: 1 | U57: T1 (PZQ+ALB/MBD) | V57: T1 | W57: T3 | Y57: 46502 | Z57: Kibondo District Council | AC57: 0 | AD57: 0 | AE57: 3 | AF57: 2 | AG57: TRUE | AH57: TRUE | AI57: TRUE | AJ57: TRUE
A58: =IF(INTRO!$E$34<>0,INTRO!$E$34,"") -> Tanzania | B58: Kigoma | C58: Kigoma District Council | D58: 270558 | E58: =IF(INTRO!$E$48="","",ROUND($D58*INTRO!$E$48,0)) -> 35984 | F58: =IF(INTRO!$E$49="","",ROUND($D58*INTRO!$E$49,0)) -> 73862 | G58: =IF(INTRO!$E$50="","",ROUND($D58*INTRO!$E$50,0)) -> 152595 | H58: 0 | I58: 0 | J58: 3 | K58: 2 | L58: =IF(INTRO!$E$38="Endemic", IF($H58>0, IF($H58=4,"Unknown", IF($H58=99,"Stopped", $D58)), 0),"Not required") -> 0 | M58: =IF(INTRO!$E$40="Endemic", IF($I58>0, IF($I58=4,"Unknown",IF($I58=99,"Stopped", $D58)), 0),"Not required") -> 0 | N58: =IF(INTRO!$E$42="Endemic", IF(AND($J58>1,$J58<5), IF($J58=4, "Unknown", E58+F58), 0),"Not required") -> 109846 | O58: =IF(INTRO!$E$44="Endemic", IF(AND($K58>0,$K58<5), IF($K58=4,"Unknown", IF($K58=1, $F58*0.33, IF($K58=2, $F58*0.5+$G58*0.2, SUM(F58:G58)))), 0),"Not required") -> 67450 | P58: 0 | Q58: 0 | R58: 1 | S58: 1 | U58: T1 (PZQ+ALB/MBD) | V58: T1 | W58: T3 | Y58: 46504 | Z58: Kigoma District Council | AC58: 0 | AD58: 0 | AE58: 3 | AF58: 2 | AG58: TRUE | AH58: TRUE | AI58: TRUE | AJ58: TRUE
A59: =IF(INTRO!$E$34<>0,INTRO!$E$34,"") -> Tanzania | B59: Kigoma | C59: Kigoma-Ujiji Municipal Council | D59: 275535 | E59: =IF(INTRO!$E$48="","",ROUND($D59*INTRO!$E$48,0)) -> 36646 | F59: =IF(INTRO!$E$49="","",ROUND($D59*INTRO!$E$49,0)) -> 75221 | G59: =IF(INTRO!$E$50="","",ROUND($D59*INTRO!$E$50,0)) -> 155402 | H59: 0 | I59: 0 | J59: 3 | K59: 2 | L59: =IF(INTRO!$E$38="Endemic", IF($H59>0, IF($H59=4,"Unknown", IF($H59=99,"Stopped", $D59)), 0),"Not required") -> 0 | M59: =IF(INTRO!$E$40="Endemic", IF($I59>0, IF($I59=4,"Unknown",IF($I59=99,"Stopped", $D59)), 0),"Not required") -> 0 | N59: =IF(INTRO!$E$42="Endemic", IF(AND($J59>1,$J59<5), IF($J59=4, "Unknown", E59+F59), 0),"Not required") -> 111867 | O59: =IF(INTRO!$E$44="Endemic", IF(AND($K59>0,$K59<5), IF($K59=4,"Unknown", IF($K59=1, $F59*0.33, IF($K59=2, $F59*0.5+$G59*0.2, SUM(F59:G59)))), 0),"Not required") -> 68690.9 | P59: 0 | Q59: 0 | R59: 1 | S59: 1 | U59: T1 (PZQ+ALB/MBD) | V59: T1 | W59: T3 | Y59: 46503 | Z59: Kigoma-Ujiji Municipal Council | AC59: 0 | AD59: 0 | AE59: 3 | AF59: 2 | AG59: TRUE | AH59: TRUE | AI59: TRUE | AJ59: TRUE
A60: =IF(INTRO!$E$34<>0,INTRO!$E$34,"") -> Tanzania | B60: Kigoma | C60: Uvinza District Council | D60: 490609 | E60: =IF(INTRO!$E$48="","",ROUND($D60*INTRO!$E$48,0)) -> 65251 | F60: =IF(INTRO!$E$49="","",ROUND($D60*INTRO!$E$49,0)) -> 133936 | G60: =IF(INTRO!$E$50="","",ROUND($D60*INTRO!$E$50,0)) -> 276703 | H60: 0 | I60: 0 | J60: 3 | K60: 2 | L60: =IF(INTRO!$E$38="Endemic", IF($H60>0, IF($H60=4,"Unknown", IF($H60=99,"Stopped", $D60)), 0),"Not required") -> 0 | M60: =IF(INTRO!$E$40="Endemic", IF($I60>0, IF($I60=4,"Unknown",IF($I60=99,"Stopped", $D60)), 0),"Not required") -> 0 | N60: =IF(INTRO!$E$42="Endemic", IF(AND($J60>1,$J60<5), IF($J60=4, "Unknown", E60+F60), 0),"Not required") -> 199187 | O60: =IF(INTRO!$E$44="Endemic", IF(AND($K60>0,$K60<5), IF($K60=4,"Unknown", IF($K60=1, $F60*0.33, IF($K60=2, $F60*0.5+$G60*0.2, SUM(F60:G60)))), 0),"Not required") -> 122308.6 | P60: 0 | Q60: 0 | R60: 1 | S60: 1 | U60: T1 (PZQ+ALB/MBD) | V60: T1 | W60: T3 | Y60: 46505 | Z60: Uvinza District Council | AC60: 0 | AD60: 0 | AE60: 3 | AF60: 2 | AG60: TRUE | AH60: TRUE | AI60: TRUE | AJ60: TRUE
A61: =IF(INTRO!$E$34<>0,INTRO!$E$34,"") -> Tanzania | B61: Kilimanjaro | C61: Hai District Council | D61: 246786 | E61: =IF(INTRO!$E$48="","",ROUND($D61*INTRO!$E$48,0)) -> 32823 | F61: =IF(INTRO!$E$49="","",ROUND($D61*INTRO!$E$49,0)) -> 67373 | G61: =IF(INTRO!$E$50="","",ROUND($D61*INTRO!$E$50,0)) -> 139187 | H61: 0 | I61: 0 | J61: 3 | K61: 2 | L61: =IF(INTRO!$E$38="Endemic", IF($H61>0, IF($H61=4,"Unknown", IF($H61=99,"Stopped", $D61)), 0),"Not required") -> 0 | M61: =IF(INTRO!$E$40="Endemic", IF($I61>0, IF($I61=4,"Unknown",IF($I61=99,"Stopped", $D61)), 0),"Not required") -> 0 | N61: =IF(INTRO!$E$42="Endemic", IF(AND($J61>1,$J61<5), IF($J61=4, "Unknown", E61+F61), 0),"Not required") -> 100196 | O61: =IF(INTRO!$E$44="Endemic", IF(AND($K61>0,$K61<5), IF($K61=4,"Unknown", IF($K61=1, $F61*0.33, IF($K61=2, $F61*0.5+$G61*0.2, SUM(F61:G61)))), 0),"Not required") -> 61523.9 | P61: 0 | Q61: 0 | R61: 1 | S61: 1 | U61: T1 (PZQ+ALB/MBD) | V61: T1 | W61: T3 | Y61: 46506 | Z61: Hai District Council | AC61: 0 | AD61: 0 | AE61: 3 | AF61: 2 | AG61: TRUE | AH61: TRUE | AI61: TRUE | AJ61: TRUE
A62: =IF(INTRO!$E$34<>0,INTRO!$E$34,"") -> Tanzania | B62: Kilimanjaro | C62: Moshi District Council | D62: 547115 | E62: =IF(INTRO!$E$48="","",ROUND($D62*INTRO!$E$48,0)) -> 72766 | F62: =IF(INTRO!$E$49="","",ROUND($D62*INTRO!$E$49,0)) -> 149362 | G62: =IF(INTRO!$E$50="","",ROUND($D62*INTRO!$E$50,0)) -> 308573 | H62: 0 | I62: 0 | J62: 3 | K62: 2 | L62: =IF(INTRO!$E$38="Endemic", IF($H62>0, IF($H62=4,"Unknown", IF($H62=99,"Stopped", $D62)), 0),"Not required") -> 0 | M62: =IF(INTRO!$E$40="Endemic", IF($I62>0, IF($I62=4,"Unknown",IF($I62=99,"Stopped", $D62)), 0),"Not required") -> 0 | N62: =IF(INTRO!$E$42="Endemic", IF(AND($J62>1,$J62<5), IF($J62=4, "Unknown", E62+F62), 0),"Not required") -> 222128 | O62: =IF(INTRO!$E$44="Endemic", IF(AND($K62>0,$K62<5), IF($K62=4,"Unknown", IF($K62=1, $F62*0.33, IF($K62=2, $F62*0.5+$G62*0.2, SUM(F62:G62)))), 0),"Not required") -> 136395.6 | P62: 0 | Q62: 0 | R62: 1 | S62: 1 | U62: T1 (PZQ+ALB/MBD) | V62: T1 | W62: T3 | Y62: 46507 | Z62: Moshi District Council | AC62: 0 | AD62: 0 | AE62: 3 | AF62: 2 | AG62: TRUE | AH62: TRUE | AI62: TRUE | AJ62: TRUE
A63: =IF(INTRO!$E$34<>0,INTRO!$E$34,"") -> Tanzania | B63: Kilimanjaro | C63: Moshi Municipal Council | D63: 216029 | E63: =IF(INTRO!$E$48="","",ROUND($D63*INTRO!$E$48,0)) -> 28732 | F63: =IF(INTRO!$E$49="","",ROUND($D63*INTRO!$E$49,0)) -> 58976 | G63: =IF(INTRO!$E$50="","",ROUND($D63*INTRO!$E$50,0)) -> 121840 | H63: 0 | I63: 0 | J63: 3 | K63: 2 | L63: =IF(INTRO!$E$38="Endemic", IF($H63>0, IF($H63=4,"Unknown", IF($H63=99,"Stopped", $D63)), 0),"Not required") -> 0 | M63: =IF(INTRO!$E$40="Endemic", IF($I63>0, IF($I63=4,"Unknown",IF($I63=99,"Stopped", $D63)), 0),"Not required") -> 0 | N63: =IF(INTRO!$E$42="Endemic", IF(AND($J63>1,$J63<5), IF($J63=4, "Unknown", E63+F63), 0),"Not required") -> 87708 | O63: =IF(INTRO!$E$44="Endemic", IF(AND($K63>0,$K63<5), IF($K63=4,"Unknown", IF($K63=1, $F63*0.33, IF($K63=2, $F63*0.5+$G63*0.2, SUM(F63:G63)))), 0),"Not required") -> 53856 | P63: 0 | Q63: 0 | R63: 1 | S63: 1 | U63: T1 (PZQ+ALB/MBD) | V63: T1 | W63: T3 | Y63: 46508 | Z63: Moshi Municipal Council | AC63: 0 | AD63: 0 | AE63: 3 | AF63: 2 | AG63: TRUE | AH63: TRUE | AI63: TRUE | AJ63: TRUE
A64: =IF(INTRO!$E$34<>0,INTRO!$E$34,"") -> Tanzania | B64: Kilimanjaro | C64: Mwanga District Council | D64: 154077 | E64: =IF(INTRO!$E$48="","",ROUND($D64*INTRO!$E$48,0)) -> 20492 | F64: =IF(INTRO!$E$49="","",ROUND($D64*INTRO!$E$49,0)) -> 42063 | G64: =IF(INTRO!$E$50="","",ROUND($D64*INTRO!$E$50,0)) -> 86899 | H64: 0 | I64: 0 | J64: 3 | K64: 2 | L64: =IF(INTRO!$E$38="Endemic", IF($H64>0, IF($H64=4,"Unknown", IF($H64=99,"Stopped", $D64)), 0),"Not required") -> 0 | M64: =IF(INTRO!$E$40="Endemic", IF($I64>0, IF($I64=4,"Unknown",IF($I64=99,"Stopped", $D64)), 0),"Not required") -> 0 | N64: =IF(INTRO!$E$42="Endemic", IF(AND($J64>1,$J64<5), IF($J64=4, "Unknown", E64+F64), 0),"Not required") -> 62555 | O64: =IF(INTRO!$E$44="Endemic", IF(AND($K64>0,$K64<5), IF($K64=4,"Unknown", IF($K64=1, $F64*0.33, IF($K64=2, $F64*0.5+$G64*0.2, SUM(F64:G64)))), 0),"Not required") -> 38411.3 | P64: 0 | Q64: 0 | R64: 1 | S64: 1 | U64: T1 (PZQ+ALB/MBD) | V64: T1 | W64: T3 | Y64: 46509 | Z64: Mwanga District Council | AC64: 0 | AD64: 0 | AE64: 3 | AF64: 2 | AG64: TRUE | AH64: TRUE | AI64: TRUE | AJ64: TRUE
A65: =IF(INTRO!$E$34<>0,INTRO!$E$34,"") -> Tanzania | B65: Kilimanjaro | C65: Rombo District Council | D65: 305902 | E65: =IF(INTRO!$E$48="","",ROUND($D65*INTRO!$E$48,0)) -> 40685 | F65: =IF(INTRO!$E$49="","",ROUND($D65*INTRO!$E$49,0)) -> 83511 | G65: =IF(INTRO!$E$50="","",ROUND($D65*INTRO!$E$50,0)) -> 172529 | H65: 0 | I65: 0 | J65: 3 | K65: 2 | L65: =IF(INTRO!$E$38="Endemic", IF($H65>0, IF($H65=4,"Unknown", IF($H65=99,"Stopped", $D65)), 0),"Not required") -> 0 | M65: =IF(INTRO!$E$40="Endemic", IF($I65>0, IF($I65=4,"Unknown",IF($I65=99,"Stopped", $D65)), 0),"Not required") -> 0 | N65: =IF(INTRO!$E$42="Endemic", IF(AND($J65>1,$J65<5), IF($J65=4, "Unknown", E65+F65), 0),"Not required") -> 124196 | O65: =IF(INTRO!$E$44="Endemic", IF(AND($K65>0,$K65<5), IF($K65=4,"Unknown", IF($K65=1, $F65*0.33, IF($K65=2, $F65*0.5+$G65*0.2, SUM(F65:G65)))), 0),"Not required") -> 76261.3 | P65: 0 | Q65: 0 | R65: 1 | S65: 1 | U65: T1 (PZQ+ALB/MBD) | V65: T1 | W65: T3 | Y65: 46510 | Z65: Rombo District Council | AC65: 0 | AD65: 0 | AE65: 3 | AF65: 2 | AG65: TRUE | AH65: TRUE | AI65: TRUE | AJ65: TRUE
A66: =IF(INTRO!$E$34<>0,INTRO!$E$34,"") -> Tanzania | B66: Kilimanjaro | C66: Same District Council | D66: 316273 | E66: =IF(INTRO!$E$48="","",ROUND($D66*INTRO!$E$48,0)) -> 42064 | F66: =IF(INTRO!$E$49="","",ROUND($D66*INTRO!$E$49,0)) -> 86343 | G66: =IF(INTRO!$E$50="","",ROUND($D66*INTRO!$E$50,0)) -> 178378 | H66: 0 | I66: 0 | J66: 3 | K66: 2 | L66: =IF(INTRO!$E$38="Endemic", IF($H66>0, IF($H66=4,"Unknown", IF($H66=99,"Stopped", $D66)), 0),"Not required") -> 0 | M66: =IF(INTRO!$E$40="Endemic", IF($I66>0, IF($I66=4,"Unknown",IF($I66=99,"Stopped", $D66)), 0),"Not required") -> 0 | N66: =IF(INTRO!$E$42="Endemic", IF(AND($J66>1,$J66<5), IF($J66=4, "Unknown", E66+F66), 0),"Not required") -> 128407 | O66: =IF(INTRO!$E$44="Endemic", IF(AND($K66>0,$K66<5), IF($K66=4,"Unknown", IF($K66=1, $F66*0.33, IF($K66=2, $F66*0.5+$G66*0.2, SUM(F66:G66)))), 0),"Not required") -> 78847.1 | P66: 0 | Q66: 0 | R66: 1 | S66: 1 | U66: T1 (PZQ+ALB/MBD) | V66: T1 | W66: T3 | Y66: 46511 | Z66: Same District Council | AC66: 0 | AD66: 0 | AE66: 3 | AF66: 2 | AG66: TRUE | AH66: TRUE | AI66: TRUE | AJ66: TRUE
A67: =IF(INTRO!$E$34<>0,INTRO!$E$34,"") -> Tanzania | B67: Kilimanjaro | C67: Siha District Council | D67: 136343 | E67: =IF(INTRO!$E$48="","",ROUND($D67*INTRO!$E$48,0)) -> 18134 | F67: =IF(INTRO!$E$49="","",ROUND($D67*INTRO!$E$49,0)) -> 37222 | G67: =IF(INTRO!$E$50="","",ROUND($D67*INTRO!$E$50,0)) -> 76897 | H67: 0 | I67: 0 | J67: 3 | K67: 2 | L67: =IF(INTRO!$E$38="Endemic", IF($H67>0, IF($H67=4,"Unknown", IF($H67=99,"Stopped", $D67)), 0),"Not required") -> 0 | M67: =IF(INTRO!$E$40="Endemic", IF($I67>0, IF($I67=4,"Unknown",IF($I67=99,"Stopped", $D67)), 0),"Not required") -> 0 | N67: =IF(INTRO!$E$42="Endemic", IF(AND($J67>1,$J67<5), IF($J67=4, "Unknown", E67+F67), 0),"Not required") -> 55356 | O67: =IF(INTRO!$E$44="Endemic", IF(AND($K67>0,$K67<5), IF($K67=4,"Unknown", IF($K67=1, $F67*0.33, IF($K67=2, $F67*0.5+$G67*0.2, SUM(F67:G67)))), 0),"Not required") -> 33990.4 | P67: 0 | Q67: 0 | R67: 1 | S67: 1 | U67: T1 (PZQ+ALB/MBD) | V67: T1 | W67: T3 | Y67: 46512 | Z67: Siha District Council | AC67: 0 | AD67: 0 | AE67: 3 | AF67: 2 | AG67: TRUE | AH67: TRUE | AI67: TRUE | AJ67: TRUE
A68: =IF(INTRO!$E$34<>0,INTRO!$E$34,"") -> Tanzania | B68: Lindi | C68: Kilwa District Council | D68: 221333 | E68: =IF(INTRO!$E$48="","",ROUND($D68*INTRO!$E$48,0)) -> 29437 | F68: =IF(INTRO!$E$49="","",ROUND($D68*INTRO!$E$49,0)) -> 60424 | G68: =IF(INTRO!$E$50="","",ROUND($D68*INTRO!$E$50,0)) -> 124832 | H68: 1 | I68: 0 | J68: 3 | K68: 2 | L68: =IF(INTRO!$E$38="Endemic", IF($H68>0, IF($H68=4,"Unknown", IF($H68=99,"Stopped", $D68)), 0),"Not required") -> 221333 | M68: =IF(INTRO!$E$40="Endemic", IF($I68>0, IF($I68=4,"Unknown",IF($I68=99,"Stopped", $D68)), 0),"Not required") -> 0 | N68: =IF(INTRO!$E$42="Endemic", IF(AND($J68>1,$J68<5), IF($J68=4, "Unknown", E68+F68), 0),"Not required") -> 89861 | O68: =IF(INTRO!$E$44="Endemic", IF(AND($K68>0,$K68<5), IF($K68=4,"Unknown", IF($K68=1, $F68*0.33, IF($K68=2, $F68*0.5+$G68*0.2, SUM(F68:G68)))), 0),"Not required") -> 55178.4 | P68: 1 | Q68: 0 | R68: 2 | S68: 1 | T68: MDA1 (IVM+ALB) | U68: T1 (PZQ+ALB/MBD) | V68: MDA 1 | W68: T1 | Y68: 46513 | Z68: Kilwa District Council | AC68: 1 | AD68: 0 | AE68: 3 | AF68: 2 | AG68: TRUE | AH68: TRUE | AI68: TRUE | AJ68: TRUE
A69: =IF(INTRO!$E$34<>0,INTRO!$E$34,"") -> Tanzania | B69: Lindi | C69: Mtama District Council | D69: 188414 | E69: =IF(INTRO!$E$48="","",ROUND($D69*INTRO!$E$48,0)) -> 25059 | F69: =IF(INTRO!$E$49="","",ROUND($D69*INTRO!$E$49,0)) -> 51437 | G69: =IF(INTRO!$E$50="","",ROUND($D69*INTRO!$E$50,0)) -> 106265 | H69: 1 | I69: 0 | J69: 3 | K69: 2 | L69: =IF(INTRO!$E$38="Endemic", IF($H69>0, IF($H69=4,"Unknown", IF($H69=99,"Stopped", $D69)), 0),"Not required") -> 188414 | M69: =IF(INTRO!$E$40="Endemic", IF($I69>0, IF($I69=4,"Unknown",IF($I69=99,"Stopped", $D69)), 0),"Not required") -> 0 | N69: =IF(INTRO!$E$42="Endemic", IF(AND($J69>1,$J69<5), IF($J69=4, "Unknown", E69+F69), 0),"Not required") -> 76496 | O69: =IF(INTRO!$E$44="Endemic", IF(AND($K69>0,$K69<5), IF($K69=4,"Unknown", IF($K69=1, $F69*0.33, IF($K69=2, $F69*0.5+$G69*0.2, SUM(F69:G69)))), 0),"Not required") -> 46971.5 | P69: 1 | Q69: 0 | R69: 2 | S69: 1 | T69: MDA1 (IVM+ALB) | U69: T1 (PZQ+ALB/MBD) | V69: MDA 1 | W69: T1 | Y69: 46514 | Z69: Mtama District Council (Lindi District Council) | AC69: 1 | AD69: 0 | AE69: 3 | AF69: 2 | AG69: TRUE | AH69: TRUE | AI69: TRUE | AJ69: TRUE
A70: =IF(INTRO!$E$34<>0,INTRO!$E$34,"") -> Tanzania | B70: Lindi | C70: Lindi Municipal Council | D70: 85620 | E70: =IF(INTRO!$E$48="","",ROUND($D70*INTRO!$E$48,0)) -> 11387 | F70: =IF(INTRO!$E$49="","",ROUND($D70*INTRO!$E$49,0)) -> 23374 | G70: =IF(INTRO!$E$50="","",ROUND($D70*INTRO!$E$50,0)) -> 48290 | H70: 1 | I70: 0 | J70: 3 | K70: 2 | L70: =IF(INTRO!$E$38="Endemic", IF($H70>0, IF($H70=4,"Unknown", IF($H70=99,"Stopped", $D70)), 0),"Not required") -> 85620 | M70: =IF(INTRO!$E$40="Endemic", IF($I70>0, IF($I70=4,"Unknown",IF($I70=99,"Stopped", $D70)), 0),"Not required") -> 0 | N70: =IF(INTRO!$E$42="Endemic", IF(AND($J70>1,$J70<5), IF($J70=4, "Unknown", E70+F70), 0),"Not required") -> 34761 | O70: =IF(INTRO!$E$44="Endemic", IF(AND($K70>0,$K70<5), IF($K70=4,"Unknown", IF($K70=1, $F70*0.33, IF($K70=2, $F70*0.5+$G70*0.2, SUM(F70:G70)))), 0),"Not required") -> 21345 | P70: 0 | Q70: 0 | R70: 2 | S70: 1 | U70: T1 (PZQ+ALB/MBD) | V70: T1 | W70: T3 | Y70: 46515 | Z70: Lindi Municipal Council | AC70: 99 | AD70: 0 | AE70: 3 | AF70: 2 | AG70: FALSE | AH70: TRUE | AI70: TRUE | AJ70: TRUE
A71: =IF(INTRO!$E$34<>0,INTRO!$E$34,"") -> Tanzania | B71: Lindi | C71: Liwale District Council | D71: 99239 | E71: =IF(INTRO!$E$48="","",ROUND($D71*INTRO!$E$48,0)) -> 13199 | F71: =IF(INTRO!$E$49="","",ROUND($D71*INTRO!$E$49,0)) -> 27092 | G71: =IF(INTRO!$E$50="","",ROUND($D71*INTRO!$E$50,0)) -> 55971 | H71: 99 | I71: 0 | J71: 3 | K71: 2 | L71: =IF(INTRO!$E$38="Endemic", IF($H71>0, IF($H71=4,"Unknown", IF($H71=99,"Stopped", $D71)), 0),"Not required") -> Stopped | M71: =IF(INTRO!$E$40="Endemic", IF($I71>0, IF($I71=4,"Unknown",IF($I71=99,"Stopped", $D71)), 0),"Not required") -> 0 | N71: =IF(INTRO!$E$42="Endemic", IF(AND($J71>1,$J71<5), IF($J71=4, "Unknown", E71+F71), 0),"Not required") -> 40291 | O71: =IF(INTRO!$E$44="Endemic", IF(AND($K71>0,$K71<5), IF($K71=4,"Unknown", IF($K71=1, $F71*0.33, IF($K71=2, $F71*0.5+$G71*0.2, SUM(F71:G71)))), 0),"Not required") -> 24740.2 | P71: 0 | Q71: 0 | R71: 1 | S71: 1 | U71: T1 (PZQ+ALB/MBD) | V71: T1 | W71: T3 | Y71: 46516 | Z71: Liwale District Council | AC71: 99 | AD71: 0 | AE71: 3 | AF71: 2 | AG71: TRUE | AH71: TRUE | AI71: TRUE | AJ71: TRUE
A72: =IF(INTRO!$E$34<>0,INTRO!$E$34,"") -> Tanzania | B72: Lindi | C72: Nachingwea District Council | D72: 193809 | E72: =IF(INTRO!$E$48="","",ROUND($D72*INTRO!$E$48,0)) -> 25777 | F72: =IF(INTRO!$E$49="","",ROUND($D72*INTRO!$E$49,0)) -> 52910 | G72: =IF(INTRO!$E$50="","",ROUND($D72*INTRO!$E$50,0)) -> 109308 | H72: 99 | I72: 0 | J72: 3 | K72: 3 | L72: =IF(INTRO!$E$38="Endemic", IF($H72>0, IF($H72=4,"Unknown", IF($H72=99,"Stopped", $D72)), 0),"Not required") -> Stopped | M72: =IF(INTRO!$E$40="Endemic", IF($I72>0, IF($I72=4,"Unknown",IF($I72=99,"Stopped", $D72)), 0),"Not required") -> 0 | N72: =IF(INTRO!$E$42="Endemic", IF(AND($J72>1,$J72<5), IF($J72=4, "Unknown", E72+F72), 0),"Not required") -> 78687 | O72: =IF(INTRO!$E$44="Endemic", IF(AND($K72>0,$K72<5), IF($K72=4,"Unknown", IF($K72=1, $F72*0.33, IF($K72=2, $F72*0.5+$G72*0.2, SUM(F72:G72)))), 0),"Not required") -> 162218 | P72: 0 | Q72: 0 | R72: 1 | S72: 1 | U72: T1 (PZQ+ALB/MBD) | V72: T1 | W72: T3 | Y72: 46517 | Z72: Nachingwea District Council | AC72: 99 | AD72: 0 | AE72: 3 | AF72: 3 | AG72: TRUE | AH72: TRUE | AI72: TRUE | AJ72: TRUE
A73: =IF(INTRO!$E$34<>0,INTRO!$E$34,"") -> Tanzania | B73: Lindi | C73: Ruangwa District Council | D73: 142350 | E73: =IF(INTRO!$E$48="","",ROUND($D73*INTRO!$E$48,0)) -> 18933 | F73: =IF(INTRO!$E$49="","",ROUND($D73*INTRO!$E$49,0)) -> 38862 | G73: =IF(INTRO!$E$50="","",ROUND($D73*INTRO!$E$50,0)) -> 80285 | H73: 99 | I73: 0 | J73: 3 | K73: 3 | L73: =IF(INTRO!$E$38="Endemic", IF($H73>0, IF($H73=4,"Unknown", IF($H73=99,"Stopped", $D73)), 0),"Not required") -> Stopped | M73: =IF(INTRO!$E$40="Endemic", IF($I73>0, IF($I73=4,"Unknown",IF($I73=99,"Stopped", $D73)), 0),"Not required") -> 0 | N73: =IF(INTRO!$E$42="Endemic", IF(AND($J73>1,$J73<5), IF($J73=4, "Unknown", E73+F73), 0),"Not required") -> 57795 | O73: =IF(INTRO!$E$44="Endemic", IF(AND($K73>0,$K73<5), IF($K73=4,"Unknown", IF($K73=1, $F73*0.33, IF($K73=2, $F73*0.5+$G73*0.2, SUM(F73:G73)))), 0),"Not required") -> 119147 | P73: 0 | Q73: 0 | R73: 1 | S73: 1 | U73: T1 (PZQ+ALB/MBD) | V73: T1 | W73: T3 | Y73: 46518 | Z73: Ruangwa District Council | AC73: 99 | AD73: 0 | AE73: 3 | AF73: 3 | AG73: TRUE | AH73: TRUE | AI73: TRUE | AJ73: TRUE
A74: =IF(INTRO!$E$34<>0,INTRO!$E$34,"") -> Tanzania | B74: Manyara | C74: Babati District Council | D74: 415268 | E74: =IF(INTRO!$E$48="","",ROUND($D74*INTRO!$E$48,0)) -> 55231 | F74: =IF(INTRO!$E$49="","",ROUND($D74*INTRO!$E$49,0)) -> 113368 | G74: =IF(INTRO!$E$50="","",ROUND($D74*INTRO!$E$50,0)) -> 234211 | H74: 99 | I74: 0 | J74: 3 | K74: 2 | L74: =IF(INTRO!$E$38="Endemic", IF($H74>0, IF($H74=4,"Unknown", IF($H74=99,"Stopped", $D74)), 0),"Not required") -> Stopped | M74: =IF(INTRO!$E$40="Endemic", IF($I74>0, IF($I74=4,"Unknown",IF($I74=99,"Stopped", $D74)), 0),"Not required") -> 0 | N74: =IF(INTRO!$E$42="Endemic", IF(AND($J74>1,$J74<5), IF($J74=4, "Unknown", E74+F74), 0),"Not required") -> 168599 | O74: =IF(INTRO!$E$44="Endemic", IF(AND($K74>0,$K74<5), IF($K74=4,"Unknown", IF($K74=1, $F74*0.33, IF($K74=2, $F74*0.5+$G74*0.2, SUM(F74:G74)))), 0),"Not required") -> 103526.2 | P74: 0 | Q74: 0 | R74: 1 | S74: 1 | U74: T1 (PZQ+ALB/MBD) | V74: T1 | W74: T3 | Y74: 46519 | Z74: Babati District Council | AC74: 99 | AD74: 0 | AE74: 3 | AF74: 2 | AG74: =AC74=H74 -> TRUE | AH74: =AD74=I74 -> TRUE | AI74: =AE74=J74 -> TRUE | AJ74: =AF74=K74 -> TRUE
A75: =IF(INTRO!$E$34<>0,INTRO!$E$34,"") -> Tanzania | B75: Manyara | C75: Babati Town Council | D75: 123773 | E75: =IF(INTRO!$E$48="","",ROUND($D75*INTRO!$E$48,0)) -> 16462 | F75: =IF(INTRO!$E$49="","",ROUND($D75*INTRO!$E$49,0)) -> 33790 | G75: =IF(INTRO!$E$50="","",ROUND($D75*INTRO!$E$50,0)) -> 69808 | H75: 99 | I75: 0 | J75: 3 | K75: 2 | L75: =IF(INTRO!$E$38="Endemic", IF($H75>0, IF($H75=4,"Unknown", IF($H75=99,"Stopped", $D75)), 0),"Not required") -> Stopped | M75: =IF(INTRO!$E$40="Endemic", IF($I75>0, IF($I75=4,"Unknown",IF($I75=99,"Stopped", $D75)), 0),"Not required") -> 0 | N75: =IF(INTRO!$E$42="Endemic", IF(AND($J75>1,$J75<5), IF($J75=4, "Unknown", E75+F75), 0),"Not required") -> 50252 | O75: =IF(INTRO!$E$44="Endemic", IF(AND($K75>0,$K75<5), IF($K75=4,"Unknown", IF($K75=1, $F75*0.33, IF($K75=2, $F75*0.5+$G75*0.2, SUM(F75:G75)))), 0),"Not required") -> 30856.6 | P75: 0 | Q75: 0 | R75: 1 | S75: 1 | U75: T1 (PZQ+ALB/MBD) | V75: T1 | W75: T3 | Y75: 46520 | Z75: Babati Town Council | AC75: 99 | AD75: 0 | AE75: 3 | AF75: 2 | AG75: TRUE | AH75: TRUE | AI75: TRUE | AJ75: TRUE
A76: =IF(INTRO!$E$34<>0,INTRO!$E$34,"") -> Tanzania | B76: Manyara | C76: Hanang District Council | D76: 366882 | E76: =IF(INTRO!$E$48="","",ROUND($D76*INTRO!$E$48,0)) -> 48795 | F76: =IF(INTRO!$E$49="","",ROUND($D76*INTRO!$E$49,0)) -> 100159 | G76: =IF(INTRO!$E$50="","",ROUND($D76*INTRO!$E$50,0)) -> 206921 | H76: 99 | I76: 0 | J76: 3 | K76: 2 | L76: =IF(INTRO!$E$38="Endemic", IF($H76>0, IF($H76=4,"Unknown", IF($H76=99,"Stopped", $D76)), 0),"Not required") -> Stopped | M76: =IF(INTRO!$E$40="Endemic", IF($I76>0, IF($I76=4,"Unknown",IF($I76=99,"Stopped", $D76)), 0),"Not required") -> 0 | N76: =IF(INTRO!$E$42="Endemic", IF(AND($J76>1,$J76<5), IF($J76=4, "Unknown", E76+F76), 0),"Not required") -> 148954 | O76: =IF(INTRO!$E$44="Endemic", IF(AND($K76>0,$K76<5), IF($K76=4,"Unknown", IF($K76=1, $F76*0.33, IF($K76=2, $F76*0.5+$G76*0.2, SUM(F76:G76)))), 0),"Not required") -> 91463.7 | P76: 0 | Q76: 0 | R76: 1 | S76: 1 | U76: T1 (PZQ+ALB/MBD) | V76: T1 | W76: T3 | Y76: 46521 | Z76: Hanang District Council | AC76: 99 | AD76: 0 | AE76: 3 | AF76: 2 | AG76: TRUE | AH76: TRUE | AI76: TRUE | AJ76: TRUE
A77: =IF(INTRO!$E$34<>0,INTRO!$E$34,"") -> Tanzania | B77: Manyara | C77: Kiteto District Council | D77: 325243 | E77: =IF(INTRO!$E$48="","",ROUND($D77*INTRO!$E$48,0)) -> 43257 | F77: =IF(INTRO!$E$49="","",ROUND($D77*INTRO!$E$49,0)) -> 88791 | G77: =IF(INTRO!$E$50="","",ROUND($D77*INTRO!$E$50,0)) -> 183437 | H77: 99 | I77: 0 | J77: 3 | K77: 2 | L77: =IF(INTRO!$E$38="Endemic", IF($H77>0, IF($H77=4,"Unknown", IF($H77=99,"Stopped", $D77)), 0),"Not required") -> Stopped | M77: =IF(INTRO!$E$40="Endemic", IF($I77>0, IF($I77=4,"Unknown",IF($I77=99,"Stopped", $D77)), 0),"Not required") -> 0 | N77: =IF(INTRO!$E$42="Endemic", IF(AND($J77>1,$J77<5), IF($J77=4, "Unknown", E77+F77), 0),"Not required") -> 132048 | O77: =IF(INTRO!$E$44="Endemic", IF(AND($K77>0,$K77<5), IF($K77=4,"Unknown", IF($K77=1, $F77*0.33, IF($K77=2, $F77*0.5+$G77*0.2, SUM(F77:G77)))), 0),"Not required") -> 81082.9 | P77: 0 | Q77: 0 | R77: 1 | S77: 1 | U77: T1 (PZQ+ALB/MBD) | V77: T1 | W77: T3 | Y77: 46522 | Z77: Kiteto District Council | AC77: 99 | AD77: 0 | AE77: 3 | AF77: 2 | AG77: TRUE | AH77: TRUE | AI77: TRUE | AJ77: TRUE
A78: =IF(INTRO!$E$34<>0,INTRO!$E$34,"") -> Tanzania | B78: Manyara | C78: Mbulu District Council | D78: 254194 | E78: =IF(INTRO!$E$48="","",ROUND($D78*INTRO!$E$48,0)) -> 33808 | F78: =IF(INTRO!$E$49="","",ROUND($D78*INTRO!$E$49,0)) -> 69395 | G78: =IF(INTRO!$E$50="","",ROUND($D78*INTRO!$E$50,0)) -> 143365 | H78: 99 | I78: 0 | J78: 3 | K78: 2 | L78: =IF(INTRO!$E$38="Endemic", IF($H78>0, IF($H78=4,"Unknown", IF($H78=99,"Stopped", $D78)), 0),"Not required") -> Stopped | M78: =IF(INTRO!$E$40="Endemic", IF($I78>0, IF($I78=4,"Unknown",IF($I78=99,"Stopped", $D78)), 0),"Not required") -> 0 | N78: =IF(INTRO!$E$42="Endemic", IF(AND($J78>1,$J78<5), IF($J78=4, "Unknown", E78+F78), 0),"Not required") -> 103203 | O78: =IF(INTRO!$E$44="Endemic", IF(AND($K78>0,$K78<5), IF($K78=4,"Unknown", IF($K78=1, $F78*0.33, IF($K78=2, $F78*0.5+$G78*0.2, SUM(F78:G78)))), 0),"Not required") -> 63370.5 | P78: 0 | Q78: 0 | R78: 1 | S78: 1 | U78: T1 (PZQ+ALB/MBD) | V78: T1 | W78: T3 | Y78: 46523 | Z78: Mbulu District Council | AC78: 99 | AD78: 0 | AE78: 3 | AF78: 2 | AG78: TRUE | AH78: TRUE | AI78: TRUE | AJ78: TRUE
A79: =IF(INTRO!$E$34<>0,INTRO!$E$34,"") -> Tanzania | B79: Manyara | C79: Mbulu Town Council | D79: 171560 | E79: =IF(INTRO!$E$48="","",ROUND($D79*INTRO!$E$48,0)) -> 22817 | F79: =IF(INTRO!$E$49="","",ROUND($D79*INTRO!$E$49,0)) -> 46836 | G79: =IF(INTRO!$E$50="","",ROUND($D79*INTRO!$E$50,0)) -> 96760 | H79: 99 | I79: 0 | J79: 3 | K79: 2 | L79: =IF(INTRO!$E$38="Endemic", IF($H79>0, IF($H79=4,"Unknown", IF($H79=99,"Stopped", $D79)), 0),"Not required") -> Stopped | M79: =IF(INTRO!$E$40="Endemic", IF($I79>0, IF($I79=4,"Unknown",IF($I79=99,"Stopped", $D79)), 0),"Not required") -> 0 | N79: =IF(INTRO!$E$42="Endemic", IF(AND($J79>1,$J79<5), IF($J79=4, "Unknown", E79+F79), 0),"Not required") -> 69653 | O79: =IF(INTRO!$E$44="Endemic", IF(AND($K79>0,$K79<5), IF($K79=4,"Unknown", IF($K79=1, $F79*0.33, IF($K79=2, $F79*0.5+$G79*0.2, SUM(F79:G79)))), 0),"Not required") -> 42770 | P79: 0 | Q79: 0 | R79: 1 | S79: 1 | U79: T1 (PZQ+ALB/MBD) | V79: T1 | W79: T3 | Y79: 46630 | Z79: Mbulu Town Council | AC79: 99 | AD79: 0 | AE79: 3 | AF79: 2 | AG79: TRUE | AH79: TRUE | AI79: TRUE | AJ79: TRUE
A80: =IF(INTRO!$E$34<>0,INTRO!$E$34,"") -> Tanzania | B80: Manyara | C80: Simanjiro District Council | D80: 237538 | E80: =IF(INTRO!$E$48="","",ROUND($D80*INTRO!$E$48,0)) -> 31593 | F80: =IF(INTRO!$E$49="","",ROUND($D80*INTRO!$E$49,0)) -> 64848 | G80: =IF(INTRO!$E$50="","",ROUND($D80*INTRO!$E$50,0)) -> 133971 | H80: 99 | I80: 0 | J80: 3 | K80: 2 | L80: =IF(INTRO!$E$38="Endemic", IF($H80>0, IF($H80=4,"Unknown", IF($H80=99,"Stopped", $D80)), 0),"Not required") -> Stopped | M80: =IF(INTRO!$E$40="Endemic", IF($I80>0, IF($I80=4,"Unknown",IF($I80=99,"Stopped", $D80)), 0),"Not required") -> 0 | N80: =IF(INTRO!$E$42="Endemic", IF(AND($J80>1,$J80<5), IF($J80=4, "Unknown", E80+F80), 0),"Not required") -> 96441 | O80: =IF(INTRO!$E$44="Endemic", IF(AND($K80>0,$K80<5), IF($K80=4,"Unknown", IF($K80=1, $F80*0.33, IF($K80=2, $F80*0.5+$G80*0.2, SUM(F80:G80)))), 0),"Not required") -> 59218.2 | P80: 0 | Q80: 0 | R80: 1 | S80: 1 | U80: T1 (PZQ+ALB/MBD) | V80: T1 | W80: T3 | Y80: 46524 | Z80: Simanjiro District Council | AC80: 99 | AD80: 0 | AE80: 3 | AF80: 2 | AG80: TRUE | AH80: TRUE | AI80: TRUE | AJ80: TRUE
A81: =IF(INTRO!$E$34<>0,INTRO!$E$34,"") -> Tanzania | B81: Mara | C81: Bunda District Council | D81: 276008 | E81: =IF(INTRO!$E$48="","",ROUND($D81*INTRO!$E$48,0)) -> 36709 | F81: =IF(INTRO!$E$49="","",ROUND($D81*INTRO!$E$49,0)) -> 75350 | G81: =IF(INTRO!$E$50="","",ROUND($D81*INTRO!$E$50,0)) -> 155669 | H81: 0 | I81: 0 | J81: 3 | K81: 2 | L81: =IF(INTRO!$E$38="Endemic", IF($H81>0, IF($H81=4,"Unknown", IF($H81=99,"Stopped", $D81)), 0),"Not required") -> 0 | M81: =IF(INTRO!$E$40="Endemic", IF($I81>0, IF($I81=4,"Unknown",IF($I81=99,"Stopped", $D81)), 0),"Not required") -> 0 | N81: =IF(INTRO!$E$42="Endemic", IF(AND($J81>1,$J81<5), IF($J81=4, "Unknown", E81+F81), 0),"Not required") -> 112059 | O81: =IF(INTRO!$E$44="Endemic", IF(AND($K81>0,$K81<5), IF($K81=4,"Unknown", IF($K81=1, $F81*0.33, IF($K81=2, $F81*0.5+$G81*0.2, SUM(F81:G81)))), 0),"Not required") -> 68808.8 | P81: 0 | Q81: 0 | R81: 1 | S81: 1 | U81: T1 (PZQ+ALB/MBD) | V81: T1 | W81: T3 | Y81: 46525 | Z81: Bunda District Council | AC81: 0 | AD81: 0 | AE81: 3 | AF81: 2 | AG81: TRUE | AH81: TRUE | AI81: TRUE | AJ81: TRUE
A82: =IF(INTRO!$E$34<>0,INTRO!$E$34,"") -> Tanzania | B82: Mara | C82: Bunda Town Council | D82: 142265 | E82: =IF(INTRO!$E$48="","",ROUND($D82*INTRO!$E$48,0)) -> 18921 | F82: =IF(INTRO!$E$49="","",ROUND($D82*INTRO!$E$49,0)) -> 38838 | G82: =IF(INTRO!$E$50="","",ROUND($D82*INTRO!$E$50,0)) -> 80237 | H82: 0 | I82: 0 | J82: 3 | K82: 2 | L82: =IF(INTRO!$E$38="Endemic", IF($H82>0, IF($H82=4,"Unknown", IF($H82=99,"Stopped", $D82)), 0),"Not required") -> 0 | M82: =IF(INTRO!$E$40="Endemic", IF($I82>0, IF($I82=4,"Unknown",IF($I82=99,"Stopped", $D82)), 0),"Not required") -> 0 | N82: =IF(INTRO!$E$42="Endemic", IF(AND($J82>1,$J82<5), IF($J82=4, "Unknown", E82+F82), 0),"Not required") -> 57759 | O82: =IF(INTRO!$E$44="Endemic", IF(AND($K82>0,$K82<5), IF($K82=4,"Unknown", IF($K82=1, $F82*0.33, IF($K82=2, $F82*0.5+$G82*0.2, SUM(F82:G82)))), 0),"Not required") -> 35466.4 | P82: 0 | Q82: 0 | R82: 1 | S82: 1 | U82: T1 (PZQ+ALB/MBD) | V82: T1 | W82: T3 | Y82: 46631 | Z82: Bunda Town Council | AC82: 0 | AD82: 0 | AE82: 3 | AF82: 2 | AG82: TRUE | AH82: TRUE | AI82: TRUE | AJ82: TRUE
A83: =IF(INTRO!$E$34<>0,INTRO!$E$34,"") -> Tanzania | B83: Mara | C83: Butiama District Council | D83: 264524 | E83: =IF(INTRO!$E$48="","",ROUND($D83*INTRO!$E$48,0)) -> 35182 | F83: =IF(INTRO!$E$49="","",ROUND($D83*INTRO!$E$49,0)) -> 72215 | G83: =IF(INTRO!$E$50="","",ROUND($D83*INTRO!$E$50,0)) -> 149192 | H83: 0 | I83: 0 | J83: 3 | K83: 2 | L83: =IF(INTRO!$E$38="Endemic", IF($H83>0, IF($H83=4,"Unknown", IF($H83=99,"Stopped", $D83)), 0),"Not required") -> 0 | M83: =IF(INTRO!$E$40="Endemic", IF($I83>0, IF($I83=4,"Unknown",IF($I83=99,"Stopped", $D83)), 0),"Not required") -> 0 | N83: =IF(INTRO!$E$42="Endemic", IF(AND($J83>1,$J83<5), IF($J83=4, "Unknown", E83+F83), 0),"Not required") -> 107397 | O83: =IF(INTRO!$E$44="Endemic", IF(AND($K83>0,$K83<5), IF($K83=4,"Unknown", IF($K83=1, $F83*0.33, IF($K83=2, $F83*0.5+$G83*0.2, SUM(F83:G83)))), 0),"Not required") -> 65945.9 | P83: 0 | Q83: 0 | R83: 1 | S83: 1 | U83: T1 (PZQ+ALB/MBD) | V83: T1 | W83: T3 | Y83: 46526 | Z83: Butiama District Council | AC83: 0 | AD83: 0 | AE83: 3 | AF83: 2 | AG83: TRUE | AH83: TRUE | AI83: TRUE | AJ83: TRUE
A84: =IF(INTRO!$E$34<>0,INTRO!$E$34,"") -> Tanzania | B84: Mara | C84: Musoma District Council | D84: 259891 | E84: =IF(INTRO!$E$48="","",ROUND($D84*INTRO!$E$48,0)) -> 34566 | F84: =IF(INTRO!$E$49="","",ROUND($D84*INTRO!$E$49,0)) -> 70950 | G84: =IF(INTRO!$E$50="","",ROUND($D84*INTRO!$E$50,0)) -> 146579 | H84: 0 | I84: 0 | J84: 3 | K84: 2 | L84: =IF(INTRO!$E$38="Endemic", IF($H84>0, IF($H84=4,"Unknown", IF($H84=99,"Stopped", $D84)), 0),"Not required") -> 0 | M84: =IF(INTRO!$E$40="Endemic", IF($I84>0, IF($I84=4,"Unknown",IF($I84=99,"Stopped", $D84)), 0),"Not required") -> 0 | N84: =IF(INTRO!$E$42="Endemic", IF(AND($J84>1,$J84<5), IF($J84=4, "Unknown", E84+F84), 0),"Not required") -> 105516 | O84: =IF(INTRO!$E$44="Endemic", IF(AND($K84>0,$K84<5), IF($K84=4,"Unknown", IF($K84=1, $F84*0.33, IF($K84=2, $F84*0.5+$G84*0.2, SUM(F84:G84)))), 0),"Not required") -> 64790.8 | P84: 0 | Q84: 0 | R84: 1 | S84: 1 | U84: T1 (PZQ+ALB/MBD) | V84: T1 | W84: T3 | Y84: 46527 | Z84: Musoma District Council | AC84: 0 | AD84: 0 | AE84: 3 | AF84: 2 | AG84: TRUE | AH84: TRUE | AI84: TRUE | AJ84: TRUE
A85: =IF(INTRO!$E$34<>0,INTRO!$E$34,"") -> Tanzania | B85: Mara | C85: Musoma Municipal Council | D85: 167689 | E85: =IF(INTRO!$E$48="","",ROUND($D85*INTRO!$E$48,0)) -> 22303 | F85: =IF(INTRO!$E$49="","",ROUND($D85*INTRO!$E$49,0)) -> 45779 | G85: =IF(INTRO!$E$50="","",ROUND($D85*INTRO!$E$50,0)) -> 94577 | H85: 0 | I85: 0 | J85: 3 | K85: 2 | L85: =IF(INTRO!$E$38="Endemic", IF($H85>0, IF($H85=4,"Unknown", IF($H85=99,"Stopped", $D85)), 0),"Not required") -> 0 | M85: =IF(INTRO!$E$40="Endemic", IF($I85>0, IF($I85=4,"Unknown",IF($I85=99,"Stopped", $D85)), 0),"Not required") -> 0 | N85: =IF(INTRO!$E$42="Endemic", IF(AND($J85>1,$J85<5), IF($J85=4, "Unknown", E85+F85), 0),"Not required") -> 68082 | O85: =IF(INTRO!$E$44="Endemic", IF(AND($K85>0,$K85<5), IF($K85=4,"Unknown", IF($K85=1, $F85*0.33, IF($K85=2, $F85*0.5+$G85*0.2, SUM(F85:G85)))), 0),"Not required") -> 41804.9 | P85: 0 | Q85: 0 | R85: 1 | S85: 1 | U85: T1 (PZQ+ALB/MBD) | V85: T1 | W85: T3 | Y85: 46528 | Z85: Musoma Municipal Council | AC85: 0 | AD85: 0 | AE85: 3 | AF85: 2 | AG85: TRUE | AH85: TRUE | AI85: TRUE | AJ85: TRUE
A86: =IF(INTRO!$E$34<>0,INTRO!$E$34,"") -> Tanzania | B86: Mara | C86: Rorya District Council | D86: 331114 | E86: =IF(INTRO!$E$48="","",ROUND($D86*INTRO!$E$48,0)) -> 44038 | F86: =IF(INTRO!$E$49="","",ROUND($D86*INTRO!$E$49,0)) -> 90394 | G86: =IF(INTRO!$E$50="","",ROUND($D86*INTRO!$E$50,0)) -> 186748 | H86: 0 | I86: 0 | J86: 3 | K86: 2 | L86: =IF(INTRO!$E$38="Endemic", IF($H86>0, IF($H86=4,"Unknown", IF($H86=99,"Stopped", $D86)), 0),"Not required") -> 0 | M86: =IF(INTRO!$E$40="Endemic", IF($I86>0, IF($I86=4,"Unknown",IF($I86=99,"Stopped", $D86)), 0),"Not required") -> 0 | N86: =IF(INTRO!$E$42="Endemic", IF(AND($J86>1,$J86<5), IF($J86=4, "Unknown", E86+F86), 0),"Not required") -> 134432 | O86: =IF(INTRO!$E$44="Endemic", IF(AND($K86>0,$K86<5), IF($K86=4,"Unknown", IF($K86=1, $F86*0.33, IF($K86=2, $F86*0.5+$G86*0.2, SUM(F86:G86)))), 0),"Not required") -> 82546.6 | P86: 0 | Q86: 0 | R86: 1 | S86: 1 | U86: T1 (PZQ+ALB/MBD) | V86: T1 | W86: T3 | Y86: 46529 | Z86: Rorya District Council | AC86: 0 | AD86: 0 | AE86: 3 | AF86: 2 | AG86: TRUE | AH86: TRUE | AI86: TRUE | AJ86: TRUE
A87: =IF(INTRO!$E$34<>0,INTRO!$E$34,"") -> Tanzania | B87: Mara | C87: Serengeti District Council | D87: 311363 | E87: =IF(INTRO!$E$48="","",ROUND($D87*INTRO!$E$48,0)) -> 41411 | F87: =IF(INTRO!$E$49="","",ROUND($D87*INTRO!$E$49,0)) -> 85002 | G87: =IF(INTRO!$E$50="","",ROUND($D87*INTRO!$E$50,0)) -> 175609 | H87: 0 | I87: 0 | J87: 3 | K87: 2 | L87: =IF(INTRO!$E$38="Endemic", IF($H87>0, IF($H87=4,"Unknown", IF($H87=99,"Stopped", $D87)), 0),"Not required") -> 0 | M87: =IF(INTRO!$E$40="Endemic", IF($I87>0, IF($I87=4,"Unknown",IF($I87=99,"Stopped", $D87)), 0),"Not required") -> 0 | N87: =IF(INTRO!$E$42="Endemic", IF(AND($J87>1,$J87<5), IF($J87=4, "Unknown", E87+F87), 0),"Not required") -> 126413 | O87: =IF(INTRO!$E$44="Endemic", IF(AND($K87>0,$K87<5), IF($K87=4,"Unknown", IF($K87=1, $F87*0.33, IF($K87=2, $F87*0.5+$G87*0.2, SUM(F87:G87)))), 0),"Not required") -> 77622.8 | P87: 0 | Q87: 0 | R87: 1 | S87: 1 | U87: T1 (PZQ+ALB/MBD) | V87: T1 | W87: T3 | Y87: 46530 | Z87: Serengeti District Council | AC87: 0 | AD87: 0 | AE87: 3 | AF87: 2 | AG87: TRUE | AH87: TRUE | AI87: TRUE | AJ87: TRUE
A88: =IF(INTRO!$E$34<>0,INTRO!$E$34,"") -> Tanzania | B88: Mara | C88: Tarime District Council | D88: 326639 | E88: =IF(INTRO!$E$48="","",ROUND($D88*INTRO!$E$48,0)) -> 43443 | F88: =IF(INTRO!$E$49="","",ROUND($D88*INTRO!$E$49,0)) -> 89172 | G88: =IF(INTRO!$E$50="","",ROUND($D88*INTRO!$E$50,0)) -> 184224 | H88: 0 | I88: 0 | J88: 3 | K88: 2 | L88: =IF(INTRO!$E$38="Endemic", IF($H88>0, IF($H88=4,"Unknown", IF($H88=99,"Stopped", $D88)), 0),"Not required") -> 0 | M88: =IF(INTRO!$E$40="Endemic", IF($I88>0, IF($I88=4,"Unknown",IF($I88=99,"Stopped", $D88)), 0),"Not required") -> 0 | N88: =IF(INTRO!$E$42="Endemic", IF(AND($J88>1,$J88<5), IF($J88=4, "Unknown", E88+F88), 0),"Not required") -> 132615 | O88: =IF(INTRO!$E$44="Endemic", IF(AND($K88>0,$K88<5), IF($K88=4,"Unknown", IF($K88=1, $F88*0.33, IF($K88=2, $F88*0.5+$G88*0.2, SUM(F88:G88)))), 0),"Not required") -> 81430.8 | P88: 0 | Q88: 0 | R88: 1 | S88: 1 | U88: T1 (PZQ+ALB/MBD) | V88: T1 | W88: T3 | Y88: 46531 | Z88: Tarime District Council | AC88: 0 | AD88: 0 | AE88: 3 | AF88: 2 | AG88: TRUE | AH88: TRUE | AI88: TRUE | AJ88: TRUE
A89: =IF(INTRO!$E$34<>0,INTRO!$E$34,"") -> Tanzania | B89: Mara | C89: Tarime Town Council | D89: 97415 | E89: =IF(INTRO!$E$48="","",ROUND($D89*INTRO!$E$48,0)) -> 12956 | F89: =IF(INTRO!$E$49="","",ROUND($D89*INTRO!$E$49,0)) -> 26594 | G89: =IF(INTRO!$E$50="","",ROUND($D89*INTRO!$E$50,0)) -> 54942 | H89: 0 | I89: 0 | J89: 3 | K89: 2 | L89: =IF(INTRO!$E$38="Endemic", IF($H89>0, IF($H89=4,"Unknown", IF($H89=99,"Stopped", $D89)), 0),"Not required") -> 0 | M89: =IF(INTRO!$E$40="Endemic", IF($I89>0, IF($I89=4,"Unknown",IF($I89=99,"Stopped", $D89)), 0),"Not required") -> 0 | N89: =IF(INTRO!$E$42="Endemic", IF(AND($J89>1,$J89<5), IF($J89=4, "Unknown", E89+F89), 0),"Not required") -> 39550 | O89: =IF(INTRO!$E$44="Endemic", IF(AND($K89>0,$K89<5), IF($K89=4,"Unknown", IF($K89=1, $F89*0.33, IF($K89=2, $F89*0.5+$G89*0.2, SUM(F89:G89)))), 0),"Not required") -> 24285.4 | P89: 0 | Q89: 0 | R89: 1 | S89: 1 | U89: T1 (PZQ+ALB/MBD) | V89: T1 | W89: T3 | Y89: 46532 | Z89: Tarime Town Council | AC89: 0 | AD89: 0 | AE89: 3 | AF89: 2 | AG89: TRUE | AH89: TRUE | AI89: TRUE | AJ89: TRUE
A90: =IF(INTRO!$E$34<>0,INTRO!$E$34,"") -> Tanzania | B90: Mbeya | C90: Busokelo District Council | D90: 121036 | E90: =IF(INTRO!$E$48="","",ROUND($D90*INTRO!$E$48,0)) -> 16098 | F90: =IF(INTRO!$E$49="","",ROUND($D90*INTRO!$E$49,0)) -> 33043 | G90: =IF(INTRO!$E$50="","",ROUND($D90*INTRO!$E$50,0)) -> 68264 | H90: 99 | I90: 1 | J90: 3 | K90: 2 | L90: =IF(INTRO!$E$38="Endemic", IF($H90>0, IF($H90=4,"Unknown", IF($H90=99,"Stopped", $D90)), 0),"Not required") -> Stopped | M90: =IF(INTRO!$E$40="Endemic", IF($I90>0, IF($I90=4,"Unknown",IF($I90=99,"Stopped", $D90)), 0),"Not required") -> 121036 | N90: =IF(INTRO!$E$42="Endemic", IF(AND($J90>1,$J90<5), IF($J90=4, "Unknown", E90+F90), 0),"Not required") -> 49141 | O90: =IF(INTRO!$E$44="Endemic", IF(AND($K90>0,$K90<5), IF($K90=4,"Unknown", IF($K90=1, $F90*0.33, IF($K90=2, $F90*0.5+$G90*0.2, SUM(F90:G90)))), 0),"Not required") -> 30174.3 | P90: 0 | Q90: 1 | R90: 1 | S90: 0 | T90: MDA3 (IVM) | U90: T3 (ALB/MBD) | V90: MDA 1 | W90: T1 | Y90: 46533 | Z90: Busokelo District Council | AC90: 99 | AD90: 1 | AE90: 3 | AF90: 2 | AG90: TRUE | AH90: TRUE | AI90: TRUE | AJ90: TRUE
A91: =IF(INTRO!$E$34<>0,INTRO!$E$34,"") -> Tanzania | B91: Mbeya | C91: Chunya District Council | D91: 196960 | E91: =IF(INTRO!$E$48="","",ROUND($D91*INTRO!$E$48,0)) -> 26196 | F91: =IF(INTRO!$E$49="","",ROUND($D91*INTRO!$E$49,0)) -> 53770 | G91: =IF(INTRO!$E$50="","",ROUND($D91*INTRO!$E$50,0)) -> 111085 | H91: 99 | I91: 0 | J91: 3 | K91: 2 | L91: =IF(INTRO!$E$38="Endemic", IF($H91>0, IF($H91=4,"Unknown", IF($H91=99,"Stopped", $D91)), 0),"Not required") -> Stopped | M91: =IF(INTRO!$E$40="Endemic", IF($I91>0, IF($I91=4,"Unknown",IF($I91=99,"Stopped", $D91)), 0),"Not required") -> 0 | N91: =IF(INTRO!$E$42="Endemic", IF(AND($J91>1,$J91<5), IF($J91=4, "Unknown", E91+F91), 0),"Not required") -> 79966 | O91: =IF(INTRO!$E$44="Endemic", IF(AND($K91>0,$K91<5), IF($K91=4,"Unknown", IF($K91=1, $F91*0.33, IF($K91=2, $F91*0.5+$G91*0.2, SUM(F91:G91)))), 0),"Not required") -> 49102 | P91: 0 | Q91: 0 | R91: 1 | S91: 0 | U91: T3 (ALB/MBD) | V91: T1 | W91: T3 | Y91: 46534 | Z91: Chunya District Council | AC91: 99 | AD91: 0 | AE91: 3 | AF91: 2 | AG91: TRUE | AH91: TRUE | AI91: TRUE | AJ91: TRUE
A92: =IF(INTRO!$E$34<>0,INTRO!$E$34,"") -> Tanzania | B92: Mbeya | C92: Kyela District Council | D92: 278240 | E92: =IF(INTRO!$E$48="","",ROUND($D92*INTRO!$E$48,0)) -> 37006 | F92: =IF(INTRO!$E$49="","",ROUND($D92*INTRO!$E$49,0)) -> 75960 | G92: =IF(INTRO!$E$50="","",ROUND($D92*INTRO!$E$50,0)) -> 156927 | H92: 99 | I92: 1 | J92: 3 | K92: 3 | L92: =IF(INTRO!$E$38="Endemic", IF($H92>0, IF($H92=4,"Unknown", IF($H92=99,"Stopped", $D92)), 0),"Not required") -> Stopped | M92: =IF(INTRO!$E$40="Endemic", IF($I92>0, IF($I92=4,"Unknown",IF($I92=99,"Stopped", $D92)), 0),"Not required") -> 278240 | N92: =IF(INTRO!$E$42="Endemic", IF(AND($J92>1,$J92<5), IF($J92=4, "Unknown", E92+F92), 0),"Not required") -> 112966 | O92: =IF(INTRO!$E$44="Endemic", IF(AND($K92>0,$K92<5), IF($K92=4,"Unknown", IF($K92=1, $F92*0.33, IF($K92=2, $F92*0.5+$G92*0.2, SUM(F92:G92)))), 0),"Not required") -> 232887 | P92: 0 | Q92: 1 | R92: 1 | S92: 1 | T92: MDA3 (IVM) | U92: T1 (PZQ+ALB/MBD) | V92: MDA 1 | W92: T1 | Y92: 46536 | Z92: Kyela District Council | AC92: 99 | AD92: 1 | AE92: 3 | AF92: 3 | AG92: TRUE | AH92: TRUE | AI92: TRUE | AJ92: TRUE
A93: =IF(INTRO!$E$34<>0,INTRO!$E$34,"") -> Tanzania | B93: Mbeya | C93: Mbarali District Council | D93: 377517 | E93: =IF(INTRO!$E$48="","",ROUND($D93*INTRO!$E$48,0)) -> 50210 | F93: =IF(INTRO!$E$49="","",ROUND($D93*INTRO!$E$49,0)) -> 103062 | G93: =IF(INTRO!$E$50="","",ROUND($D93*INTRO!$E$50,0)) -> 212920 | H93: 99 | I93: 0 | J93: 3 | K93: 2 | L93: =IF(INTRO!$E$38="Endemic", IF($H93>0, IF($H93=4,"Unknown", IF($H93=99,"Stopped", $D93)), 0),"Not required") -> Stopped | M93: =IF(INTRO!$E$40="Endemic", IF($I93>0, IF($I93=4,"Unknown",IF($I93=99,"Stopped", $D93)), 0),"Not required") -> 0 | N93: =IF(INTRO!$E$42="Endemic", IF(AND($J93>1,$J93<5), IF($J93=4, "Unknown", E93+F93), 0),"Not required") -> 153272 | O93: =IF(INTRO!$E$44="Endemic", IF(AND($K93>0,$K93<5), IF($K93=4,"Unknown", IF($K93=1, $F93*0.33, IF($K93=2, $F93*0.5+$G93*0.2, SUM(F93:G93)))), 0),"Not required") -> 94115 | P93: 0 | Q93: 0 | R93: 1 | S93: 0 | U93: T3 (ALB/MBD) | V93: T1 | W93: T3 | Y93: 46537 | Z93: Mbarali District Council | AC93: 99 | AD93: 0 | AE93: 3 | AF93: 2 | AG93: TRUE | AH93: TRUE | AI93: TRUE | AJ93: TRUE
A94: =IF(INTRO!$E$34<>0,INTRO!$E$34,"") -> Tanzania | B94: Mbeya | C94: Mbeya City Council | D94: 483998 | E94: =IF(INTRO!$E$48="","",ROUND($D94*INTRO!$E$48,0)) -> 64372 | F94: =IF(INTRO!$E$49="","",ROUND($D94*INTRO!$E$49,0)) -> 132131 | G94: =IF(INTRO!$E$50="","",ROUND($D94*INTRO!$E$50,0)) -> 272975 | H94: 99 | I94: 0 | J94: 3 | K94: 2 | L94: =IF(INTRO!$E$38="Endemic", IF($H94>0, IF($H94=4,"Unknown", IF($H94=99,"Stopped", $D94)), 0),"Not required") -> Stopped | M94: =IF(INTRO!$E$40="Endemic", IF($I94>0, IF($I94=4,"Unknown",IF($I94=99,"Stopped", $D94)), 0),"Not required") -> 0 | N94: =IF(INTRO!$E$42="Endemic", IF(AND($J94>1,$J94<5), IF($J94=4, "Unknown", E94+F94), 0),"Not required") -> 196503 | O94: =IF(INTRO!$E$44="Endemic", IF(AND($K94>0,$K94<5), IF($K94=4,"Unknown", IF($K94=1, $F94*0.33, IF($K94=2, $F94*0.5+$G94*0.2, SUM(F94:G94)))), 0),"Not required") -> 120660.5 | P94: 0 | Q94: 0 | R94: 1 | S94: 0 | U94: T3 (ALB/MBD) | V94: T1 | W94: T3 | Y94: 46538 | Z94: Mbeya City Council | AC94: 99 | AD94: 0 | AE94: 3 | AF94: 2 | AG94: TRUE | AH94: TRUE | AI94: TRUE | AJ94: TRUE
A95: =IF(INTRO!$E$34<>0,INTRO!$E$34,"") -> Tanzania | B95: Mbeya | C95: Mbeya District Council | D95: 383552 | E95: =IF(INTRO!$E$48="","",ROUND($D95*INTRO!$E$48,0)) -> 51012 | F95: =IF(INTRO!$E$49="","",ROUND($D95*INTRO!$E$49,0)) -> 104710 | G95: =IF(INTRO!$E$50="","",ROUND($D95*INTRO!$E$50,0)) -> 216323 | H95: 99 | I95: 0 | J95: 3 | K95: 2 | L95: =IF(INTRO!$E$38="Endemic", IF($H95>0, IF($H95=4,"Unknown", IF($H95=99,"Stopped", $D95)), 0),"Not required") -> Stopped | M95: =IF(INTRO!$E$40="Endemic", IF($I95>0, IF($I95=4,"Unknown",IF($I95=99,"Stopped", $D95)), 0),"Not required") -> 0 | N95: =IF(INTRO!$E$42="Endemic", IF(AND($J95>1,$J95<5), IF($J95=4, "Unknown", E95+F95), 0),"Not required") -> 155722 | O95: =IF(INTRO!$E$44="Endemic", IF(AND($K95>0,$K95<5), IF($K95=4,"Unknown", IF($K95=1, $F95*0.33, IF($K95=2, $F95*0.5+$G95*0.2, SUM(F95:G95)))), 0),"Not required") -> 95619.6 | P95: 0 | Q95: 0 | R95: 1 | S95: 0 | U95: T3 (ALB/MBD) | V95: T1 | W95: T3 | Y95: 46539 | Z95: Mbeya District Council | AC95: 99 | AD95: 0 | AE95: 3 | AF95: 2 | AG95: TRUE | AH95: TRUE | AI95: TRUE | AJ95: TRUE
A96: =IF(INTRO!$E$34<>0,INTRO!$E$34,"") -> Tanzania | B96: Mbeya | C96: Rungwe District Council | D96: 305024 | E96: =IF(INTRO!$E$48="","",ROUND($D96*INTRO!$E$48,0)) -> 40568 | F96: =IF(INTRO!$E$49="","",ROUND($D96*INTRO!$E$49,0)) -> 83272 | G96: =IF(INTRO!$E$50="","",ROUND($D96*INTRO!$E$50,0)) -> 172034 | H96: 99 | I96: 1 | J96: 3 | K96: 2 | L96: =IF(INTRO!$E$38="Endemic", IF($H96>0, IF($H96=4,"Unknown", IF($H96=99,"Stopped", $D96)), 0),"Not required") -> Stopped | M96: =IF(INTRO!$E$40="Endemic", IF($I96>0, IF($I96=4,"Unknown",IF($I96=99,"Stopped", $D96)), 0),"Not required") -> 305024 | N96: =IF(INTRO!$E$42="Endemic", IF(AND($J96>1,$J96<5), IF($J96=4, "Unknown", E96+F96), 0),"Not required") -> 123840 | O96: =IF(INTRO!$E$44="Endemic", IF(AND($K96>0,$K96<5), IF($K96=4,"Unknown", IF($K96=1, $F96*0.33, IF($K96=2, $F96*0.5+$G96*0.2, SUM(F96:G96)))), 0),"Not required") -> 76042.8 | P96: 0 | Q96: 1 | R96: 1 | S96: 0 | T96: MDA3 (IVM) | U96: T3 (ALB/MBD) | V96: MDA 1 | W96: T1 | Y96: 46542 | Z96: Rungwe District Council | AC96: 99 | AD96: 1 | AE96: 3 | AF96: 2 | AG96: TRUE | AH96: TRUE | AI96: TRUE | AJ96: TRUE
A97: =IF(INTRO!$E$34<>0,INTRO!$E$34,"") -> Tanzania | B97: Morogoro | C97: Gairo District Council | D97: 243395 | E97: =IF(INTRO!$E$48="","",ROUND($D97*INTRO!$E$48,0)) -> 32372 | F97: =IF(INTRO!$E$49="","",ROUND($D97*INTRO!$E$49,0)) -> 66447 | G97: =IF(INTRO!$E$50="","",ROUND($D97*INTRO!$E$50,0)) -> 137275 | H97: 99 | I97: 1 | J97: 3 | K97: 2 | L97: =IF(INTRO!$E$38="Endemic", IF($H97>0, IF($H97=4,"Unknown", IF($H97=99,"Stopped", $D97)), 0),"Not required") -> Stopped | M97: =IF(INTRO!$E$40="Endemic", IF($I97>0, IF($I97=4,"Unknown",IF($I97=99,"Stopped", $D97)), 0),"Not required") -> 243395 | N97: =IF(INTRO!$E$42="Endemic", IF(AND($J97>1,$J97<5), IF($J97=4, "Unknown", E97+F97), 0),"Not required") -> 98819 | O97: =IF(INTRO!$E$44="Endemic", IF(AND($K97>0,$K97<5), IF($K97=4,"Unknown", IF($K97=1, $F97*0.33, IF($K97=2, $F97*0.5+$G97*0.2, SUM(F97:G97)))), 0),"Not required") -> 60678.5 | P97: 0 | Q97: 1 | R97: 1 | S97: 0 | T97: MDA3 (IVM) | U97: T3 (ALB/MBD) | V97: MDA 1 | W97: T1 | Y97: 46544 | Z97: Gairo District Council | AC97: 99 | AD97: 1 | AE97: 3 | AF97: 2 | AG97: TRUE | AH97: TRUE | AI97: TRUE | AJ97: TRUE
A98: =IF(INTRO!$E$34<>0,INTRO!$E$34,"") -> Tanzania | B98: Morogoro | C98: Ifakara Town Council | D98: 141018 | E98: =IF(INTRO!$E$48="","",ROUND($D98*INTRO!$E$48,0)) -> 18755 | F98: =IF(INTRO!$E$49="","",ROUND($D98*INTRO!$E$49,0)) -> 38498 | G98: =IF(INTRO!$E$50="","",ROUND($D98*INTRO!$E$50,0)) -> 79534 | H98: 99 | I98: 1 | J98: 3 | K98: 2 | L98: =IF(INTRO!$E$38="Endemic", IF($H98>0, IF($H98=4,"Unknown", IF($H98=99,"Stopped", $D98)), 0),"Not required") -> Stopped | M98: =IF(INTRO!$E$40="Endemic", IF($I98>0, IF($I98=4,"Unknown",IF($I98=99,"Stopped", $D98)), 0),"Not required") -> 141018 | N98: =IF(INTRO!$E$42="Endemic", IF(AND($J98>1,$J98<5), IF($J98=4, "Unknown", E98+F98), 0),"Not required") -> 57253 | O98: =IF(INTRO!$E$44="Endemic", IF(AND($K98>0,$K98<5), IF($K98=4,"Unknown", IF($K98=1, $F98*0.33, IF($K98=2, $F98*0.5+$G98*0.2, SUM(F98:G98)))), 0),"Not required") -> 35155.8 | P98: 0 | Q98: 2 | R98: 1 | S98: 0 | T98: MDA3 (IVM) | U98: T3 (ALB/MBD) | V98: MDA 1 | W98: T1 | Y98: 46632 | Z98: Ifakara Town Council | AC98: 99 | AD98: 1 | AE98: 3 | AF98: 2 | AG98: TRUE | AH98: TRUE | AI98: TRUE | AJ98: TRUE
A99: =IF(INTRO!$E$34<>0,INTRO!$E$34,"") -> Tanzania | B99: Morogoro | C99: Mlimba District Council | D99: 374292 | E99: =IF(INTRO!$E$48="","",ROUND($D99*INTRO!$E$48,0)) -> 49781 | F99: =IF(INTRO!$E$49="","",ROUND($D99*INTRO!$E$49,0)) -> 102182 | G99: =IF(INTRO!$E$50="","",ROUND($D99*INTRO!$E$50,0)) -> 211101 | H99: 99 | I99: 1 | J99: 3 | K99: 2 | L99: =IF(INTRO!$E$38="Endemic", IF($H99>0, IF($H99=4,"Unknown", IF($H99=99,"Stopped", $D99)), 0),"Not required") -> Stopped | M99: =IF(INTRO!$E$40="Endemic", IF($I99>0, IF($I99=4,"Unknown",IF($I99=99,"Stopped", $D99)), 0),"Not required") -> 374292 | N99: =IF(INTRO!$E$42="Endemic", IF(AND($J99>1,$J99<5), IF($J99=4, "Unknown", E99+F99), 0),"Not required") -> 151963 | O99: =IF(INTRO!$E$44="Endemic", IF(AND($K99>0,$K99<5), IF($K99=4,"Unknown", IF($K99=1, $F99*0.33, IF($K99=2, $F99*0.5+$G99*0.2, SUM(F99:G99)))), 0),"Not required") -> 93311.2 | P99: 0 | Q99: 2 | R99: 1 | S99: 0 | T99: MDA3 (IVM) | U99: T3 (ALB/MBD) | V99: MDA 1 | W99: T1 | Y99: 46545 | Z99: Kilombero District Council (Mlimba District Council) | AC99: 99 | AD99: 1 | AE99: 3 | AF99: 2 | AG99: TRUE | AH99: TRUE | AI99: TRUE | AJ99: TRUE
A100: =IF(INTRO!$E$34<>0,INTRO!$E$34,"") -> Tanzania | B100: Morogoro | C100: Kilosa District Council | D100: 544045 | E100: =IF(INTRO!$E$48="","",ROUND($D100*INTRO!$E$48,0)) -> 72358 | F100: =IF(INTRO!$E$49="","",ROUND($D100*INTRO!$E$49,0)) -> 148524 | G100: =IF(INTRO!$E$50="","",ROUND($D100*INTRO!$E$50,0)) -> 306841 | H100: 99 | I100: 1 | J100: 3 | K100: 2 | L100: =IF(INTRO!$E$38="Endemic", IF($H100>0, IF($H100=4,"Unknown", IF($H100=99,"Stopped", $D100)), 0),"Not required") -> Stopped | M100: =IF(INTRO!$E$40="Endemic", IF($I100>0, IF($I100=4,"Unknown",IF($I100=99,"Stopped", $D100)), 0),"Not required") -> 544045 | N100: =IF(INTRO!$E$42="Endemic", IF(AND($J100>1,$J100<5), IF($J100=4, "Unknown", E100+F100), 0),"Not required") -> 220882 | O100: =IF(INTRO!$E$44="Endemic", IF(AND($K100>0,$K100<5), IF($K100=4,"Unknown", IF($K100=1, $F100*0.33, IF($K100=2, $F100*0.5+$G100*0.2, SUM(F100:G100)))), 0),"Not required") -> 135630.2 | P100: 0 | Q100: 1 | R100: 1 | S100: 0 | T100: MDA3 (IVM) | U100: T3 (ALB/MBD) | V100: MDA 1 | W100: T1 | Y100: 46546 | Z100: Kilosa District Council | AC100: 99 | AD100: 1 | AE100: 3 | AF100: 2 | AG100: TRUE | AH100: TRUE | AI100: TRUE | AJ100: TRUE
A101: =IF(INTRO!$E$34<>0,INTRO!$E$34,"") -> Tanzania | B101: Morogoro | C101: Malinyi District Council | D101: 163837 | E101: =IF(INTRO!$E$48="","",ROUND($D101*INTRO!$E$48,0)) -> 21790 | F101: =IF(INTRO!$E$49="","",ROUND($D101*INTRO!$E$49,0)) -> 44728 | G101: =IF(INTRO!$E$50="","",ROUND($D101*INTRO!$E$50,0)) -> 92404 | H101: 99 | I101: 1 | J101: 3 | K101: 2 | L101: =IF(INTRO!$E$38="Endemic", IF($H101>0, IF($H101=4,"Unknown", IF($H101=99,"Stopped", $D101)), 0),"Not required") -> Stopped | M101: =IF(INTRO!$E$40="Endemic", IF($I101>0, IF($I101=4,"Unknown",IF($I101=99,"Stopped", $D101)), 0),"Not required") -> 163837 | N101: =IF(INTRO!$E$42="Endemic", IF(AND($J101>1,$J101<5), IF($J101=4, "Unknown", E101+F101), 0),"Not required") -> 66518 | O101: =IF(INTRO!$E$44="Endemic", IF(AND($K101>0,$K101<5), IF($K101=4,"Unknown", IF($K101=1, $F101*0.33, IF($K101=2, $F101*0.5+$G101*0.2, SUM(F101:G101)))), 0),"Not required") -> 40844.8 | P101: 0 | Q101: 2 | R101: 1 | S101: 0 | T101: MDA3 (IVM) | U101: T3 (ALB/MBD) | V101: MDA 1 | W101: T1 | Y101: 46633 | Z101: Malinyi District Council | AC101: 99 | AD101: 1 | AE101: 3 | AF101: 2 | AG101: TRUE | AH101: TRUE | AI101: TRUE | AJ101: TRUE
A102: =IF(INTRO!$E$34<>0,INTRO!$E$34,"") -> Tanzania | B102: Morogoro | C102: Morogoro District Council | D102: 355412 | E102: =IF(INTRO!$E$48="","",ROUND($D102*INTRO!$E$48,0)) -> 47270 | F102: =IF(INTRO!$E$49="","",ROUND($D102*INTRO!$E$49,0)) -> 97027 | G102: =IF(INTRO!$E$50="","",ROUND($D102*INTRO!$E$50,0)) -> 200452 | H102: 99 | I102: 1 | J102: 3 | K102: 2 | L102: =IF(INTRO!$E$38="Endemic", IF($H102>0, IF($H102=4,"Unknown", IF($H102=99,"Stopped", $D102)), 0),"Not required") -> Stopped | M102: =IF(INTRO!$E$40="Endemic", IF($I102>0, IF($I102=4,"Unknown",IF($I102=99,"Stopped", $D102)), 0),"Not required") -> 355412 | N102: =IF(INTRO!$E$42="Endemic", IF(AND($J102>1,$J102<5), IF($J102=4, "Unknown", E102+F102), 0),"Not required") -> 144297 | O102: =IF(INTRO!$E$44="Endemic", IF(AND($K102>0,$K102<5), IF($K102=4,"Unknown", IF($K102=1, $F102*0.33, IF($K102=2, $F102*0.5+$G102*0.2, SUM(F102:G102)))), 0),"Not required") -> 88603.9 | P102: 0 | Q102: 1 | R102: 1 | S102: 0 | T102: MDA3 (IVM) | U102: T3 (ALB/MBD) | V102: MDA 1 | W102: T1 | Y102: 46547 | Z102: Morogoro District Council | AC102: 99 | AD102: 1 | AE102: 3 | AF102: 2 | AG102: TRUE | AH102: TRUE | AI102: TRUE | AJ102: TRUE
A103: =IF(INTRO!$E$34<>0,INTRO!$E$34,"") -> Tanzania | B103: Morogoro | C103: Morogoro Municipal Council | D103: 392184 | E103: =IF(INTRO!$E$48="","",ROUND($D103*INTRO!$E$48,0)) -> 52160 | F103: =IF(INTRO!$E$49="","",ROUND($D103*INTRO!$E$49,0)) -> 107066 | G103: =IF(INTRO!$E$50="","",ROUND($D103*INTRO!$E$50,0)) -> 221192 | H103: 99 | I103: 0 | J103: 3 | K103: 2 | L103: =IF(INTRO!$E$38="Endemic", IF($H103>0, IF($H103=4,"Unknown", IF($H103=99,"Stopped", $D103)), 0),"Not required") -> Stopped | M103: =IF(INTRO!$E$40="Endemic", IF($I103>0, IF($I103=4,"Unknown",IF($I103=99,"Stopped", $D103)), 0),"Not required") -> 0 | N103: =IF(INTRO!$E$42="Endemic", IF(AND($J103>1,$J103<5), IF($J103=4, "Unknown", E103+F103), 0),"Not required") -> 159226 | O103: =IF(INTRO!$E$44="Endemic", IF(AND($K103>0,$K103<5), IF($K103=4,"Unknown", IF($K103=1, $F103*0.33, IF($K103=2, $F103*0.5+$G103*0.2, SUM(F103:G103)))), 0),"Not required") -> 97771.4 | P103: 0 | Q103: 0 | R103: 1 | S103: 0 | U103: T3 (ALB/MBD) | V103: T1 | W103: T3 | Y103: 46548 | Z103: Morogoro Municipal Council | AC103: 99 | AD103: 0 | AE103: 3 | AF103: 2 | AG103: TRUE | AH103: TRUE | AI103: TRUE | AJ103: TRUE
A104: =IF(INTRO!$E$34<>0,INTRO!$E$34,"") -> Tanzania | B104: Morogoro | C104: Mvomero District Council | D104: 387523 | E104: =IF(INTRO!$E$48="","",ROUND($D104*INTRO!$E$48,0)) -> 51541 | F104: =IF(INTRO!$E$49="","",ROUND($D104*INTRO!$E$49,0)) -> 105794 | G104: =IF(INTRO!$E$50="","",ROUND($D104*INTRO!$E$50,0)) -> 218563 | H104: 99 | I104: 1 | J104: 3 | K104: 2 | L104: =IF(INTRO!$E$38="Endemic", IF($H104>0, IF($H104=4,"Unknown", IF($H104=99,"Stopped", $D104)), 0),"Not required") -> Stopped | M104: =IF(INTRO!$E$40="Endemic", IF($I104>0, IF($I104=4,"Unknown",IF($I104=99,"Stopped", $D104)), 0),"Not required") -> 387523 | N104: =IF(INTRO!$E$42="Endemic", IF(AND($J104>1,$J104<5), IF($J104=4, "Unknown", E104+F104), 0),"Not required") -> 157335 | O104: =IF(INTRO!$E$44="Endemic", IF(AND($K104>0,$K104<5), IF($K104=4,"Unknown", IF($K104=1, $F104*0.33, IF($K104=2, $F104*0.5+$G104*0.2, SUM(F104:G104)))), 0),"Not required") -> 96609.6 | P104: 0 | Q104: 1 | R104: 1 | S104: 0 | T104: MDA3 (IVM) | U104: T3 (ALB/MBD) | V104: MDA 1 | W104: T1 | Y104: 46549 | Z104: Mvomero District Council | AC104: 99 | AD104: 1 | AE104: 3 | AF104: 2 | AG104: TRUE | AH104: TRUE | AI104: TRUE | AJ104: TRUE
A105: =IF(INTRO!$E$34<>0,INTRO!$E$34,"") -> Tanzania | B105: Morogoro | C105: Ulanga District Council | D105: 213638 | E105: =IF(INTRO!$E$48="","",ROUND($D105*INTRO!$E$48,0)) -> 28414 | F105: =IF(INTRO!$E$49="","",ROUND($D105*INTRO!$E$49,0)) -> 58323 | G105: =IF(INTRO!$E$50="","",ROUND($D105*INTRO!$E$50,0)) -> 120492 | H105: 99 | I105: 1 | J105: 3 | K105: 2 | L105: =IF(INTRO!$E$38="Endemic", IF($H105>0, IF($H105=4,"Unknown", IF($H105=99,"Stopped", $D105)), 0),"Not required") -> Stopped | M105: =IF(INTRO!$E$40="Endemic", IF($I105>0, IF($I105=4,"Unknown",IF($I105=99,"Stopped", $D105)), 0),"Not required") -> 213638 | N105: =IF(INTRO!$E$42="Endemic", IF(AND($J105>1,$J105<5), IF($J105=4, "Unknown", E105+F105), 0),"Not required") -> 86737 | O105: =IF(INTRO!$E$44="Endemic", IF(AND($K105>0,$K105<5), IF($K105=4,"Unknown", IF($K105=1, $F105*0.33, IF($K105=2, $F105*0.5+$G105*0.2, SUM(F105:G105)))), 0),"Not required") -> 53259.9 | P105: 0 | Q105: 2 | R105: 1 | S105: 0 | T105: MDA3 (IVM) | U105: T3 (ALB/MBD) | V105: MDA 1 | W105: T1 | Y105: 46550 | Z105: Ulanga District Council | AC105: 99 | AD105: 1 | AE105: 3 | AF105: 2 | AG105: TRUE | AH105: TRUE | AI105: TRUE | AJ105: TRUE
A106: =IF(INTRO!$E$34<>0,INTRO!$E$34,"") -> Tanzania | B106: Mtwara | C106: Masasi District Council | D106: 290867 | E106: =IF(INTRO!$E$48="","",ROUND($D106*INTRO!$E$48,0)) -> 38685 | F106: =IF(INTRO!$E$49="","",ROUND($D106*INTRO!$E$49,0)) -> 79407 | G106: =IF(INTRO!$E$50="","",ROUND($D106*INTRO!$E$50,0)) -> 164049 | H106: 99 | I106: 0 | J106: 3 | K106: 3 | L106: =IF(INTRO!$E$38="Endemic", IF($H106>0, IF($H106=4,"Unknown", IF($H106=99,"Stopped", $D106)), 0),"Not required") -> Stopped | M106: =IF(INTRO!$E$40="Endemic", IF($I106>0, IF($I106=4,"Unknown",IF($I106=99,"Stopped", $D106)), 0),"Not required") -> 0 | N106: =IF(INTRO!$E$42="Endemic", IF(AND($J106>1,$J106<5), IF($J106=4, "Unknown", E106+F106), 0),"Not required") -> 118092 | O106: =IF(INTRO!$E$44="Endemic", IF(AND($K106>0,$K106<5), IF($K106=4,"Unknown", IF($K106=1, $F106*0.33, IF($K106=2, $F106*0.5+$G106*0.2, SUM(F106:G106)))), 0),"Not required") -> 243456 | P106: 0 | Q106: 0 | R106: 1 | S106: 1 | U106: T1 (PZQ+ALB/MBD) | V106: MDA 1 | W106: T1 | Y106: 46551 | Z106: Masasi District Council | AC106: 1 | AD106: 0 | AE106: 3 | AF106: 3 | AG106: FALSE | AH106: TRUE | AI106: TRUE | AJ106: TRUE
A107: =IF(INTRO!$E$34<>0,INTRO!$E$34,"") -> Tanzania | B107: Mtwara | C107: Masasi Town Council | D107: 100170 | E107: =IF(INTRO!$E$48="","",ROUND($D107*INTRO!$E$48,0)) -> 13323 | F107: =IF(INTRO!$E$49="","",ROUND($D107*INTRO!$E$49,0)) -> 27346 | G107: =IF(INTRO!$E$50="","",ROUND($D107*INTRO!$E$50,0)) -> 56496 | H107: 99 | I107: 0 | J107: 3 | K107: 3 | L107: =IF(INTRO!$E$38="Endemic", IF($H107>0, IF($H107=4,"Unknown", IF($H107=99,"Stopped", $D107)), 0),"Not required") -> Stopped | M107: =IF(INTRO!$E$40="Endemic", IF($I107>0, IF($I107=4,"Unknown",IF($I107=99,"Stopped", $D107)), 0),"Not required") -> 0 | N107: =IF(INTRO!$E$42="Endemic", IF(AND($J107>1,$J107<5), IF($J107=4, "Unknown", E107+F107), 0),"Not required") -> 40669 | O107: =IF(INTRO!$E$44="Endemic", IF(AND($K107>0,$K107<5), IF($K107=4,"Unknown", IF($K107=1, $F107*0.33, IF($K107=2, $F107*0.5+$G107*0.2, SUM(F107:G107)))), 0),"Not required") -> 83842 | P107: 0 | Q107: 0 | R107: 1 | S107: 1 | U107: T1 (PZQ+ALB/MBD) | V107: T1 | W107: T3 | Y107: 46552 | Z107: Masasi Town Council | AC107: 99 | AD107: 0 | AE107: 3 | AF107: 3 | AG107: TRUE | AH107: TRUE | AI107: TRUE | AJ107: TRUE
A108: =IF(INTRO!$E$34<>0,INTRO!$E$34,"") -> Tanzania | B108: Mtwara | C108: Mtwara District Council | D108: 137147 | E108: =IF(INTRO!$E$48="","",ROUND($D108*INTRO!$E$48,0)) -> 18241 | F108: =IF(INTRO!$E$49="","",ROUND($D108*INTRO!$E$49,0)) -> 37441 | G108: =IF(INTRO!$E$50="","",ROUND($D108*INTRO!$E$50,0)) -> 77351 | H108: 99 | I108: 0 | J108: 3 | K108: 3 | L108: =IF(INTRO!$E$38="Endemic", IF($H108>0, IF($H108=4,"Unknown", IF($H108=99,"Stopped", $D108)), 0),"Not required") -> Stopped | M108: =IF(INTRO!$E$40="Endemic", IF($I108>0, IF($I108=4,"Unknown",IF($I108=99,"Stopped", $D108)), 0),"Not required") -> 0 | N108: =IF(INTRO!$E$42="Endemic", IF(AND($J108>1,$J108<5), IF($J108=4, "Unknown", E108+F108), 0),"Not required") -> 55682 | O108: =IF(INTRO!$E$44="Endemic", IF(AND($K108>0,$K108<5), IF($K108=4,"Unknown", IF($K108=1, $F108*0.33, IF($K108=2, $F108*0.5+$G108*0.2, SUM(F108:G108)))), 0),"Not required") -> 114792 | P108: 0 | Q108: 0 | R108: 1 | S108: 1 | U108: T1 (PZQ+ALB/MBD) | V108: T1 | W108: T3 | Y108: 46553 | Z108: Mtwara District Council | AC108: 99 | AD108: 0 | AE108: 3 | AF108: 3 | AG108: TRUE | AH108: TRUE | AI108: TRUE | AJ108: TRUE
A109: =IF(INTRO!$E$34<>0,INTRO!$E$34,"") -> Tanzania | B109: Mtwara | C109: Mtwara-Mikindani Municipal Council | D109: 142598 | E109: =IF(INTRO!$E$48="","",ROUND($D109*INTRO!$E$48,0)) -> 18966 | F109: =IF(INTRO!$E$49="","",ROUND($D109*INTRO!$E$49,0)) -> 38929 | G109: =IF(INTRO!$E$50="","",ROUND($D109*INTRO!$E$50,0)) -> 80425 | H109: 1 | I109: 0 | J109: 3 | K109: 2 | L109: =IF(INTRO!$E$38="Endemic", IF($H109>0, IF($H109=4,"Unknown", IF($H109=99,"Stopped", $D109)), 0),"Not required") -> 142598 | M109: =IF(INTRO!$E$40="Endemic", IF($I109>0, IF($I109=4,"Unknown",IF($I109=99,"Stopped", $D109)), 0),"Not required") -> 0 | N109: =IF(INTRO!$E$42="Endemic", IF(AND($J109>1,$J109<5), IF($J109=4, "Unknown", E109+F109), 0),"Not required") -> 57895 | O109: =IF(INTRO!$E$44="Endemic", IF(AND($K109>0,$K109<5), IF($K109=4,"Unknown", IF($K109=1, $F109*0.33, IF($K109=2, $F109*0.5+$G109*0.2, SUM(F109:G109)))), 0),"Not required") -> 35549.5 | P109: 1 | Q109: 0 | R109: 2 | S109: 1 | T109: MDA1 (IVM+ALB) | U109: T1 (PZQ+ALB/MBD) | V109: MDA 1 | W109: T1 | Y109: 46554 | Z109: Mtwara-Mikindani Municipal Council | AC109: 1 | AD109: 0 | AE109: 3 | AF109: 2 | AG109: TRUE | AH109: TRUE | AI109: TRUE | AJ109: TRUE
A110: =IF(INTRO!$E$34<>0,INTRO!$E$34,"") -> Tanzania | B110: Mtwara | C110: Nanyamba Town Council | D110: 117084 | E110: =IF(INTRO!$E$48="","",ROUND($D110*INTRO!$E$48,0)) -> 15572 | F110: =IF(INTRO!$E$49="","",ROUND($D110*INTRO!$E$49,0)) -> 31964 | G110: =IF(INTRO!$E$50="","",ROUND($D110*INTRO!$E$50,0)) -> 66035 | H110: 99 | I110: 0 | J110: 3 | K110: 3 | L110: =IF(INTRO!$E$38="Endemic", IF($H110>0, IF($H110=4,"Unknown", IF($H110=99,"Stopped", $D110)), 0),"Not required") -> Stopped | M110: =IF(INTRO!$E$40="Endemic", IF($I110>0, IF($I110=4,"Unknown",IF($I110=99,"Stopped", $D110)), 0),"Not required") -> 0 | N110: =IF(INTRO!$E$42="Endemic", IF(AND($J110>1,$J110<5), IF($J110=4, "Unknown", E110+F110), 0),"Not required") -> 47536 | O110: =IF(INTRO!$E$44="Endemic", IF(AND($K110>0,$K110<5), IF($K110=4,"Unknown", IF($K110=1, $F110*0.33, IF($K110=2, $F110*0.5+$G110*0.2, SUM(F110:G110)))), 0),"Not required") -> 97999 | P110: 0 | Q110: 0 | R110: 1 | S110: 1 | U110: T1 (PZQ+ALB/MBD) | V110: T1 | W110: T3 | Y110: 46634 | Z110: Nanyamba District Council | AC110: 99 | AD110: 0 | AE110: 3 | AF110: 3 | AG110: TRUE | AH110: TRUE | AI110: TRUE | AJ110: TRUE
A111: =IF(INTRO!$E$34<>0,INTRO!$E$34,"") -> Tanzania | B111: Mtwara | C111: Nanyumbu District Council | D111: 168211 | E111: =IF(INTRO!$E$48="","",ROUND($D111*INTRO!$E$48,0)) -> 22372 | F111: =IF(INTRO!$E$49="","",ROUND($D111*INTRO!$E$49,0)) -> 45922 | G111: =IF(INTRO!$E$50="","",ROUND($D111*INTRO!$E$50,0)) -> 94871 | H111: 99 | I111: 0 | J111: 3 | K111: 3 | L111: =IF(INTRO!$E$38="Endemic", IF($H111>0, IF($H111=4,"Unknown", IF($H111=99,"Stopped", $D111)), 0),"Not required") -> Stopped | M111: =IF(INTRO!$E$40="Endemic", IF($I111>0, IF($I111=4,"Unknown",IF($I111=99,"Stopped", $D111)), 0),"Not required") -> 0 | N111: =IF(INTRO!$E$42="Endemic", IF(AND($J111>1,$J111<5), IF($J111=4, "Unknown", E111+F111), 0),"Not required") -> 68294 | O111: =IF(INTRO!$E$44="Endemic", IF(AND($K111>0,$K111<5), IF($K111=4,"Unknown", IF($K111=1, $F111*0.33, IF($K111=2, $F111*0.5+$G111*0.2, SUM(F111:G111)))), 0),"Not required") -> 140793 | P111: 0 | Q111: 0 | R111: 1 | S111: 1 | U111: T1 (PZQ+ALB/MBD) | V111: T1 | W111: T3 | Y111: 46555 | Z111: Nanyumbu District Council | AC111: 99 | AD111: 0 | AE111: 3 | AF111: 3 | AG111: TRUE | AH111: TRUE | AI111: TRUE | AJ111: TRUE
A112: =IF(INTRO!$E$34<>0,INTRO!$E$34,"") -> Tanzania | B112: Mtwara | C112: Newala District Council | D112: 129615 | E112: =IF(INTRO!$E$48="","",ROUND($D112*INTRO!$E$48,0)) -> 17239 | F112: =IF(INTRO!$E$49="","",ROUND($D112*INTRO!$E$49,0)) -> 35385 | G112: =IF(INTRO!$E$50="","",ROUND($D112*INTRO!$E$50,0)) -> 73103 | H112: 99 | I112: 0 | J112: 3 | K112: 2 | L112: =IF(INTRO!$E$38="Endemic", IF($H112>0, IF($H112=4,"Unknown", IF($H112=99,"Stopped", $D112)), 0),"Not required") -> Stopped | M112: =IF(INTRO!$E$40="Endemic", IF($I112>0, IF($I112=4,"Unknown",IF($I112=99,"Stopped", $D112)), 0),"Not required") -> 0 | N112: =IF(INTRO!$E$42="Endemic", IF(AND($J112>1,$J112<5), IF($J112=4, "Unknown", E112+F112), 0),"Not required") -> 52624 | O112: =IF(INTRO!$E$44="Endemic", IF(AND($K112>0,$K112<5), IF($K112=4,"Unknown", IF($K112=1, $F112*0.33, IF($K112=2, $F112*0.5+$G112*0.2, SUM(F112:G112)))), 0),"Not required") -> 32313.1 | P112: 0 | Q112: 0 | R112: 1 | S112: 1 | U112: T1 (PZQ+ALB/MBD) | V112: T1 | W112: T3 | Y112: 46556 | Z112: Newala District Council | AC112: 99 | AD112: 0 | AE112: 3 | AF112: 2 | AG112: TRUE | AH112: TRUE | AI112: TRUE | AJ112: TRUE
A113: =IF(INTRO!$E$34<>0,INTRO!$E$34,"") -> Tanzania | B113: Mtwara | C113: Newala Town Council | D113: 99517 | E113: =IF(INTRO!$E$48="","",ROUND($D113*INTRO!$E$48,0)) -> 13236 | F113: =IF(INTRO!$E$49="","",ROUND($D113*INTRO!$E$49,0)) -> 27168 | G113: =IF(INTRO!$E$50="","",ROUND($D113*INTRO!$E$50,0)) -> 56128 | H113: 99 | I113: 0 | J113: 3 | K113: 2 | L113: =IF(INTRO!$E$38="Endemic", IF($H113>0, IF($H113=4,"Unknown", IF($H113=99,"Stopped", $D113)), 0),"Not required") -> Stopped | M113: =IF(INTRO!$E$40="Endemic", IF($I113>0, IF($I113=4,"Unknown",IF($I113=99,"Stopped", $D113)), 0),"Not required") -> 0 | N113: =IF(INTRO!$E$42="Endemic", IF(AND($J113>1,$J113<5), IF($J113=4, "Unknown", E113+F113), 0),"Not required") -> 40404 | O113: =IF(INTRO!$E$44="Endemic", IF(AND($K113>0,$K113<5), IF($K113=4,"Unknown", IF($K113=1, $F113*0.33, IF($K113=2, $F113*0.5+$G113*0.2, SUM(F113:G113)))), 0),"Not required") -> 24809.6 | P113: 0 | Q113: 0 | R113: 1 | S113: 1 | U113: T1 (PZQ+ALB/MBD) | V113: T1 | W113: T3 | Y113: 46635 | Z113: Newala Town Council | AC113: 99 | AD113: 0 | AE113: 3 | AF113: 2 | AG113: TRUE | AH113: TRUE | AI113: TRUE | AJ113: TRUE
A114: =IF(INTRO!$E$34<>0,INTRO!$E$34,"") -> Tanzania | B114: Mtwara | C114: Tandahimba District Council | D114: 253688 | E114: =IF(INTRO!$E$48="","",ROUND($D114*INTRO!$E$48,0)) -> 33741 | F114: =IF(INTRO!$E$49="","",ROUND($D114*INTRO!$E$49,0)) -> 69257 | G114: =IF(INTRO!$E$50="","",ROUND($D114*INTRO!$E$50,0)) -> 143080 | H114: 99 | I114: 0 | J114: 3 | K114: 2 | L114: =IF(INTRO!$E$38="Endemic", IF($H114>0, IF($H114=4,"Unknown", IF($H114=99,"Stopped", $D114)), 0),"Not required") -> Stopped | M114: =IF(INTRO!$E$40="Endemic", IF($I114>0, IF($I114=4,"Unknown",IF($I114=99,"Stopped", $D114)), 0),"Not required") -> 0 | N114: =IF(INTRO!$E$42="Endemic", IF(AND($J114>1,$J114<5), IF($J114=4, "Unknown", E114+F114), 0),"Not required") -> 102998 | O114: =IF(INTRO!$E$44="Endemic", IF(AND($K114>0,$K114<5), IF($K114=4,"Unknown", IF($K114=1, $F114*0.33, IF($K114=2, $F114*0.5+$G114*0.2, SUM(F114:G114)))), 0),"Not required") -> 63244.5 | P114: 0 | Q114: 0 | R114: 1 | S114: 1 | U114: T1 (PZQ+ALB/MBD) | V114: T1 | W114: T3 | Y114: 46557 | Z114: Tandahimba District Council | AC114: 99 | AD114: 0 | AE114: 3 | AF114: 2 | AG114: TRUE | AH114: TRUE | AI114: TRUE | AJ114: TRUE
A115: =IF(INTRO!$E$34<>0,INTRO!$E$34,"") -> Tanzania | B115: Mwanza | C115: Buchosa District Council | D115: 428091 | E115: =IF(INTRO!$E$48="","",ROUND($D115*INTRO!$E$48,0)) -> 56936 | F115: =IF(INTRO!$E$49="","",ROUND($D115*INTRO!$E$49,0)) -> 116869 | G115: =IF(INTRO!$E$50="","",ROUND($D115*INTRO!$E$50,0)) -> 241443 | H115: 0 | I115: 0 | J115: 3 | K115: 2 | L115: =IF(INTRO!$E$38="Endemic", IF($H115>0, IF($H115=4,"Unknown", IF($H115=99,"Stopped", $D115)), 0),"Not required") -> 0 | M115: =IF(INTRO!$E$40="Endemic", IF($I115>0, IF($I115=4,"Unknown",IF($I115=99,"Stopped", $D115)), 0),"Not required") -> 0 | N115: =IF(INTRO!$E$42="Endemic", IF(AND($J115>1,$J115<5), IF($J115=4, "Unknown", E115+F115), 0),"Not required") -> 173805 | O115: =IF(INTRO!$E$44="Endemic", IF(AND($K115>0,$K115<5), IF($K115=4,"Unknown", IF($K115=1, $F115*0.33, IF($K115=2, $F115*0.5+$G115*0.2, SUM(F115:G115)))), 0),"Not required") -> 106723.1 | P115: 0 | Q115: 0 | R115: 1 | S115: 1 | U115: T1 (PZQ+ALB/MBD) | V115: T1 | W115: T3 | Y115: 46636 | Z115: Buchosa District Council | AC115: 0 | AD115: 0 | AE115: 3 | AF115: 2 | AG115: TRUE | AH115: TRUE | AI115: TRUE | AJ115: TRUE
A116: =IF(INTRO!$E$34<>0,INTRO!$E$34,"") -> Tanzania | B116: Mwanza | C116: Ilemela Municipal Council | D116: 447988 | E116: =IF(INTRO!$E$48="","",ROUND($D116*INTRO!$E$48,0)) -> 59582 | F116: =IF(INTRO!$E$49="","",ROUND($D116*INTRO!$E$49,0)) -> 122301 | G116: =IF(INTRO!$E$50="","",ROUND($D116*INTRO!$E$50,0)) -> 252665 | H116: 0 | I116: 0 | J116: 3 | K116: 2 | L116: =IF(INTRO!$E$38="Endemic", IF($H116>0, IF($H116=4,"Unknown", IF($H116=99,"Stopped", $D116)), 0),"Not required") -> 0 | M116: =IF(INTRO!$E$40="Endemic", IF($I116>0, IF($I116=4,"Unknown",IF($I116=99,"Stopped", $D116)), 0),"Not required") -> 0 | N116: =IF(INTRO!$E$42="Endemic", IF(AND($J116>1,$J116<5), IF($J116=4, "Unknown", E116+F116), 0),"Not required") -> 181883 | O116: =IF(INTRO!$E$44="Endemic", IF(AND($K116>0,$K116<5), IF($K116=4,"Unknown", IF($K116=1, $F116*0.33, IF($K116=2, $F116*0.5+$G116*0.2, SUM(F116:G116)))), 0),"Not required") -> 111683.5 | P116: 0 | Q116: 0 | R116: 1 | S116: 1 | U116: T1 (PZQ+ALB/MBD) | V116: T1 | W116: T3 | Y116: 46558 | Z116: Ilemela Municipal Council | AC116: 0 | AD116: 0 | AE116: 3 | AF116: 2 | AG116: TRUE | AH116: TRUE | AI116: TRUE | AJ116: TRUE
A117: =IF(INTRO!$E$34<>0,INTRO!$E$34,"") -> Tanzania | B117: Mwanza | C117: Kwimba District Council | D117: 530936 | E117: =IF(INTRO!$E$48="","",ROUND($D117*INTRO!$E$48,0)) -> 70614 | F117: =IF(INTRO!$E$49="","",ROUND($D117*INTRO!$E$49,0)) -> 144946 | G117: =IF(INTRO!$E$50="","",ROUND($D117*INTRO!$E$50,0)) -> 299448 | H117: 0 | I117: 0 | J117: 3 | K117: 3 | L117: =IF(INTRO!$E$38="Endemic", IF($H117>0, IF($H117=4,"Unknown", IF($H117=99,"Stopped", $D117)), 0),"Not required") -> 0 | M117: =IF(INTRO!$E$40="Endemic", IF($I117>0, IF($I117=4,"Unknown",IF($I117=99,"Stopped", $D117)), 0),"Not required") -> 0 | N117: =IF(INTRO!$E$42="Endemic", IF(AND($J117>1,$J117<5), IF($J117=4, "Unknown", E117+F117), 0),"Not required") -> 215560 | O117: =IF(INTRO!$E$44="Endemic", IF(AND($K117>0,$K117<5), IF($K117=4,"Unknown", IF($K117=1, $F117*0.33, IF($K117=2, $F117*0.5+$G117*0.2, SUM(F117:G117)))), 0),"Not required") -> 444394 | P117: 0 | Q117: 0 | R117: 1 | S117: 1 | U117: T1 (PZQ+ALB/MBD) | V117: T1 | W117: T3 | Y117: 46559 | Z117: Kwimba District Council | AC117: 0 | AD117: 0 | AE117: 3 | AF117: 3 | AG117: TRUE | AH117: TRUE | AI117: TRUE | AJ117: TRUE
A118: =IF(INTRO!$E$34<>0,INTRO!$E$34,"") -> Tanzania | B118: Mwanza | C118: Magu District Council | D118: 391512 | E118: =IF(INTRO!$E$48="","",ROUND($D118*INTRO!$E$48,0)) -> 52071 | F118: =IF(INTRO!$E$49="","",ROUND($D118*INTRO!$E$49,0)) -> 106883 | G118: =IF(INTRO!$E$50="","",ROUND($D118*INTRO!$E$50,0)) -> 220813 | H118: 0 | I118: 0 | J118: 3 | K118: 3 | L118: =IF(INTRO!$E$38="Endemic", IF($H118>0, IF($H118=4,"Unknown", IF($H118=99,"Stopped", $D118)), 0),"Not required") -> 0 | M118: =IF(INTRO!$E$40="Endemic", IF($I118>0, IF($I118=4,"Unknown",IF($I118=99,"Stopped", $D118)), 0),"Not required") -> 0 | N118: =IF(INTRO!$E$42="Endemic", IF(AND($J118>1,$J118<5), IF($J118=4, "Unknown", E118+F118), 0),"Not required") -> 158954 | O118: =IF(INTRO!$E$44="Endemic", IF(AND($K118>0,$K118<5), IF($K118=4,"Unknown", IF($K118=1, $F118*0.33, IF($K118=2, $F118*0.5+$G118*0.2, SUM(F118:G118)))), 0),"Not required") -> 327696 | P118: 0 | Q118: 0 | R118: 1 | S118: 1 | U118: T1 (PZQ+ALB/MBD) | V118: T1 | W118: T3 | Y118: 46560 | Z118: Magu District Council | AC118: 0 | AD118: 0 | AE118: 3 | AF118: 3 | AG118: TRUE | AH118: TRUE | AI118: TRUE | AJ118: TRUE
A119: =IF(INTRO!$E$34<>0,INTRO!$E$34,"") -> Tanzania | B119: Mwanza | C119: Misungwi District Council | D119: 459228 | E119: =IF(INTRO!$E$48="","",ROUND($D119*INTRO!$E$48,0)) -> 61077 | F119: =IF(INTRO!$E$49="","",ROUND($D119*INTRO!$E$49,0)) -> 125369 | G119: =IF(INTRO!$E$50="","",ROUND($D119*INTRO!$E$50,0)) -> 259005 | H119: 0 | I119: 0 | J119: 3 | K119: 3 | L119: =IF(INTRO!$E$38="Endemic", IF($H119>0, IF($H119=4,"Unknown", IF($H119=99,"Stopped", $D119)), 0),"Not required") -> 0 | M119: =IF(INTRO!$E$40="Endemic", IF($I119>0, IF($I119=4,"Unknown",IF($I119=99,"Stopped", $D119)), 0),"Not required") -> 0 | N119: =IF(INTRO!$E$42="Endemic", IF(AND($J119>1,$J119<5), IF($J119=4, "Unknown", E119+F119), 0),"Not required") -> 186446 | O119: =IF(INTRO!$E$44="Endemic", IF(AND($K119>0,$K119<5), IF($K119=4,"Unknown", IF($K119=1, $F119*0.33, IF($K119=2, $F119*0.5+$G119*0.2, SUM(F119:G119)))), 0),"Not required") -> 384374 | P119: 0 | Q119: 0 | R119: 1 | S119: 1 | U119: T1 (PZQ+ALB/MBD) | V119: T1 | W119: T3 | Y119: 46561 | Z119: Misungwi District Council | AC119: 0 | AD119: 0 | AE119: 3 | AF119: 3 | AG119: TRUE | AH119: TRUE | AI119: TRUE | AJ119: TRUE
A120: =IF(INTRO!$E$34<>0,INTRO!$E$34,"") -> Tanzania | B120: Mwanza | C120: Mwanza-Nyamagana City Council | D120: 474698 | E120: =IF(INTRO!$E$48="","",ROUND($D120*INTRO!$E$48,0)) -> 63135 | F120: =IF(INTRO!$E$49="","",ROUND($D120*INTRO!$E$49,0)) -> 129593 | G120: =IF(INTRO!$E$50="","",ROUND($D120*INTRO!$E$50,0)) -> 267730 | H120: 0 | I120: 0 | J120: 3 | K120: 2 | L120: =IF(INTRO!$E$38="Endemic", IF($H120>0, IF($H120=4,"Unknown", IF($H120=99,"Stopped", $D120)), 0),"Not required") -> 0 | M120: =IF(INTRO!$E$40="Endemic", IF($I120>0, IF($I120=4,"Unknown",IF($I120=99,"Stopped", $D120)), 0),"Not required") -> 0 | N120: =IF(INTRO!$E$42="Endemic", IF(AND($J120>1,$J120<5), IF($J120=4, "Unknown", E120+F120), 0),"Not required") -> 192728 | O120: =IF(INTRO!$E$44="Endemic", IF(AND($K120>0,$K120<5), IF($K120=4,"Unknown", IF($K120=1, $F120*0.33, IF($K120=2, $F120*0.5+$G120*0.2, SUM(F120:G120)))), 0),"Not required") -> 118342.5 | P120: 0 | Q120: 0 | R120: 1 | S120: 1 | U120: T1 (PZQ+ALB/MBD) | V120: T1 | W120: T3 | Y120: 46562 | Z120: Mwanza-Nyamagana City Council | AC120: 0 | AD120: 0 | AE120: 3 | AF120: 2 | AG120: TRUE | AH120: TRUE | AI120: TRUE | AJ120: TRUE
A121: =IF(INTRO!$E$34<>0,INTRO!$E$34,"") -> Tanzania | B121: Mwanza | C121: Sengerema District Council | D121: 437887 | E121: =IF(INTRO!$E$48="","",ROUND($D121*INTRO!$E$48,0)) -> 58239 | F121: =IF(INTRO!$E$49="","",ROUND($D121*INTRO!$E$49,0)) -> 119543 | G121: =IF(INTRO!$E$50="","",ROUND($D121*INTRO!$E$50,0)) -> 246968 | H121: 0 | I121: 0 | J121: 3 | K121: 2 | L121: =IF(INTRO!$E$38="Endemic", IF($H121>0, IF($H121=4,"Unknown", IF($H121=99,"Stopped", $D121)), 0),"Not required") -> 0 | M121: =IF(INTRO!$E$40="Endemic", IF($I121>0, IF($I121=4,"Unknown",IF($I121=99,"Stopped", $D121)), 0),"Not required") -> 0 | N121: =IF(INTRO!$E$42="Endemic", IF(AND($J121>1,$J121<5), IF($J121=4, "Unknown", E121+F121), 0),"Not required") -> 177782 | O121: =IF(INTRO!$E$44="Endemic", IF(AND($K121>0,$K121<5), IF($K121=4,"Unknown", IF($K121=1, $F121*0.33, IF($K121=2, $F121*0.5+$G121*0.2, SUM(F121:G121)))), 0),"Not required") -> 109165.1 | P121: 0 | Q121: 0 | R121: 1 | S121: 1 | U121: T1 (PZQ+ALB/MBD) | V121: T1 | W121: T3 | Y121: 46563 | Z121: Sengerema District Council | AC121: 0 | AD121: 0 | AE121: 3 | AF121: 2 | AG121: TRUE | AH121: TRUE | AI121: TRUE | AJ121: TRUE
A122: =IF(INTRO!$E$34<>0,INTRO!$E$34,"") -> Tanzania | B122: Mwanza | C122: Ukerewe District Council | D122: 450791 | E122: =IF(INTRO!$E$48="","",ROUND($D122*INTRO!$E$48,0)) -> 59955 | F122: =IF(INTRO!$E$49="","",ROUND($D122*INTRO!$E$49,0)) -> 123066 | G122: =IF(INTRO!$E$50="","",ROUND($D122*INTRO!$E$50,0)) -> 254246 | H122: 0 | I122: 0 | J122: 3 | K122: 2 | L122: =IF(INTRO!$E$38="Endemic", IF($H122>0, IF($H122=4,"Unknown", IF($H122=99,"Stopped", $D122)), 0),"Not required") -> 0 | M122: =IF(INTRO!$E$40="Endemic", IF($I122>0, IF($I122=4,"Unknown",IF($I122=99,"Stopped", $D122)), 0),"Not required") -> 0 | N122: =IF(INTRO!$E$42="Endemic", IF(AND($J122>1,$J122<5), IF($J122=4, "Unknown", E122+F122), 0),"Not required") -> 183021 | O122: =IF(INTRO!$E$44="Endemic", IF(AND($K122>0,$K122<5), IF($K122=4,"Unknown", IF($K122=1, $F122*0.33, IF($K122=2, $F122*0.5+$G122*0.2, SUM(F122:G122)))), 0),"Not required") -> 112382.2 | P122: 0 | Q122: 0 | R122: 1 | S122: 1 | U122: T1 (PZQ+ALB/MBD) | V122: T1 | W122: T3 | Y122: 46564 | Z122: Ukerewe District Council | AC122: 0 | AD122: 0 | AE122: 3 | AF122: 2 | AG122: TRUE | AH122: TRUE | AI122: TRUE | AJ122: TRUE
A123: =IF(INTRO!$E$34<>0,INTRO!$E$34,"") -> Tanzania | B123: Njombe | C123: Ludewa District Council | D123: 143108 | E123: =IF(INTRO!$E$48="","",ROUND($D123*INTRO!$E$48,0)) -> 19033 | F123: =IF(INTRO!$E$49="","",ROUND($D123*INTRO!$E$49,0)) -> 39068 | G123: =IF(INTRO!$E$50="","",ROUND($D123*INTRO!$E$50,0)) -> 80713 | H123: 99 | I123: 1 | J123: 3 | K123: 2 | L123: =IF(INTRO!$E$38="Endemic", IF($H123>0, IF($H123=4,"Unknown", IF($H123=99,"Stopped", $D123)), 0),"Not required") -> Stopped | M123: =IF(INTRO!$E$40="Endemic", IF($I123>0, IF($I123=4,"Unknown",IF($I123=99,"Stopped", $D123)), 0),"Not required") -> 143108 | N123: =IF(INTRO!$E$42="Endemic", IF(AND($J123>1,$J123<5), IF($J123=4, "Unknown", E123+F123), 0),"Not required") -> 58101 | O123: =IF(INTRO!$E$44="Endemic", IF(AND($K123>0,$K123<5), IF($K123=4,"Unknown", IF($K123=1, $F123*0.33, IF($K123=2, $F123*0.5+$G123*0.2, SUM(F123:G123)))), 0),"Not required") -> 35676.6 | P123: 0 | Q123: 1 | R123: 1 | S123: 0 | T123: MDA3 (IVM) | U123: T3 (ALB/MBD) | V123: MDA 1 | W123: T1 | Y123: 46565 | Z123: Ludewa District Council | AC123: 99 | AD123: 1 | AE123: 3 | AF123: 2 | AG123: TRUE | AH123: TRUE | AI123: TRUE | AJ123: TRUE
A124: =IF(INTRO!$E$34<>0,INTRO!$E$34,"") -> Tanzania | B124: Njombe | C124: Makambako Town Council | D124: 100791 | E124: =IF(INTRO!$E$48="","",ROUND($D124*INTRO!$E$48,0)) -> 13405 | F124: =IF(INTRO!$E$49="","",ROUND($D124*INTRO!$E$49,0)) -> 27516 | G124: =IF(INTRO!$E$50="","",ROUND($D124*INTRO!$E$50,0)) -> 56846 | H124: 99 | I124: 0 | J124: 3 | K124: 2 | L124: =IF(INTRO!$E$38="Endemic", IF($H124>0, IF($H124=4,"Unknown", IF($H124=99,"Stopped", $D124)), 0),"Not required") -> Stopped | M124: =IF(INTRO!$E$40="Endemic", IF($I124>0, IF($I124=4,"Unknown",IF($I124=99,"Stopped", $D124)), 0),"Not required") -> 0 | N124: =IF(INTRO!$E$42="Endemic", IF(AND($J124>1,$J124<5), IF($J124=4, "Unknown", E124+F124), 0),"Not required") -> 40921 | O124: =IF(INTRO!$E$44="Endemic", IF(AND($K124>0,$K124<5), IF($K124=4,"Unknown", IF($K124=1, $F124*0.33, IF($K124=2, $F124*0.5+$G124*0.2, SUM(F124:G124)))), 0),"Not required") -> 25127.2 | P124: 0 | Q124: 0 | R124: 1 | S124: 0 | U124: T3 (ALB/MBD) | V124: T1 | W124: T3 | Y124: 46566 | Z124: Makambako Town Council | AC124: 99 | AD124: 0 | AE124: 3 | AF124: 2 | AG124: TRUE | AH124: TRUE | AI124: TRUE | AJ124: TRUE
A125: =IF(INTRO!$E$34<>0,INTRO!$E$34,"") -> Tanzania | B125: Njombe | C125: Makete District Council | D125: 104485 | E125: =IF(INTRO!$E$48="","",ROUND($D125*INTRO!$E$48,0)) -> 13897 | F125: =IF(INTRO!$E$49="","",ROUND($D125*INTRO!$E$49,0)) -> 28524 | G125: =IF(INTRO!$E$50="","",ROUND($D125*INTRO!$E$50,0)) -> 58930 | H125: 99 | I125: 0 | J125: 3 | K125: 2 | L125: =IF(INTRO!$E$38="Endemic", IF($H125>0, IF($H125=4,"Unknown", IF($H125=99,"Stopped", $D125)), 0),"Not required") -> Stopped | M125: =IF(INTRO!$E$40="Endemic", IF($I125>0, IF($I125=4,"Unknown",IF($I125=99,"Stopped", $D125)), 0),"Not required") -> 0 | N125: =IF(INTRO!$E$42="Endemic", IF(AND($J125>1,$J125<5), IF($J125=4, "Unknown", E125+F125), 0),"Not required") -> 42421 | O125: =IF(INTRO!$E$44="Endemic", IF(AND($K125>0,$K125<5), IF($K125=4,"Unknown", IF($K125=1, $F125*0.33, IF($K125=2, $F125*0.5+$G125*0.2, SUM(F125:G125)))), 0),"Not required") -> 26048 | P125: 0 | Q125: 0 | R125: 1 | S125: 0 | U125: T3 (ALB/MBD) | V125: T1 | W125: T3 | Y125: 46567 | Z125: Makete District Council | AC125: 99 | AD125: 0 | AE125: 3 | AF125: 2 | AG125: TRUE | AH125: TRUE | AI125: TRUE | AJ125: TRUE
A126: =IF(INTRO!$E$34<>0,INTRO!$E$34,"") -> Tanzania | B126: Njombe | C126: Njombe District Council | D126: 92114 | E126: =IF(INTRO!$E$48="","",ROUND($D126*INTRO!$E$48,0)) -> 12251 | F126: =IF(INTRO!$E$49="","",ROUND($D126*INTRO!$E$49,0)) -> 25147 | G126: =IF(INTRO!$E$50="","",ROUND($D126*INTRO!$E$50,0)) -> 51952 | H126: 99 | I126: 1 | J126: 3 | K126: 2 | L126: =IF(INTRO!$E$38="Endemic", IF($H126>0, IF($H126=4,"Unknown", IF($H126=99,"Stopped", $D126)), 0),"Not required") -> Stopped | M126: =IF(INTRO!$E$40="Endemic", IF($I126>0, IF($I126=4,"Unknown",IF($I126=99,"Stopped", $D126)), 0),"Not required") -> 92114 | N126: =IF(INTRO!$E$42="Endemic", IF(AND($J126>1,$J126<5), IF($J126=4, "Unknown", E126+F126), 0),"Not required") -> 37398 | O126: =IF(INTRO!$E$44="Endemic", IF(AND($K126>0,$K126<5), IF($K126=4,"Unknown", IF($K126=1, $F126*0.33, IF($K126=2, $F126*0.5+$G126*0.2, SUM(F126:G126)))), 0),"Not required") -> 22963.9 | P126: 0 | Q126: 1 | R126: 1 | S126: 0 | T126: MDA3 (IVM) | U126: T3 (ALB/MBD) | V126: MDA 1 | W126: T1 | Y126: 46568 | Z126: Njombe District Council | AC126: 99 | AD126: 1 | AE126: 3 | AF126: 2 | AG126: TRUE | AH126: TRUE | AI126: TRUE | AJ126: TRUE
A127: =IF(INTRO!$E$34<>0,INTRO!$E$34,"") -> Tanzania | B127: Njombe | C127: Njombe Town Council | D127: 139890 | E127: =IF(INTRO!$E$48="","",ROUND($D127*INTRO!$E$48,0)) -> 18605 | F127: =IF(INTRO!$E$49="","",ROUND($D127*INTRO!$E$49,0)) -> 38190 | G127: =IF(INTRO!$E$50="","",ROUND($D127*INTRO!$E$50,0)) -> 78898 | H127: 99 | I127: 0 | J127: 3 | K127: 2 | L127: =IF(INTRO!$E$38="Endemic", IF($H127>0, IF($H127=4,"Unknown", IF($H127=99,"Stopped", $D127)), 0),"Not required") -> Stopped | M127: =IF(INTRO!$E$40="Endemic", IF($I127>0, IF($I127=4,"Unknown",IF($I127=99,"Stopped", $D127)), 0),"Not required") -> 0 | N127: =IF(INTRO!$E$42="Endemic", IF(AND($J127>1,$J127<5), IF($J127=4, "Unknown", E127+F127), 0),"Not required") -> 56795 | O127: =IF(INTRO!$E$44="Endemic", IF(AND($K127>0,$K127<5), IF($K127=4,"Unknown", IF($K127=1, $F127*0.33, IF($K127=2, $F127*0.5+$G127*0.2, SUM(F127:G127)))), 0),"Not required") -> 34874.6 | P127: 0 | Q127: 0 | R127: 1 | S127: 0 | U127: T3 (ALB/MBD) | V127: T1 | W127: T3 | Y127: 46569 | Z127: Njombe Town Council | AC127: 99 | AD127: 0 | AE127: 3 | AF127: 2 | AG127: TRUE | AH127: TRUE | AI127: TRUE | AJ127: TRUE
A128: =IF(INTRO!$E$34<>0,INTRO!$E$34,"") -> Tanzania | B128: Njombe | C128: Wanging'ombe District Council | D128: 173828 | E128: =IF(INTRO!$E$48="","",ROUND($D128*INTRO!$E$48,0)) -> 23119 | F128: =IF(INTRO!$E$49="","",ROUND($D128*INTRO!$E$49,0)) -> 47455 | G128: =IF(INTRO!$E$50="","",ROUND($D128*INTRO!$E$50,0)) -> 98039 | H128: 99 | I128: 0 | J128: 3 | K128: 2 | L128: =IF(INTRO!$E$38="Endemic", IF($H128>0, IF($H128=4,"Unknown", IF($H128=99,"Stopped", $D128)), 0),"Not required") -> Stopped | M128: =IF(INTRO!$E$40="Endemic", IF($I128>0, IF($I128=4,"Unknown",IF($I128=99,"Stopped", $D128)), 0),"Not required") -> 0 | N128: =IF(INTRO!$E$42="Endemic", IF(AND($J128>1,$J128<5), IF($J128=4, "Unknown", E128+F128), 0),"Not required") -> 70574 | O128: =IF(INTRO!$E$44="Endemic", IF(AND($K128>0,$K128<5), IF($K128=4,"Unknown", IF($K128=1, $F128*0.33, IF($K128=2, $F128*0.5+$G128*0.2, SUM(F128:G128)))), 0),"Not required") -> 43335.3 | P128: 0 | Q128: 0 | R128: 1 | S128: 0 | U128: T3 (ALB/MBD) | V128: T1 | W128: T3 | Y128: 46570 | Z128: Wanging'ombe District Council | AC128: 99 | AD128: 0 | AE128: 3 | AF128: 2 | AG128: TRUE | AH128: TRUE | AI128: TRUE | AJ128: TRUE
A129: =IF(INTRO!$E$34<>0,INTRO!$E$34,"") -> Tanzania | B129: Pwani | C129: Bagamoyo District Council | D129: 118706 | E129: =IF(INTRO!$E$48="","",ROUND($D129*INTRO!$E$48,0)) -> 15788 | F129: =IF(INTRO!$E$49="","",ROUND($D129*INTRO!$E$49,0)) -> 32407 | G129: =IF(INTRO!$E$50="","",ROUND($D129*INTRO!$E$50,0)) -> 66950 | H129: 99 | I129: 0 | J129: 3 | K129: 2 | L129: =IF(INTRO!$E$38="Endemic", IF($H129>0, IF($H129=4,"Unknown", IF($H129=99,"Stopped", $D129)), 0),"Not required") -> Stopped | M129: =IF(INTRO!$E$40="Endemic", IF($I129>0, IF($I129=4,"Unknown",IF($I129=99,"Stopped", $D129)), 0),"Not required") -> 0 | N129: =IF(INTRO!$E$42="Endemic", IF(AND($J129>1,$J129<5), IF($J129=4, "Unknown", E129+F129), 0),"Not required") -> 48195 | O129: =IF(INTRO!$E$44="Endemic", IF(AND($K129>0,$K129<5), IF($K129=4,"Unknown", IF($K129=1, $F129*0.33, IF($K129=2, $F129*0.5+$G129*0.2, SUM(F129:G129)))), 0),"Not required") -> 29593.5 | P129: 0 | Q129: 0 | R129: 1 | S129: 1 | U129: T1 (PZQ+ALB/MBD) | V129: T1 | W129: T3 | Y129: 46571 | Z129: Bagamoyo District Council | AC129: 99 | AD129: 0 | AE129: 3 | AF129: 2 | AG129: TRUE | AH129: TRUE | AI129: TRUE | AJ129: TRUE
A130: =IF(INTRO!$E$34<>0,INTRO!$E$34,"") -> Tanzania | B130: Pwani | C130: Chalinze District Council | D130: 260219 | E130: =IF(INTRO!$E$48="","",ROUND($D130*INTRO!$E$48,0)) -> 34609 | F130: =IF(INTRO!$E$49="","",ROUND($D130*INTRO!$E$49,0)) -> 71040 | G130: =IF(INTRO!$E$50="","",ROUND($D130*INTRO!$E$50,0)) -> 146764 | H130: 99 | I130: 0 | J130: 3 | K130: 2 | L130: =IF(INTRO!$E$38="Endemic", IF($H130>0, IF($H130=4,"Unknown", IF($H130=99,"Stopped", $D130)), 0),"Not required") -> Stopped | M130: =IF(INTRO!$E$40="Endemic", IF($I130>0, IF($I130=4,"Unknown",IF($I130=99,"Stopped", $D130)), 0),"Not required") -> 0 | N130: =IF(INTRO!$E$42="Endemic", IF(AND($J130>1,$J130<5), IF($J130=4, "Unknown", E130+F130), 0),"Not required") -> 105649 | O130: =IF(INTRO!$E$44="Endemic", IF(AND($K130>0,$K130<5), IF($K130=4,"Unknown", IF($K130=1, $F130*0.33, IF($K130=2, $F130*0.5+$G130*0.2, SUM(F130:G130)))), 0),"Not required") -> 64872.8 | P130: 0 | Q130: 0 | R130: 1 | S130: 1 | U130: T1 (PZQ+ALB/MBD) | V130: T1 | W130: T3 | Y130: 46638 | Z130: Chalinze District Council | AC130: 99 | AD130: 0 | AE130: 3 | AF130: 2 | AG130: TRUE | AH130: TRUE | AI130: TRUE | AJ130: TRUE
A131: =IF(INTRO!$E$34<>0,INTRO!$E$34,"") -> Tanzania | B131: Pwani | C131: Kibaha District Council | D131: 85342 | E131: =IF(INTRO!$E$48="","",ROUND($D131*INTRO!$E$48,0)) -> 11350 | F131: =IF(INTRO!$E$49="","",ROUND($D131*INTRO!$E$49,0)) -> 23298 | G131: =IF(INTRO!$E$50="","",ROUND($D131*INTRO!$E$50,0)) -> 48133 | H131: 99 | I131: 0 | J131: 3 | K131: 2 | L131: =IF(INTRO!$E$38="Endemic", IF($H131>0, IF($H131=4,"Unknown", IF($H131=99,"Stopped", $D131)), 0),"Not required") -> Stopped | M131: =IF(INTRO!$E$40="Endemic", IF($I131>0, IF($I131=4,"Unknown",IF($I131=99,"Stopped", $D131)), 0),"Not required") -> 0 | N131: =IF(INTRO!$E$42="Endemic", IF(AND($J131>1,$J131<5), IF($J131=4, "Unknown", E131+F131), 0),"Not required") -> 34648 | O131: =IF(INTRO!$E$44="Endemic", IF(AND($K131>0,$K131<5), IF($K131=4,"Unknown", IF($K131=1, $F131*0.33, IF($K131=2, $F131*0.5+$G131*0.2, SUM(F131:G131)))), 0),"Not required") -> 21275.6 | P131: 0 | Q131: 0 | R131: 1 | S131: 0 | U131: T3 (ALB/MBD) | V131: MDA 1 | W131: T1 | Y131: 46572 | Z131: Kibaha District Council | AC131: 1 | AD131: 0 | AE131: 3 | AF131: 2 | AG131: FALSE | AH131: TRUE | AI131: TRUE | AJ131: TRUE
A132: =IF(INTRO!$E$34<>0,INTRO!$E$34,"") -> Tanzania | B132: Pwani | C132: Kibaha Town Council | D132: 156179 | E132: =IF(INTRO!$E$48="","",ROUND($D132*INTRO!$E$48,0)) -> 20772 | F132: =IF(INTRO!$E$49="","",ROUND($D132*INTRO!$E$49,0)) -> 42637 | G132: =IF(INTRO!$E$50="","",ROUND($D132*INTRO!$E$50,0)) -> 88085 | H132: 99 | I132: 0 | J132: 3 | K132: 2 | L132: =IF(INTRO!$E$38="Endemic", IF($H132>0, IF($H132=4,"Unknown", IF($H132=99,"Stopped", $D132)), 0),"Not required") -> Stopped | M132: =IF(INTRO!$E$40="Endemic", IF($I132>0, IF($I132=4,"Unknown",IF($I132=99,"Stopped", $D132)), 0),"Not required") -> 0 | N132: =IF(INTRO!$E$42="Endemic", IF(AND($J132>1,$J132<5), IF($J132=4, "Unknown", E132+F132), 0),"Not required") -> 63409 | O132: =IF(INTRO!$E$44="Endemic", IF(AND($K132>0,$K132<5), IF($K132=4,"Unknown", IF($K132=1, $F132*0.33, IF($K132=2, $F132*0.5+$G132*0.2, SUM(F132:G132)))), 0),"Not required") -> 38935.5 | P132: 0 | Q132: 0 | R132: 1 | S132: 0 | U132: T3 (ALB/MBD) | V132: T1 | W132: T3 | Y132: 46573 | Z132: Kibaha Town Council | AC132: 99 | AD132: 0 | AE132: 3 | AF132: 2 | AG132: TRUE | AH132: TRUE | AI132: TRUE | AJ132: TRUE
A133: =IF(INTRO!$E$34<>0,INTRO!$E$34,"") -> Tanzania | B133: Pwani | C133: Kibiti District Council | D133: 126328 | E133: =IF(INTRO!$E$48="","",ROUND($D133*INTRO!$E$48,0)) -> 16802 | F133: =IF(INTRO!$E$49="","",ROUND($D133*INTRO!$E$49,0)) -> 34488 | G133: =IF(INTRO!$E$50="","",ROUND($D133*INTRO!$E$50,0)) -> 71249 | H133: 99 | I133: 0 | J133: 3 | K133: 2 | L133: =IF(INTRO!$E$38="Endemic", IF($H133>0, IF($H133=4,"Unknown", IF($H133=99,"Stopped", $D133)), 0),"Not required") -> Stopped | M133: =IF(INTRO!$E$40="Endemic", IF($I133>0, IF($I133=4,"Unknown",IF($I133=99,"Stopped", $D133)), 0),"Not required") -> 0 | N133: =IF(INTRO!$E$42="Endemic", IF(AND($J133>1,$J133<5), IF($J133=4, "Unknown", E133+F133), 0),"Not required") -> 51290 | O133: =IF(INTRO!$E$44="Endemic", IF(AND($K133>0,$K133<5), IF($K133=4,"Unknown", IF($K133=1, $F133*0.33, IF($K133=2, $F133*0.5+$G133*0.2, SUM(F133:G133)))), 0),"Not required") -> 31493.8 | P133: 0 | Q133: 0 | R133: 1 | S133: 1 | U133: T1 (PZQ+ALB/MBD) | V133: T1 | W133: T3 | Y133: 46639 | Z133: Kibiti District Council | AC133: 99 | AD133: 0 | AE133: 3 | AF133: 2 | AG133: TRUE | AH133: TRUE | AI133: TRUE | AJ133: TRUE
A134: =IF(INTRO!$E$34<>0,INTRO!$E$34,"") -> Tanzania | B134: Pwani | C134: Kisarawe District Council | D134: 123493 | E134: =IF(INTRO!$E$48="","",ROUND($D134*INTRO!$E$48,0)) -> 16425 | F134: =IF(INTRO!$E$49="","",ROUND($D134*INTRO!$E$49,0)) -> 33714 | G134: =IF(INTRO!$E$50="","",ROUND($D134*INTRO!$E$50,0)) -> 69650 | H134: 99 | I134: 0 | J134: 3 | K134: 2 | L134: =IF(INTRO!$E$38="Endemic", IF($H134>0, IF($H134=4,"Unknown", IF($H134=99,"Stopped", $D134)), 0),"Not required") -> Stopped | M134: =IF(INTRO!$E$40="Endemic", IF($I134>0, IF($I134=4,"Unknown",IF($I134=99,"Stopped", $D134)), 0),"Not required") -> 0 | N134: =IF(INTRO!$E$42="Endemic", IF(AND($J134>1,$J134<5), IF($J134=4, "Unknown", E134+F134), 0),"Not required") -> 50139 | O134: =IF(INTRO!$E$44="Endemic", IF(AND($K134>0,$K134<5), IF($K134=4,"Unknown", IF($K134=1, $F134*0.33, IF($K134=2, $F134*0.5+$G134*0.2, SUM(F134:G134)))), 0),"Not required") -> 30787 | P134: 0 | Q134: 0 | R134: 1 | S134: 1 | U134: T1 (PZQ+ALB/MBD) | V134: T1 | W134: T3 | Y134: 46574 | Z134: Kisarawe District Council | AC134: 99 | AD134: 0 | AE134: 3 | AF134: 2 | AG134: TRUE | AH134: TRUE | AI134: TRUE | AJ134: TRUE
A135: =IF(INTRO!$E$34<>0,INTRO!$E$34,"") -> Tanzania | B135: Pwani | C135: Mafia District Council | D135: 56446 | E135: =IF(INTRO!$E$48="","",ROUND($D135*INTRO!$E$48,0)) -> 7507 | F135: =IF(INTRO!$E$49="","",ROUND($D135*INTRO!$E$49,0)) -> 15410 | G135: =IF(INTRO!$E$50="","",ROUND($D135*INTRO!$E$50,0)) -> 31836 | H135: 1 | I135: 0 | J135: 3 | K135: 2 | L135: =IF(INTRO!$E$38="Endemic", IF($H135>0, IF($H135=4,"Unknown", IF($H135=99,"Stopped", $D135)), 0),"Not required") -> 56446 | M135: =IF(INTRO!$E$40="Endemic", IF($I135>0, IF($I135=4,"Unknown",IF($I135=99,"Stopped", $D135)), 0),"Not required") -> 0 | N135: =IF(INTRO!$E$42="Endemic", IF(AND($J135>1,$J135<5), IF($J135=4, "Unknown", E135+F135), 0),"Not required") -> 22917 | O135: =IF(INTRO!$E$44="Endemic", IF(AND($K135>0,$K135<5), IF($K135=4,"Unknown", IF($K135=1, $F135*0.33, IF($K135=2, $F135*0.5+$G135*0.2, SUM(F135:G135)))), 0),"Not required") -> 14072.2 | P135: 1 | Q135: 0 | R135: 2 | S135: 0 | T135: MDA1 (IVM+ALB) | U135: T3 (ALB/MBD) | V135: MDA 1 | W135: T1 | Y135: 46575 | Z135: Mafia District Council | AC135: 1 | AD135: 0 | AE135: 3 | AF135: 2 | AG135: TRUE | AH135: TRUE | AI135: TRUE | AJ135: TRUE
A136: =IF(INTRO!$E$34<>0,INTRO!$E$34,"") -> Tanzania | B136: Pwani | C136: Mkuranga District Council | D136: 270966 | E136: =IF(INTRO!$E$48="","",ROUND($D136*INTRO!$E$48,0)) -> 36038 | F136: =IF(INTRO!$E$49="","",ROUND($D136*INTRO!$E$49,0)) -> 73974 | G136: =IF(INTRO!$E$50="","",ROUND($D136*INTRO!$E$50,0)) -> 152825 | H136: 99 | I136: 0 | J136: 3 | K136: 2 | L136: =IF(INTRO!$E$38="Endemic", IF($H136>0, IF($H136=4,"Unknown", IF($H136=99,"Stopped", $D136)), 0),"Not required") -> Stopped | M136: =IF(INTRO!$E$40="Endemic", IF($I136>0, IF($I136=4,"Unknown",IF($I136=99,"Stopped", $D136)), 0),"Not required") -> 0 | N136: =IF(INTRO!$E$42="Endemic", IF(AND($J136>1,$J136<5), IF($J136=4, "Unknown", E136+F136), 0),"Not required") -> 110012 | O136: =IF(INTRO!$E$44="Endemic", IF(AND($K136>0,$K136<5), IF($K136=4,"Unknown", IF($K136=1, $F136*0.33, IF($K136=2, $F136*0.5+$G136*0.2, SUM(F136:G136)))), 0),"Not required") -> 67552 | P136: 0 | Q136: 0 | R136: 1 | S136: 1 | U136: T1 (PZQ+ALB/MBD) | V136: T1 | W136: T3 | Y136: 46576 | Z136: Mkuranga District Council | AC136: 99 | AD136: 0 | AE136: 3 | AF136: 2 | AG136: TRUE | AH136: TRUE | AI136: TRUE | AJ136: TRUE
A137: =IF(INTRO!$E$34<>0,INTRO!$E$34,"") -> Tanzania | B137: Pwani | C137: Rufiji District Council | D137: 137771 | E137: =IF(INTRO!$E$48="","",ROUND($D137*INTRO!$E$48,0)) -> 18324 | F137: =IF(INTRO!$E$49="","",ROUND($D137*INTRO!$E$49,0)) -> 37611 | G137: =IF(INTRO!$E$50="","",ROUND($D137*INTRO!$E$50,0)) -> 77703 | H137: 99 | I137: 0 | J137: 3 | K137: 2 | L137: =IF(INTRO!$E$38="Endemic", IF($H137>0, IF($H137=4,"Unknown", IF($H137=99,"Stopped", $D137)), 0),"Not required") -> Stopped | M137: =IF(INTRO!$E$40="Endemic", IF($I137>0, IF($I137=4,"Unknown",IF($I137=99,"Stopped", $D137)), 0),"Not required") -> 0 | N137: =IF(INTRO!$E$42="Endemic", IF(AND($J137>1,$J137<5), IF($J137=4, "Unknown", E137+F137), 0),"Not required") -> 55935 | O137: =IF(INTRO!$E$44="Endemic", IF(AND($K137>0,$K137<5), IF($K137=4,"Unknown", IF($K137=1, $F137*0.33, IF($K137=2, $F137*0.5+$G137*0.2, SUM(F137:G137)))), 0),"Not required") -> 34346.1 | P137: 0 | Q137: 0 | R137: 1 | S137: 1 | U137: T1 (PZQ+ALB/MBD) | V137: T1 | W137: T3 | Y137: 46577 | Z137: Rufiji District Council | AC137: 99 | AD137: 0 | AE137: 3 | AF137: 2 | AG137: TRUE | AH137: TRUE | AI137: TRUE | AJ137: TRUE
A138: =IF(INTRO!$E$34<>0,INTRO!$E$34,"") -> Tanzania | B138: Rukwa | C138: Kalambo District Council | D138: 276538 | E138: =IF(INTRO!$E$48="","",ROUND($D138*INTRO!$E$48,0)) -> 36780 | F138: =IF(INTRO!$E$49="","",ROUND($D138*INTRO!$E$49,0)) -> 75495 | G138: =IF(INTRO!$E$50="","",ROUND($D138*INTRO!$E$50,0)) -> 155967 | H138: 99 | I138: 0 | J138: 3 | K138: 2 | L138: =IF(INTRO!$E$38="Endemic", IF($H138>0, IF($H138=4,"Unknown", IF($H138=99,"Stopped", $D138)), 0),"Not required") -> Stopped | M138: =IF(INTRO!$E$40="Endemic", IF($I138>0, IF($I138=4,"Unknown",IF($I138=99,"Stopped", $D138)), 0),"Not required") -> 0 | N138: =IF(INTRO!$E$42="Endemic", IF(AND($J138>1,$J138<5), IF($J138=4, "Unknown", E138+F138), 0),"Not required") -> 112275 | O138: =IF(INTRO!$E$44="Endemic", IF(AND($K138>0,$K138<5), IF($K138=4,"Unknown", IF($K138=1, $F138*0.33, IF($K138=2, $F138*0.5+$G138*0.2, SUM(F138:G138)))), 0),"Not required") -> 68940.9 | P138: 0 | Q138: 0 | R138: 1 | S138: 1 | U138: T1 (PZQ+ALB/MBD) | V138: T1 | W138: T3 | Y138: 46578 | Z138: Kalambo District Council | AC138: 99 | AD138: 0 | AE138: 3 | AF138: 2 | AG138: =AC138=H138 -> TRUE | AH138: =AD138=I138 -> TRUE | AI138: =AE138=J138 -> TRUE | AJ138: =AF138=K138 -> TRUE
A139: =IF(INTRO!$E$34<>0,INTRO!$E$34,"") -> Tanzania | B139: Rukwa | C139: Nkasi District Council | D139: 374401 | E139: =IF(INTRO!$E$48="","",ROUND($D139*INTRO!$E$48,0)) -> 49795 | F139: =IF(INTRO!$E$49="","",ROUND($D139*INTRO!$E$49,0)) -> 102211 | G139: =IF(INTRO!$E$50="","",ROUND($D139*INTRO!$E$50,0)) -> 211162 | H139: 99 | I139: 0 | J139: 3 | K139: 2 | L139: =IF(INTRO!$E$38="Endemic", IF($H139>0, IF($H139=4,"Unknown", IF($H139=99,"Stopped", $D139)), 0),"Not required") -> Stopped | M139: =IF(INTRO!$E$40="Endemic", IF($I139>0, IF($I139=4,"Unknown",IF($I139=99,"Stopped", $D139)), 0),"Not required") -> 0 | N139: =IF(INTRO!$E$42="Endemic", IF(AND($J139>1,$J139<5), IF($J139=4, "Unknown", E139+F139), 0),"Not required") -> 152006 | O139: =IF(INTRO!$E$44="Endemic", IF(AND($K139>0,$K139<5), IF($K139=4,"Unknown", IF($K139=1, $F139*0.33, IF($K139=2, $F139*0.5+$G139*0.2, SUM(F139:G139)))), 0),"Not required") -> 93337.9 | P139: 0 | Q139: 0 | R139: 1 | S139: 1 | U139: T1 (PZQ+ALB/MBD) | V139: T1 | W139: T3 | Y139: 46579 | Z139: Nkasi District Council | AC139: 99 | AD139: 0 | AE139: 3 | AF139: 2 | AG139: TRUE | AH139: TRUE | AI139: TRUE | AJ139: TRUE
A140: =IF(INTRO!$E$34<>0,INTRO!$E$34,"") -> Tanzania | B140: Rukwa | C140: Sumbawanga District Council | D140: 407216 | E140: =IF(INTRO!$E$48="","",ROUND($D140*INTRO!$E$48,0)) -> 54160 | F140: =IF(INTRO!$E$49="","",ROUND($D140*INTRO!$E$49,0)) -> 111170 | G140: =IF(INTRO!$E$50="","",ROUND($D140*INTRO!$E$50,0)) -> 229670 | H140: 99 | I140: 0 | J140: 3 | K140: 2 | L140: =IF(INTRO!$E$38="Endemic", IF($H140>0, IF($H140=4,"Unknown", IF($H140=99,"Stopped", $D140)), 0),"Not required") -> Stopped | M140: =IF(INTRO!$E$40="Endemic", IF($I140>0, IF($I140=4,"Unknown",IF($I140=99,"Stopped", $D140)), 0),"Not required") -> 0 | N140: =IF(INTRO!$E$42="Endemic", IF(AND($J140>1,$J140<5), IF($J140=4, "Unknown", E140+F140), 0),"Not required") -> 165330 | O140: =IF(INTRO!$E$44="Endemic", IF(AND($K140>0,$K140<5), IF($K140=4,"Unknown", IF($K140=1, $F140*0.33, IF($K140=2, $F140*0.5+$G140*0.2, SUM(F140:G140)))), 0),"Not required") -> 101519 | P140: 0 | Q140: 0 | R140: 1 | S140: 1 | U140: T1 (PZQ+ALB/MBD) | V140: T1 | W140: T3 | Y140: 46580 | Z140: Sumbawanga District Council | AC140: 99 | AD140: 0 | AE140: 3 | AF140: 2 | AG140: TRUE | AH140: TRUE | AI140: TRUE | AJ140: TRUE
A141: =IF(INTRO!$E$34<>0,INTRO!$E$34,"") -> Tanzania | B141: Rukwa | C141: Sumbawanga Municipal Council | D141: 279324 | E141: =IF(INTRO!$E$48="","",ROUND($D141*INTRO!$E$48,0)) -> 37150 | F141: =IF(INTRO!$E$49="","",ROUND($D141*INTRO!$E$49,0)) -> 76255 | G141: =IF(INTRO!$E$50="","",ROUND($D141*INTRO!$E$50,0)) -> 157539 | H141: 99 | I141: 0 | J141: 3 | K141: 2 | L141: =IF(INTRO!$E$38="Endemic", IF($H141>0, IF($H141=4,"Unknown", IF($H141=99,"Stopped", $D141)), 0),"Not required") -> Stopped | M141: =IF(INTRO!$E$40="Endemic", IF($I141>0, IF($I141=4,"Unknown",IF($I141=99,"Stopped", $D141)), 0),"Not required") -> 0 | N141: =IF(INTRO!$E$42="Endemic", IF(AND($J141>1,$J141<5), IF($J141=4, "Unknown", E141+F141), 0),"Not required") -> 113405 | O141: =IF(INTRO!$E$44="Endemic", IF(AND($K141>0,$K141<5), IF($K141=4,"Unknown", IF($K141=1, $F141*0.33, IF($K141=2, $F141*0.5+$G141*0.2, SUM(F141:G141)))), 0),"Not required") -> 69635.3 | P141: 0 | Q141: 0 | R141: 1 | S141: 1 | U141: T1 (PZQ+ALB/MBD) | V141: T1 | W141: T3 | Y141: 46581 | Z141: Sumbawanga Municipal Council | AC141: 99 | AD141: 0 | AE141: 3 | AF141: 2 | AG141: TRUE | AH141: TRUE | AI141: TRUE | AJ141: TRUE
A142: =IF(INTRO!$E$34<>0,INTRO!$E$34,"") -> Tanzania | B142: Ruvuma | C142: Madaba District Council | D142: 57724 | E142: =IF(INTRO!$E$48="","",ROUND($D142*INTRO!$E$48,0)) -> 7677 | F142: =IF(INTRO!$E$49="","",ROUND($D142*INTRO!$E$49,0)) -> 15759 | G142: =IF(INTRO!$E$50="","",ROUND($D142*INTRO!$E$50,0)) -> 32556 | H142: 99 | I142: 1 | J142: 3 | K142: 2 | L142: =IF(INTRO!$E$38="Endemic", IF($H142>0, IF($H142=4,"Unknown", IF($H142=99,"Stopped", $D142)), 0),"Not required") -> Stopped | M142: =IF(INTRO!$E$40="Endemic", IF($I142>0, IF($I142=4,"Unknown",IF($I142=99,"Stopped", $D142)), 0),"Not required") -> 57724 | N142: =IF(INTRO!$E$42="Endemic", IF(AND($J142>1,$J142<5), IF($J142=4, "Unknown", E142+F142), 0),"Not required") -> 23436 | O142: =IF(INTRO!$E$44="Endemic", IF(AND($K142>0,$K142<5), IF($K142=4,"Unknown", IF($K142=1, $F142*0.33, IF($K142=2, $F142*0.5+$G142*0.2, SUM(F142:G142)))), 0),"Not required") -> 14390.7 | P142: 0 | Q142: 1 | R142: 1 | S142: 0 | T142: MDA3 (IVM) | U142: T3 (ALB/MBD) | V142: MDA 1 | W142: T1 | Y142: 46640 | Z142: Madaba District Council | AC142: 99 | AD142: 1 | AE142: 3 | AF142: 2 | AG142: TRUE | AH142: TRUE | AI142: TRUE | AJ142: TRUE
A143: =IF(INTRO!$E$34<>0,INTRO!$E$34,"") -> Tanzania | B143: Ruvuma | C143: Mbinga District Council | D143: 271119 | E143: =IF(INTRO!$E$48="","",ROUND($D143*INTRO!$E$48,0)) -> 36059 | F143: =IF(INTRO!$E$49="","",ROUND($D143*INTRO!$E$49,0)) -> 74015 | G143: =IF(INTRO!$E$50="","",ROUND($D143*INTRO!$E$50,0)) -> 152911 | H143: 99 | I143: 1 | J143: 3 | K143: 2 | L143: =IF(INTRO!$E$38="Endemic", IF($H143>0, IF($H143=4,"Unknown", IF($H143=99,"Stopped", $D143)), 0),"Not required") -> Stopped | M143: =IF(INTRO!$E$40="Endemic", IF($I143>0, IF($I143=4,"Unknown",IF($I143=99,"Stopped", $D143)), 0),"Not required") -> 271119 | N143: =IF(INTRO!$E$42="Endemic", IF(AND($J143>1,$J143<5), IF($J143=4, "Unknown", E143+F143), 0),"Not required") -> 110074 | O143: =IF(INTRO!$E$44="Endemic", IF(AND($K143>0,$K143<5), IF($K143=4,"Unknown", IF($K143=1, $F143*0.33, IF($K143=2, $F143*0.5+$G143*0.2, SUM(F143:G143)))), 0),"Not required") -> 67589.7 | P143: 0 | Q143: 1 | R143: 1 | S143: 0 | T143: MDA3 (IVM) | U143: T3 (ALB/MBD) | V143: MDA 1 | W143: T1 | Y143: 46582 | Z143: Mbinga District Council | AC143: 99 | AD143: 1 | AE143: 3 | AF143: 2 | AG143: TRUE | AH143: TRUE | AI143: TRUE | AJ143: TRUE
A144: =IF(INTRO!$E$34<>0,INTRO!$E$34,"") -> Tanzania | B144: Ruvuma | C144: Mbinga Town Council | D144: 107461 | E144: =IF(INTRO!$E$48="","",ROUND($D144*INTRO!$E$48,0)) -> 14292 | F144: =IF(INTRO!$E$49="","",ROUND($D144*INTRO!$E$49,0)) -> 29337 | G144: =IF(INTRO!$E$50="","",ROUND($D144*INTRO!$E$50,0)) -> 60608 | H144: 99 | I144: 1 | J144: 3 | K144: 2 | L144: =IF(INTRO!$E$38="Endemic", IF($H144>0, IF($H144=4,"Unknown", IF($H144=99,"Stopped", $D144)), 0),"Not required") -> Stopped | M144: =IF(INTRO!$E$40="Endemic", IF($I144>0, IF($I144=4,"Unknown",IF($I144=99,"Stopped", $D144)), 0),"Not required") -> 107461 | N144: =IF(INTRO!$E$42="Endemic", IF(AND($J144>1,$J144<5), IF($J144=4, "Unknown", E144+F144), 0),"Not required") -> 43629 | O144: =IF(INTRO!$E$44="Endemic", IF(AND($K144>0,$K144<5), IF($K144=4,"Unknown", IF($K144=1, $F144*0.33, IF($K144=2, $F144*0.5+$G144*0.2, SUM(F144:G144)))), 0),"Not required") -> 26790.1 | P144: 0 | Q144: 1 | R144: 1 | S144: 0 | T144: MDA3 (IVM) | U144: T3 (ALB/MBD) | V144: MDA 1 | W144: T1 | Y144: 46641 | Z144: Mbinga Town Council | AC144: 99 | AD144: 1 | AE144: 3 | AF144: 2 | AG144: TRUE | AH144: TRUE | AI144: TRUE | AJ144: TRUE
A145: =IF(INTRO!$E$34<>0,INTRO!$E$34,"") -> Tanzania | B145: Ruvuma | C145: Namtumbo District Council | D145: 243635 | E145: =IF(INTRO!$E$48="","",ROUND($D145*INTRO!$E$48,0)) -> 32403 | F145: =IF(INTRO!$E$49="","",ROUND($D145*INTRO!$E$49,0)) -> 66512 | G145: =IF(INTRO!$E$50="","",ROUND($D145*INTRO!$E$50,0)) -> 137410 | H145: 99 | I145: 1 | J145: 3 | K145: 2 | L145: =IF(INTRO!$E$38="Endemic", IF($H145>0, IF($H145=4,"Unknown", IF($H145=99,"Stopped", $D145)), 0),"Not required") -> Stopped | M145: =IF(INTRO!$E$40="Endemic", IF($I145>0, IF($I145=4,"Unknown",IF($I145=99,"Stopped", $D145)), 0),"Not required") -> 243635 | N145: =IF(INTRO!$E$42="Endemic", IF(AND($J145>1,$J145<5), IF($J145=4, "Unknown", E145+F145), 0),"Not required") -> 98915 | O145: =IF(INTRO!$E$44="Endemic", IF(AND($K145>0,$K145<5), IF($K145=4,"Unknown", IF($K145=1, $F145*0.33, IF($K145=2, $F145*0.5+$G145*0.2, SUM(F145:G145)))), 0),"Not required") -> 60738 | P145: 0 | Q145: 1 | R145: 1 | S145: 0 | T145: MDA3 (IVM) | U145: T3 (ALB/MBD) | V145: MDA 1 | W145: T1 | Y145: 46583 | Z145: Namtumbo District Council | AC145: 99 | AD145: 1 | AE145: 3 | AF145: 2 | AG145: TRUE | AH145: TRUE | AI145: TRUE | AJ145: TRUE
A146: =IF(INTRO!$E$34<>0,INTRO!$E$34,"") -> Tanzania | B146: Ruvuma | C146: Nyasa District Council | D146: 176600 | E146: =IF(INTRO!$E$48="","",ROUND($D146*INTRO!$E$48,0)) -> 23488 | F146: =IF(INTRO!$E$49="","",ROUND($D146*INTRO!$E$49,0)) -> 48212 | G146: =IF(INTRO!$E$50="","",ROUND($D146*INTRO!$E$50,0)) -> 99602 | H146: 99 | I146: 1 | J146: 3 | K146: 2 | L146: =IF(INTRO!$E$38="Endemic", IF($H146>0, IF($H146=4,"Unknown", IF($H146=99,"Stopped", $D146)), 0),"Not required") -> Stopped | M146: =IF(INTRO!$E$40="Endemic", IF($I146>0, IF($I146=4,"Unknown",IF($I146=99,"Stopped", $D146)), 0),"Not required") -> 176600 | N146: =IF(INTRO!$E$42="Endemic", IF(AND($J146>1,$J146<5), IF($J146=4, "Unknown", E146+F146), 0),"Not required") -> 71700 | O146: =IF(INTRO!$E$44="Endemic", IF(AND($K146>0,$K146<5), IF($K146=4,"Unknown", IF($K146=1, $F146*0.33, IF($K146=2, $F146*0.5+$G146*0.2, SUM(F146:G146)))), 0),"Not required") -> 44026.4 | P146: 0 | Q146: 1 | R146: 1 | S146: 0 | T146: MDA3 (IVM) | U146: T3 (ALB/MBD) | V146: MDA 1 | W146: T1 | Y146: 46584 | Z146: Nyasa District Council | AC146: 99 | AD146: 1 | AE146: 3 | AF146: 2 | AG146: TRUE | AH146: TRUE | AI146: TRUE | AJ146: TRUE
A147: =IF(INTRO!$E$34<>0,INTRO!$E$34,"") -> Tanzania | B147: Ruvuma | C147: Songea District Council | D147: 152300 | E147: =IF(INTRO!$E$48="","",ROUND($D147*INTRO!$E$48,0)) -> 20256 | F147: =IF(INTRO!$E$49="","",ROUND($D147*INTRO!$E$49,0)) -> 41578 | G147: =IF(INTRO!$E$50="","",ROUND($D147*INTRO!$E$50,0)) -> 85897 | H147: 99 | I147: 1 | J147: 3 | K147: 2 | L147: =IF(INTRO!$E$38="Endemic", IF($H147>0, IF($H147=4,"Unknown", IF($H147=99,"Stopped", $D147)), 0),"Not required") -> Stopped | M147: =IF(INTRO!$E$40="Endemic", IF($I147>0, IF($I147=4,"Unknown",IF($I147=99,"Stopped", $D147)), 0),"Not required") -> 152300 | N147: =IF(INTRO!$E$42="Endemic", IF(AND($J147>1,$J147<5), IF($J147=4, "Unknown", E147+F147), 0),"Not required") -> 61834 | O147: =IF(INTRO!$E$44="Endemic", IF(AND($K147>0,$K147<5), IF($K147=4,"Unknown", IF($K147=1, $F147*0.33, IF($K147=2, $F147*0.5+$G147*0.2, SUM(F147:G147)))), 0),"Not required") -> 37968.4 | P147: 0 | Q147: 1 | R147: 1 | S147: 0 | T147: MDA3 (IVM) | U147: T3 (ALB/MBD) | V147: MDA 1 | W147: T1 | Y147: 46585 | Z147: Songea District Council | AC147: 99 | AD147: 1 | AE147: 3 | AF147: 2 | AG147: TRUE | AH147: TRUE | AI147: TRUE | AJ147: TRUE
A148: =IF(INTRO!$E$34<>0,INTRO!$E$34,"") -> Tanzania | B148: Ruvuma | C148: Songea Municipal Council | D148: 245654 | E148: =IF(INTRO!$E$48="","",ROUND($D148*INTRO!$E$48,0)) -> 32672 | F148: =IF(INTRO!$E$49="","",ROUND($D148*INTRO!$E$49,0)) -> 67064 | G148: =IF(INTRO!$E$50="","",ROUND($D148*INTRO!$E$50,0)) -> 138549 | H148: 99 | I148: 1 | J148: 3 | K148: 2 | L148: =IF(INTRO!$E$38="Endemic", IF($H148>0, IF($H148=4,"Unknown", IF($H148=99,"Stopped", $D148)), 0),"Not required") -> Stopped | M148: =IF(INTRO!$E$40="Endemic", IF($I148>0, IF($I148=4,"Unknown",IF($I148=99,"Stopped", $D148)), 0),"Not required") -> 245654 | N148: =IF(INTRO!$E$42="Endemic", IF(AND($J148>1,$J148<5), IF($J148=4, "Unknown", E148+F148), 0),"Not required") -> 99736 | O148: =IF(INTRO!$E$44="Endemic", IF(AND($K148>0,$K148<5), IF($K148=4,"Unknown", IF($K148=1, $F148*0.33, IF($K148=2, $F148*0.5+$G148*0.2, SUM(F148:G148)))), 0),"Not required") -> 61241.8 | P148: 0 | Q148: 1 | R148: 1 | S148: 0 | T148: MDA3 (IVM) | U148: T3 (ALB/MBD) | V148: MDA 1 | W148: T1 | Y148: 46586 | Z148: Songea Municipal Council | AC148: 99 | AD148: 1 | AE148: 3 | AF148: 2 | AG148: TRUE | AH148: TRUE | AI148: TRUE | AJ148: TRUE
A149: =IF(INTRO!$E$34<>0,INTRO!$E$34,"") -> Tanzania | B149: Ruvuma | C149: Tunduru District Council | D149: 395151 | E149: =IF(INTRO!$E$48="","",ROUND($D149*INTRO!$E$48,0)) -> 52555 | F149: =IF(INTRO!$E$49="","",ROUND($D149*INTRO!$E$49,0)) -> 107876 | G149: =IF(INTRO!$E$50="","",ROUND($D149*INTRO!$E$50,0)) -> 222865 | H149: 99 | I149: 1 | J149: 3 | K149: 3 | L149: =IF(INTRO!$E$38="Endemic", IF($H149>0, IF($H149=4,"Unknown", IF($H149=99,"Stopped", $D149)), 0),"Not required") -> Stopped | M149: =IF(INTRO!$E$40="Endemic", IF($I149>0, IF($I149=4,"Unknown",IF($I149=99,"Stopped", $D149)), 0),"Not required") -> 395151 | N149: =IF(INTRO!$E$42="Endemic", IF(AND($J149>1,$J149<5), IF($J149=4, "Unknown", E149+F149), 0),"Not required") -> 160431 | O149: =IF(INTRO!$E$44="Endemic", IF(AND($K149>0,$K149<5), IF($K149=4,"Unknown", IF($K149=1, $F149*0.33, IF($K149=2, $F149*0.5+$G149*0.2, SUM(F149:G149)))), 0),"Not required") -> 330741 | P149: 0 | Q149: 1 | R149: 1 | S149: 1 | T149: MDA3 (IVM) | U149: T1 (PZQ+ALB/MBD) | V149: MDA 1 | W149: T1 | Y149: 46587 | Z149: Tunduru District Council | AC149: 99 | AD149: 1 | AE149: 3 | AF149: 3 | AG149: TRUE | AH149: TRUE | AI149: TRUE | AJ149: TRUE
A150: =IF(INTRO!$E$34<>0,INTRO!$E$34,"") -> Tanzania | B150: Shinyanga | C150: Kahama Town Council | D150: 291742 | E150: =IF(INTRO!$E$48="","",ROUND($D150*INTRO!$E$48,0)) -> 38802 | F150: =IF(INTRO!$E$49="","",ROUND($D150*INTRO!$E$49,0)) -> 79646 | G150: =IF(INTRO!$E$50="","",ROUND($D150*INTRO!$E$50,0)) -> 164542 | H150: 0 | I150: 0 | J150: 3 | K150: 2 | L150: =IF(INTRO!$E$38="Endemic", IF($H150>0, IF($H150=4,"Unknown", IF($H150=99,"Stopped", $D150)), 0),"Not required") -> 0 | M150: =IF(INTRO!$E$40="Endemic", IF($I150>0, IF($I150=4,"Unknown",IF($I150=99,"Stopped", $D150)), 0),"Not required") -> 0 | N150: =IF(INTRO!$E$42="Endemic", IF(AND($J150>1,$J150<5), IF($J150=4, "Unknown", E150+F150), 0),"Not required") -> 118448 | O150: =IF(INTRO!$E$44="Endemic", IF(AND($K150>0,$K150<5), IF($K150=4,"Unknown", IF($K150=1, $F150*0.33, IF($K150=2, $F150*0.5+$G150*0.2, SUM(F150:G150)))), 0),"Not required") -> 72731.4 | P150: 0 | Q150: 0 | R150: 1 | S150: 1 | U150: T1 (PZQ+ALB/MBD) | V150: T1 | W150: T3 | Y150: 46589 | Z150: Kahama Town Council | AC150: 0 | AD150: 0 | AE150: 3 | AF150: 2 | AG150: TRUE | AH150: TRUE | AI150: TRUE | AJ150: TRUE
A151: =IF(INTRO!$E$34<>0,INTRO!$E$34,"") -> Tanzania | B151: Shinyanga | C151: Kishapu District Council | D151: 328818 | E151: =IF(INTRO!$E$48="","",ROUND($D151*INTRO!$E$48,0)) -> 43733 | F151: =IF(INTRO!$E$49="","",ROUND($D151*INTRO!$E$49,0)) -> 89767 | G151: =IF(INTRO!$E$50="","",ROUND($D151*INTRO!$E$50,0)) -> 185453 | H151: 0 | I151: 0 | J151: 3 | K151: 2 | L151: =IF(INTRO!$E$38="Endemic", IF($H151>0, IF($H151=4,"Unknown", IF($H151=99,"Stopped", $D151)), 0),"Not required") -> 0 | M151: =IF(INTRO!$E$40="Endemic", IF($I151>0, IF($I151=4,"Unknown",IF($I151=99,"Stopped", $D151)), 0),"Not required") -> 0 | N151: =IF(INTRO!$E$42="Endemic", IF(AND($J151>1,$J151<5), IF($J151=4, "Unknown", E151+F151), 0),"Not required") -> 133500 | O151: =IF(INTRO!$E$44="Endemic", IF(AND($K151>0,$K151<5), IF($K151=4,"Unknown", IF($K151=1, $F151*0.33, IF($K151=2, $F151*0.5+$G151*0.2, SUM(F151:G151)))), 0),"Not required") -> 81974.1 | P151: 0 | Q151: 0 | R151: 1 | S151: 1 | U151: T1 (PZQ+ALB/MBD) | V151: T1 | W151: T3 | Y151: 46590 | Z151: Kishapu District Council | AC151: 0 | AD151: 0 | AE151: 3 | AF151: 2 | AG151: TRUE | AH151: TRUE | AI151: TRUE | AJ151: TRUE
A152: =IF(INTRO!$E$34<>0,INTRO!$E$34,"") -> Tanzania | B152: Shinyanga | C152: Msalala District Council | D152: 302004 | E152: =IF(INTRO!$E$48="","",ROUND($D152*INTRO!$E$48,0)) -> 40167 | F152: =IF(INTRO!$E$49="","",ROUND($D152*INTRO!$E$49,0)) -> 82447 | G152: =IF(INTRO!$E$50="","",ROUND($D152*INTRO!$E$50,0)) -> 170330 | H152: 0 | I152: 0 | J152: 3 | K152: 2 | L152: =IF(INTRO!$E$38="Endemic", IF($H152>0, IF($H152=4,"Unknown", IF($H152=99,"Stopped", $D152)), 0),"Not required") -> 0 | M152: =IF(INTRO!$E$40="Endemic", IF($I152>0, IF($I152=4,"Unknown",IF($I152=99,"Stopped", $D152)), 0),"Not required") -> 0 | N152: =IF(INTRO!$E$42="Endemic", IF(AND($J152>1,$J152<5), IF($J152=4, "Unknown", E152+F152), 0),"Not required") -> 122614 | O152: =IF(INTRO!$E$44="Endemic", IF(AND($K152>0,$K152<5), IF($K152=4,"Unknown", IF($K152=1, $F152*0.33, IF($K152=2, $F152*0.5+$G152*0.2, SUM(F152:G152)))), 0),"Not required") -> 75289.5 | P152: 0 | Q152: 0 | R152: 1 | S152: 1 | U152: T1 (PZQ+ALB/MBD) | V152: T1 | W152: T3 | Y152: 46642 | Z152: Msalala District Council | AC152: 0 | AD152: 0 | AE152: 3 | AF152: 2 | AG152: TRUE | AH152: TRUE | AI152: TRUE | AJ152: TRUE
A153: =IF(INTRO!$E$34<>0,INTRO!$E$34,"") -> Tanzania | B153: Shinyanga | C153: Shinyanga District Council | D153: 402809 | E153: =IF(INTRO!$E$48="","",ROUND($D153*INTRO!$E$48,0)) -> 53574 | F153: =IF(INTRO!$E$49="","",ROUND($D153*INTRO!$E$49,0)) -> 109967 | G153: =IF(INTRO!$E$50="","",ROUND($D153*INTRO!$E$50,0)) -> 227184 | H153: 0 | I153: 0 | J153: 3 | K153: 2 | L153: =IF(INTRO!$E$38="Endemic", IF($H153>0, IF($H153=4,"Unknown", IF($H153=99,"Stopped", $D153)), 0),"Not required") -> 0 | M153: =IF(INTRO!$E$40="Endemic", IF($I153>0, IF($I153=4,"Unknown",IF($I153=99,"Stopped", $D153)), 0),"Not required") -> 0 | N153: =IF(INTRO!$E$42="Endemic", IF(AND($J153>1,$J153<5), IF($J153=4, "Unknown", E153+F153), 0),"Not required") -> 163541 | O153: =IF(INTRO!$E$44="Endemic", IF(AND($K153>0,$K153<5), IF($K153=4,"Unknown", IF($K153=1, $F153*0.33, IF($K153=2, $F153*0.5+$G153*0.2, SUM(F153:G153)))), 0),"Not required") -> 100420.3 | P153: 0 | Q153: 0 | R153: 1 | S153: 1 | U153: T1 (PZQ+ALB/MBD) | V153: T1 | W153: T3 | Y153: 46591 | Z153: Shinyanga District Council | AC153: 0 | AD153: 0 | AE153: 3 | AF153: 2 | AG153: TRUE | AH153: TRUE | AI153: TRUE | AJ153: TRUE
A154: =IF(INTRO!$E$34<>0,INTRO!$E$34,"") -> Tanzania | B154: Shinyanga | C154: Shinyanga Municipal Council | D154: 194398 | E154: =IF(INTRO!$E$48="","",ROUND($D154*INTRO!$E$48,0)) -> 25855 | F154: =IF(INTRO!$E$49="","",ROUND($D154*INTRO!$E$49,0)) -> 53071 | G154: =IF(INTRO!$E$50="","",ROUND($D154*INTRO!$E$50,0)) -> 109640 | H154: 0 | I154: 0 | J154: 3 | K154: 2 | L154: =IF(INTRO!$E$38="Endemic", IF($H154>0, IF($H154=4,"Unknown", IF($H154=99,"Stopped", $D154)), 0),"Not required") -> 0 | M154: =IF(INTRO!$E$40="Endemic", IF($I154>0, IF($I154=4,"Unknown",IF($I154=99,"Stopped", $D154)), 0),"Not required") -> 0 | N154: =IF(INTRO!$E$42="Endemic", IF(AND($J154>1,$J154<5), IF($J154=4, "Unknown", E154+F154), 0),"Not required") -> 78926 | O154: =IF(INTRO!$E$44="Endemic", IF(AND($K154>0,$K154<5), IF($K154=4,"Unknown", IF($K154=1, $F154*0.33, IF($K154=2, $F154*0.5+$G154*0.2, SUM(F154:G154)))), 0),"Not required") -> 48463.5 | P154: 0 | Q154: 0 | R154: 1 | S154: 1 | U154: T1 (PZQ+ALB/MBD) | V154: T1 | W154: T3 | Y154: 46592 | Z154: Shinyanga Municipal Council | AC154: 0 | AD154: 0 | AE154: 3 | AF154: 2 | AG154: TRUE | AH154: TRUE | AI154: TRUE | AJ154: TRUE
A155: =IF(INTRO!$E$34<>0,INTRO!$E$34,"") -> Tanzania | B155: Shinyanga | C155: Ushetu District Council | D155: 328919 | E155: =IF(INTRO!$E$48="","",ROUND($D155*INTRO!$E$48,0)) -> 43746 | F155: =IF(INTRO!$E$49="","",ROUND($D155*INTRO!$E$49,0)) -> 89795 | G155: =IF(INTRO!$E$50="","",ROUND($D155*INTRO!$E$50,0)) -> 185510 | H155: 0 | I155: 0 | J155: 3 | K155: 2 | L155: =IF(INTRO!$E$38="Endemic", IF($H155>0, IF($H155=4,"Unknown", IF($H155=99,"Stopped", $D155)), 0),"Not required") -> 0 | M155: =IF(INTRO!$E$40="Endemic", IF($I155>0, IF($I155=4,"Unknown",IF($I155=99,"Stopped", $D155)), 0),"Not required") -> 0 | N155: =IF(INTRO!$E$42="Endemic", IF(AND($J155>1,$J155<5), IF($J155=4, "Unknown", E155+F155), 0),"Not required") -> 133541 | O155: =IF(INTRO!$E$44="Endemic", IF(AND($K155>0,$K155<5), IF($K155=4,"Unknown", IF($K155=1, $F155*0.33, IF($K155=2, $F155*0.5+$G155*0.2, SUM(F155:G155)))), 0),"Not required") -> 81999.5 | P155: 0 | Q155: 0 | R155: 1 | S155: 1 | U155: T1 (PZQ+ALB/MBD) | V155: T1 | W155: T3 | Y155: 46643 | Z155: Ushetu District Council | AC155: 0 | AD155: 0 | AE155: 3 | AF155: 2 | AG155: TRUE | AH155: TRUE | AI155: TRUE | AJ155: TRUE
A156: =IF(INTRO!$E$34<>0,INTRO!$E$34,"") -> Tanzania | B156: Simiyu | C156: Bariadi District Council | D156: 314737 | E156: =IF(INTRO!$E$48="","",ROUND($D156*INTRO!$E$48,0)) -> 41860 | F156: =IF(INTRO!$E$49="","",ROUND($D156*INTRO!$E$49,0)) -> 85923 | G156: =IF(INTRO!$E$50="","",ROUND($D156*INTRO!$E$50,0)) -> 177512 | H156: 0 | I156: 0 | J156: 3 | K156: 3 | L156: =IF(INTRO!$E$38="Endemic", IF($H156>0, IF($H156=4,"Unknown", IF($H156=99,"Stopped", $D156)), 0),"Not required") -> 0 | M156: =IF(INTRO!$E$40="Endemic", IF($I156>0, IF($I156=4,"Unknown",IF($I156=99,"Stopped", $D156)), 0),"Not required") -> 0 | N156: =IF(INTRO!$E$42="Endemic", IF(AND($J156>1,$J156<5), IF($J156=4, "Unknown", E156+F156), 0),"Not required") -> 127783 | O156: =IF(INTRO!$E$44="Endemic", IF(AND($K156>0,$K156<5), IF($K156=4,"Unknown", IF($K156=1, $F156*0.33, IF($K156=2, $F156*0.5+$G156*0.2, SUM(F156:G156)))), 0),"Not required") -> 263435 | P156: 0 | Q156: 0 | R156: 1 | S156: 1 | U156: T1 (PZQ+ALB/MBD) | V156: T1 | W156: T3 | Y156: 46593 | Z156: Bariadi District Council | AC156: 0 | AD156: 0 | AE156: 3 | AF156: 3 | AG156: TRUE | AH156: TRUE | AI156: TRUE | AJ156: TRUE
A157: =IF(INTRO!$E$34<>0,INTRO!$E$34,"") -> Tanzania | B157: Simiyu | C157: Bariadi Town Council | D157: 183238 | E157: =IF(INTRO!$E$48="","",ROUND($D157*INTRO!$E$48,0)) -> 24371 | F157: =IF(INTRO!$E$49="","",ROUND($D157*INTRO!$E$49,0)) -> 50024 | G157: =IF(INTRO!$E$50="","",ROUND($D157*INTRO!$E$50,0)) -> 103346 | H157: 0 | I157: 0 | J157: 3 | K157: 3 | L157: =IF(INTRO!$E$38="Endemic", IF($H157>0, IF($H157=4,"Unknown", IF($H157=99,"Stopped", $D157)), 0),"Not required") -> 0 | M157: =IF(INTRO!$E$40="Endemic", IF($I157>0, IF($I157=4,"Unknown",IF($I157=99,"Stopped", $D157)), 0),"Not required") -> 0 | N157: =IF(INTRO!$E$42="Endemic", IF(AND($J157>1,$J157<5), IF($J157=4, "Unknown", E157+F157), 0),"Not required") -> 74395 | O157: =IF(INTRO!$E$44="Endemic", IF(AND($K157>0,$K157<5), IF($K157=4,"Unknown", IF($K157=1, $F157*0.33, IF($K157=2, $F157*0.5+$G157*0.2, SUM(F157:G157)))), 0),"Not required") -> 153370 | P157: 0 | Q157: 0 | R157: 1 | S157: 1 | U157: T1 (PZQ+ALB/MBD) | V157: T1 | W157: T3 | Y157: 46594 | Z157: Bariadi Town Council | AC157: 0 | AD157: 0 | AE157: 3 | AF157: 3 | AG157: TRUE | AH157: TRUE | AI157: TRUE | AJ157: TRUE
A158: =IF(INTRO!$E$34<>0,INTRO!$E$34,"") -> Tanzania | B158: Simiyu | C158: Busega District Council | D158: 239731 | E158: =IF(INTRO!$E$48="","",ROUND($D158*INTRO!$E$48,0)) -> 31884 | F158: =IF(INTRO!$E$49="","",ROUND($D158*INTRO!$E$49,0)) -> 65447 | G158: =IF(INTRO!$E$50="","",ROUND($D158*INTRO!$E$50,0)) -> 135208 | H158: 0 | I158: 0 | J158: 3 | K158: 2 | L158: =IF(INTRO!$E$38="Endemic", IF($H158>0, IF($H158=4,"Unknown", IF($H158=99,"Stopped", $D158)), 0),"Not required") -> 0 | M158: =IF(INTRO!$E$40="Endemic", IF($I158>0, IF($I158=4,"Unknown",IF($I158=99,"Stopped", $D158)), 0),"Not required") -> 0 | N158: =IF(INTRO!$E$42="Endemic", IF(AND($J158>1,$J158<5), IF($J158=4, "Unknown", E158+F158), 0),"Not required") -> 97331 | O158: =IF(INTRO!$E$44="Endemic", IF(AND($K158>0,$K158<5), IF($K158=4,"Unknown", IF($K158=1, $F158*0.33, IF($K158=2, $F158*0.5+$G158*0.2, SUM(F158:G158)))), 0),"Not required") -> 59765.1 | P158: 0 | Q158: 0 | R158: 1 | S158: 1 | U158: T1 (PZQ+ALB/MBD) | V158: T1 | W158: T3 | Y158: 46595 | Z158: Busega District Council | AC158: 0 | AD158: 0 | AE158: 3 | AF158: 2 | AG158: TRUE | AH158: TRUE | AI158: TRUE | AJ158: TRUE
A159: =IF(INTRO!$E$34<>0,INTRO!$E$34,"") -> Tanzania | B159: Simiyu | C159: Itilima District Council | D159: 369608 | E159: =IF(INTRO!$E$48="","",ROUND($D159*INTRO!$E$48,0)) -> 49158 | F159: =IF(INTRO!$E$49="","",ROUND($D159*INTRO!$E$49,0)) -> 100903 | G159: =IF(INTRO!$E$50="","",ROUND($D159*INTRO!$E$50,0)) -> 208459 | H159: 0 | I159: 0 | J159: 3 | K159: 3 | L159: =IF(INTRO!$E$38="Endemic", IF($H159>0, IF($H159=4,"Unknown", IF($H159=99,"Stopped", $D159)), 0),"Not required") -> 0 | M159: =IF(INTRO!$E$40="Endemic", IF($I159>0, IF($I159=4,"Unknown",IF($I159=99,"Stopped", $D159)), 0),"Not required") -> 0 | N159: =IF(INTRO!$E$42="Endemic", IF(AND($J159>1,$J159<5), IF($J159=4, "Unknown", E159+F159), 0),"Not required") -> 150061 | O159: =IF(INTRO!$E$44="Endemic", IF(AND($K159>0,$K159<5), IF($K159=4,"Unknown", IF($K159=1, $F159*0.33, IF($K159=2, $F159*0.5+$G159*0.2, SUM(F159:G159)))), 0),"Not required") -> 309362 | P159: 0 | Q159: 0 | R159: 1 | S159: 1 | U159: T1 (PZQ+ALB/MBD) | V159: T1 | W159: T3 | Y159: 46596 | Z159: Itilima District Council | AC159: 0 | AD159: 0 | AE159: 3 | AF159: 3 | AG159: TRUE | AH159: TRUE | AI159: TRUE | AJ159: TRUE
A160: =IF(INTRO!$E$34<>0,INTRO!$E$34,"") -> Tanzania | B160: Simiyu | C160: Maswa District Council | D160: 405201 | E160: =IF(INTRO!$E$48="","",ROUND($D160*INTRO!$E$48,0)) -> 53892 | F160: =IF(INTRO!$E$49="","",ROUND($D160*INTRO!$E$49,0)) -> 110620 | G160: =IF(INTRO!$E$50="","",ROUND($D160*INTRO!$E$50,0)) -> 228533 | H160: 0 | I160: 0 | J160: 3 | K160: 3 | L160: =IF(INTRO!$E$38="Endemic", IF($H160>0, IF($H160=4,"Unknown", IF($H160=99,"Stopped", $D160)), 0),"Not required") -> 0 | M160: =IF(INTRO!$E$40="Endemic", IF($I160>0, IF($I160=4,"Unknown",IF($I160=99,"Stopped", $D160)), 0),"Not required") -> 0 | N160: =IF(INTRO!$E$42="Endemic", IF(AND($J160>1,$J160<5), IF($J160=4, "Unknown", E160+F160), 0),"Not required") -> 164512 | O160: =IF(INTRO!$E$44="Endemic", IF(AND($K160>0,$K160<5), IF($K160=4,"Unknown", IF($K160=1, $F160*0.33, IF($K160=2, $F160*0.5+$G160*0.2, SUM(F160:G160)))), 0),"Not required") -> 339153 | P160: 0 | Q160: 0 | R160: 1 | S160: 1 | U160: T1 (PZQ+ALB/MBD) | V160: T1 | W160: T3 | Y160: 46597 | Z160: Maswa District Council | AC160: 0 | AD160: 0 | AE160: 3 | AF160: 3 | AG160: TRUE | AH160: TRUE | AI160: TRUE | AJ160: TRUE
A161: =IF(INTRO!$E$34<>0,INTRO!$E$34,"") -> Tanzania | B161: Simiyu | C161: Meatu District Council | D161: 352796 | E161: =IF(INTRO!$E$48="","",ROUND($D161*INTRO!$E$48,0)) -> 46922 | F161: =IF(INTRO!$E$49="","",ROUND($D161*INTRO!$E$49,0)) -> 96313 | G161: =IF(INTRO!$E$50="","",ROUND($D161*INTRO!$E$50,0)) -> 198977 | H161: 0 | I161: 0 | J161: 3 | K161: 2 | L161: =IF(INTRO!$E$38="Endemic", IF($H161>0, IF($H161=4,"Unknown", IF($H161=99,"Stopped", $D161)), 0),"Not required") -> 0 | M161: =IF(INTRO!$E$40="Endemic", IF($I161>0, IF($I161=4,"Unknown",IF($I161=99,"Stopped", $D161)), 0),"Not required") -> 0 | N161: =IF(INTRO!$E$42="Endemic", IF(AND($J161>1,$J161<5), IF($J161=4, "Unknown", E161+F161), 0),"Not required") -> 143235 | O161: =IF(INTRO!$E$44="Endemic", IF(AND($K161>0,$K161<5), IF($K161=4,"Unknown", IF($K161=1, $F161*0.33, IF($K161=2, $F161*0.5+$G161*0.2, SUM(F161:G161)))), 0),"Not required") -> 87951.9 | P161: 0 | Q161: 0 | R161: 1 | S161: 1 | U161: T1 (PZQ+ALB/MBD) | V161: T1 | W161: T3 | Y161: 46598 | Z161: Meatu District Council | AC161: 0 | AD161: 0 | AE161: 3 | AF161: 2 | AG161: TRUE | AH161: TRUE | AI161: TRUE | AJ161: TRUE
A162: =IF(INTRO!$E$34<>0,INTRO!$E$34,"") -> Tanzania | B162: Singida | C162: Ikungi District Council | D162: 335737 | E162: =IF(INTRO!$E$48="","",ROUND($D162*INTRO!$E$48,0)) -> 44653 | F162: =IF(INTRO!$E$49="","",ROUND($D162*INTRO!$E$49,0)) -> 91656 | G162: =IF(INTRO!$E$50="","",ROUND($D162*INTRO!$E$50,0)) -> 189356 | H162: 99 | I162: 0 | J162: 3 | K162: 2 | L162: =IF(INTRO!$E$38="Endemic", IF($H162>0, IF($H162=4,"Unknown", IF($H162=99,"Stopped", $D162)), 0),"Not required") -> Stopped | M162: =IF(INTRO!$E$40="Endemic", IF($I162>0, IF($I162=4,"Unknown",IF($I162=99,"Stopped", $D162)), 0),"Not required") -> 0 | N162: =IF(INTRO!$E$42="Endemic", IF(AND($J162>1,$J162<5), IF($J162=4, "Unknown", E162+F162), 0),"Not required") -> 136309 | O162: =IF(INTRO!$E$44="Endemic", IF(AND($K162>0,$K162<5), IF($K162=4,"Unknown", IF($K162=1, $F162*0.33, IF($K162=2, $F162*0.5+$G162*0.2, SUM(F162:G162)))), 0),"Not required") -> 83699.2 | P162: 0 | Q162: 0 | R162: 1 | S162: 1 | U162: T1 (PZQ+ALB/MBD) | V162: T1 | W162: T3 | Y162: 46599 | Z162: Ikungi District Council | AC162: 99 | AD162: 0 | AE162: 3 | AF162: 2 | AG162: TRUE | AH162: TRUE | AI162: TRUE | AJ162: TRUE
A163: =IF(INTRO!$E$34<>0,INTRO!$E$34,"") -> Tanzania | B163: Singida | C163: Iramba District Council | D163: 290622 | E163: =IF(INTRO!$E$48="","",ROUND($D163*INTRO!$E$48,0)) -> 38653 | F163: =IF(INTRO!$E$49="","",ROUND($D163*INTRO!$E$49,0)) -> 79340 | G163: =IF(INTRO!$E$50="","",ROUND($D163*INTRO!$E$50,0)) -> 163911 | H163: 99 | I163: 0 | J163: 3 | K163: 2 | L163: =IF(INTRO!$E$38="Endemic", IF($H163>0, IF($H163=4,"Unknown", IF($H163=99,"Stopped", $D163)), 0),"Not required") -> Stopped | M163: =IF(INTRO!$E$40="Endemic", IF($I163>0, IF($I163=4,"Unknown",IF($I163=99,"Stopped", $D163)), 0),"Not required") -> 0 | N163: =IF(INTRO!$E$42="Endemic", IF(AND($J163>1,$J163<5), IF($J163=4, "Unknown", E163+F163), 0),"Not required") -> 117993 | O163: =IF(INTRO!$E$44="Endemic", IF(AND($K163>0,$K163<5), IF($K163=4,"Unknown", IF($K163=1, $F163*0.33, IF($K163=2, $F163*0.5+$G163*0.2, SUM(F163:G163)))), 0),"Not required") -> 72452.2 | P163: 0 | Q163: 0 | R163: 1 | S163: 1 | U163: T1 (PZQ+ALB/MBD) | V163: T1 | W163: T3 | Y163: 46600 | Z163: Iramba District Council | AC163: 99 | AD163: 0 | AE163: 3 | AF163: 2 | AG163: TRUE | AH163: TRUE | AI163: TRUE | AJ163: TRUE
A164: =IF(INTRO!$E$34<>0,INTRO!$E$34,"") -> Tanzania | B164: Singida | C164: Itigi District Council | D164: 138455 | E164: =IF(INTRO!$E$48="","",ROUND($D164*INTRO!$E$48,0)) -> 18415 | F164: =IF(INTRO!$E$49="","",ROUND($D164*INTRO!$E$49,0)) -> 37798 | G164: =IF(INTRO!$E$50="","",ROUND($D164*INTRO!$E$50,0)) -> 78089 | H164: 99 | I164: 0 | J164: 3 | K164: 2 | L164: =IF(INTRO!$E$38="Endemic", IF($H164>0, IF($H164=4,"Unknown", IF($H164=99,"Stopped", $D164)), 0),"Not required") -> Stopped | M164: =IF(INTRO!$E$40="Endemic", IF($I164>0, IF($I164=4,"Unknown",IF($I164=99,"Stopped", $D164)), 0),"Not required") -> 0 | N164: =IF(INTRO!$E$42="Endemic", IF(AND($J164>1,$J164<5), IF($J164=4, "Unknown", E164+F164), 0),"Not required") -> 56213 | O164: =IF(INTRO!$E$44="Endemic", IF(AND($K164>0,$K164<5), IF($K164=4,"Unknown", IF($K164=1, $F164*0.33, IF($K164=2, $F164*0.5+$G164*0.2, SUM(F164:G164)))), 0),"Not required") -> 34516.8 | P164: 0 | Q164: 0 | R164: 1 | S164: 1 | U164: T1 (PZQ+ALB/MBD) | V164: T1 | W164: T3 | Y164: 46644 | Z164: Itigi District Council | AC164: 99 | AD164: 0 | AE164: 3 | AF164: 2 | AG164: TRUE | AH164: TRUE | AI164: TRUE | AJ164: TRUE
A165: =IF(INTRO!$E$34<>0,INTRO!$E$34,"") -> Tanzania | B165: Singida | C165: Manyoni District Council | D165: 226559 | E165: =IF(INTRO!$E$48="","",ROUND($D165*INTRO!$E$48,0)) -> 30132 | F165: =IF(INTRO!$E$49="","",ROUND($D165*INTRO!$E$49,0)) -> 61851 | G165: =IF(INTRO!$E$50="","",ROUND($D165*INTRO!$E$50,0)) -> 127779 | H165: 99 | I165: 0 | J165: 3 | K165: 2 | L165: =IF(INTRO!$E$38="Endemic", IF($H165>0, IF($H165=4,"Unknown", IF($H165=99,"Stopped", $D165)), 0),"Not required") -> Stopped | M165: =IF(INTRO!$E$40="Endemic", IF($I165>0, IF($I165=4,"Unknown",IF($I165=99,"Stopped", $D165)), 0),"Not required") -> 0 | N165: =IF(INTRO!$E$42="Endemic", IF(AND($J165>1,$J165<5), IF($J165=4, "Unknown", E165+F165), 0),"Not required") -> 91983 | O165: =IF(INTRO!$E$44="Endemic", IF(AND($K165>0,$K165<5), IF($K165=4,"Unknown", IF($K165=1, $F165*0.33, IF($K165=2, $F165*0.5+$G165*0.2, SUM(F165:G165)))), 0),"Not required") -> 56481.3 | P165: 0 | Q165: 0 | R165: 1 | S165: 1 | U165: T1 (PZQ+ALB/MBD) | V165: T1 | W165: T3 | Y165: 46601 | Z165: Manyoni District Council | AC165: 99 | AD165: 0 | AE165: 3 | AF165: 2 | AG165: TRUE | AH165: TRUE | AI165: TRUE | AJ165: TRUE
A166: =IF(INTRO!$E$34<>0,INTRO!$E$34,"") -> Tanzania | B166: Singida | C166: Mkalama District Council | D166: 232139 | E166: =IF(INTRO!$E$48="","",ROUND($D166*INTRO!$E$48,0)) -> 30874 | F166: =IF(INTRO!$E$49="","",ROUND($D166*INTRO!$E$49,0)) -> 63374 | G166: =IF(INTRO!$E$50="","",ROUND($D166*INTRO!$E$50,0)) -> 130926 | H166: 99 | I166: 0 | J166: 3 | K166: 2 | L166: =IF(INTRO!$E$38="Endemic", IF($H166>0, IF($H166=4,"Unknown", IF($H166=99,"Stopped", $D166)), 0),"Not required") -> Stopped | M166: =IF(INTRO!$E$40="Endemic", IF($I166>0, IF($I166=4,"Unknown",IF($I166=99,"Stopped", $D166)), 0),"Not required") -> 0 | N166: =IF(INTRO!$E$42="Endemic", IF(AND($J166>1,$J166<5), IF($J166=4, "Unknown", E166+F166), 0),"Not required") -> 94248 | O166: =IF(INTRO!$E$44="Endemic", IF(AND($K166>0,$K166<5), IF($K166=4,"Unknown", IF($K166=1, $F166*0.33, IF($K166=2, $F166*0.5+$G166*0.2, SUM(F166:G166)))), 0),"Not required") -> 57872.2 | P166: 0 | Q166: 0 | R166: 1 | S166: 1 | U166: T1 (PZQ+ALB/MBD) | V166: T1 | W166: T3 | Y166: 46602 | Z166: Mkalama District Council | AC166: 99 | AD166: 0 | AE166: 3 | AF166: 2 | AG166: TRUE | AH166: TRUE | AI166: TRUE | AJ166: TRUE
A167: =IF(INTRO!$E$34<>0,INTRO!$E$34,"") -> Tanzania | B167: Singida | C167: Singida District Council | D167: 277386 | E167: =IF(INTRO!$E$48="","",ROUND($D167*INTRO!$E$48,0)) -> 36892 | F167: =IF(INTRO!$E$49="","",ROUND($D167*INTRO!$E$49,0)) -> 75726 | G167: =IF(INTRO!$E$50="","",ROUND($D167*INTRO!$E$50,0)) -> 156446 | H167: 99 | I167: 0 | J167: 3 | K167: 2 | L167: =IF(INTRO!$E$38="Endemic", IF($H167>0, IF($H167=4,"Unknown", IF($H167=99,"Stopped", $D167)), 0),"Not required") -> Stopped | M167: =IF(INTRO!$E$40="Endemic", IF($I167>0, IF($I167=4,"Unknown",IF($I167=99,"Stopped", $D167)), 0),"Not required") -> 0 | N167: =IF(INTRO!$E$42="Endemic", IF(AND($J167>1,$J167<5), IF($J167=4, "Unknown", E167+F167), 0),"Not required") -> 112618 | O167: =IF(INTRO!$E$44="Endemic", IF(AND($K167>0,$K167<5), IF($K167=4,"Unknown", IF($K167=1, $F167*0.33, IF($K167=2, $F167*0.5+$G167*0.2, SUM(F167:G167)))), 0),"Not required") -> 69152.2 | P167: 0 | Q167: 0 | R167: 1 | S167: 1 | U167: T1 (PZQ+ALB/MBD) | V167: T1 | W167: T3 | Y167: 46603 | Z167: Singida District Council | AC167: 99 | AD167: 0 | AE167: 3 | AF167: 2 | AG167: TRUE | AH167: TRUE | AI167: TRUE | AJ167: TRUE
A168: =IF(INTRO!$E$34<>0,INTRO!$E$34,"") -> Tanzania | B168: Singida | C168: Singida Municipal Council | D168: 184963 | E168: =IF(INTRO!$E$48="","",ROUND($D168*INTRO!$E$48,0)) -> 24600 | F168: =IF(INTRO!$E$49="","",ROUND($D168*INTRO!$E$49,0)) -> 50495 | G168: =IF(INTRO!$E$50="","",ROUND($D168*INTRO!$E$50,0)) -> 104319 | H168: 99 | I168: 0 | J168: 3 | K168: 2 | L168: =IF(INTRO!$E$38="Endemic", IF($H168>0, IF($H168=4,"Unknown", IF($H168=99,"Stopped", $D168)), 0),"Not required") -> Stopped | M168: =IF(INTRO!$E$40="Endemic", IF($I168>0, IF($I168=4,"Unknown",IF($I168=99,"Stopped", $D168)), 0),"Not required") -> 0 | N168: =IF(INTRO!$E$42="Endemic", IF(AND($J168>1,$J168<5), IF($J168=4, "Unknown", E168+F168), 0),"Not required") -> 75095 | O168: =IF(INTRO!$E$44="Endemic", IF(AND($K168>0,$K168<5), IF($K168=4,"Unknown", IF($K168=1, $F168*0.33, IF($K168=2, $F168*0.5+$G168*0.2, SUM(F168:G168)))), 0),"Not required") -> 46111.3 | P168: 0 | Q168: 0 | R168: 1 | S168: 1 | U168: T1 (PZQ+ALB/MBD) | V168: T1 | W168: T3 | Y168: 46604 | Z168: Singida Municipal Council | AC168: 99 | AD168: 0 | AE168: 3 | AF168: 2 | AG168: TRUE | AH168: TRUE | AI168: TRUE | AJ168: TRUE
A169: =IF(INTRO!$E$34<>0,INTRO!$E$34,"") -> Tanzania | B169: Songwe | C169: Ileje District Council | D169: 162676 | E169: =IF(INTRO!$E$48="","",ROUND($D169*INTRO!$E$48,0)) -> 21636 | F169: =IF(INTRO!$E$49="","",ROUND($D169*INTRO!$E$49,0)) -> 44411 | G169: =IF(INTRO!$E$50="","",ROUND($D169*INTRO!$E$50,0)) -> 91749 | H169: 99 | I169: 1 | J169: 3 | K169: 2 | L169: =IF(INTRO!$E$38="Endemic", IF($H169>0, IF($H169=4,"Unknown", IF($H169=99,"Stopped", $D169)), 0),"Not required") -> Stopped | M169: =IF(INTRO!$E$40="Endemic", IF($I169>0, IF($I169=4,"Unknown",IF($I169=99,"Stopped", $D169)), 0),"Not required") -> 162676 | N169: =IF(INTRO!$E$42="Endemic", IF(AND($J169>1,$J169<5), IF($J169=4, "Unknown", E169+F169), 0),"Not required") -> 66047 | O169: =IF(INTRO!$E$44="Endemic", IF(AND($K169>0,$K169<5), IF($K169=4,"Unknown", IF($K169=1, $F169*0.33, IF($K169=2, $F169*0.5+$G169*0.2, SUM(F169:G169)))), 0),"Not required") -> 40555.3 | P169: 0 | Q169: 1 | R169: 1 | S169: 0 | T169: MDA3 (IVM) | U169: T3 (ALB/MBD) | V169: MDA 1 | W169: T1 | Y169: 46535 | Z169: Ileje District Council | AC169: 99 | AD169: 1 | AE169: 3 | AF169: 2 | AG169: TRUE | AH169: TRUE | AI169: TRUE | AJ169: TRUE
A170: =IF(INTRO!$E$34<>0,INTRO!$E$34,"") -> Tanzania | B170: Songwe | C170: Mbozi District Council | D170: 583425 | E170: =IF(INTRO!$E$48="","",ROUND($D170*INTRO!$E$48,0)) -> 77596 | F170: =IF(INTRO!$E$49="","",ROUND($D170*INTRO!$E$49,0)) -> 159275 | G170: =IF(INTRO!$E$50="","",ROUND($D170*INTRO!$E$50,0)) -> 329052 | H170: 99 | I170: 0 | J170: 3 | K170: 3 | L170: =IF(INTRO!$E$38="Endemic", IF($H170>0, IF($H170=4,"Unknown", IF($H170=99,"Stopped", $D170)), 0),"Not required") -> Stopped | M170: =IF(INTRO!$E$40="Endemic", IF($I170>0, IF($I170=4,"Unknown",IF($I170=99,"Stopped", $D170)), 0),"Not required") -> 0 | N170: =IF(INTRO!$E$42="Endemic", IF(AND($J170>1,$J170<5), IF($J170=4, "Unknown", E170+F170), 0),"Not required") -> 236871 | O170: =IF(INTRO!$E$44="Endemic", IF(AND($K170>0,$K170<5), IF($K170=4,"Unknown", IF($K170=1, $F170*0.33, IF($K170=2, $F170*0.5+$G170*0.2, SUM(F170:G170)))), 0),"Not required") -> 488327 | P170: 0 | Q170: 0 | R170: 1 | S170: 1 | U170: T1 (PZQ+ALB/MBD) | V170: T1 | W170: T3 | Y170: 46540 | Z170: Mbozi District Council | AC170: 99 | AD170: 0 | AE170: 3 | AF170: 3 | AG170: TRUE | AH170: TRUE | AI170: TRUE | AJ170: TRUE
A171: =IF(INTRO!$E$34<>0,INTRO!$E$34,"") -> Tanzania | B171: Songwe | C171: Momba District Council | D171: 220565 | E171: =IF(INTRO!$E$48="","",ROUND($D171*INTRO!$E$48,0)) -> 29335 | F171: =IF(INTRO!$E$49="","",ROUND($D171*INTRO!$E$49,0)) -> 60214 | G171: =IF(INTRO!$E$50="","",ROUND($D171*INTRO!$E$50,0)) -> 124399 | H171: 99 | I171: 0 | J171: 3 | K171: 3 | L171: =IF(INTRO!$E$38="Endemic", IF($H171>0, IF($H171=4,"Unknown", IF($H171=99,"Stopped", $D171)), 0),"Not required") -> Stopped | M171: =IF(INTRO!$E$40="Endemic", IF($I171>0, IF($I171=4,"Unknown",IF($I171=99,"Stopped", $D171)), 0),"Not required") -> 0 | N171: =IF(INTRO!$E$42="Endemic", IF(AND($J171>1,$J171<5), IF($J171=4, "Unknown", E171+F171), 0),"Not required") -> 89549 | O171: =IF(INTRO!$E$44="Endemic", IF(AND($K171>0,$K171<5), IF($K171=4,"Unknown", IF($K171=1, $F171*0.33, IF($K171=2, $F171*0.5+$G171*0.2, SUM(F171:G171)))), 0),"Not required") -> 184613 | P171: 0 | Q171: 0 | R171: 1 | S171: 1 | U171: T1 (PZQ+ALB/MBD) | V171: T1 | W171: T3 | Y171: 46541 | Z171: Momba District Council | AC171: 99 | AD171: 0 | AE171: 3 | AF171: 3 | AG171: TRUE | AH171: TRUE | AI171: TRUE | AJ171: TRUE
A172: =IF(INTRO!$E$34<>0,INTRO!$E$34,"") -> Tanzania | B172: Songwe | C172: Songwe District Council | D172: 174754 | E172: =IF(INTRO!$E$48="","",ROUND($D172*INTRO!$E$48,0)) -> 23242 | F172: =IF(INTRO!$E$49="","",ROUND($D172*INTRO!$E$49,0)) -> 47708 | G172: =IF(INTRO!$E$50="","",ROUND($D172*INTRO!$E$50,0)) -> 98561 | H172: 99 | I172: 0 | J172: 3 | K172: 2 | L172: =IF(INTRO!$E$38="Endemic", IF($H172>0, IF($H172=4,"Unknown", IF($H172=99,"Stopped", $D172)), 0),"Not required") -> Stopped | M172: =IF(INTRO!$E$40="Endemic", IF($I172>0, IF($I172=4,"Unknown",IF($I172=99,"Stopped", $D172)), 0),"Not required") -> 0 | N172: =IF(INTRO!$E$42="Endemic", IF(AND($J172>1,$J172<5), IF($J172=4, "Unknown", E172+F172), 0),"Not required") -> 70950 | O172: =IF(INTRO!$E$44="Endemic", IF(AND($K172>0,$K172<5), IF($K172=4,"Unknown", IF($K172=1, $F172*0.33, IF($K172=2, $F172*0.5+$G172*0.2, SUM(F172:G172)))), 0),"Not required") -> 43566.2 | P172: 0 | Q172: 0 | R172: 1 | S172: 0 | U172: T3 (ALB/MBD) | V172: T1 | W172: T3 | Y172: 46645 | Z172: Songwe District Council | AC172: 99 | AD172: 0 | AE172: 3 | AF172: 2 | AG172: TRUE | AH172: TRUE | AI172: TRUE | AJ172: TRUE
A173: =IF(INTRO!$E$34<>0,INTRO!$E$34,"") -> Tanzania | B173: Songwe | C173: Tunduma Town Council | D173: 164231 | E173: =IF(INTRO!$E$48="","",ROUND($D173*INTRO!$E$48,0)) -> 21843 | F173: =IF(INTRO!$E$49="","",ROUND($D173*INTRO!$E$49,0)) -> 44835 | G173: =IF(INTRO!$E$50="","",ROUND($D173*INTRO!$E$50,0)) -> 92626 | H173: 99 | I173: 0 | J173: 3 | K173: 3 | L173: =IF(INTRO!$E$38="Endemic", IF($H173>0, IF($H173=4,"Unknown", IF($H173=99,"Stopped", $D173)), 0),"Not required") -> Stopped | M173: =IF(INTRO!$E$40="Endemic", IF($I173>0, IF($I173=4,"Unknown",IF($I173=99,"Stopped", $D173)), 0),"Not required") -> 0 | N173: =IF(INTRO!$E$42="Endemic", IF(AND($J173>1,$J173<5), IF($J173=4, "Unknown", E173+F173), 0),"Not required") -> 66678 | O173: =IF(INTRO!$E$44="Endemic", IF(AND($K173>0,$K173<5), IF($K173=4,"Unknown", IF($K173=1, $F173*0.33, IF($K173=2, $F173*0.5+$G173*0.2, SUM(F173:G173)))), 0),"Not required") -> 137461 | P173: 0 | Q173: 0 | R173: 1 | S173: 1 | U173: T1 (PZQ+ALB/MBD) | V173: T1 | W173: T3 | Y173: 46543 | Z173: Tunduma Town Council | AC173: 99 | AD173: 0 | AE173: 3 | AF173: 3 | AG173: TRUE | AH173: TRUE | AI173: TRUE | AJ173: TRUE
A174: =IF(INTRO!$E$34<>0,INTRO!$E$34,"") -> Tanzania | B174: Tabora | C174: Igunga District Council | D174: 518725 | E174: =IF(INTRO!$E$48="","",ROUND($D174*INTRO!$E$48,0)) -> 68990 | F174: =IF(INTRO!$E$49="","",ROUND($D174*INTRO!$E$49,0)) -> 141612 | G174: =IF(INTRO!$E$50="","",ROUND($D174*INTRO!$E$50,0)) -> 292561 | H174: 99 | I174: 0 | J174: 3 | K174: 2 | L174: =IF(INTRO!$E$38="Endemic", IF($H174>0, IF($H174=4,"Unknown", IF($H174=99,"Stopped", $D174)), 0),"Not required") -> Stopped | M174: =IF(INTRO!$E$40="Endemic", IF($I174>0, IF($I174=4,"Unknown",IF($I174=99,"Stopped", $D174)), 0),"Not required") -> 0 | N174: =IF(INTRO!$E$42="Endemic", IF(AND($J174>1,$J174<5), IF($J174=4, "Unknown", E174+F174), 0),"Not required") -> 210602 | O174: =IF(INTRO!$E$44="Endemic", IF(AND($K174>0,$K174<5), IF($K174=4,"Unknown", IF($K174=1, $F174*0.33, IF($K174=2, $F174*0.5+$G174*0.2, SUM(F174:G174)))), 0),"Not required") -> 129318.2 | P174: 0 | Q174: 0 | R174: 1 | S174: 1 | U174: T1 (PZQ+ALB/MBD) | V174: T1 | W174: T3 | Y174: 46605 | Z174: Igunga District Council | AC174: 99 | AD174: 0 | AE174: 3 | AF174: 2 | AG174: TRUE | AH174: TRUE | AI174: TRUE | AJ174: TRUE
A175: =IF(INTRO!$E$34<>0,INTRO!$E$34,"") -> Tanzania | B175: Tabora | C175: Kaliua District Council | D175: 510460 | E175: =IF(INTRO!$E$48="","",ROUND($D175*INTRO!$E$48,0)) -> 67891 | F175: =IF(INTRO!$E$49="","",ROUND($D175*INTRO!$E$49,0)) -> 139356 | G175: =IF(INTRO!$E$50="","",ROUND($D175*INTRO!$E$50,0)) -> 287899 | H175: 99 | I175: 0 | J175: 3 | K175: 2 | L175: =IF(INTRO!$E$38="Endemic", IF($H175>0, IF($H175=4,"Unknown", IF($H175=99,"Stopped", $D175)), 0),"Not required") -> Stopped | M175: =IF(INTRO!$E$40="Endemic", IF($I175>0, IF($I175=4,"Unknown",IF($I175=99,"Stopped", $D175)), 0),"Not required") -> 0 | N175: =IF(INTRO!$E$42="Endemic", IF(AND($J175>1,$J175<5), IF($J175=4, "Unknown", E175+F175), 0),"Not required") -> 207247 | O175: =IF(INTRO!$E$44="Endemic", IF(AND($K175>0,$K175<5), IF($K175=4,"Unknown", IF($K175=1, $F175*0.33, IF($K175=2, $F175*0.5+$G175*0.2, SUM(F175:G175)))), 0),"Not required") -> 127257.8 | P175: 0 | Q175: 0 | R175: 1 | S175: 0 | U175: T3 (ALB/MBD) | V175: T1 | W175: T3 | Y175: 46606 | Z175: Kaliua District Council | AC175: 99 | AD175: 0 | AE175: 3 | AF175: 2 | AG175: TRUE | AH175: TRUE | AI175: TRUE | AJ175: TRUE
A176: =IF(INTRO!$E$34<>0,INTRO!$E$34,"") -> Tanzania | B176: Tabora | C176: Nzega District Council | D176: 568247 | E176: =IF(INTRO!$E$48="","",ROUND($D176*INTRO!$E$48,0)) -> 75577 | F176: =IF(INTRO!$E$49="","",ROUND($D176*INTRO!$E$49,0)) -> 155131 | G176: =IF(INTRO!$E$50="","",ROUND($D176*INTRO!$E$50,0)) -> 320491 | H176: 99 | I176: 0 | J176: 3 | K176: 2 | L176: =IF(INTRO!$E$38="Endemic", IF($H176>0, IF($H176=4,"Unknown", IF($H176=99,"Stopped", $D176)), 0),"Not required") -> Stopped | M176: =IF(INTRO!$E$40="Endemic", IF($I176>0, IF($I176=4,"Unknown",IF($I176=99,"Stopped", $D176)), 0),"Not required") -> 0 | N176: =IF(INTRO!$E$42="Endemic", IF(AND($J176>1,$J176<5), IF($J176=4, "Unknown", E176+F176), 0),"Not required") -> 230708 | O176: =IF(INTRO!$E$44="Endemic", IF(AND($K176>0,$K176<5), IF($K176=4,"Unknown", IF($K176=1, $F176*0.33, IF($K176=2, $F176*0.5+$G176*0.2, SUM(F176:G176)))), 0),"Not required") -> 141663.7 | P176: 0 | Q176: 0 | R176: 1 | S176: 1 | U176: T1 (PZQ+ALB/MBD) | V176: T1 | W176: T3 | Y176: 46607 | Z176: Nzega District Council | AC176: 99 | AD176: 0 | AE176: 3 | AF176: 2 | AG176: TRUE | AH176: TRUE | AI176: TRUE | AJ176: TRUE
A177: =IF(INTRO!$E$34<>0,INTRO!$E$34,"") -> Tanzania | B177: Tabora | C177: Nzega Town Council | D177: 83530 | E177: =IF(INTRO!$E$48="","",ROUND($D177*INTRO!$E$48,0)) -> 11109 | F177: =IF(INTRO!$E$49="","",ROUND($D177*INTRO!$E$49,0)) -> 22804 | G177: =IF(INTRO!$E$50="","",ROUND($D177*INTRO!$E$50,0)) -> 47111 | H177: 99 | I177: 0 | J177: 3 | K177: 2 | L177: =IF(INTRO!$E$38="Endemic", IF($H177>0, IF($H177=4,"Unknown", IF($H177=99,"Stopped", $D177)), 0),"Not required") -> Stopped | M177: =IF(INTRO!$E$40="Endemic", IF($I177>0, IF($I177=4,"Unknown",IF($I177=99,"Stopped", $D177)), 0),"Not required") -> 0 | N177: =IF(INTRO!$E$42="Endemic", IF(AND($J177>1,$J177<5), IF($J177=4, "Unknown", E177+F177), 0),"Not required") -> 33913 | O177: =IF(INTRO!$E$44="Endemic", IF(AND($K177>0,$K177<5), IF($K177=4,"Unknown", IF($K177=1, $F177*0.33, IF($K177=2, $F177*0.5+$G177*0.2, SUM(F177:G177)))), 0),"Not required") -> 20824.2 | P177: 0 | Q177: 0 | R177: 1 | S177: 1 | U177: T1 (PZQ+ALB/MBD) | V177: T1 | W177: T3 | Y177: 46646 | Z177: Nzega Town Council | AC177: 99 | AD177: 0 | AE177: 3 | AF177: 2 | AG177: TRUE | AH177: TRUE | AI177: TRUE | AJ177: TRUE
A178: =IF(INTRO!$E$34<>0,INTRO!$E$34,"") -> Tanzania | B178: Tabora | C178: Sikonge District Council | D178: 233434 | E178: =IF(INTRO!$E$48="","",ROUND($D178*INTRO!$E$48,0)) -> 31047 | F178: =IF(INTRO!$E$49="","",ROUND($D178*INTRO!$E$49,0)) -> 63727 | G178: =IF(INTRO!$E$50="","",ROUND($D178*INTRO!$E$50,0)) -> 131657 | H178: 99 | I178: 0 | J178: 3 | K178: 2 | L178: =IF(INTRO!$E$38="Endemic", IF($H178>0, IF($H178=4,"Unknown", IF($H178=99,"Stopped", $D178)), 0),"Not required") -> Stopped | M178: =IF(INTRO!$E$40="Endemic", IF($I178>0, IF($I178=4,"Unknown",IF($I178=99,"Stopped", $D178)), 0),"Not required") -> 0 | N178: =IF(INTRO!$E$42="Endemic", IF(AND($J178>1,$J178<5), IF($J178=4, "Unknown", E178+F178), 0),"Not required") -> 94774 | O178: =IF(INTRO!$E$44="Endemic", IF(AND($K178>0,$K178<5), IF($K178=4,"Unknown", IF($K178=1, $F178*0.33, IF($K178=2, $F178*0.5+$G178*0.2, SUM(F178:G178)))), 0),"Not required") -> 58194.9 | P178: 0 | Q178: 0 | R178: 1 | S178: 1 | U178: T1 (PZQ+ALB/MBD) | V178: T1 | W178: T3 | Y178: 46608 | Z178: Sikonge District Council | AC178: 99 | AD178: 0 | AE178: 3 | AF178: 2 | AG178: TRUE | AH178: TRUE | AI178: TRUE | AJ178: TRUE
A179: =IF(INTRO!$E$34<>0,INTRO!$E$34,"") -> Tanzania | B179: Tabora | C179: Tabora Municipal Council | D179: 294576 | E179: =IF(INTRO!$E$48="","",ROUND($D179*INTRO!$E$48,0)) -> 39179 | F179: =IF(INTRO!$E$49="","",ROUND($D179*INTRO!$E$49,0)) -> 80419 | G179: =IF(INTRO!$E$50="","",ROUND($D179*INTRO!$E$50,0)) -> 166141 | H179: 99 | I179: 0 | J179: 3 | K179: 2 | L179: =IF(INTRO!$E$38="Endemic", IF($H179>0, IF($H179=4,"Unknown", IF($H179=99,"Stopped", $D179)), 0),"Not required") -> Stopped | M179: =IF(INTRO!$E$40="Endemic", IF($I179>0, IF($I179=4,"Unknown",IF($I179=99,"Stopped", $D179)), 0),"Not required") -> 0 | N179: =IF(INTRO!$E$42="Endemic", IF(AND($J179>1,$J179<5), IF($J179=4, "Unknown", E179+F179), 0),"Not required") -> 119598 | O179: =IF(INTRO!$E$44="Endemic", IF(AND($K179>0,$K179<5), IF($K179=4,"Unknown", IF($K179=1, $F179*0.33, IF($K179=2, $F179*0.5+$G179*0.2, SUM(F179:G179)))), 0),"Not required") -> 73437.7 | P179: 0 | Q179: 0 | R179: 1 | S179: 0 | U179: T3 (ALB/MBD) | V179: T1 | W179: T3 | Y179: 46609 | Z179: Tabora Municipal Council | AC179: 99 | AD179: 0 | AE179: 3 | AF179: 2 | AG179: TRUE | AH179: TRUE | AI179: TRUE | AJ179: TRUE
A180: =IF(INTRO!$E$34<>0,INTRO!$E$34,"") -> Tanzania | B180: Tabora | C180: Urambo District Council | D180: 250174 | E180: =IF(INTRO!$E$48="","",ROUND($D180*INTRO!$E$48,0)) -> 33273 | F180: =IF(INTRO!$E$49="","",ROUND($D180*INTRO!$E$49,0)) -> 68298 | G180: =IF(INTRO!$E$50="","",ROUND($D180*INTRO!$E$50,0)) -> 141098 | H180: 99 | I180: 0 | J180: 3 | K180: 2 | L180: =IF(INTRO!$E$38="Endemic", IF($H180>0, IF($H180=4,"Unknown", IF($H180=99,"Stopped", $D180)), 0),"Not required") -> Stopped | M180: =IF(INTRO!$E$40="Endemic", IF($I180>0, IF($I180=4,"Unknown",IF($I180=99,"Stopped", $D180)), 0),"Not required") -> 0 | N180: =IF(INTRO!$E$42="Endemic", IF(AND($J180>1,$J180<5), IF($J180=4, "Unknown", E180+F180), 0),"Not required") -> 101571 | O180: =IF(INTRO!$E$44="Endemic", IF(AND($K180>0,$K180<5), IF($K180=4,"Unknown", IF($K180=1, $F180*0.33, IF($K180=2, $F180*0.5+$G180*0.2, SUM(F180:G180)))), 0),"Not required") -> 62368.6 | P180: 0 | Q180: 0 | R180: 1 | S180: 0 | U180: T3 (ALB/MBD) | V180: T1 | W180: T3 | Y180: 46610 | Z180: Urambo District Council | AC180: 99 | AD180: 0 | AE180: 3 | AF180: 2 | AG180: TRUE | AH180: TRUE | AI180: TRUE | AJ180: TRUE
A181: =IF(INTRO!$E$34<>0,INTRO!$E$34,"") -> Tanzania | B181: Tabora | C181: Uyui District Council | D181: 514701 | E181: =IF(INTRO!$E$48="","",ROUND($D181*INTRO!$E$48,0)) -> 68455 | F181: =IF(INTRO!$E$49="","",ROUND($D181*INTRO!$E$49,0)) -> 140513 | G181: =IF(INTRO!$E$50="","",ROUND($D181*INTRO!$E$50,0)) -> 290291 | H181: 99 | I181: 0 | J181: 3 | K181: 2 | L181: =IF(INTRO!$E$38="Endemic", IF($H181>0, IF($H181=4,"Unknown", IF($H181=99,"Stopped", $D181)), 0),"Not required") -> Stopped | M181: =IF(INTRO!$E$40="Endemic", IF($I181>0, IF($I181=4,"Unknown",IF($I181=99,"Stopped", $D181)), 0),"Not required") -> 0 | N181: =IF(INTRO!$E$42="Endemic", IF(AND($J181>1,$J181<5), IF($J181=4, "Unknown", E181+F181), 0),"Not required") -> 208968 | O181: =IF(INTRO!$E$44="Endemic", IF(AND($K181>0,$K181<5), IF($K181=4,"Unknown", IF($K181=1, $F181*0.33, IF($K181=2, $F181*0.5+$G181*0.2, SUM(F181:G181)))), 0),"Not required") -> 128314.7 | P181: 0 | Q181: 0 | R181: 1 | S181: 0 | U181: T3 (ALB/MBD) | V181: T1 | W181: T3 | Y181: 46611 | Z181: Uyui District Council | AC181: 99 | AD181: 0 | AE181: 3 | AF181: 2 | AG181: TRUE | AH181: TRUE | AI181: TRUE | AJ181: TRUE
A182: =IF(INTRO!$E$34<>0,INTRO!$E$34,"") -> Tanzania | B182: Tanga | C182: Bumbuli District Council | D182: 195153 | E182: =IF(INTRO!$E$48="","",ROUND($D182*INTRO!$E$48,0)) -> 25955 | F182: =IF(INTRO!$E$49="","",ROUND($D182*INTRO!$E$49,0)) -> 53277 | G182: =IF(INTRO!$E$50="","",ROUND($D182*INTRO!$E$50,0)) -> 110066 | H182: 99 | I182: 1 | J182: 3 | K182: 2 | L182: =IF(INTRO!$E$38="Endemic", IF($H182>0, IF($H182=4,"Unknown", IF($H182=99,"Stopped", $D182)), 0),"Not required") -> Stopped | M182: =IF(INTRO!$E$40="Endemic", IF($I182>0, IF($I182=4,"Unknown",IF($I182=99,"Stopped", $D182)), 0),"Not required") -> 195153 | N182: =IF(INTRO!$E$42="Endemic", IF(AND($J182>1,$J182<5), IF($J182=4, "Unknown", E182+F182), 0),"Not required") -> 79232 | O182: =IF(INTRO!$E$44="Endemic", IF(AND($K182>0,$K182<5), IF($K182=4,"Unknown", IF($K182=1, $F182*0.33, IF($K182=2, $F182*0.5+$G182*0.2, SUM(F182:G182)))), 0),"Not required") -> 48651.7 | P182: 0 | Q182: 2 | R182: 1 | S182: 0 | T182: MDA3 (IVM) | U182: T3 (ALB/MBD) | V182: MDA 1 | W182: T1 | Y182: 46612 | Z182: Bumbuli District Council | AC182: 99 | AD182: 1 | AE182: 3 | AF182: 2 | AG182: TRUE | AH182: TRUE | AI182: TRUE | AJ182: TRUE
A183: =IF(INTRO!$E$34<>0,INTRO!$E$34,"") -> Tanzania | B183: Tanga | C183: Handeni District Council | D183: 337418 | E183: =IF(INTRO!$E$48="","",ROUND($D183*INTRO!$E$48,0)) -> 44877 | F183: =IF(INTRO!$E$49="","",ROUND($D183*INTRO!$E$49,0)) -> 92115 | G183: =IF(INTRO!$E$50="","",ROUND($D183*INTRO!$E$50,0)) -> 190304 | H183: 99 | I183: 0 | J183: 3 | K183: 2 | L183: =IF(INTRO!$E$38="Endemic", IF($H183>0, IF($H183=4,"Unknown", IF($H183=99,"Stopped", $D183)), 0),"Not required") -> Stopped | M183: =IF(INTRO!$E$40="Endemic", IF($I183>0, IF($I183=4,"Unknown",IF($I183=99,"Stopped", $D183)), 0),"Not required") -> 0 | N183: =IF(INTRO!$E$42="Endemic", IF(AND($J183>1,$J183<5), IF($J183=4, "Unknown", E183+F183), 0),"Not required") -> 136992 | O183: =IF(INTRO!$E$44="Endemic", IF(AND($K183>0,$K183<5), IF($K183=4,"Unknown", IF($K183=1, $F183*0.33, IF($K183=2, $F183*0.5+$G183*0.2, SUM(F183:G183)))), 0),"Not required") -> 84118.3 | P183: 0 | Q183: 0 | R183: 1 | S183: 0 | U183: T3 (ALB/MBD) | V183: T1 | W183: T3 | Y183: 46613 | Z183: Handeni District Council | AC183: 99 | AD183: 0 | AE183: 3 | AF183: 2 | AG183: TRUE | AH183: TRUE | AI183: TRUE | AJ183: TRUE
A184: =IF(INTRO!$E$34<>0,INTRO!$E$34,"") -> Tanzania | B184: Tanga | C184: Handeni Town Council | D184: 96421 | E184: =IF(INTRO!$E$48="","",ROUND($D184*INTRO!$E$48,0)) -> 12824 | F184: =IF(INTRO!$E$49="","",ROUND($D184*INTRO!$E$49,0)) -> 26323 | G184: =IF(INTRO!$E$50="","",ROUND($D184*INTRO!$E$50,0)) -> 54381 | H184: 99 | I184: 0 | J184: 3 | K184: 2 | L184: =IF(INTRO!$E$38="Endemic", IF($H184>0, IF($H184=4,"Unknown", IF($H184=99,"Stopped", $D184)), 0),"Not required") -> Stopped | M184: =IF(INTRO!$E$40="Endemic", IF($I184>0, IF($I184=4,"Unknown",IF($I184=99,"Stopped", $D184)), 0),"Not required") -> 0 | N184: =IF(INTRO!$E$42="Endemic", IF(AND($J184>1,$J184<5), IF($J184=4, "Unknown", E184+F184), 0),"Not required") -> 39147 | O184: =IF(INTRO!$E$44="Endemic", IF(AND($K184>0,$K184<5), IF($K184=4,"Unknown", IF($K184=1, $F184*0.33, IF($K184=2, $F184*0.5+$G184*0.2, SUM(F184:G184)))), 0),"Not required") -> 24037.7 | P184: 0 | Q184: 0 | R184: 1 | S184: 0 | U184: T3 (ALB/MBD) | V184: T1 | W184: T3 | Y184: 46614 | Z184: Handeni Town Council | AC184: 99 | AD184: 0 | AE184: 3 | AF184: 2 | AG184: TRUE | AH184: TRUE | AI184: TRUE | AJ184: TRUE
A185: =IF(INTRO!$E$34<>0,INTRO!$E$34,"") -> Tanzania | B185: Tanga | C185: Kilindi District Council | D185: 288860 | E185: =IF(INTRO!$E$48="","",ROUND($D185*INTRO!$E$48,0)) -> 38418 | F185: =IF(INTRO!$E$49="","",ROUND($D185*INTRO!$E$49,0)) -> 78859 | G185: =IF(INTRO!$E$50="","",ROUND($D185*INTRO!$E$50,0)) -> 162917 | H185: 99 | I185: 0 | J185: 3 | K185: 2 | L185: =IF(INTRO!$E$38="Endemic", IF($H185>0, IF($H185=4,"Unknown", IF($H185=99,"Stopped", $D185)), 0),"Not required") -> Stopped | M185: =IF(INTRO!$E$40="Endemic", IF($I185>0, IF($I185=4,"Unknown",IF($I185=99,"Stopped", $D185)), 0),"Not required") -> 0 | N185: =IF(INTRO!$E$42="Endemic", IF(AND($J185>1,$J185<5), IF($J185=4, "Unknown", E185+F185), 0),"Not required") -> 117277 | O185: =IF(INTRO!$E$44="Endemic", IF(AND($K185>0,$K185<5), IF($K185=4,"Unknown", IF($K185=1, $F185*0.33, IF($K185=2, $F185*0.5+$G185*0.2, SUM(F185:G185)))), 0),"Not required") -> 72012.9 | P185: 0 | Q185: 0 | R185: 1 | S185: 0 | U185: T3 (ALB/MBD) | V185: T1 | W185: T3 | Y185: 46615 | Z185: Kilindi District Council | AC185: 99 | AD185: 0 | AE185: 3 | AF185: 2 | AG185: TRUE | AH185: TRUE | AI185: TRUE | AJ185: TRUE
A186: =IF(INTRO!$E$34<>0,INTRO!$E$34,"") -> Tanzania | B186: Tanga | C186: Korogwe District Council | D186: 295206 | E186: =IF(INTRO!$E$48="","",ROUND($D186*INTRO!$E$48,0)) -> 39262 | F186: =IF(INTRO!$E$49="","",ROUND($D186*INTRO!$E$49,0)) -> 80591 | G186: =IF(INTRO!$E$50="","",ROUND($D186*INTRO!$E$50,0)) -> 166496 | H186: 99 | I186: 1 | J186: 3 | K186: 2 | L186: =IF(INTRO!$E$38="Endemic", IF($H186>0, IF($H186=4,"Unknown", IF($H186=99,"Stopped", $D186)), 0),"Not required") -> Stopped | M186: =IF(INTRO!$E$40="Endemic", IF($I186>0, IF($I186=4,"Unknown",IF($I186=99,"Stopped", $D186)), 0),"Not required") -> 295206 | N186: =IF(INTRO!$E$42="Endemic", IF(AND($J186>1,$J186<5), IF($J186=4, "Unknown", E186+F186), 0),"Not required") -> 119853 | O186: =IF(INTRO!$E$44="Endemic", IF(AND($K186>0,$K186<5), IF($K186=4,"Unknown", IF($K186=1, $F186*0.33, IF($K186=2, $F186*0.5+$G186*0.2, SUM(F186:G186)))), 0),"Not required") -> 73594.7 | P186: 0 | Q186: 2 | R186: 1 | S186: 0 | T186: MDA3 (IVM) | U186: T3 (ALB/MBD) | V186: MDA 1 | W186: T1 | Y186: 46616 | Z186: Korogwe District Council | AC186: 1 | AD186: 1 | AE186: 3 | AF186: 2 | AG186: FALSE | AH186: TRUE | AI186: TRUE | AJ186: TRUE
A187: =IF(INTRO!$E$34<>0,INTRO!$E$34,"") -> Tanzania | B187: Tanga | C187: Korogwe Town Council | D187: 83314 | E187: =IF(INTRO!$E$48="","",ROUND($D187*INTRO!$E$48,0)) -> 11081 | F187: =IF(INTRO!$E$49="","",ROUND($D187*INTRO!$E$49,0)) -> 22745 | G187: =IF(INTRO!$E$50="","",ROUND($D187*INTRO!$E$50,0)) -> 46989 | H187: 99 | I187: 0 | J187: 3 | K187: 2 | L187: =IF(INTRO!$E$38="Endemic", IF($H187>0, IF($H187=4,"Unknown", IF($H187=99,"Stopped", $D187)), 0),"Not required") -> Stopped | M187: =IF(INTRO!$E$40="Endemic", IF($I187>0, IF($I187=4,"Unknown",IF($I187=99,"Stopped", $D187)), 0),"Not required") -> 0 | N187: =IF(INTRO!$E$42="Endemic", IF(AND($J187>1,$J187<5), IF($J187=4, "Unknown", E187+F187), 0),"Not required") -> 33826 | O187: =IF(INTRO!$E$44="Endemic", IF(AND($K187>0,$K187<5), IF($K187=4,"Unknown", IF($K187=1, $F187*0.33, IF($K187=2, $F187*0.5+$G187*0.2, SUM(F187:G187)))), 0),"Not required") -> 20770.3 | P187: 0 | Q187: 0 | R187: 1 | S187: 0 | U187: T3 (ALB/MBD) | V187: MDA 1 | W187: T1 | Y187: 46617 | Z187: Korogwe Town Council | AC187: 1 | AD187: 0 | AE187: 3 | AF187: 2 | AG187: FALSE | AH187: TRUE | AI187: TRUE | AJ187: TRUE
A188: =IF(INTRO!$E$34<>0,INTRO!$E$34,"") -> Tanzania | B188: Tanga | C188: Lushoto District Council | D188: 405464 | E188: =IF(INTRO!$E$48="","",ROUND($D188*INTRO!$E$48,0)) -> 53927 | F188: =IF(INTRO!$E$49="","",ROUND($D188*INTRO!$E$49,0)) -> 110692 | G188: =IF(INTRO!$E$50="","",ROUND($D188*INTRO!$E$50,0)) -> 228682 | H188: 99 | I188: 1 | J188: 3 | K188: 2 | L188: =IF(INTRO!$E$38="Endemic", IF($H188>0, IF($H188=4,"Unknown", IF($H188=99,"Stopped", $D188)), 0),"Not required") -> Stopped | M188: =IF(INTRO!$E$40="Endemic", IF($I188>0, IF($I188=4,"Unknown",IF($I188=99,"Stopped", $D188)), 0),"Not required") -> 405464 | N188: =IF(INTRO!$E$42="Endemic", IF(AND($J188>1,$J188<5), IF($J188=4, "Unknown", E188+F188), 0),"Not required") -> 164619 | O188: =IF(INTRO!$E$44="Endemic", IF(AND($K188>0,$K188<5), IF($K188=4,"Unknown", IF($K188=1, $F188*0.33, IF($K188=2, $F188*0.5+$G188*0.2, SUM(F188:G188)))), 0),"Not required") -> 101082.4 | P188: 0 | Q188: 2 | R188: 1 | S188: 0 | T188: MDA3 (IVM) | U188: T3 (ALB/MBD) | V188: MDA 1 | W188: T1 | Y188: 46618 | Z188: Lushoto District Council | AC188: 99 | AD188: 1 | AE188: 3 | AF188: 2 | AG188: TRUE | AH188: TRUE | AI188: TRUE | AJ188: TRUE
A189: =IF(INTRO!$E$34<>0,INTRO!$E$34,"") -> Tanzania | B189: Tanga | C189: Mkinga District Council | D189: 144001 | E189: =IF(INTRO!$E$48="","",ROUND($D189*INTRO!$E$48,0)) -> 19152 | F189: =IF(INTRO!$E$49="","",ROUND($D189*INTRO!$E$49,0)) -> 39312 | G189: =IF(INTRO!$E$50="","",ROUND($D189*INTRO!$E$50,0)) -> 81217 | H189: 99 | I189: 1 | J189: 3 | K189: 2 | L189: =IF(INTRO!$E$38="Endemic", IF($H189>0, IF($H189=4,"Unknown", IF($H189=99,"Stopped", $D189)), 0),"Not required") -> Stopped | M189: =IF(INTRO!$E$40="Endemic", IF($I189>0, IF($I189=4,"Unknown",IF($I189=99,"Stopped", $D189)), 0),"Not required") -> 144001 | N189: =IF(INTRO!$E$42="Endemic", IF(AND($J189>1,$J189<5), IF($J189=4, "Unknown", E189+F189), 0),"Not required") -> 58464 | O189: =IF(INTRO!$E$44="Endemic", IF(AND($K189>0,$K189<5), IF($K189=4,"Unknown", IF($K189=1, $F189*0.33, IF($K189=2, $F189*0.5+$G189*0.2, SUM(F189:G189)))), 0),"Not required") -> 35899.4 | P189: 0 | Q189: 2 | R189: 1 | S189: 0 | T189: MDA3 (IVM) | U189: T3 (ALB/MBD) | V189: MDA 1 | W189: T1 | Y189: 46619 | Z189: Mkinga District Council | AC189: 99 | AD189: 1 | AE189: 3 | AF189: 2 | AG189: TRUE | AH189: TRUE | AI189: TRUE | AJ189: TRUE
A190: =IF(INTRO!$E$34<>0,INTRO!$E$34,"") -> Tanzania | B190: Tanga | C190: Muheza District Council | D190: 249375 | E190: =IF(INTRO!$E$48="","",ROUND($D190*INTRO!$E$48,0)) -> 33167 | F190: =IF(INTRO!$E$49="","",ROUND($D190*INTRO!$E$49,0)) -> 68079 | G190: =IF(INTRO!$E$50="","",ROUND($D190*INTRO!$E$50,0)) -> 140648 | H190: 99 | I190: 1 | J190: 3 | K190: 2 | L190: =IF(INTRO!$E$38="Endemic", IF($H190>0, IF($H190=4,"Unknown", IF($H190=99,"Stopped", $D190)), 0),"Not required") -> Stopped | M190: =IF(INTRO!$E$40="Endemic", IF($I190>0, IF($I190=4,"Unknown",IF($I190=99,"Stopped", $D190)), 0),"Not required") -> 249375 | N190: =IF(INTRO!$E$42="Endemic", IF(AND($J190>1,$J190<5), IF($J190=4, "Unknown", E190+F190), 0),"Not required") -> 101246 | O190: =IF(INTRO!$E$44="Endemic", IF(AND($K190>0,$K190<5), IF($K190=4,"Unknown", IF($K190=1, $F190*0.33, IF($K190=2, $F190*0.5+$G190*0.2, SUM(F190:G190)))), 0),"Not required") -> 62169.1 | P190: 0 | Q190: 2 | R190: 1 | S190: 0 | T190: MDA3 (IVM) | U190: T3 (ALB/MBD) | V190: MDA 1 | W190: T1 | Y190: 46620 | Z190: Muheza District Council | AC190: 99 | AD190: 1 | AE190: 3 | AF190: 2 | AG190: TRUE | AH190: TRUE | AI190: TRUE | AJ190: TRUE
A191: =IF(INTRO!$E$34<>0,INTRO!$E$34,"") -> Tanzania | B191: Tanga | C191: Pangani District Council | D191: 65894 | E191: =IF(INTRO!$E$48="","",ROUND($D191*INTRO!$E$48,0)) -> 8764 | F191: =IF(INTRO!$E$49="","",ROUND($D191*INTRO!$E$49,0)) -> 17989 | G191: =IF(INTRO!$E$50="","",ROUND($D191*INTRO!$E$50,0)) -> 37164 | H191: 1 | I191: 0 | J191: 3 | K191: 2 | L191: =IF(INTRO!$E$38="Endemic", IF($H191>0, IF($H191=4,"Unknown", IF($H191=99,"Stopped", $D191)), 0),"Not required") -> 65894 | M191: =IF(INTRO!$E$40="Endemic", IF($I191>0, IF($I191=4,"Unknown",IF($I191=99,"Stopped", $D191)), 0),"Not required") -> 0 | N191: =IF(INTRO!$E$42="Endemic", IF(AND($J191>1,$J191<5), IF($J191=4, "Unknown", E191+F191), 0),"Not required") -> 26753 | O191: =IF(INTRO!$E$44="Endemic", IF(AND($K191>0,$K191<5), IF($K191=4,"Unknown", IF($K191=1, $F191*0.33, IF($K191=2, $F191*0.5+$G191*0.2, SUM(F191:G191)))), 0),"Not required") -> 16427.3 | P191: 1 | Q191: 0 | R191: 2 | S191: 0 | T191: MDA1 (IVM+ALB) | U191: T3 (ALB/MBD) | V191: MDA 1 | W191: T1 | Y191: 46621 | Z191: Pangani District Council | AC191: 1 | AD191: 0 | AE191: 3 | AF191: 2 | AG191: TRUE | AH191: TRUE | AI191: TRUE | AJ191: TRUE
A192: =IF(INTRO!$E$34<>0,INTRO!$E$34,"") -> Tanzania | B192: Tanga | C192: Tanga City Council | D192: 333373 | E192: =IF(INTRO!$E$48="","",ROUND($D192*INTRO!$E$48,0)) -> 44339 | F192: =IF(INTRO!$E$49="","",ROUND($D192*INTRO!$E$49,0)) -> 91011 | G192: =IF(INTRO!$E$50="","",ROUND($D192*INTRO!$E$50,0)) -> 188022 | H192: 99 | I192: 0 | J192: 3 | K192: 2 | L192: =IF(INTRO!$E$38="Endemic", IF($H192>0, IF($H192=4,"Unknown", IF($H192=99,"Stopped", $D192)), 0),"Not required") -> Stopped | M192: =IF(INTRO!$E$40="Endemic", IF($I192>0, IF($I192=4,"Unknown",IF($I192=99,"Stopped", $D192)), 0),"Not required") -> 0 | N192: =IF(INTRO!$E$42="Endemic", IF(AND($J192>1,$J192<5), IF($J192=4, "Unknown", E192+F192), 0),"Not required") -> 135350 | O192: =IF(INTRO!$E$44="Endemic", IF(AND($K192>0,$K192<5), IF($K192=4,"Unknown", IF($K192=1, $F192*0.33, IF($K192=2, $F192*0.5+$G192*0.2, SUM(F192:G192)))), 0),"Not required") -> 83109.9 | P192: 0 | Q192: 0 | R192: 1 | S192: 0 | U192: T3 (ALB/MBD) | V192: T1 | W192: T3 | Y192: 46622 | Z192: Tanga City Council | AC192: 99 | AD192: 0 | AE192: 3 | AF192: 2 | AG192: TRUE | AH192: TRUE | AI192: TRUE | AJ192: TRUE
AG193: TRUE | AH193: TRUE | AI193: TRUE | AJ193: TRUE

Sheet MDA1
A1: MDA 1 - Ivermectin (IVM) and Albendazole (ALB)
A2: Administrative structure, population requiring PC by age group, population treated by age group and coverage
A4: TOTAL | G4: =SUM(G$9:G$1000) -> 1693497 | H4: =SUM(H$9:H$1000) -> 3498651 | I4: =SUM(I$9:I$1000) -> 5192148 | K4: =SUM(K$9:K$1000) -> 626559 | L4: =SUM(L$9:L$1000) -> 3958384 | M4: =SUM(M$9:M$1000) -> 4584943 | O4: =IF(G4<>0, IF(K4/G4*100=0, "-", K4/G4*100), " ") -> 36.99793977 | P4: =IF(H4<>0, IF(L4/H4*100=0, "-", L4/H4*100), " ") -> 113.1402932 | Q4: =IF(I4<>0, IF(M4/I4*100=0, "-", M4/I4*100), " ") -> 88.30532181
D6: PC implemented | E6: Date | F6: Population targeted for MDA 1 | J6: Population treated | N6: Programme coverage (%)
A7: Country | B7: Province/State | C7: District | F7: PreSAC | G7: SAC | H7: Adults | I7: Total | J7: PreSAC | K7: SAC | L7: Adults | M7: Total | N7: PreSAC | O7: SAC | P7: Adults | Q7: Total
A9: =IF(COUNTRY_INFO!A9=0," ",COUNTRY_INFO!A9) -> Tanzania | B9: =IF(COUNTRY_INFO!B9=0," ",COUNTRY_INFO!B9) -> Arusha | C9: =IF(COUNTRY_INFO!C9=0," ",COUNTRY_INFO!C9) -> Arusha City Council | D9: =IF(COUNTRY_INFO!$T$9:$T$1000="MDA1 (IVM+ALB)", COUNTRY_INFO!$T$9:$T$1000, " ") ->  | I9: =SUM(F9:H9) -> 0 | M9: =SUM(J9:L9) -> 0 | O9: =IF(G9<>0, IF(K9/G9*100=0, "-", K9/G9*100), " ") ->  | P9: =IF(H9<>0, IF(L9/H9*100=0, "-", L9/H9*100), " ") -> 
A10: =IF(COUNTRY_INFO!A10=0," ",COUNTRY_INFO!A10) -> Tanzania | B10: =IF(COUNTRY_INFO!B10=0," ",COUNTRY_INFO!B10) -> Arusha | C10: =IF(COUNTRY_INFO!C10=0," ",COUNTRY_INFO!C10) -> Arusha District Council | D10: =IF(COUNTRY_INFO!$T$9:$T$1000="MDA1 (IVM+ALB)", COUNTRY_INFO!$T$9:$T$1000, " ") ->  | I10: =SUM(F10:H10) -> 0 | M10: =SUM(J10:L10) -> 0 | O10: =IF(G10<>0, IF(K10/G10*100=0, "-", K10/G10*100), " ") ->  | P10: =IF(H10<>0, IF(L10/H10*100=0, "-", L10/H10*100), " ") ->  | Q10: =IF(I10<>0, IF(M10/I10*100=0, "-", M10/I10*100), " ") -> 
A11: =IF(COUNTRY_INFO!A11=0," ",COUNTRY_INFO!A11) -> Tanzania | B11: =IF(COUNTRY_INFO!B11=0," ",COUNTRY_INFO!B11) -> Arusha | C11: =IF(COUNTRY_INFO!C11=0," ",COUNTRY_INFO!C11) -> Karatu District Council | D11: =IF(COUNTRY_INFO!$T$9:$T$1000="MDA1 (IVM+ALB)", COUNTRY_INFO!$T$9:$T$1000, " ") ->  | I11: 0 | M11: 0
A12: =IF(COUNTRY_INFO!A12=0," ",COUNTRY_INFO!A12) -> Tanzania | B12: =IF(COUNTRY_INFO!B12=0," ",COUNTRY_INFO!B12) -> Arusha | C12: =IF(COUNTRY_INFO!C12=0," ",COUNTRY_INFO!C12) -> Longido District Council | D12: =IF(COUNTRY_INFO!$T$9:$T$1000="MDA1 (IVM+ALB)", COUNTRY_INFO!$T$9:$T$1000, " ") ->  | I12: 0 | M12: 0
A13: =IF(COUNTRY_INFO!A13=0," ",COUNTRY_INFO!A13) -> Tanzania | B13: =IF(COUNTRY_INFO!B13=0," ",COUNTRY_INFO!B13) -> Arusha | C13: =IF(COUNTRY_INFO!C13=0," ",COUNTRY_INFO!C13) -> Meru District Council | D13: =IF(COUNTRY_INFO!$T$9:$T$1000="MDA1 (IVM+ALB)", COUNTRY_INFO!$T$9:$T$1000, " ") ->  | I13: 0 | M13: 0
A14: =IF(COUNTRY_INFO!A14=0," ",COUNTRY_INFO!A14) -> Tanzania | B14: =IF(COUNTRY_INFO!B14=0," ",COUNTRY_INFO!B14) -> Arusha | C14: =IF(COUNTRY_INFO!C14=0," ",COUNTRY_INFO!C14) -> Monduli District Council | D14: =IF(COUNTRY_INFO!$T$9:$T$1000="MDA1 (IVM+ALB)", COUNTRY_INFO!$T$9:$T$1000, " ") ->  | I14: 0 | M14: 0
A15: =IF(COUNTRY_INFO!A15=0," ",COUNTRY_INFO!A15) -> Tanzania | B15: =IF(COUNTRY_INFO!B15=0," ",COUNTRY_INFO!B15) -> Arusha | C15: =IF(COUNTRY_INFO!C15=0," ",COUNTRY_INFO!C15) -> Ngorongoro District Council | D15: =IF(COUNTRY_INFO!$T$9:$T$1000="MDA1 (IVM+ALB)", COUNTRY_INFO!$T$9:$T$1000, " ") ->  | I15: 0 | M15: 0
A16: =IF(COUNTRY_INFO!A16=0," ",COUNTRY_INFO!A16) -> Tanzania | B16: =IF(COUNTRY_INFO!B16=0," ",COUNTRY_INFO!B16) -> Dar Es Salaam | C16: =IF(COUNTRY_INFO!C16=0," ",COUNTRY_INFO!C16) -> Dar es Salaam City Council | D16: =IF(COUNTRY_INFO!$T$9:$T$1000="MDA1 (IVM+ALB)", COUNTRY_INFO!$T$9:$T$1000, " ") -> MDA1 (IVM+ALB) | E16: October 2021 | G16: 548911 | H16: 1134013 | I16: 1682924 | K16: 172403 | L16: 1199073 | M16: 1371476 | O16: 31.40818821 | P16: 105.7371476 | Q16: 81.49363845
A17: =IF(COUNTRY_INFO!A17=0," ",COUNTRY_INFO!A17) -> Tanzania | B17: =IF(COUNTRY_INFO!B17=0," ",COUNTRY_INFO!B17) -> Dar Es Salaam | C17: =IF(COUNTRY_INFO!C17=0," ",COUNTRY_INFO!C17) -> Kigamboni Municipal Council | D17: =IF(COUNTRY_INFO!$T$9:$T$1000="MDA1 (IVM+ALB)", COUNTRY_INFO!$T$9:$T$1000, " ") ->  | I17: 0 | M17: 0
A18: =IF(COUNTRY_INFO!A18=0," ",COUNTRY_INFO!A18) -> Tanzania | B18: =IF(COUNTRY_INFO!B18=0," ",COUNTRY_INFO!B18) -> Dar Es Salaam | C18: =IF(COUNTRY_INFO!C18=0," ",COUNTRY_INFO!C18) -> Kinondoni Municipal Council | D18: =IF(COUNTRY_INFO!$T$9:$T$1000="MDA1 (IVM+ALB)", COUNTRY_INFO!$T$9:$T$1000, " ") -> MDA1 (IVM+ALB) | E18: October 2021 | G18: 418079 | H18: 863723 | I18: 1281802 | K18: 128950 | L18: 1005173 | M18: 1134123 | O18: 30.84345303 | P18: 116.3767782 | Q18: 88.47879782
A19: =IF(COUNTRY_INFO!A19=0," ",COUNTRY_INFO!A19) -> Tanzania | B19: =IF(COUNTRY_INFO!B19=0," ",COUNTRY_INFO!B19) -> Dar Es Salaam | C19: =IF(COUNTRY_INFO!C19=0," ",COUNTRY_INFO!C19) -> Temeke Municipal Council | D19: =IF(COUNTRY_INFO!$T$9:$T$1000="MDA1 (IVM+ALB)", COUNTRY_INFO!$T$9:$T$1000, " ") -> MDA1 (IVM+ALB) | E19: October 2021 | G19: 542318 | H19: 1120393 | I19: 1662711 | K19: 203186 | L19: 1346934 | M19: 1550120 | O19: 37.46620986 | P19: 120.21978 | Q19: 93.22846845
A20: =IF(COUNTRY_INFO!A20=0," ",COUNTRY_INFO!A20) -> Tanzania | B20: =IF(COUNTRY_INFO!B20=0," ",COUNTRY_INFO!B20) -> Dar Es Salaam | C20: =IF(COUNTRY_INFO!C20=0," ",COUNTRY_INFO!C20) -> Ubungo Municipal Council | D20: =IF(COUNTRY_INFO!$T$9:$T$1000="MDA1 (IVM+ALB)", COUNTRY_INFO!$T$9:$T$1000, " ") ->  | I20: 0 | M20: 0
A21: =IF(COUNTRY_INFO!A21=0," ",COUNTRY_INFO!A21) -> Tanzania | B21: =IF(COUNTRY_INFO!B21=0," ",COUNTRY_INFO!B21) -> Dodoma | C21: =IF(COUNTRY_INFO!C21=0," ",COUNTRY_INFO!C21) -> Bahi District Council | D21: =IF(COUNTRY_INFO!$T$9:$T$1000="MDA1 (IVM+ALB)", COUNTRY_INFO!$T$9:$T$1000, " ") ->  | I21: 0 | M21: 0
A22: =IF(COUNTRY_INFO!A22=0," ",COUNTRY_INFO!A22) -> Tanzania | B22: =IF(COUNTRY_INFO!B22=0," ",COUNTRY_INFO!B22) -> Dodoma | C22: =IF(COUNTRY_INFO!C22=0," ",COUNTRY_INFO!C22) -> Chamwino District Council | D22: =IF(COUNTRY_INFO!$T$9:$T$1000="MDA1 (IVM+ALB)", COUNTRY_INFO!$T$9:$T$1000, " ") ->  | I22: 0 | M22: 0
A23: =IF(COUNTRY_INFO!A23=0," ",COUNTRY_INFO!A23) -> Tanzania | B23: =IF(COUNTRY_INFO!B23=0," ",COUNTRY_INFO!B23) -> Dodoma | C23: =IF(COUNTRY_INFO!C23=0," ",COUNTRY_INFO!C23) -> Chemba District Council | D23: =IF(COUNTRY_INFO!$T$9:$T$1000="MDA1 (IVM+ALB)", COUNTRY_INFO!$T$9:$T$1000, " ") ->  | I23: 0 | M23: 0
A24: =IF(COUNTRY_INFO!A24=0," ",COUNTRY_INFO!A24) -> Tanzania | B24: =IF(COUNTRY_INFO!B24=0," ",COUNTRY_INFO!B24) -> Dodoma | C24: =IF(COUNTRY_INFO!C24=0," ",COUNTRY_INFO!C24) -> Dodoma City Council | D24: =IF(COUNTRY_INFO!$T$9:$T$1000="MDA1 (IVM+ALB)", COUNTRY_INFO!$T$9:$T$1000, " ") ->  | I24: 0 | M24: 0
A25: =IF(COUNTRY_INFO!A25=0," ",COUNTRY_INFO!A25) -> Tanzania | B25: =IF(COUNTRY_INFO!B25=0," ",COUNTRY_INFO!B25) -> Dodoma | C25: =IF(COUNTRY_INFO!C25=0," ",COUNTRY_INFO!C25) -> Kondoa District Council | D25: =IF(COUNTRY_INFO!$T$9:$T$1000="MDA1 (IVM+ALB)", COUNTRY_INFO!$T$9:$T$1000, " ") ->  | I25: 0 | M25: 0
A26: =IF(COUNTRY_INFO!A26=0," ",COUNTRY_INFO!A26) -> Tanzania | B26: =IF(COUNTRY_INFO!B26=0," ",COUNTRY_INFO!B26) -> Dodoma | C26: =IF(COUNTRY_INFO!C26=0," ",COUNTRY_INFO!C26) -> Kondoa Town Council | D26: =IF(COUNTRY_INFO!$T$9:$T$1000="MDA1 (IVM+ALB)", COUNTRY_INFO!$T$9:$T$1000, " ") ->  | I26: 0 | M26: 0
A27: =IF(COUNTRY_INFO!A27=0," ",COUNTRY_INFO!A27) -> Tanzania | B27: =IF(COUNTRY_INFO!B27=0," ",COUNTRY_INFO!B27) -> Dodoma | C27: =IF(COUNTRY_INFO!C27=0," ",COUNTRY_INFO!C27) -> Kongwa District Council | D27: =IF(COUNTRY_INFO!$T$9:$T$1000="MDA1 (IVM+ALB)", COUNTRY_INFO!$T$9:$T$1000, " ") ->  | I27: 0 | M27: 0
A28: =IF(COUNTRY_INFO!A28=0," ",COUNTRY_INFO!A28) -> Tanzania | B28: =IF(COUNTRY_INFO!B28=0," ",COUNTRY_INFO!B28) -> Dodoma | C28: =IF(COUNTRY_INFO!C28=0," ",COUNTRY_INFO!C28) -> Mpwapwa District Council | D28: =IF(COUNTRY_INFO!$T$9:$T$1000="MDA1 (IVM+ALB)", COUNTRY_INFO!$T$9:$T$1000, " ") ->  | I28: 0 | M28: 0
A29: =IF(COUNTRY_INFO!A29=0," ",COUNTRY_INFO!A29) -> Tanzania | B29: =IF(COUNTRY_INFO!B29=0," ",COUNTRY_INFO!B29) -> Geita | C29: =IF(COUNTRY_INFO!C29=0," ",COUNTRY_INFO!C29) -> Bukombe District Council | D29: =IF(COUNTRY_INFO!$T$9:$T$1000="MDA1 (IVM+ALB)", COUNTRY_INFO!$T$9:$T$1000, " ") ->  | I29: 0 | M29: 0
A30: =IF(COUNTRY_INFO!A30=0," ",COUNTRY_INFO!A30) -> Tanzania | B30: =IF(COUNTRY_INFO!B30=0," ",COUNTRY_INFO!B30) -> Geita | C30: =IF(COUNTRY_INFO!C30=0," ",COUNTRY_INFO!C30) -> Chato District Council | D30: =IF(COUNTRY_INFO!$T$9:$T$1000="MDA1 (IVM+ALB)", COUNTRY_INFO!$T$9:$T$1000, " ") ->  | I30: 0 | M30: 0
A31: =IF(COUNTRY_INFO!A31=0," ",COUNTRY_INFO!A31) -> Tanzania | B31: =IF(COUNTRY_INFO!B31=0," ",COUNTRY_INFO!B31) -> Geita | C31: =IF(COUNTRY_INFO!C31=0," ",COUNTRY_INFO!C31) -> Geita District Council | D31: =IF(COUNTRY_INFO!$T$9:$T$1000="MDA1 (IVM+ALB)", COUNTRY_INFO!$T$9:$T$1000, " ") ->  | I31: 0 | M31: 0
A32: =IF(COUNTRY_INFO!A32=0," ",COUNTRY_INFO!A32) -> Tanzania | B32: =IF(COUNTRY_INFO!B32=0," ",COUNTRY_INFO!B32) -> Geita | C32: =IF(COUNTRY_INFO!C32=0," ",COUNTRY_INFO!C32) -> Geita Town Council | D32: =IF(COUNTRY_INFO!$T$9:$T$1000="MDA1 (IVM+ALB)", COUNTRY_INFO!$T$9:$T$1000, " ") ->  | I32: 0 | M32: 0
A33: =IF(COUNTRY_INFO!A33=0," ",COUNTRY_INFO!A33) -> Tanzania | B33: =IF(COUNTRY_INFO!B33=0," ",COUNTRY_INFO!B33) -> Geita | C33: =IF(COUNTRY_INFO!C33=0," ",COUNTRY_INFO!C33) -> Mbogwe District Council | D33: =IF(COUNTRY_INFO!$T$9:$T$1000="MDA1 (IVM+ALB)", COUNTRY_INFO!$T$9:$T$1000, " ") ->  | I33: 0 | M33: 0
A34: =IF(COUNTRY_INFO!A34=0," ",COUNTRY_INFO!A34) -> Tanzania | B34: =IF(COUNTRY_INFO!B34=0," ",COUNTRY_INFO!B34) -> Geita | C34: =IF(COUNTRY_INFO!C34=0," ",COUNTRY_INFO!C34) -> Nyang'hwale District Council | D34: =IF(COUNTRY_INFO!$T$9:$T$1000="MDA1 (IVM+ALB)", COUNTRY_INFO!$T$9:$T$1000, " ") ->  | I34: 0 | M34: 0
A35: =IF(COUNTRY_INFO!A35=0," ",COUNTRY_INFO!A35) -> Tanzania | B35: =IF(COUNTRY_INFO!B35=0," ",COUNTRY_INFO!B35) -> Iringa | C35: =IF(COUNTRY_INFO!C35=0," ",COUNTRY_INFO!C35) -> Iringa District Council | D35: =IF(COUNTRY_INFO!$T$9:$T$1000="MDA1 (IVM+ALB)", COUNTRY_INFO!$T$9:$T$1000, " ") ->  | I35: 0 | M35: 0
A36: =IF(COUNTRY_INFO!A36=0," ",COUNTRY_INFO!A36) -> Tanzania | B36: =IF(COUNTRY_INFO!B36=0," ",COUNTRY_INFO!B36) -> Iringa | C36: =IF(COUNTRY_INFO!C36=0," ",COUNTRY_INFO!C36) -> Iringa Municipal Council | D36: =IF(COUNTRY_INFO!$T$9:$T$1000="MDA1 (IVM+ALB)", COUNTRY_INFO!$T$9:$T$1000, " ") ->  | I36: 0 | M36: 0
A37: =IF(COUNTRY_INFO!A37=0," ",COUNTRY_INFO!A37) -> Tanzania | B37: =IF(COUNTRY_INFO!B37=0," ",COUNTRY_INFO!B37) -> Iringa | C37: =IF(COUNTRY_INFO!C37=0," ",COUNTRY_INFO!C37) -> Kilolo District Council | D37: =IF(COUNTRY_INFO!$T$9:$T$1000="MDA1 (IVM+ALB)", COUNTRY_INFO!$T$9:$T$1000, " ") ->  | I37: 0 | M37: 0
A38: =IF(COUNTRY_INFO!A38=0," ",COUNTRY_INFO!A38) -> Tanzania | B38: =IF(COUNTRY_INFO!B38=0," ",COUNTRY_INFO!B38) -> Iringa | C38: =IF(COUNTRY_INFO!C38=0," ",COUNTRY_INFO!C38) -> Mafinga Town Council | D38: =IF(COUNTRY_INFO!$T$9:$T$1000="MDA1 (IVM+ALB)", COUNTRY_INFO!$T$9:$T$1000, " ") ->  | I38: 0 | M38: 0
A39: =IF(COUNTRY_INFO!A39=0," ",COUNTRY_INFO!A39) -> Tanzania | B39: =IF(COUNTRY_INFO!B39=0," ",COUNTRY_INFO!B39) -> Iringa | C39: =IF(COUNTRY_INFO!C39=0," ",COUNTRY_INFO!C39) -> Mufindi District Council | D39: =IF(COUNTRY_INFO!$T$9:$T$1000="MDA1 (IVM+ALB)", COUNTRY_INFO!$T$9:$T$1000, " ") ->  | I39: 0 | M39: 0
A40: =IF(COUNTRY_INFO!A40=0," ",COUNTRY_INFO!A40) -> Tanzania | B40: =IF(COUNTRY_INFO!B40=0," ",COUNTRY_INFO!B40) -> Kagera | C40: =IF(COUNTRY_INFO!C40=0," ",COUNTRY_INFO!C40) -> Biharamulo District Council | D40: =IF(COUNTRY_INFO!$T$9:$T$1000="MDA1 (IVM+ALB)", COUNTRY_INFO!$T$9:$T$1000, " ") ->  | I40: 0 | M40: 0
A41: =IF(COUNTRY_INFO!A41=0," ",COUNTRY_INFO!A41) -> Tanzania | B41: =IF(COUNTRY_INFO!B41=0," ",COUNTRY_INFO!B41) -> Kagera | C41: =IF(COUNTRY_INFO!C41=0," ",COUNTRY_INFO!C41) -> Bukoba District Council | D41: =IF(COUNTRY_INFO!$T$9:$T$1000="MDA1 (IVM+ALB)", COUNTRY_INFO!$T$9:$T$1000, " ") ->  | I41: 0 | M41: 0
A42: =IF(COUNTRY_INFO!A42=0," ",COUNTRY_INFO!A42) -> Tanzania | B42: =IF(COUNTRY_INFO!B42=0," ",COUNTRY_INFO!B42) -> Kagera | C42: =IF(COUNTRY_INFO!C42=0," ",COUNTRY_INFO!C42) -> Bukoba Municipal Council | D42: =IF(COUNTRY_INFO!$T$9:$T$1000="MDA1 (IVM+ALB)", COUNTRY_INFO!$T$9:$T$1000, " ") ->  | I42: 0 | M42: 0
A43: =IF(COUNTRY_INFO!A43=0," ",COUNTRY_INFO!A43) -> Tanzania | B43: =IF(COUNTRY_INFO!B43=0," ",COUNTRY_INFO!B43) -> Kagera | C43: =IF(COUNTRY_INFO!C43=0," ",COUNTRY_INFO!C43) -> Karagwe District Council | D43: =IF(COUNTRY_INFO!$T$9:$T$1000="MDA1 (IVM+ALB)", COUNTRY_INFO!$T$9:$T$1000, " ") ->  | I43: 0 | M43: 0
A44: =IF(COUNTRY_INFO!A44=0," ",COUNTRY_INFO!A44) -> Tanzania | B44: =IF(COUNTRY_INFO!B44=0," ",COUNTRY_INFO!B44) -> Kagera | C44: =IF(COUNTRY_INFO!C44=0," ",COUNTRY_INFO!C44) -> Kyerwa District Council | D44: =IF(COUNTRY_INFO!$T$9:$T$1000="MDA1 (IVM+ALB)", COUNTRY_INFO!$T$9:$T$1000, " ") ->  | I44: 0 | M44: 0
A45: =IF(COUNTRY_INFO!A45=0," ",COUNTRY_INFO!A45) -> Tanzania | B45: =IF(COUNTRY_INFO!B45=0," ",COUNTRY_INFO!B45) -> Kagera | C45: =IF(COUNTRY_INFO!C45=0," ",COUNTRY_INFO!C45) -> Missenyi District Council | D45: =IF(COUNTRY_INFO!$T$9:$T$1000="MDA1 (IVM+ALB)", COUNTRY_INFO!$T$9:$T$1000, " ") ->  | I45: 0 | M45: 0
A46: =IF(COUNTRY_INFO!A46=0," ",COUNTRY_INFO!A46) -> Tanzania | B46: =IF(COUNTRY_INFO!B46=0," ",COUNTRY_INFO!B46) -> Kagera | C46: =IF(COUNTRY_INFO!C46=0," ",COUNTRY_INFO!C46) -> Muleba District Council | D46: =IF(COUNTRY_INFO!$T$9:$T$1000="MDA1 (IVM+ALB)", COUNTRY_INFO!$T$9:$T$1000, " ") ->  | I46: 0 | M46: 0
A47: =IF(COUNTRY_INFO!A47=0," ",COUNTRY_INFO!A47) -> Tanzania | B47: =IF(COUNTRY_INFO!B47=0," ",COUNTRY_INFO!B47) -> Kagera | C47: =IF(COUNTRY_INFO!C47=0," ",COUNTRY_INFO!C47) -> Ngara District Council | D47: =IF(COUNTRY_INFO!$T$9:$T$1000="MDA1 (IVM+ALB)", COUNTRY_INFO!$T$9:$T$1000, " ") ->  | I47: 0 | M47: 0
A48: =IF(COUNTRY_INFO!A48=0," ",COUNTRY_INFO!A48) -> Tanzania | B48: =IF(COUNTRY_INFO!B48=0," ",COUNTRY_INFO!B48) -> Katavi | C48: =IF(COUNTRY_INFO!C48=0," ",COUNTRY_INFO!C48) -> Mlele District Council | D48: =IF(COUNTRY_INFO!$T$9:$T$1000="MDA1 (IVM+ALB)", COUNTRY_INFO!$T$9:$T$1000, " ") ->  | I48: 0 | M48: 0
A49: =IF(COUNTRY_INFO!A49=0," ",COUNTRY_INFO!A49) -> Tanzania | B49: =IF(COUNTRY_INFO!B49=0," ",COUNTRY_INFO!B49) -> Katavi | C49: =IF(COUNTRY_INFO!C49=0," ",COUNTRY_INFO!C49) -> Mpanda District Council | D49: =IF(COUNTRY_INFO!$T$9:$T$1000="MDA1 (IVM+ALB)", COUNTRY_INFO!$T$9:$T$1000, " ") ->  | I49: 0 | M49: 0
A50: =IF(COUNTRY_INFO!A50=0," ",COUNTRY_INFO!A50) -> Tanzania | B50: =IF(COUNTRY_INFO!B50=0," ",COUNTRY_INFO!B50) -> Katavi | C50: =IF(COUNTRY_INFO!C50=0," ",COUNTRY_INFO!C50) -> Mpanda Municipal Council | D50: =IF(COUNTRY_INFO!$T$9:$T$1000="MDA1 (IVM+ALB)", COUNTRY_INFO!$T$9:$T$1000, " ") ->  | I50: 0 | M50: 0
A51: =IF(COUNTRY_INFO!A51=0," ",COUNTRY_INFO!A51) -> Tanzania | B51: =IF(COUNTRY_INFO!B51=0," ",COUNTRY_INFO!B51) -> Katavi | C51: =IF(COUNTRY_INFO!C51=0," ",COUNTRY_INFO!C51) -> Mpimbwe District Council | D51: =IF(COUNTRY_INFO!$T$9:$T$1000="MDA1 (IVM+ALB)", COUNTRY_INFO!$T$9:$T$1000, " ") ->  | I51: 0 | M51: 0
A52: =IF(COUNTRY_INFO!A52=0," ",COUNTRY_INFO!A52) -> Tanzania | B52: =IF(COUNTRY_INFO!B52=0," ",COUNTRY_INFO!B52) -> Katavi | C52: =IF(COUNTRY_INFO!C52=0," ",COUNTRY_INFO!C52) -> Nsimbo District Council | D52: =IF(COUNTRY_INFO!$T$9:$T$1000="MDA1 (IVM+ALB)", COUNTRY_INFO!$T$9:$T$1000, " ") ->  | I52: 0 | M52: 0
A53: =IF(COUNTRY_INFO!A53=0," ",COUNTRY_INFO!A53) -> Tanzania | B53: =IF(COUNTRY_INFO!B53=0," ",COUNTRY_INFO!B53) -> Kigoma | C53: =IF(COUNTRY_INFO!C53=0," ",COUNTRY_INFO!C53) -> Buhigwe District Council | D53: =IF(COUNTRY_INFO!$T$9:$T$1000="MDA1 (IVM+ALB)", COUNTRY_INFO!$T$9:$T$1000, " ") ->  | I53: 0 | M53: 0
A54: =IF(COUNTRY_INFO!A54=0," ",COUNTRY_INFO!A54) -> Tanzania | B54: =IF(COUNTRY_INFO!B54=0," ",COUNTRY_INFO!B54) -> Kigoma | C54: =IF(COUNTRY_INFO!C54=0," ",COUNTRY_INFO!C54) -> Kakonko District Council | D54: =IF(COUNTRY_INFO!$T$9:$T$1000="MDA1 (IVM+ALB)", COUNTRY_INFO!$T$9:$T$1000, " ") ->  | I54: 0 | M54: 0
A55: =IF(COUNTRY_INFO!A55=0," ",COUNTRY_INFO!A55) -> Tanzania | B55: =IF(COUNTRY_INFO!B55=0," ",COUNTRY_INFO!B55) -> Kigoma | C55: =IF(COUNTRY_INFO!C55=0," ",COUNTRY_INFO!C55) -> Kasulu District Council | D55: =IF(COUNTRY_INFO!$T$9:$T$1000="MDA1 (IVM+ALB)", COUNTRY_INFO!$T$9:$T$1000, " ") ->  | I55: 0 | M55: 0
A56: =IF(COUNTRY_INFO!A56=0," ",COUNTRY_INFO!A56) -> Tanzania | B56: =IF(COUNTRY_INFO!B56=0," ",COUNTRY_INFO!B56) -> Kigoma | C56: =IF(COUNTRY_INFO!C56=0," ",COUNTRY_INFO!C56) -> Kasulu Town Council | D56: =IF(COUNTRY_INFO!$T$9:$T$1000="MDA1 (IVM+ALB)", COUNTRY_INFO!$T$9:$T$1000, " ") ->  | I56: 0 | M56: 0
A57: =IF(COUNTRY_INFO!A57=0," ",COUNTRY_INFO!A57) -> Tanzania | B57: =IF(COUNTRY_INFO!B57=0," ",COUNTRY_INFO!B57) -> Kigoma | C57: =IF(COUNTRY_INFO!C57=0," ",COUNTRY_INFO!C57) -> Kibondo District Council | D57: =IF(COUNTRY_INFO!$T$9:$T$1000="MDA1 (IVM+ALB)", COUNTRY_INFO!$T$9:$T$1000, " ") ->  | I57: 0 | M57: 0
A58: =IF(COUNTRY_INFO!A58=0," ",COUNTRY_INFO!A58) -> Tanzania | B58: =IF(COUNTRY_INFO!B58=0," ",COUNTRY_INFO!B58) -> Kigoma | C58: =IF(COUNTRY_INFO!C58=0," ",COUNTRY_INFO!C58) -> Kigoma District Council | D58: =IF(COUNTRY_INFO!$T$9:$T$1000="MDA1 (IVM+ALB)", COUNTRY_INFO!$T$9:$T$1000, " ") ->  | I58: 0 | M58: 0
A59: =IF(COUNTRY_INFO!A59=0," ",COUNTRY_INFO!A59) -> Tanzania | B59: =IF(COUNTRY_INFO!B59=0," ",COUNTRY_INFO!B59) -> Kigoma | C59: =IF(COUNTRY_INFO!C59=0," ",COUNTRY_INFO!C59) -> Kigoma-Ujiji Municipal Council | D59: =IF(COUNTRY_INFO!$T$9:$T$1000="MDA1 (IVM+ALB)", COUNTRY_INFO!$T$9:$T$1000, " ") ->  | I59: 0 | M59: 0
A60: =IF(COUNTRY_INFO!A60=0," ",COUNTRY_INFO!A60) -> Tanzania | B60: =IF(COUNTRY_INFO!B60=0," ",COUNTRY_INFO!B60) -> Kigoma | C60: =IF(COUNTRY_INFO!C60=0," ",COUNTRY_INFO!C60) -> Uvinza District Council | D60: =IF(COUNTRY_INFO!$T$9:$T$1000="MDA1 (IVM+ALB)", COUNTRY_INFO!$T$9:$T$1000, " ") ->  | I60: 0 | M60: 0
A61: =IF(COUNTRY_INFO!A61=0," ",COUNTRY_INFO!A61) -> Tanzania | B61: =IF(COUNTRY_INFO!B61=0," ",COUNTRY_INFO!B61) -> Kilimanjaro | C61: =IF(COUNTRY_INFO!C61=0," ",COUNTRY_INFO!C61) -> Hai District Council | D61: =IF(COUNTRY_INFO!$T$9:$T$1000="MDA1 (IVM+ALB)", COUNTRY_INFO!$T$9:$T$1000, " ") ->  | I61: 0 | M61: 0
A62: =IF(COUNTRY_INFO!A62=0," ",COUNTRY_INFO!A62) -> Tanzania | B62: =IF(COUNTRY_INFO!B62=0," ",COUNTRY_INFO!B62) -> Kilimanjaro | C62: =IF(COUNTRY_INFO!C62=0," ",COUNTRY_INFO!C62) -> Moshi District Council | D62: =IF(COUNTRY_INFO!$T$9:$T$1000="MDA1 (IVM+ALB)", COUNTRY_INFO!$T$9:$T$1000, " ") ->  | I62: 0 | M62: 0
A63: =IF(COUNTRY_INFO!A63=0," ",COUNTRY_INFO!A63) -> Tanzania | B63: =IF(COUNTRY_INFO!B63=0," ",COUNTRY_INFO!B63) -> Kilimanjaro | C63: =IF(COUNTRY_INFO!C63=0," ",COUNTRY_INFO!C63) -> Moshi Municipal Council | D63: =IF(COUNTRY_INFO!$T$9:$T$1000="MDA1 (IVM+ALB)", COUNTRY_INFO!$T$9:$T$1000, " ") ->  | I63: 0 | M63: 0
A64: =IF(COUNTRY_INFO!A64=0," ",COUNTRY_INFO!A64) -> Tanzania | B64: =IF(COUNTRY_INFO!B64=0," ",COUNTRY_INFO!B64) -> Kilimanjaro | C64: =IF(COUNTRY_INFO!C64=0," ",COUNTRY_INFO!C64) -> Mwanga District Council | D64: =IF(COUNTRY_INFO!$T$9:$T$1000="MDA1 (IVM+ALB)", COUNTRY_INFO!$T$9:$T$1000, " ") ->  | I64: 0 | M64: 0
A65: =IF(COUNTRY_INFO!A65=0," ",COUNTRY_INFO!A65) -> Tanzania | B65: =IF(COUNTRY_INFO!B65=0," ",COUNTRY_INFO!B65) -> Kilimanjaro | C65: =IF(COUNTRY_INFO!C65=0," ",COUNTRY_INFO!C65) -> Rombo District Council | D65: =IF(COUNTRY_INFO!$T$9:$T$1000="MDA1 (IVM+ALB)", COUNTRY_INFO!$T$9:$T$1000, " ") ->  | I65: 0 | M65: 0
A66: =IF(COUNTRY_INFO!A66=0," ",COUNTRY_INFO!A66) -> Tanzania | B66: =IF(COUNTRY_INFO!B66=0," ",COUNTRY_INFO!B66) -> Kilimanjaro | C66: =IF(COUNTRY_INFO!C66=0," ",COUNTRY_INFO!C66) -> Same District Council | D66: =IF(COUNTRY_INFO!$T$9:$T$1000="MDA1 (IVM+ALB)", COUNTRY_INFO!$T$9:$T$1000, " ") ->  | I66: 0 | M66: 0
A67: =IF(COUNTRY_INFO!A67=0," ",COUNTRY_INFO!A67) -> Tanzania | B67: =IF(COUNTRY_INFO!B67=0," ",COUNTRY_INFO!B67) -> Kilimanjaro | C67: =IF(COUNTRY_INFO!C67=0," ",COUNTRY_INFO!C67) -> Siha District Council | D67: =IF(COUNTRY_INFO!$T$9:$T$1000="MDA1 (IVM+ALB)", COUNTRY_INFO!$T$9:$T$1000, " ") ->  | I67: 0 | M67: 0
A68: =IF(COUNTRY_INFO!A68=0," ",COUNTRY_INFO!A68) -> Tanzania | B68: =IF(COUNTRY_INFO!B68=0," ",COUNTRY_INFO!B68) -> Lindi | C68: =IF(COUNTRY_INFO!C68=0," ",COUNTRY_INFO!C68) -> Kilwa District Council | D68: =IF(COUNTRY_INFO!$T$9:$T$1000="MDA1 (IVM+ALB)", COUNTRY_INFO!$T$9:$T$1000, " ") -> MDA1 (IVM+ALB) | E68: September 2021 | G68: 60424 | H68: 124832 | I68: 185256 | K68: 45554 | L68: 125960 | M68: 171514 | O68: 75.39057328 | P68: 100.9036145 | Q68: 92.58215658
A69: =IF(COUNTRY_INFO!A69=0," ",COUNTRY_INFO!A69) -> Tanzania | B69: =IF(COUNTRY_INFO!B69=0," ",COUNTRY_INFO!B69) -> Lindi | C69: =IF(COUNTRY_INFO!C69=0," ",COUNTRY_INFO!C69) -> Mtama District Council | D69: =IF(COUNTRY_INFO!$T$9:$T$1000="MDA1 (IVM+ALB)", COUNTRY_INFO!$T$9:$T$1000, " ") -> MDA1 (IVM+ALB) | E69: August 2021 | G69: 51437 | H69: 106265 | I69: 157702 | K69: 36101 | L69: 120051 | M69: 156152 | O69: 70.18488637 | P69: 112.9732273 | Q69: 99.01713358
A70: =IF(COUNTRY_INFO!A70=0," ",COUNTRY_INFO!A70) -> Tanzania | B70: =IF(COUNTRY_INFO!B70=0," ",COUNTRY_INFO!B70) -> Lindi | C70: =IF(COUNTRY_INFO!C70=0," ",COUNTRY_INFO!C70) -> Lindi Municipal Council | D70: =IF(COUNTRY_INFO!$T$9:$T$1000="MDA1 (IVM+ALB)", COUNTRY_INFO!$T$9:$T$1000, " ") ->  | I70: 0 | M70: 0
A71: =IF(COUNTRY_INFO!A71=0," ",COUNTRY_INFO!A71) -> Tanzania | B71: =IF(COUNTRY_INFO!B71=0," ",COUNTRY_INFO!B71) -> Lindi | C71: =IF(COUNTRY_INFO!C71=0," ",COUNTRY_INFO!C71) -> Liwale District Council | D71: =IF(COUNTRY_INFO!$T$9:$T$1000="MDA1 (IVM+ALB)", COUNTRY_INFO!$T$9:$T$1000, " ") ->  | I71: 0 | M71: 0
A72: =IF(COUNTRY_INFO!A72=0," ",COUNTRY_INFO!A72) -> Tanzania | B72: =IF(COUNTRY_INFO!B72=0," ",COUNTRY_INFO!B72) -> Lindi | C72: =IF(COUNTRY_INFO!C72=0," ",COUNTRY_INFO!C72) -> Nachingwea District Council | D72: =IF(COUNTRY_INFO!$T$9:$T$1000="MDA1 (IVM+ALB)", COUNTRY_INFO!$T$9:$T$1000, " ") ->  | I72: 0 | M72: 0
A73: =IF(COUNTRY_INFO!A73=0," ",COUNTRY_INFO!A73) -> Tanzania | B73: =IF(COUNTRY_INFO!B73=0," ",COUNTRY_INFO!B73) -> Lindi | C73: =IF(COUNTRY_INFO!C73=0," ",COUNTRY_INFO!C73) -> Ruangwa District Council | D73: =IF(COUNTRY_INFO!$T$9:$T$1000="MDA1 (IVM+ALB)", COUNTRY_INFO!$T$9:$T$1000, " ") ->  | I73: 0 | M73: 0
A74: =IF(COUNTRY_INFO!A74=0," ",COUNTRY_INFO!A74) -> Tanzania | B74: =IF(COUNTRY_INFO!B74=0," ",COUNTRY_INFO!B74) -> Manyara | C74: =IF(COUNTRY_INFO!C74=0," ",COUNTRY_INFO!C74) -> Babati District Council | D74: =IF(COUNTRY_INFO!$T$9:$T$1000="MDA1 (IVM+ALB)", COUNTRY_INFO!$T$9:$T$1000, " ") ->  | I74: =SUM(F74:H74) -> 0 | M74: =SUM(J74:L74) -> 0 | O74: =IF(G74<>0, IF(K74/G74*100=0, "-", K74/G74*100), " ") ->  | P74: =IF(H74<>0, IF(L74/H74*100=0, "-", L74/H74*100), " ") ->  | Q74: =IF(I74<>0, IF(M74/I74*100=0, "-", M74/I74*100), " ") -> 
A75: =IF(COUNTRY_INFO!A75=0," ",COUNTRY_INFO!A75) -> Tanzania | B75: =IF(COUNTRY_INFO!B75=0," ",COUNTRY_INFO!B75) -> Manyara | C75: =IF(COUNTRY_INFO!C75=0," ",COUNTRY_INFO!C75) -> Babati Town Council | D75: =IF(COUNTRY_INFO!$T$9:$T$1000="MDA1 (IVM+ALB)", COUNTRY_INFO!$T$9:$T$1000, " ") ->  | I75: 0 | M75: 0
A76: =IF(COUNTRY_INFO!A76=0," ",COUNTRY_INFO!A76) -> Tanzania | B76: =IF(COUNTRY_INFO!B76=0," ",COUNTRY_INFO!B76) -> Manyara | C76: =IF(COUNTRY_INFO!C76=0," ",COUNTRY_INFO!C76) -> Hanang District Council | D76: =IF(COUNTRY_INFO!$T$9:$T$1000="MDA1 (IVM+ALB)", COUNTRY_INFO!$T$9:$T$1000, " ") ->  | I76: 0 | M76: 0
A77: =IF(COUNTRY_INFO!A77=0," ",COUNTRY_INFO!A77) -> Tanzania | B77: =IF(COUNTRY_INFO!B77=0," ",COUNTRY_INFO!B77) -> Manyara | C77: =IF(COUNTRY_INFO!C77=0," ",COUNTRY_INFO!C77) -> Kiteto District Council | D77: =IF(COUNTRY_INFO!$T$9:$T$1000="MDA1 (IVM+ALB)", COUNTRY_INFO!$T$9:$T$1000, " ") ->  | I77: 0 | M77: 0
A78: =IF(COUNTRY_INFO!A78=0," ",COUNTRY_INFO!A78) -> Tanzania | B78: =IF(COUNTRY_INFO!B78=0," ",COUNTRY_INFO!B78) -> Manyara | C78: =IF(COUNTRY_INFO!C78=0," ",COUNTRY_INFO!C78) -> Mbulu District Council | D78: =IF(COUNTRY_INFO!$T$9:$T$1000="MDA1 (IVM+ALB)", COUNTRY_INFO!$T$9:$T$1000, " ") ->  | I78: 0 | M78: 0
A79: =IF(COUNTRY_INFO!A79=0," ",COUNTRY_INFO!A79) -> Tanzania | B79: =IF(COUNTRY_INFO!B79=0," ",COUNTRY_INFO!B79) -> Manyara | C79: =IF(COUNTRY_INFO!C79=0," ",COUNTRY_INFO!C79) -> Mbulu Town Council | D79: =IF(COUNTRY_INFO!$T$9:$T$1000="MDA1 (IVM+ALB)", COUNTRY_INFO!$T$9:$T$1000, " ") ->  | I79: 0 | M79: 0
A80: =IF(COUNTRY_INFO!A80=0," ",COUNTRY_INFO!A80) -> Tanzania | B80: =IF(COUNTRY_INFO!B80=0," ",COUNTRY_INFO!B80) -> Manyara | C80: =IF(COUNTRY_INFO!C80=0," ",COUNTRY_INFO!C80) -> Simanjiro District Council | D80: =IF(COUNTRY_INFO!$T$9:$T$1000="MDA1 (IVM+ALB)", COUNTRY_INFO!$T$9:$T$1000, " ") ->  | I80: 0 | M80: 0
A81: =IF(COUNTRY_INFO!A81=0," ",COUNTRY_INFO!A81) -> Tanzania | B81: =IF(COUNTRY_INFO!B81=0," ",COUNTRY_INFO!B81) -> Mara | C81: =IF(COUNTRY_INFO!C81=0," ",COUNTRY_INFO!C81) -> Bunda District Council | D81: =IF(COUNTRY_INFO!$T$9:$T$1000="MDA1 (IVM+ALB)", COUNTRY_INFO!$T$9:$T$1000, " ") ->  | I81: 0 | M81: 0
A82: =IF(COUNTRY_INFO!A82=0," ",COUNTRY_INFO!A82) -> Tanzania | B82: =IF(COUNTRY_INFO!B82=0," ",COUNTRY_INFO!B82) -> Mara | C82: =IF(COUNTRY_INFO!C82=0," ",COUNTRY_INFO!C82) -> Bunda Town Council | D82: =IF(COUNTRY_INFO!$T$9:$T$1000="MDA1 (IVM+ALB)", COUNTRY_INFO!$T$9:$T$1000, " ") ->  | I82: 0 | M82: 0
A83: =IF(COUNTRY_INFO!A83=0," ",COUNTRY_INFO!A83) -> Tanzania | B83: =IF(COUNTRY_INFO!B83=0," ",COUNTRY_INFO!B83) -> Mara | C83: =IF(COUNTRY_INFO!C83=0," ",COUNTRY_INFO!C83) -> Butiama District Council | D83: =IF(COUNTRY_INFO!$T$9:$T$1000="MDA1 (IVM+ALB)", COUNTRY_INFO!$T$9:$T$1000, " ") ->  | I83: 0 | M83: 0
A84: =IF(COUNTRY_INFO!A84=0," ",COUNTRY_INFO!A84) -> Tanzania | B84: =IF(COUNTRY_INFO!B84=0," ",COUNTRY_INFO!B84) -> Mara | C84: =IF(COUNTRY_INFO!C84=0," ",COUNTRY_INFO!C84) -> Musoma District Council | D84: =IF(COUNTRY_INFO!$T$9:$T$1000="MDA1 (IVM+ALB)", COUNTRY_INFO!$T$9:$T$1000, " ") ->  | I84: 0 | M84: 0
A85: =IF(COUNTRY_INFO!A85=0," ",COUNTRY_INFO!A85) -> Tanzania | B85: =IF(COUNTRY_INFO!B85=0," ",COUNTRY_INFO!B85) -> Mara | C85: =IF(COUNTRY_INFO!C85=0," ",COUNTRY_INFO!C85) -> Musoma Municipal Council | D85: =IF(COUNTRY_INFO!$T$9:$T$1000="MDA1 (IVM+ALB)", COUNTRY_INFO!$T$9:$T$1000, " ") ->  | I85: 0 | M85: 0
A86: =IF(COUNTRY_INFO!A86=0," ",COUNTRY_INFO!A86) -> Tanzania | B86: =IF(COUNTRY_INFO!B86=0," ",COUNTRY_INFO!B86) -> Mara | C86: =IF(COUNTRY_INFO!C86=0," ",COUNTRY_INFO!C86) -> Rorya District Council | D86: =IF(COUNTRY_INFO!$T$9:$T$1000="MDA1 (IVM+ALB)", COUNTRY_INFO!$T$9:$T$1000, " ") ->  | I86: 0 | M86: 0
A87: =IF(COUNTRY_INFO!A87=0," ",COUNTRY_INFO!A87) -> Tanzania | B87: =IF(COUNTRY_INFO!B87=0," ",COUNTRY_INFO!B87) -> Mara | C87: =IF(COUNTRY_INFO!C87=0," ",COUNTRY_INFO!C87) -> Serengeti District Council | D87: =IF(COUNTRY_INFO!$T$9:$T$1000="MDA1 (IVM+ALB)", COUNTRY_INFO!$T$9:$T$1000, " ") ->  | I87: 0 | M87: 0
A88: =IF(COUNTRY_INFO!A88=0," ",COUNTRY_INFO!A88) -> Tanzania | B88: =IF(COUNTRY_INFO!B88=0," ",COUNTRY_INFO!B88) -> Mara | C88: =IF(COUNTRY_INFO!C88=0," ",COUNTRY_INFO!C88) -> Tarime District Council | D88: =IF(COUNTRY_INFO!$T$9:$T$1000="MDA1 (IVM+ALB)", COUNTRY_INFO!$T$9:$T$1000, " ") ->  | I88: 0 | M88: 0
A89: =IF(COUNTRY_INFO!A89=0," ",COUNTRY_INFO!A89) -> Tanzania | B89: =IF(COUNTRY_INFO!B89=0," ",COUNTRY_INFO!B89) -> Mara | C89: =IF(COUNTRY_INFO!C89=0," ",COUNTRY_INFO!C89) -> Tarime Town Council | D89: =IF(COUNTRY_INFO!$T$9:$T$1000="MDA1 (IVM+ALB)", COUNTRY_INFO!$T$9:$T$1000, " ") ->  | I89: 0 | M89: 0
A90: =IF(COUNTRY_INFO!A90=0," ",COUNTRY_INFO!A90) -> Tanzania | B90: =IF(COUNTRY_INFO!B90=0," ",COUNTRY_INFO!B90) -> Mbeya | C90: =IF(COUNTRY_INFO!C90=0," ",COUNTRY_INFO!C90) -> Busokelo District Council | D90: =IF(COUNTRY_INFO!$T$9:$T$1000="MDA1 (IVM+ALB)", COUNTRY_INFO!$T$9:$T$1000, " ") ->  | I90: 0 | M90: 0
A91: =IF(COUNTRY_INFO!A91=0," ",COUNTRY_INFO!A91) -> Tanzania | B91: =IF(COUNTRY_INFO!B91=0," ",COUNTRY_INFO!B91) -> Mbeya | C91: =IF(COUNTRY_INFO!C91=0," ",COUNTRY_INFO!C91) -> Chunya District Council | D91: =IF(COUNTRY_INFO!$T$9:$T$1000="MDA1 (IVM+ALB)", COUNTRY_INFO!$T$9:$T$1000, " ") ->  | I91: 0 | M91: 0
A92: =IF(COUNTRY_INFO!A92=0," ",COUNTRY_INFO!A92) -> Tanzania | B92: =IF(COUNTRY_INFO!B92=0," ",COUNTRY_INFO!B92) -> Mbeya | C92: =IF(COUNTRY_INFO!C92=0," ",COUNTRY_INFO!C92) -> Kyela District Council | D92: =IF(COUNTRY_INFO!$T$9:$T$1000="MDA1 (IVM+ALB)", COUNTRY_INFO!$T$9:$T$1000, " ") ->  | I92: 0 | M92: 0
A93: =IF(COUNTRY_INFO!A93=0," ",COUNTRY_INFO!A93) -> Tanzania | B93: =IF(COUNTRY_INFO!B93=0," ",COUNTRY_INFO!B93) -> Mbeya | C93: =IF(COUNTRY_INFO!C93=0," ",COUNTRY_INFO!C93) -> Mbarali District Council | D93: =IF(COUNTRY_INFO!$T$9:$T$1000="MDA1 (IVM+ALB)", COUNTRY_INFO!$T$9:$T$1000, " ") ->  | I93: 0 | M93: 0
A94: =IF(COUNTRY_INFO!A94=0," ",COUNTRY_INFO!A94) -> Tanzania | B94: =IF(COUNTRY_INFO!B94=0," ",COUNTRY_INFO!B94) -> Mbeya | C94: =IF(COUNTRY_INFO!C94=0," ",COUNTRY_INFO!C94) -> Mbeya City Council | D94: =IF(COUNTRY_INFO!$T$9:$T$1000="MDA1 (IVM+ALB)", COUNTRY_INFO!$T$9:$T$1000, " ") ->  | I94: 0 | M94: 0
A95: =IF(COUNTRY_INFO!A95=0," ",COUNTRY_INFO!A95) -> Tanzania | B95: =IF(COUNTRY_INFO!B95=0," ",COUNTRY_INFO!B95) -> Mbeya | C95: =IF(COUNTRY_INFO!C95=0," ",COUNTRY_INFO!C95) -> Mbeya District Council | D95: =IF(COUNTRY_INFO!$T$9:$T$1000="MDA1 (IVM+ALB)", COUNTRY_INFO!$T$9:$T$1000, " ") ->  | I95: 0 | M95: 0
A96: =IF(COUNTRY_INFO!A96=0," ",COUNTRY_INFO!A96) -> Tanzania | B96: =IF(COUNTRY_INFO!B96=0," ",COUNTRY_INFO!B96) -> Mbeya | C96: =IF(COUNTRY_INFO!C96=0," ",COUNTRY_INFO!C96) -> Rungwe District Council | D96: =IF(COUNTRY_INFO!$T$9:$T$1000="MDA1 (IVM+ALB)", COUNTRY_INFO!$T$9:$T$1000, " ") ->  | I96: 0 | M96: 0
A97: =IF(COUNTRY_INFO!A97=0," ",COUNTRY_INFO!A97) -> Tanzania | B97: =IF(COUNTRY_INFO!B97=0," ",COUNTRY_INFO!B97) -> Morogoro | C97: =IF(COUNTRY_INFO!C97=0," ",COUNTRY_INFO!C97) -> Gairo District Council | D97: =IF(COUNTRY_INFO!$T$9:$T$1000="MDA1 (IVM+ALB)", COUNTRY_INFO!$T$9:$T$1000, " ") ->  | I97: 0 | M97: 0
A98: =IF(COUNTRY_INFO!A98=0," ",COUNTRY_INFO!A98) -> Tanzania | B98: =IF(COUNTRY_INFO!B98=0," ",COUNTRY_INFO!B98) -> Morogoro | C98: =IF(COUNTRY_INFO!C98=0," ",COUNTRY_INFO!C98) -> Ifakara Town Council | D98: =IF(COUNTRY_INFO!$T$9:$T$1000="MDA1 (IVM+ALB)", COUNTRY_INFO!$T$9:$T$1000, " ") ->  | I98: 0 | M98: 0
A99: =IF(COUNTRY_INFO!A99=0," ",COUNTRY_INFO!A99) -> Tanzania | B99: =IF(COUNTRY_INFO!B99=0," ",COUNTRY_INFO!B99) -> Morogoro | C99: =IF(COUNTRY_INFO!C99=0," ",COUNTRY_INFO!C99) -> Mlimba District Council | D99: =IF(COUNTRY_INFO!$T$9:$T$1000="MDA1 (IVM+ALB)", COUNTRY_INFO!$T$9:$T$1000, " ") ->  | I99: 0 | M99: 0
A100: =IF(COUNTRY_INFO!A100=0," ",COUNTRY_INFO!A100) -> Tanzania | B100: =IF(COUNTRY_INFO!B100=0," ",COUNTRY_INFO!B100) -> Morogoro | C100: =IF(COUNTRY_INFO!C100=0," ",COUNTRY_INFO!C100) -> Kilosa District Council | D100: =IF(COUNTRY_INFO!$T$9:$T$1000="MDA1 (IVM+ALB)", COUNTRY_INFO!$T$9:$T$1000, " ") ->  | I100: 0 | M100: 0
A101: =IF(COUNTRY_INFO!A101=0," ",COUNTRY_INFO!A101) -> Tanzania | B101: =IF(COUNTRY_INFO!B101=0," ",COUNTRY_INFO!B101) -> Morogoro | C101: =IF(COUNTRY_INFO!C101=0," ",COUNTRY_INFO!C101) -> Malinyi District Council | D101: =IF(COUNTRY_INFO!$T$9:$T$1000="MDA1 (IVM+ALB)", COUNTRY_INFO!$T$9:$T$1000, " ") ->  | I101: 0 | M101: 0
A102: =IF(COUNTRY_INFO!A102=0," ",COUNTRY_INFO!A102) -> Tanzania | B102: =IF(COUNTRY_INFO!B102=0," ",COUNTRY_INFO!B102) -> Morogoro | C102: =IF(COUNTRY_INFO!C102=0," ",COUNTRY_INFO!C102) -> Morogoro District Council | D102: =IF(COUNTRY_INFO!$T$9:$T$1000="MDA1 (IVM+ALB)", COUNTRY_INFO!$T$9:$T$1000, " ") ->  | I102: 0 | M102: 0
A103: =IF(COUNTRY_INFO!A103=0," ",COUNTRY_INFO!A103) -> Tanzania | B103: =IF(COUNTRY_INFO!B103=0," ",COUNTRY_INFO!B103) -> Morogoro | C103: =IF(COUNTRY_INFO!C103=0," ",COUNTRY_INFO!C103) -> Morogoro Municipal Council | D103: =IF(COUNTRY_INFO!$T$9:$T$1000="MDA1 (IVM+ALB)", COUNTRY_INFO!$T$9:$T$1000, " ") ->  | I103: 0 | M103: 0
A104: =IF(COUNTRY_INFO!A104=0," ",COUNTRY_INFO!A104) -> Tanzania | B104: =IF(COUNTRY_INFO!B104=0," ",COUNTRY_INFO!B104) -> Morogoro | C104: =IF(COUNTRY_INFO!C104=0," ",COUNTRY_INFO!C104) -> Mvomero District Council | D104: =IF(COUNTRY_INFO!$T$9:$T$1000="MDA1 (IVM+ALB)", COUNTRY_INFO!$T$9:$T$1000, " ") ->  | I104: 0 | M104: 0
A105: =IF(COUNTRY_INFO!A105=0," ",COUNTRY_INFO!A105) -> Tanzania | B105: =IF(COUNTRY_INFO!B105=0," ",COUNTRY_INFO!B105) -> Morogoro | C105: =IF(COUNTRY_INFO!C105=0," ",COUNTRY_INFO!C105) -> Ulanga District Council | D105: =IF(COUNTRY_INFO!$T$9:$T$1000="MDA1 (IVM+ALB)", COUNTRY_INFO!$T$9:$T$1000, " ") ->  | I105: 0 | M105: 0
A106: =IF(COUNTRY_INFO!A106=0," ",COUNTRY_INFO!A106) -> Tanzania | B106: =IF(COUNTRY_INFO!B106=0," ",COUNTRY_INFO!B106) -> Mtwara | C106: =IF(COUNTRY_INFO!C106=0," ",COUNTRY_INFO!C106) -> Masasi District Council | D106: =IF(COUNTRY_INFO!$T$9:$T$1000="MDA1 (IVM+ALB)", COUNTRY_INFO!$T$9:$T$1000, " ") ->  | I106: 0 | M106: 0
A107: =IF(COUNTRY_INFO!A107=0," ",COUNTRY_INFO!A107) -> Tanzania | B107: =IF(COUNTRY_INFO!B107=0," ",COUNTRY_INFO!B107) -> Mtwara | C107: =IF(COUNTRY_INFO!C107=0," ",COUNTRY_INFO!C107) -> Masasi Town Council | D107: =IF(COUNTRY_INFO!$T$9:$T$1000="MDA1 (IVM+ALB)", COUNTRY_INFO!$T$9:$T$1000, " ") ->  | I107: 0 | M107: 0
A108: =IF(COUNTRY_INFO!A108=0," ",COUNTRY_INFO!A108) -> Tanzania | B108: =IF(COUNTRY_INFO!B108=0," ",COUNTRY_INFO!B108) -> Mtwara | C108: =IF(COUNTRY_INFO!C108=0," ",COUNTRY_INFO!C108) -> Mtwara District Council | D108: =IF(COUNTRY_INFO!$T$9:$T$1000="MDA1 (IVM+ALB)", COUNTRY_INFO!$T$9:$T$1000, " ") ->  | I108: 0 | M108: 0
A109: =IF(COUNTRY_INFO!A109=0," ",COUNTRY_INFO!A109) -> Tanzania | B109: =IF(COUNTRY_INFO!B109=0," ",COUNTRY_INFO!B109) -> Mtwara | C109: =IF(COUNTRY_INFO!C109=0," ",COUNTRY_INFO!C109) -> Mtwara-Mikindani Municipal Council | D109: =IF(COUNTRY_INFO!$T$9:$T$1000="MDA1 (IVM+ALB)", COUNTRY_INFO!$T$9:$T$1000, " ") -> MDA1 (IVM+ALB) | E109: August 2021 | G109: 38929 | H109: 80425 | I109: 119354 | K109: 20999 | L109: 91929 | M109: 112928 | O109: 53.94179147 | P109: 114.3040099 | Q109: 94.61601622
A110: =IF(COUNTRY_INFO!A110=0," ",COUNTRY_INFO!A110) -> Tanzania | B110: =IF(COUNTRY_INFO!B110=0," ",COUNTRY_INFO!B110) -> Mtwara | C110: =IF(COUNTRY_INFO!C110=0," ",COUNTRY_INFO!C110) -> Nanyamba Town Council | D110: =IF(COUNTRY_INFO!$T$9:$T$1000="MDA1 (IVM+ALB)", COUNTRY_INFO!$T$9:$T$1000, " ") ->  | I110: 0 | M110: 0
A111: =IF(COUNTRY_INFO!A111=0," ",COUNTRY_INFO!A111) -> Tanzania | B111: =IF(COUNTRY_INFO!B111=0," ",COUNTRY_INFO!B111) -> Mtwara | C111: =IF(COUNTRY_INFO!C111=0," ",COUNTRY_INFO!C111) -> Nanyumbu District Council | D111: =IF(COUNTRY_INFO!$T$9:$T$1000="MDA1 (IVM+ALB)", COUNTRY_INFO!$T$9:$T$1000, " ") ->  | I111: 0 | M111: 0
A112: =IF(COUNTRY_INFO!A112=0," ",COUNTRY_INFO!A112) -> Tanzania | B112: =IF(COUNTRY_INFO!B112=0," ",COUNTRY_INFO!B112) -> Mtwara | C112: =IF(COUNTRY_INFO!C112=0," ",COUNTRY_INFO!C112) -> Newala District Council | D112: =IF(COUNTRY_INFO!$T$9:$T$1000="MDA1 (IVM+ALB)", COUNTRY_INFO!$T$9:$T$1000, " ") ->  | I112: 0 | M112: 0
A113: =IF(COUNTRY_INFO!A113=0," ",COUNTRY_INFO!A113) -> Tanzania | B113: =IF(COUNTRY_INFO!B113=0," ",COUNTRY_INFO!B113) -> Mtwara | C113: =IF(COUNTRY_INFO!C113=0," ",COUNTRY_INFO!C113) -> Newala Town Council | D113: =IF(COUNTRY_INFO!$T$9:$T$1000="MDA1 (IVM+ALB)", COUNTRY_INFO!$T$9:$T$1000, " ") ->  | I113: 0 | M113: 0
A114: =IF(COUNTRY_INFO!A114=0," ",COUNTRY_INFO!A114) -> Tanzania | B114: =IF(COUNTRY_INFO!B114=0," ",COUNTRY_INFO!B114) -> Mtwara | C114: =IF(COUNTRY_INFO!C114=0," ",COUNTRY_INFO!C114) -> Tandahimba District Council | D114: =IF(COUNTRY_INFO!$T$9:$T$1000="MDA1 (IVM+ALB)", COUNTRY_INFO!$T$9:$T$1000, " ") ->  | I114: 0 | M114: 0
A115: =IF(COUNTRY_INFO!A115=0," ",COUNTRY_INFO!A115) -> Tanzania | B115: =IF(COUNTRY_INFO!B115=0," ",COUNTRY_INFO!B115) -> Mwanza | C115: =IF(COUNTRY_INFO!C115=0," ",COUNTRY_INFO!C115) -> Buchosa District Council | D115: =IF(COUNTRY_INFO!$T$9:$T$1000="MDA1 (IVM+ALB)", COUNTRY_INFO!$T$9:$T$1000, " ") ->  | I115: 0 | M115: 0
A116: =IF(COUNTRY_INFO!A116=0," ",COUNTRY_INFO!A116) -> Tanzania | B116: =IF(COUNTRY_INFO!B116=0," ",COUNTRY_INFO!B116) -> Mwanza | C116: =IF(COUNTRY_INFO!C116=0," ",COUNTRY_INFO!C116) -> Ilemela Municipal Council | D116: =IF(COUNTRY_INFO!$T$9:$T$1000="MDA1 (IVM+ALB)", COUNTRY_INFO!$T$9:$T$1000, " ") ->  | I116: 0 | M116: 0
A117: =IF(COUNTRY_INFO!A117=0," ",COUNTRY_INFO!A117) -> Tanzania | B117: =IF(COUNTRY_INFO!B117=0," ",COUNTRY_INFO!B117) -> Mwanza | C117: =IF(COUNTRY_INFO!C117=0," ",COUNTRY_INFO!C117) -> Kwimba District Council | D117: =IF(COUNTRY_INFO!$T$9:$T$1000="MDA1 (IVM+ALB)", COUNTRY_INFO!$T$9:$T$1000, " ") ->  | I117: 0 | M117: 0
A118: =IF(COUNTRY_INFO!A118=0," ",COUNTRY_INFO!A118) -> Tanzania | B118: =IF(COUNTRY_INFO!B118=0," ",COUNTRY_INFO!B118) -> Mwanza | C118: =IF(COUNTRY_INFO!C118=0," ",COUNTRY_INFO!C118) -> Magu District Council | D118: =IF(COUNTRY_INFO!$T$9:$T$1000="MDA1 (IVM+ALB)", COUNTRY_INFO!$T$9:$T$1000, " ") ->  | I118: 0 | M118: 0
A119: =IF(COUNTRY_INFO!A119=0," ",COUNTRY_INFO!A119) -> Tanzania | B119: =IF(COUNTRY_INFO!B119=0," ",COUNTRY_INFO!B119) -> Mwanza | C119: =IF(COUNTRY_INFO!C119=0," ",COUNTRY_INFO!C119) -> Misungwi District Council | D119: =IF(COUNTRY_INFO!$T$9:$T$1000="MDA1 (IVM+ALB)", COUNTRY_INFO!$T$9:$T$1000, " ") ->  | I119: 0 | M119: 0
A120: =IF(COUNTRY_INFO!A120=0," ",COUNTRY_INFO!A120) -> Tanzania | B120: =IF(COUNTRY_INFO!B120=0," ",COUNTRY_INFO!B120) -> Mwanza | C120: =IF(COUNTRY_INFO!C120=0," ",COUNTRY_INFO!C120) -> Mwanza-Nyamagana City Council | D120: =IF(COUNTRY_INFO!$T$9:$T$1000="MDA1 (IVM+ALB)", COUNTRY_INFO!$T$9:$T$1000, " ") ->  | I120: 0 | M120: 0
A121: =IF(COUNTRY_INFO!A121=0," ",COUNTRY_INFO!A121) -> Tanzania | B121: =IF(COUNTRY_INFO!B121=0," ",COUNTRY_INFO!B121) -> Mwanza | C121: =IF(COUNTRY_INFO!C121=0," ",COUNTRY_INFO!C121) -> Sengerema District Council | D121: =IF(COUNTRY_INFO!$T$9:$T$1000="MDA1 (IVM+ALB)", COUNTRY_INFO!$T$9:$T$1000, " ") ->  | I121: 0 | M121: 0
A122: =IF(COUNTRY_INFO!A122=0," ",COUNTRY_INFO!A122) -> Tanzania | B122: =IF(COUNTRY_INFO!B122=0," ",COUNTRY_INFO!B122) -> Mwanza | C122: =IF(COUNTRY_INFO!C122=0," ",COUNTRY_INFO!C122) -> Ukerewe District Council | D122: =IF(COUNTRY_INFO!$T$9:$T$1000="MDA1 (IVM+ALB)", COUNTRY_INFO!$T$9:$T$1000, " ") ->  | I122: 0 | M122: 0
A123: =IF(COUNTRY_INFO!A123=0," ",COUNTRY_INFO!A123) -> Tanzania | B123: =IF(COUNTRY_INFO!B123=0," ",COUNTRY_INFO!B123) -> Njombe | C123: =IF(COUNTRY_INFO!C123=0," ",COUNTRY_INFO!C123) -> Ludewa District Council | D123: =IF(COUNTRY_INFO!$T$9:$T$1000="MDA1 (IVM+ALB)", COUNTRY_INFO!$T$9:$T$1000, " ") ->  | I123: 0 | M123: 0
A124: =IF(COUNTRY_INFO!A124=0," ",COUNTRY_INFO!A124) -> Tanzania | B124: =IF(COUNTRY_INFO!B124=0," ",COUNTRY_INFO!B124) -> Njombe | C124: =IF(COUNTRY_INFO!C124=0," ",COUNTRY_INFO!C124) -> Makambako Town Council | D124: =IF(COUNTRY_INFO!$T$9:$T$1000="MDA1 (IVM+ALB)", COUNTRY_INFO!$T$9:$T$1000, " ") ->  | I124: 0 | M124: 0
A125: =IF(COUNTRY_INFO!A125=0," ",COUNTRY_INFO!A125) -> Tanzania | B125: =IF(COUNTRY_INFO!B125=0," ",COUNTRY_INFO!B125) -> Njombe | C125: =IF(COUNTRY_INFO!C125=0," ",COUNTRY_INFO!C125) -> Makete District Council | D125: =IF(COUNTRY_INFO!$T$9:$T$1000="MDA1 (IVM+ALB)", COUNTRY_INFO!$T$9:$T$1000, " ") ->  | I125: 0 | M125: 0
A126: =IF(COUNTRY_INFO!A126=0," ",COUNTRY_INFO!A126) -> Tanzania | B126: =IF(COUNTRY_INFO!B126=0," ",COUNTRY_INFO!B126) -> Njombe | C126: =IF(COUNTRY_INFO!C126=0," ",COUNTRY_INFO!C126) -> Njombe District Council | D126: =IF(COUNTRY_INFO!$T$9:$T$1000="MDA1 (IVM+ALB)", COUNTRY_INFO!$T$9:$T$1000, " ") ->  | I126: 0 | M126: 0
A127: =IF(COUNTRY_INFO!A127=0," ",COUNTRY_INFO!A127) -> Tanzania | B127: =IF(COUNTRY_INFO!B127=0," ",COUNTRY_INFO!B127) -> Njombe | C127: =IF(COUNTRY_INFO!C127=0," ",COUNTRY_INFO!C127) -> Njombe Town Council | D127: =IF(COUNTRY_INFO!$T$9:$T$1000="MDA1 (IVM+ALB)", COUNTRY_INFO!$T$9:$T$1000, " ") ->  | I127: 0 | M127: 0
A128: =IF(COUNTRY_INFO!A128=0," ",COUNTRY_INFO!A128) -> Tanzania | B128: =IF(COUNTRY_INFO!B128=0," ",COUNTRY_INFO!B128) -> Njombe | C128: =IF(COUNTRY_INFO!C128=0," ",COUNTRY_INFO!C128) -> Wanging'ombe District Council | D128: =IF(COUNTRY_INFO!$T$9:$T$1000="MDA1 (IVM+ALB)", COUNTRY_INFO!$T$9:$T$1000, " ") ->  | I128: 0 | M128: 0
A129: =IF(COUNTRY_INFO!A129=0," ",COUNTRY_INFO!A129) -> Tanzania | B129: =IF(COUNTRY_INFO!B129=0," ",COUNTRY_INFO!B129) -> Pwani | C129: =IF(COUNTRY_INFO!C129=0," ",COUNTRY_INFO!C129) -> Bagamoyo District Council | D129: =IF(COUNTRY_INFO!$T$9:$T$1000="MDA1 (IVM+ALB)", COUNTRY_INFO!$T$9:$T$1000, " ") ->  | I129: 0 | M129: 0
A130: =IF(COUNTRY_INFO!A130=0," ",COUNTRY_INFO!A130) -> Tanzania | B130: =IF(COUNTRY_INFO!B130=0," ",COUNTRY_INFO!B130) -> Pwani | C130: =IF(COUNTRY_INFO!C130=0," ",COUNTRY_INFO!C130) -> Chalinze District Council | D130: =IF(COUNTRY_INFO!$T$9:$T$1000="MDA1 (IVM+ALB)", COUNTRY_INFO!$T$9:$T$1000, " ") ->  | I130: 0 | M130: 0
A131: =IF(COUNTRY_INFO!A131=0," ",COUNTRY_INFO!A131) -> Tanzania | B131: =IF(COUNTRY_INFO!B131=0," ",COUNTRY_INFO!B131) -> Pwani | C131: =IF(COUNTRY_INFO!C131=0," ",COUNTRY_INFO!C131) -> Kibaha District Council | D131: =IF(COUNTRY_INFO!$T$9:$T$1000="MDA1 (IVM+ALB)", COUNTRY_INFO!$T$9:$T$1000, " ") ->  | I131: 0 | M131: 0
A132: =IF(COUNTRY_INFO!A132=0," ",COUNTRY_INFO!A132) -> Tanzania | B132: =IF(COUNTRY_INFO!B132=0," ",COUNTRY_INFO!B132) -> Pwani | C132: =IF(COUNTRY_INFO!C132=0," ",COUNTRY_INFO!C132) -> Kibaha Town Council | D132: =IF(COUNTRY_INFO!$T$9:$T$1000="MDA1 (IVM+ALB)", COUNTRY_INFO!$T$9:$T$1000, " ") ->  | I132: 0 | M132: 0
A133: =IF(COUNTRY_INFO!A133=0," ",COUNTRY_INFO!A133) -> Tanzania | B133: =IF(COUNTRY_INFO!B133=0," ",COUNTRY_INFO!B133) -> Pwani | C133: =IF(COUNTRY_INFO!C133=0," ",COUNTRY_INFO!C133) -> Kibiti District Council | D133: =IF(COUNTRY_INFO!$T$9:$T$1000="MDA1 (IVM+ALB)", COUNTRY_INFO!$T$9:$T$1000, " ") ->  | I133: 0 | M133: 0
A134: =IF(COUNTRY_INFO!A134=0," ",COUNTRY_INFO!A134) -> Tanzania | B134: =IF(COUNTRY_INFO!B134=0," ",COUNTRY_INFO!B134) -> Pwani | C134: =IF(COUNTRY_INFO!C134=0," ",COUNTRY_INFO!C134) -> Kisarawe District Council | D134: =IF(COUNTRY_INFO!$T$9:$T$1000="MDA1 (IVM+ALB)", COUNTRY_INFO!$T$9:$T$1000, " ") ->  | I134: 0 | M134: 0
A135: =IF(COUNTRY_INFO!A135=0," ",COUNTRY_INFO!A135) -> Tanzania | B135: =IF(COUNTRY_INFO!B135=0," ",COUNTRY_INFO!B135) -> Pwani | C135: =IF(COUNTRY_INFO!C135=0," ",COUNTRY_INFO!C135) -> Mafia District Council | D135: =IF(COUNTRY_INFO!$T$9:$T$1000="MDA1 (IVM+ALB)", COUNTRY_INFO!$T$9:$T$1000, " ") -> MDA1 (IVM+ALB) | E135: August 2021 | G135: 15410 | H135: 31836 | I135: 47246 | K135: 9023 | L135: 31435 | M135: 40458 | O135: 58.55288774 | P135: 98.74041965 | Q135: 85.63264615
A136: =IF(COUNTRY_INFO!A136=0," ",COUNTRY_INFO!A136) -> Tanzania | B136: =IF(COUNTRY_INFO!B136=0," ",COUNTRY_INFO!B136) -> Pwani | C136: =IF(COUNTRY_INFO!C136=0," ",COUNTRY_INFO!C136) -> Mkuranga District Council | D136: =IF(COUNTRY_INFO!$T$9:$T$1000="MDA1 (IVM+ALB)", COUNTRY_INFO!$T$9:$T$1000, " ") ->  | I136: 0 | M136: 0
A137: =IF(COUNTRY_INFO!A137=0," ",COUNTRY_INFO!A137) -> Tanzania | B137: =IF(COUNTRY_INFO!B137=0," ",COUNTRY_INFO!B137) -> Pwani | C137: =IF(COUNTRY_INFO!C137=0," ",COUNTRY_INFO!C137) -> Rufiji District Council | D137: =IF(COUNTRY_INFO!$T$9:$T$1000="MDA1 (IVM+ALB)", COUNTRY_INFO!$T$9:$T$1000, " ") ->  | I137: 0 | M137: 0
A138: =IF(COUNTRY_INFO!A138=0," ",COUNTRY_INFO!A138) -> Tanzania | B138: =IF(COUNTRY_INFO!B138=0," ",COUNTRY_INFO!B138) -> Rukwa | C138: =IF(COUNTRY_INFO!C138=0," ",COUNTRY_INFO!C138) -> Kalambo District Council | D138: =IF(COUNTRY_INFO!$T$9:$T$1000="MDA1 (IVM+ALB)", COUNTRY_INFO!$T$9:$T$1000, " ") ->  | I138: =SUM(F138:H138) -> 0 | M138: =SUM(J138:L138) -> 0 | O138: =IF(G138<>0, IF(K138/G138*100=0, "-", K138/G138*100), " ") ->  | P138: =IF(H138<>0, IF(L138/H138*100=0, "-", L138/H138*100), " ") ->  | Q138: =IF(I138<>0, IF(M138/I138*100=0, "-", M138/I138*100), " ") -> 
A139: =IF(COUNTRY_INFO!A139=0," ",COUNTRY_INFO!A139) -> Tanzania | B139: =IF(COUNTRY_INFO!B139=0," ",COUNTRY_INFO!B139) -> Rukwa | C139: =IF(COUNTRY_INFO!C139=0," ",COUNTRY_INFO!C139) -> Nkasi District Council | D139: =IF(COUNTRY_INFO!$T$9:$T$1000="MDA1 (IVM+ALB)", COUNTRY_INFO!$T$9:$T$1000, " ") ->  | I139: 0 | M139: 0
A140: =IF(COUNTRY_INFO!A140=0," ",COUNTRY_INFO!A140) -> Tanzania | B140: =IF(COUNTRY_INFO!B140=0," ",COUNTRY_INFO!B140) -> Rukwa | C140: =IF(COUNTRY_INFO!C140=0," ",COUNTRY_INFO!C140) -> Sumbawanga District Council | D140: =IF(COUNTRY_INFO!$T$9:$T$1000="MDA1 (IVM+ALB)", COUNTRY_INFO!$T$9:$T$1000, " ") ->  | I140: 0 | M140: 0
A141: =IF(COUNTRY_INFO!A141=0," ",COUNTRY_INFO!A141) -> Tanzania | B141: =IF(COUNTRY_INFO!B141=0," ",COUNTRY_INFO!B141) -> Rukwa | C141: =IF(COUNTRY_INFO!C141=0," ",COUNTRY_INFO!C141) -> Sumbawanga Municipal Council | D141: =IF(COUNTRY_INFO!$T$9:$T$1000="MDA1 (IVM+ALB)", COUNTRY_INFO!$T$9:$T$1000, " ") ->  | I141: 0 | M141: 0
A142: =IF(COUNTRY_INFO!A142=0," ",COUNTRY_INFO!A142) -> Tanzania | B142: =IF(COUNTRY_INFO!B142=0," ",COUNTRY_INFO!B142) -> Ruvuma | C142: =IF(COUNTRY_INFO!C142=0," ",COUNTRY_INFO!C142) -> Madaba District Council | D142: =IF(COUNTRY_INFO!$T$9:$T$1000="MDA1 (IVM+ALB)", COUNTRY_INFO!$T$9:$T$1000, " ") ->  | I142: 0 | M142: 0
A143: =IF(COUNTRY_INFO!A143=0," ",COUNTRY_INFO!A143) -> Tanzania | B143: =IF(COUNTRY_INFO!B143=0," ",COUNTRY_INFO!B143) -> Ruvuma | C143: =IF(COUNTRY_INFO!C143=0," ",COUNTRY_INFO!C143) -> Mbinga District Council | D143: =IF(COUNTRY_INFO!$T$9:$T$1000="MDA1 (IVM+ALB)", COUNTRY_INFO!$T$9:$T$1000, " ") ->  | I143: 0 | M143: 0
A144: =IF(COUNTRY_INFO!A144=0," ",COUNTRY_INFO!A144) -> Tanzania | B144: =IF(COUNTRY_INFO!B144=0," ",COUNTRY_INFO!B144) -> Ruvuma | C144: =IF(COUNTRY_INFO!C144=0," ",COUNTRY_INFO!C144) -> Mbinga Town Council | D144: =IF(COUNTRY_INFO!$T$9:$T$1000="MDA1 (IVM+ALB)", COUNTRY_INFO!$T$9:$T$1000, " ") ->  | I144: 0 | M144: 0
A145: =IF(COUNTRY_INFO!A145=0," ",COUNTRY_INFO!A145) -> Tanzania | B145: =IF(COUNTRY_INFO!B145=0," ",COUNTRY_INFO!B145) -> Ruvuma | C145: =IF(COUNTRY_INFO!C145=0," ",COUNTRY_INFO!C145) -> Namtumbo District Council | D145: =IF(COUNTRY_INFO!$T$9:$T$1000="MDA1 (IVM+ALB)", COUNTRY_INFO!$T$9:$T$1000, " ") ->  | I145: 0 | M145: 0
A146: =IF(COUNTRY_INFO!A146=0," ",COUNTRY_INFO!A146) -> Tanzania | B146: =IF(COUNTRY_INFO!B146=0," ",COUNTRY_INFO!B146) -> Ruvuma | C146: =IF(COUNTRY_INFO!C146=0," ",COUNTRY_INFO!C146) -> Nyasa District Council | D146: =IF(COUNTRY_INFO!$T$9:$T$1000="MDA1 (IVM+ALB)", COUNTRY_INFO!$T$9:$T$1000, " ") ->  | I146: 0 | M146: 0
A147: =IF(COUNTRY_INFO!A147=0," ",COUNTRY_INFO!A147) -> Tanzania | B147: =IF(COUNTRY_INFO!B147=0," ",COUNTRY_INFO!B147) -> Ruvuma | C147: =IF(COUNTRY_INFO!C147=0," ",COUNTRY_INFO!C147) -> Songea District Council | D147: =IF(COUNTRY_INFO!$T$9:$T$1000="MDA1 (IVM+ALB)", COUNTRY_INFO!$T$9:$T$1000, " ") ->  | I147: 0 | M147: 0
A148: =IF(COUNTRY_INFO!A148=0," ",COUNTRY_INFO!A148) -> Tanzania | B148: =IF(COUNTRY_INFO!B148=0," ",COUNTRY_INFO!B148) -> Ruvuma | C148: =IF(COUNTRY_INFO!C148=0," ",COUNTRY_INFO!C148) -> Songea Municipal Council | D148: =IF(COUNTRY_INFO!$T$9:$T$1000="MDA1 (IVM+ALB)", COUNTRY_INFO!$T$9:$T$1000, " ") ->  | I148: 0 | M148: 0
A149: =IF(COUNTRY_INFO!A149=0," ",COUNTRY_INFO!A149) -> Tanzania | B149: =IF(COUNTRY_INFO!B149=0," ",COUNTRY_INFO!B149) -> Ruvuma | C149: =IF(COUNTRY_INFO!C149=0," ",COUNTRY_INFO!C149) -> Tunduru District Council | D149: =IF(COUNTRY_INFO!$T$9:$T$1000="MDA1 (IVM+ALB)", COUNTRY_INFO!$T$9:$T$1000, " ") ->  | I149: 0 | M149: 0
A150: =IF(COUNTRY_INFO!A150=0," ",COUNTRY_INFO!A150) -> Tanzania | B150: =IF(COUNTRY_INFO!B150=0," ",COUNTRY_INFO!B150) -> Shinyanga | C150: =IF(COUNTRY_INFO!C150=0," ",COUNTRY_INFO!C150) -> Kahama Town Council | D150: =IF(COUNTRY_INFO!$T$9:$T$1000="MDA1 (IVM+ALB)", COUNTRY_INFO!$T$9:$T$1000, " ") ->  | I150: 0 | M150: 0
A151: =IF(COUNTRY_INFO!A151=0," ",COUNTRY_INFO!A151) -> Tanzania | B151: =IF(COUNTRY_INFO!B151=0," ",COUNTRY_INFO!B151) -> Shinyanga | C151: =IF(COUNTRY_INFO!C151=0," ",COUNTRY_INFO!C151) -> Kishapu District Council | D151: =IF(COUNTRY_INFO!$T$9:$T$1000="MDA1 (IVM+ALB)", COUNTRY_INFO!$T$9:$T$1000, " ") ->  | I151: 0 | M151: 0
A152: =IF(COUNTRY_INFO!A152=0," ",COUNTRY_INFO!A152) -> Tanzania | B152: =IF(COUNTRY_INFO!B152=0," ",COUNTRY_INFO!B152) -> Shinyanga | C152: =IF(COUNTRY_INFO!C152=0," ",COUNTRY_INFO!C152) -> Msalala District Council | D152: =IF(COUNTRY_INFO!$T$9:$T$1000="MDA1 (IVM+ALB)", COUNTRY_INFO!$T$9:$T$1000, " ") ->  | I152: 0 | M152: 0
A153: =IF(COUNTRY_INFO!A153=0," ",COUNTRY_INFO!A153) -> Tanzania | B153: =IF(COUNTRY_INFO!B153=0," ",COUNTRY_INFO!B153) -> Shinyanga | C153: =IF(COUNTRY_INFO!C153=0," ",COUNTRY_INFO!C153) -> Shinyanga District Council | D153: =IF(COUNTRY_INFO!$T$9:$T$1000="MDA1 (IVM+ALB)", COUNTRY_INFO!$T$9:$T$1000, " ") ->  | I153: 0 | M153: 0
A154: =IF(COUNTRY_INFO!A154=0," ",COUNTRY_INFO!A154) -> Tanzania | B154: =IF(COUNTRY_INFO!B154=0," ",COUNTRY_INFO!B154) -> Shinyanga | C154: =IF(COUNTRY_INFO!C154=0," ",COUNTRY_INFO!C154) -> Shinyanga Municipal Council | D154: =IF(COUNTRY_INFO!$T$9:$T$1000="MDA1 (IVM+ALB)", COUNTRY_INFO!$T$9:$T$1000, " ") ->  | I154: 0 | M154: 0
A155: =IF(COUNTRY_INFO!A155=0," ",COUNTRY_INFO!A155) -> Tanzania | B155: =IF(COUNTRY_INFO!B155=0," ",COUNTRY_INFO!B155) -> Shinyanga | C155: =IF(COUNTRY_INFO!C155=0," ",COUNTRY_INFO!C155) -> Ushetu District Council | D155: =IF(COUNTRY_INFO!$T$9:$T$1000="MDA1 (IVM+ALB)", COUNTRY_INFO!$T$9:$T$1000, " ") ->  | I155: 0 | M155: 0
A156: =IF(COUNTRY_INFO!A156=0," ",COUNTRY_INFO!A156) -> Tanzania | B156: =IF(COUNTRY_INFO!B156=0," ",COUNTRY_INFO!B156) -> Simiyu | C156: =IF(COUNTRY_INFO!C156=0," ",COUNTRY_INFO!C156) -> Bariadi District Council | D156: =IF(COUNTRY_INFO!$T$9:$T$1000="MDA1 (IVM+ALB)", COUNTRY_INFO!$T$9:$T$1000, " ") ->  | I156: 0 | M156: 0
A157: =IF(COUNTRY_INFO!A157=0," ",COUNTRY_INFO!A157) -> Tanzania | B157: =IF(COUNTRY_INFO!B157=0," ",COUNTRY_INFO!B157) -> Simiyu | C157: =IF(COUNTRY_INFO!C157=0," ",COUNTRY_INFO!C157) -> Bariadi Town Council | D157: =IF(COUNTRY_INFO!$T$9:$T$1000="MDA1 (IVM+ALB)", COUNTRY_INFO!$T$9:$T$1000, " ") ->  | I157: 0 | M157: 0
A158: =IF(COUNTRY_INFO!A158=0," ",COUNTRY_INFO!A158) -> Tanzania | B158: =IF(COUNTRY_INFO!B158=0," ",COUNTRY_INFO!B158) -> Simiyu | C158: =IF(COUNTRY_INFO!C158=0," ",COUNTRY_INFO!C158) -> Busega District Council | D158: =IF(COUNTRY_INFO!$T$9:$T$1000="MDA1 (IVM+ALB)", COUNTRY_INFO!$T$9:$T$1000, " ") ->  | I158: 0 | M158: 0
A159: =IF(COUNTRY_INFO!A159=0," ",COUNTRY_INFO!A159) -> Tanzania | B159: =IF(COUNTRY_INFO!B159=0," ",COUNTRY_INFO!B159) -> Simiyu | C159: =IF(COUNTRY_INFO!C159=0," ",COUNTRY_INFO!C159) -> Itilima District Council | D159: =IF(COUNTRY_INFO!$T$9:$T$1000="MDA1 (IVM+ALB)", COUNTRY_INFO!$T$9:$T$1000, " ") ->  | I159: 0 | M159: 0
A160: =IF(COUNTRY_INFO!A160=0," ",COUNTRY_INFO!A160) -> Tanzania | B160: =IF(COUNTRY_INFO!B160=0," ",COUNTRY_INFO!B160) -> Simiyu | C160: =IF(COUNTRY_INFO!C160=0," ",COUNTRY_INFO!C160) -> Maswa District Council | D160: =IF(COUNTRY_INFO!$T$9:$T$1000="MDA1 (IVM+ALB)", COUNTRY_INFO!$T$9:$T$1000, " ") ->  | I160: 0 | M160: 0
A161: =IF(COUNTRY_INFO!A161=0," ",COUNTRY_INFO!A161) -> Tanzania | B161: =IF(COUNTRY_INFO!B161=0," ",COUNTRY_INFO!B161) -> Simiyu | C161: =IF(COUNTRY_INFO!C161=0," ",COUNTRY_INFO!C161) -> Meatu District Council | D161: =IF(COUNTRY_INFO!$T$9:$T$1000="MDA1 (IVM+ALB)", COUNTRY_INFO!$T$9:$T$1000, " ") ->  | I161: 0 | M161: 0
A162: =IF(COUNTRY_INFO!A162=0," ",COUNTRY_INFO!A162) -> Tanzania | B162: =IF(COUNTRY_INFO!B162=0," ",COUNTRY_INFO!B162) -> Singida | C162: =IF(COUNTRY_INFO!C162=0," ",COUNTRY_INFO!C162) -> Ikungi District Council | D162: =IF(COUNTRY_INFO!$T$9:$T$1000="MDA1 (IVM+ALB)", COUNTRY_INFO!$T$9:$T$1000, " ") ->  | I162: 0 | M162: 0
A163: =IF(COUNTRY_INFO!A163=0," ",COUNTRY_INFO!A163) -> Tanzania | B163: =IF(COUNTRY_INFO!B163=0," ",COUNTRY_INFO!B163) -> Singida | C163: =IF(COUNTRY_INFO!C163=0," ",COUNTRY_INFO!C163) -> Iramba District Council | D163: =IF(COUNTRY_INFO!$T$9:$T$1000="MDA1 (IVM+ALB)", COUNTRY_INFO!$T$9:$T$1000, " ") ->  | I163: 0 | M163: 0
A164: =IF(COUNTRY_INFO!A164=0," ",COUNTRY_INFO!A164) -> Tanzania | B164: =IF(COUNTRY_INFO!B164=0," ",COUNTRY_INFO!B164) -> Singida | C164: =IF(COUNTRY_INFO!C164=0," ",COUNTRY_INFO!C164) -> Itigi District Council | D164: =IF(COUNTRY_INFO!$T$9:$T$1000="MDA1 (IVM+ALB)", COUNTRY_INFO!$T$9:$T$1000, " ") ->  | I164: 0 | M164: 0
A165: =IF(COUNTRY_INFO!A165=0," ",COUNTRY_INFO!A165) -> Tanzania | B165: =IF(COUNTRY_INFO!B165=0," ",COUNTRY_INFO!B165) -> Singida | C165: =IF(COUNTRY_INFO!C165=0," ",COUNTRY_INFO!C165) -> Manyoni District Council | D165: =IF(COUNTRY_INFO!$T$9:$T$1000="MDA1 (IVM+ALB)", COUNTRY_INFO!$T$9:$T$1000, " ") ->  | I165: 0 | M165: 0
A166: =IF(COUNTRY_INFO!A166=0," ",COUNTRY_INFO!A166) -> Tanzania | B166: =IF(COUNTRY_INFO!B166=0," ",COUNTRY_INFO!B166) -> Singida | C166: =IF(COUNTRY_INFO!C166=0," ",COUNTRY_INFO!C166) -> Mkalama District Council | D166: =IF(COUNTRY_INFO!$T$9:$T$1000="MDA1 (IVM+ALB)", COUNTRY_INFO!$T$9:$T$1000, " ") ->  | I166: 0 | M166: 0
A167: =IF(COUNTRY_INFO!A167=0," ",COUNTRY_INFO!A167) -> Tanzania | B167: =IF(COUNTRY_INFO!B167=0," ",COUNTRY_INFO!B167) -> Singida | C167: =IF(COUNTRY_INFO!C167=0," ",COUNTRY_INFO!C167) -> Singida District Council | D167: =IF(COUNTRY_INFO!$T$9:$T$1000="MDA1 (IVM+ALB)", COUNTRY_INFO!$T$9:$T$1000, " ") ->  | I167: 0 | M167: 0
A168: =IF(COUNTRY_INFO!A168=0," ",COUNTRY_INFO!A168) -> Tanzania | B168: =IF(COUNTRY_INFO!B168=0," ",COUNTRY_INFO!B168) -> Singida | C168: =IF(COUNTRY_INFO!C168=0," ",COUNTRY_INFO!C168) -> Singida Municipal Council | D168: =IF(COUNTRY_INFO!$T$9:$T$1000="MDA1 (IVM+ALB)", COUNTRY_INFO!$T$9:$T$1000, " ") ->  | I168: 0 | M168: 0
A169: =IF(COUNTRY_INFO!A169=0," ",COUNTRY_INFO!A169) -> Tanzania | B169: =IF(COUNTRY_INFO!B169=0," ",COUNTRY_INFO!B169) -> Songwe | C169: =IF(COUNTRY_INFO!C169=0," ",COUNTRY_INFO!C169) -> Ileje District Council | D169: =IF(COUNTRY_INFO!$T$9:$T$1000="MDA1 (IVM+ALB)", COUNTRY_INFO!$T$9:$T$1000, " ") ->  | I169: 0 | M169: 0
A170: =IF(COUNTRY_INFO!A170=0," ",COUNTRY_INFO!A170) -> Tanzania | B170: =IF(COUNTRY_INFO!B170=0," ",COUNTRY_INFO!B170) -> Songwe | C170: =IF(COUNTRY_INFO!C170=0," ",COUNTRY_INFO!C170) -> Mbozi District Council | D170: =IF(COUNTRY_INFO!$T$9:$T$1000="MDA1 (IVM+ALB)", COUNTRY_INFO!$T$9:$T$1000, " ") ->  | I170: 0 | M170: 0
A171: =IF(COUNTRY_INFO!A171=0," ",COUNTRY_INFO!A171) -> Tanzania | B171: =IF(COUNTRY_INFO!B171=0," ",COUNTRY_INFO!B171) -> Songwe | C171: =IF(COUNTRY_INFO!C171=0," ",COUNTRY_INFO!C171) -> Momba District Council | D171: =IF(COUNTRY_INFO!$T$9:$T$1000="MDA1 (IVM+ALB)", COUNTRY_INFO!$T$9:$T$1000, " ") ->  | I171: 0 | M171: 0
A172: =IF(COUNTRY_INFO!A172=0," ",COUNTRY_INFO!A172) -> Tanzania | B172: =IF(COUNTRY_INFO!B172=0," ",COUNTRY_INFO!B172) -> Songwe | C172: =IF(COUNTRY_INFO!C172=0," ",COUNTRY_INFO!C172) -> Songwe District Council | D172: =IF(COUNTRY_INFO!$T$9:$T$1000="MDA1 (IVM+ALB)", COUNTRY_INFO!$T$9:$T$1000, " ") ->  | I172: 0 | M172: 0
A173: =IF(COUNTRY_INFO!A173=0," ",COUNTRY_INFO!A173) -> Tanzania | B173: =IF(COUNTRY_INFO!B173=0," ",COUNTRY_INFO!B173) -> Songwe | C173: =IF(COUNTRY_INFO!C173=0," ",COUNTRY_INFO!C173) -> Tunduma Town Council | D173: =IF(COUNTRY_INFO!$T$9:$T$1000="MDA1 (IVM+ALB)", COUNTRY_INFO!$T$9:$T$1000, " ") ->  | I173: 0 | M173: 0
A174: =IF(COUNTRY_INFO!A174=0," ",COUNTRY_INFO!A174) -> Tanzania | B174: =IF(COUNTRY_INFO!B174=0," ",COUNTRY_INFO!B174) -> Tabora | C174: =IF(COUNTRY_INFO!C174=0," ",COUNTRY_INFO!C174) -> Igunga District Council | D174: =IF(COUNTRY_INFO!$T$9:$T$1000="MDA1 (IVM+ALB)", COUNTRY_INFO!$T$9:$T$1000, " ") ->  | I174: 0 | M174: 0
A175: =IF(COUNTRY_INFO!A175=0," ",COUNTRY_INFO!A175) -> Tanzania | B175: =IF(COUNTRY_INFO!B175=0," ",COUNTRY_INFO!B175) -> Tabora | C175: =IF(COUNTRY_INFO!C175=0," ",COUNTRY_INFO!C175) -> Kaliua District Council | D175: =IF(COUNTRY_INFO!$T$9:$T$1000="MDA1 (IVM+ALB)", COUNTRY_INFO!$T$9:$T$1000, " ") ->  | I175: 0 | M175: 0
A176: =IF(COUNTRY_INFO!A176=0," ",COUNTRY_INFO!A176) -> Tanzania | B176: =IF(COUNTRY_INFO!B176=0," ",COUNTRY_INFO!B176) -> Tabora | C176: =IF(COUNTRY_INFO!C176=0," ",COUNTRY_INFO!C176) -> Nzega District Council | D176: =IF(COUNTRY_INFO!$T$9:$T$1000="MDA1 (IVM+ALB)", COUNTRY_INFO!$T$9:$T$1000, " ") ->  | I176: 0 | M176: 0
A177: =IF(COUNTRY_INFO!A177=0," ",COUNTRY_INFO!A177) -> Tanzania | B177: =IF(COUNTRY_INFO!B177=0," ",COUNTRY_INFO!B177) -> Tabora | C177: =IF(COUNTRY_INFO!C177=0," ",COUNTRY_INFO!C177) -> Nzega Town Council | D177: =IF(COUNTRY_INFO!$T$9:$T$1000="MDA1 (IVM+ALB)", COUNTRY_INFO!$T$9:$T$1000, " ") ->  | I177: 0 | M177: 0
A178: =IF(COUNTRY_INFO!A178=0," ",COUNTRY_INFO!A178) -> Tanzania | B178: =IF(COUNTRY_INFO!B178=0," ",COUNTRY_INFO!B178) -> Tabora | C178: =IF(COUNTRY_INFO!C178=0," ",COUNTRY_INFO!C178) -> Sikonge District Council | D178: =IF(COUNTRY_INFO!$T$9:$T$1000="MDA1 (IVM+ALB)", COUNTRY_INFO!$T$9:$T$1000, " ") ->  | I178: 0 | M178: 0
A179: =IF(COUNTRY_INFO!A179=0," ",COUNTRY_INFO!A179) -> Tanzania | B179: =IF(COUNTRY_INFO!B179=0," ",COUNTRY_INFO!B179) -> Tabora | C179: =IF(COUNTRY_INFO!C179=0," ",COUNTRY_INFO!C179) -> Tabora Municipal Council | D179: =IF(COUNTRY_INFO!$T$9:$T$1000="MDA1 (IVM+ALB)", COUNTRY_INFO!$T$9:$T$1000, " ") ->  | I179: 0 | M179: 0
A180: =IF(COUNTRY_INFO!A180=0," ",COUNTRY_INFO!A180) -> Tanzania | B180: =IF(COUNTRY_INFO!B180=0," ",COUNTRY_INFO!B180) -> Tabora | C180: =IF(COUNTRY_INFO!C180=0," ",COUNTRY_INFO!C180) -> Urambo District Council | D180: =IF(COUNTRY_INFO!$T$9:$T$1000="MDA1 (IVM+ALB)", COUNTRY_INFO!$T$9:$T$1000, " ") ->  | I180: 0 | M180: 0
A181: =IF(COUNTRY_INFO!A181=0," ",COUNTRY_INFO!A181) -> Tanzania | B181: =IF(COUNTRY_INFO!B181=0," ",COUNTRY_INFO!B181) -> Tabora | C181: =IF(COUNTRY_INFO!C181=0," ",COUNTRY_INFO!C181) -> Uyui District Council | D181: =IF(COUNTRY_INFO!$T$9:$T$1000="MDA1 (IVM+ALB)", COUNTRY_INFO!$T$9:$T$1000, " ") ->  | I181: 0 | M181: 0
A182: =IF(COUNTRY_INFO!A182=0," ",COUNTRY_INFO!A182) -> Tanzania | B182: =IF(COUNTRY_INFO!B182=0," ",COUNTRY_INFO!B182) -> Tanga | C182: =IF(COUNTRY_INFO!C182=0," ",COUNTRY_INFO!C182) -> Bumbuli District Council | D182: =IF(COUNTRY_INFO!$T$9:$T$1000="MDA1 (IVM+ALB)", COUNTRY_INFO!$T$9:$T$1000, " ") ->  | I182: 0 | M182: 0
A183: =IF(COUNTRY_INFO!A183=0," ",COUNTRY_INFO!A183) -> Tanzania | B183: =IF(COUNTRY_INFO!B183=0," ",COUNTRY_INFO!B183) -> Tanga | C183: =IF(COUNTRY_INFO!C183=0," ",COUNTRY_INFO!C183) -> Handeni District Council | D183: =IF(COUNTRY_INFO!$T$9:$T$1000="MDA1 (IVM+ALB)", COUNTRY_INFO!$T$9:$T$1000, " ") ->  | I183: 0 | M183: 0
A184: =IF(COUNTRY_INFO!A184=0," ",COUNTRY_INFO!A184) -> Tanzania | B184: =IF(COUNTRY_INFO!B184=0," ",COUNTRY_INFO!B184) -> Tanga | C184: =IF(COUNTRY_INFO!C184=0," ",COUNTRY_INFO!C184) -> Handeni Town Council | D184: =IF(COUNTRY_INFO!$T$9:$T$1000="MDA1 (IVM+ALB)", COUNTRY_INFO!$T$9:$T$1000, " ") ->  | I184: 0 | M184: 0
A185: =IF(COUNTRY_INFO!A185=0," ",COUNTRY_INFO!A185) -> Tanzania | B185: =IF(COUNTRY_INFO!B185=0," ",COUNTRY_INFO!B185) -> Tanga | C185: =IF(COUNTRY_INFO!C185=0," ",COUNTRY_INFO!C185) -> Kilindi District Council | D185: =IF(COUNTRY_INFO!$T$9:$T$1000="MDA1 (IVM+ALB)", COUNTRY_INFO!$T$9:$T$1000, " ") ->  | I185: 0 | M185: 0
A186: =IF(COUNTRY_INFO!A186=0," ",COUNTRY_INFO!A186) -> Tanzania | B186: =IF(COUNTRY_INFO!B186=0," ",COUNTRY_INFO!B186) -> Tanga | C186: =IF(COUNTRY_INFO!C186=0," ",COUNTRY_INFO!C186) -> Korogwe District Council | D186: =IF(COUNTRY_INFO!$T$9:$T$1000="MDA1 (IVM+ALB)", COUNTRY_INFO!$T$9:$T$1000, " ") ->  | I186: 0 | M186: 0
A187: =IF(COUNTRY_INFO!A187=0," ",COUNTRY_INFO!A187) -> Tanzania | B187: =IF(COUNTRY_INFO!B187=0," ",COUNTRY_INFO!B187) -> Tanga | C187: =IF(COUNTRY_INFO!C187=0," ",COUNTRY_INFO!C187) -> Korogwe Town Council | D187: =IF(COUNTRY_INFO!$T$9:$T$1000="MDA1 (IVM+ALB)", COUNTRY_INFO!$T$9:$T$1000, " ") ->  | I187: 0 | M187: 0
A188: =IF(COUNTRY_INFO!A188=0," ",COUNTRY_INFO!A188) -> Tanzania | B188: =IF(COUNTRY_INFO!B188=0," ",COUNTRY_INFO!B188) -> Tanga | C188: =IF(COUNTRY_INFO!C188=0," ",COUNTRY_INFO!C188) -> Lushoto District Council | D188: =IF(COUNTRY_INFO!$T$9:$T$1000="MDA1 (IVM+ALB)", COUNTRY_INFO!$T$9:$T$1000, " ") ->  | I188: 0 | M188: 0
A189: =IF(COUNTRY_INFO!A189=0," ",COUNTRY_INFO!A189) -> Tanzania | B189: =IF(COUNTRY_INFO!B189=0," ",COUNTRY_INFO!B189) -> Tanga | C189: =IF(COUNTRY_INFO!C189=0," ",COUNTRY_INFO!C189) -> Mkinga District Council | D189: =IF(COUNTRY_INFO!$T$9:$T$1000="MDA1 (IVM+ALB)", COUNTRY_INFO!$T$9:$T$1000, " ") ->  | I189: 0 | M189: 0
A190: =IF(COUNTRY_INFO!A190=0," ",COUNTRY_INFO!A190) -> Tanzania | B190: =IF(COUNTRY_INFO!B190=0," ",COUNTRY_INFO!B190) -> Tanga | C190: =IF(COUNTRY_INFO!C190=0," ",COUNTRY_INFO!C190) -> Muheza District Council | D190: =IF(COUNTRY_INFO!$T$9:$T$1000="MDA1 (IVM+ALB)", COUNTRY_INFO!$T$9:$T$1000, " ") ->  | I190: 0 | M190: 0
A191: =IF(COUNTRY_INFO!A191=0," ",COUNTRY_INFO!A191) -> Tanzania | B191: =IF(COUNTRY_INFO!B191=0," ",COUNTRY_INFO!B191) -> Tanga | C191: =IF(COUNTRY_INFO!C191=0," ",COUNTRY_INFO!C191) -> Pangani District Council | D191: =IF(COUNTRY_INFO!$T$9:$T$1000="MDA1 (IVM+ALB)", COUNTRY_INFO!$T$9:$T$1000, " ") -> MDA1 (IVM+ALB) | E191: August 2021 | G191: 17989 | H191: 37164 | I191: 55153 | K191: 10343 | L191: 37829 | M191: 48172 | O191: 57.49624771 | P191: 101.7893661 | Q191: 87.34248364
A192: =IF(COUNTRY_INFO!A192=0," ",COUNTRY_INFO!A192) -> Tanzania | B192: =IF(COUNTRY_INFO!B192=0," ",COUNTRY_INFO!B192) -> Tanga | C192: =IF(COUNTRY_INFO!C192=0," ",COUNTRY_INFO!C192) -> Tanga City Council | D192: =IF(COUNTRY_INFO!$T$9:$T$1000="MDA1 (IVM+ALB)", COUNTRY_INFO!$T$9:$T$1000, " ") ->  | I192: 0 | M192: 0

Sheet MDA2 (hidden)
A1: MDA 2 - Diethylcarbamazine citrate (DEC) + Albendazole (ALB)
A2: Administrative structure, population requiring PC by age group, population treated by age group and coverage
A4: TOTAL | F4: =SUM(F$9:F$1000) -> 0 | G4: =SUM(G$9:G$1000) -> 0 | H4: 0 | I4: 0 | J4: 0 | K4: 0 | L4: 0 | M4: 0 | N4: =IF(F4<>0, IF(J4/F4*100=0, "-", J4/F4*100), " ") ->  | O4: =IF(G4<>0, IF(K4/G4*100=0, "-", K4/G4*100), " ") ->  | P4: =IF(H4<>0, IF(L4/H4*100=0, "-", L4/H4*100), " ") ->  | Q4: =IF(I4<>0, IF(M4/I4*100=0, "-", M4/I4*100), " ") -> 
D6: PC implemented | E6: Date | F6: Population targeted for MDA 2 | J6: Population treated | N6: Programme coverage (%)
A7: Country | B7: Province/State | C7: District | F7: PreSAC | G7: SAC | H7: Adults | I7: Total | J7: PreSAC | K7: SAC | L7: Adults | M7: Total | N7: PreSAC | O7: SAC | P7: Adults | Q7: Total
A9: =IF(COUNTRY_INFO!A9=0," ",COUNTRY_INFO!A9) -> Tanzania | B9: =IF(COUNTRY_INFO!B9=0," ",COUNTRY_INFO!B9) -> Arusha | C9: =IF(COUNTRY_INFO!C9=0," ",COUNTRY_INFO!C9) -> Arusha City Council | D9: =IF(COUNTRY_INFO!$T$9:$T$1000="MDA2 (DEC+ALB)", COUNTRY_INFO!$T$9:$T$1000, " ") ->  | I9: =SUM(F9:H9) -> 0 | M9: =SUM(J9:L9) -> 0 | N9: =IF(F9<>0, IF(J9/F9*100=0, "-", J9/F9*100), " ") ->  | O9: =IF(G9<>0, IF(K9/G9*100=0, "-", K9/G9*100), " ") -> 
A10: =IF(COUNTRY_INFO!A10=0," ",COUNTRY_INFO!A10) -> Tanzania | B10: =IF(COUNTRY_INFO!B10=0," ",COUNTRY_INFO!B10) -> Arusha | C10: =IF(COUNTRY_INFO!C10=0," ",COUNTRY_INFO!C10) -> Arusha District Council | D10: =IF(COUNTRY_INFO!$T$9:$T$1000="MDA2 (DEC+ALB)", COUNTRY_INFO!$T$9:$T$1000, " ") ->  | I10: =SUM(F10:H10) -> 0 | M10: =SUM(J10:L10) -> 0 | N10: =IF(F10<>0, IF(J10/F10*100=0, "-", J10/F10*100), " ") ->  | O10: =IF(G10<>0, IF(K10/G10*100=0, "-", K10/G10*100), " ") ->  | P10: =IF(H10<>0, IF(L10/H10*100=0, "-", L10/H10*100), " ") ->  | Q10: =IF(I10<>0, IF(M10/I10*100=0, "-", M10/I10*100), " ") -> 
A11: =IF(COUNTRY_INFO!A11=0," ",COUNTRY_INFO!A11) -> Tanzania | B11: =IF(COUNTRY_INFO!B11=0," ",COUNTRY_INFO!B11) -> Arusha | C11: =IF(COUNTRY_INFO!C11=0," ",COUNTRY_INFO!C11) -> Karatu District Council | D11: =IF(COUNTRY_INFO!$T$9:$T$1000="MDA2 (DEC+ALB)", COUNTRY_INFO!$T$9:$T$1000, " ") ->  | I11: 0 | M11: 0
A12: =IF(COUNTRY_INFO!A12=0," ",COUNTRY_INFO!A12) -> Tanzania | B12: =IF(COUNTRY_INFO!B12=0," ",COUNTRY_INFO!B12) -> Arusha | C12: =IF(COUNTRY_INFO!C12=0," ",COUNTRY_INFO!C12) -> Longido District Council | D12: =IF(COUNTRY_INFO!$T$9:$T$1000="MDA2 (DEC+ALB)", COUNTRY_INFO!$T$9:$T$1000, " ") ->  | I12: 0 | M12: 0
A13: =IF(COUNTRY_INFO!A13=0," ",COUNTRY_INFO!A13) -> Tanzania | B13: =IF(COUNTRY_INFO!B13=0," ",COUNTRY_INFO!B13) -> Arusha | C13: =IF(COUNTRY_INFO!C13=0," ",COUNTRY_INFO!C13) -> Meru District Council | D13: =IF(COUNTRY_INFO!$T$9:$T$1000="MDA2 (DEC+ALB)", COUNTRY_INFO!$T$9:$T$1000, " ") ->  | I13: 0 | M13: 0
A14: =IF(COUNTRY_INFO!A14=0," ",COUNTRY_INFO!A14) -> Tanzania | B14: =IF(COUNTRY_INFO!B14=0," ",COUNTRY_INFO!B14) -> Arusha | C14: =IF(COUNTRY_INFO!C14=0," ",COUNTRY_INFO!C14) -> Monduli District Council | D14: =IF(COUNTRY_INFO!$T$9:$T$1000="MDA2 (DEC+ALB)", COUNTRY_INFO!$T$9:$T$1000, " ") ->  | I14: 0 | M14: 0
A15: =IF(COUNTRY_INFO!A15=0," ",COUNTRY_INFO!A15) -> Tanzania | B15: =IF(COUNTRY_INFO!B15=0," ",COUNTRY_INFO!B15) -> Arusha | C15: =IF(COUNTRY_INFO!C15=0," ",COUNTRY_INFO!C15) -> Ngorongoro District Council | D15: =IF(COUNTRY_INFO!$T$9:$T$1000="MDA2 (DEC+ALB)", COUNTRY_INFO!$T$9:$T$1000, " ") ->  | I15: 0 | M15: 0
A16: =IF(COUNTRY_INFO!A16=0," ",COUNTRY_INFO!A16) -> Tanzania | B16: =IF(COUNTRY_INFO!B16=0," ",COUNTRY_INFO!B16) -> Dar Es Salaam | C16: =IF(COUNTRY_INFO!C16=0," ",COUNTRY_INFO!C16) -> Dar es Salaam City Council | D16: =IF(COUNTRY_INFO!$T$9:$T$1000="MDA2 (DEC+ALB)", COUNTRY_INFO!$T$9:$T$1000, " ") ->  | I16: 0 | M16: 0
A17: =IF(COUNTRY_INFO!A17=0," ",COUNTRY_INFO!A17) -> Tanzania | B17: =IF(COUNTRY_INFO!B17=0," ",COUNTRY_INFO!B17) -> Dar Es Salaam | C17: =IF(COUNTRY_INFO!C17=0," ",COUNTRY_INFO!C17) -> Kigamboni Municipal Council | D17: =IF(COUNTRY_INFO!$T$9:$T$1000="MDA2 (DEC+ALB)", COUNTRY_INFO!$T$9:$T$1000, " ") ->  | I17: 0 | M17: 0
A18: =IF(COUNTRY_INFO!A18=0," ",COUNTRY_INFO!A18) -> Tanzania | B18: =IF(COUNTRY_INFO!B18=0," ",COUNTRY_INFO!B18) -> Dar Es Salaam | C18: =IF(COUNTRY_INFO!C18=0," ",COUNTRY_INFO!C18) -> Kinondoni Municipal Council | D18: =IF(COUNTRY_INFO!$T$9:$T$1000="MDA2 (DEC+ALB)", COUNTRY_INFO!$T$9:$T$1000, " ") ->  | I18: 0 | M18: 0
A19: =IF(COUNTRY_INFO!A19=0," ",COUNTRY_INFO!A19) -> Tanzania | B19: =IF(COUNTRY_INFO!B19=0," ",COUNTRY_INFO!B19) -> Dar Es Salaam | C19: =IF(COUNTRY_INFO!C19=0," ",COUNTRY_INFO!C19) -> Temeke Municipal Council | D19: =IF(COUNTRY_INFO!$T$9:$T$1000="MDA2 (DEC+ALB)", COUNTRY_INFO!$T$9:$T$1000, " ") ->  | I19: 0 | M19: 0
A20: =IF(COUNTRY_INFO!A20=0," ",COUNTRY_INFO!A20) -> Tanzania | B20: =IF(COUNTRY_INFO!B20=0," ",COUNTRY_INFO!B20) -> Dar Es Salaam | C20: =IF(COUNTRY_INFO!C20=0," ",COUNTRY_INFO!C20) -> Ubungo Municipal Council | D20: =IF(COUNTRY_INFO!$T$9:$T$1000="MDA2 (DEC+ALB)", COUNTRY_INFO!$T$9:$T$1000, " ") ->  | I20: 0 | M20: 0
A21: =IF(COUNTRY_INFO!A21=0," ",COUNTRY_INFO!A21) -> Tanzania | B21: =IF(COUNTRY_INFO!B21=0," ",COUNTRY_INFO!B21) -> Dodoma | C21: =IF(COUNTRY_INFO!C21=0," ",COUNTRY_INFO!C21) -> Bahi District Council | D21: =IF(COUNTRY_INFO!$T$9:$T$1000="MDA2 (DEC+ALB)", COUNTRY_INFO!$T$9:$T$1000, " ") ->  | I21: 0 | M21: 0
A22: =IF(COUNTRY_INFO!A22=0," ",COUNTRY_INFO!A22) -> Tanzania | B22: =IF(COUNTRY_INFO!B22=0," ",COUNTRY_INFO!B22) -> Dodoma | C22: =IF(COUNTRY_INFO!C22=0," ",COUNTRY_INFO!C22) -> Chamwino District Council | D22: =IF(COUNTRY_INFO!$T$9:$T$1000="MDA2 (DEC+ALB)", COUNTRY_INFO!$T$9:$T$1000, " ") ->  | I22: 0 | M22: 0
A23: =IF(COUNTRY_INFO!A23=0," ",COUNTRY_INFO!A23) -> Tanzania | B23: =IF(COUNTRY_INFO!B23=0," ",COUNTRY_INFO!B23) -> Dodoma | C23: =IF(COUNTRY_INFO!C23=0," ",COUNTRY_INFO!C23) -> Chemba District Council | D23: =IF(COUNTRY_INFO!$T$9:$T$1000="MDA2 (DEC+ALB)", COUNTRY_INFO!$T$9:$T$1000, " ") ->  | I23: 0 | M23: 0
A24: =IF(COUNTRY_INFO!A24=0," ",COUNTRY_INFO!A24) -> Tanzania | B24: =IF(COUNTRY_INFO!B24=0," ",COUNTRY_INFO!B24) -> Dodoma | C24: =IF(COUNTRY_INFO!C24=0," ",COUNTRY_INFO!C24) -> Dodoma City Council | D24: =IF(COUNTRY_INFO!$T$9:$T$1000="MDA2 (DEC+ALB)", COUNTRY_INFO!$T$9:$T$1000, " ") ->  | I24: 0 | M24: 0
A25: =IF(COUNTRY_INFO!A25=0," ",COUNTRY_INFO!A25) -> Tanzania | B25: =IF(COUNTRY_INFO!B25=0," ",COUNTRY_INFO!B25) -> Dodoma | C25: =IF(COUNTRY_INFO!C25=0," ",COUNTRY_INFO!C25) -> Kondoa District Council | D25: =IF(COUNTRY_INFO!$T$9:$T$1000="MDA2 (DEC+ALB)", COUNTRY_INFO!$T$9:$T$1000, " ") ->  | I25: 0 | M25: 0
A26: =IF(COUNTRY_INFO!A26=0," ",COUNTRY_INFO!A26) -> Tanzania | B26: =IF(COUNTRY_INFO!B26=0," ",COUNTRY_INFO!B26) -> Dodoma | C26: =IF(COUNTRY_INFO!C26=0," ",COUNTRY_INFO!C26) -> Kondoa Town Council | D26: =IF(COUNTRY_INFO!$T$9:$T$1000="MDA2 (DEC+ALB)", COUNTRY_INFO!$T$9:$T$1000, " ") ->  | I26: 0 | M26: 0
A27: =IF(COUNTRY_INFO!A27=0," ",COUNTRY_INFO!A27) -> Tanzania | B27: =IF(COUNTRY_INFO!B27=0," ",COUNTRY_INFO!B27) -> Dodoma | C27: =IF(COUNTRY_INFO!C27=0," ",COUNTRY_INFO!C27) -> Kongwa District Council | D27: =IF(COUNTRY_INFO!$T$9:$T$1000="MDA2 (DEC+ALB)", COUNTRY_INFO!$T$9:$T$1000, " ") ->  | I27: 0 | M27: 0
A28: =IF(COUNTRY_INFO!A28=0," ",COUNTRY_INFO!A28) -> Tanzania | B28: =IF(COUNTRY_INFO!B28=0," ",COUNTRY_INFO!B28) -> Dodoma | C28: =IF(COUNTRY_INFO!C28=0," ",COUNTRY_INFO!C28) -> Mpwapwa District Council | D28: =IF(COUNTRY_INFO!$T$9:$T$1000="MDA2 (DEC+ALB)", COUNTRY_INFO!$T$9:$T$1000, " ") ->  | I28: 0 | M28: 0
A29: =IF(COUNTRY_INFO!A29=0," ",COUNTRY_INFO!A29) -> Tanzania | B29: =IF(COUNTRY_INFO!B29=0," ",COUNTRY_INFO!B29) -> Geita | C29: =IF(COUNTRY_INFO!C29=0," ",COUNTRY_INFO!C29) -> Bukombe District Council | D29: =IF(COUNTRY_INFO!$T$9:$T$1000="MDA2 (DEC+ALB)", COUNTRY_INFO!$T$9:$T$1000, " ") ->  | I29: 0 | M29: 0
A30: =IF(COUNTRY_INFO!A30=0," ",COUNTRY_INFO!A30) -> Tanzania | B30: =IF(COUNTRY_INFO!B30=0," ",COUNTRY_INFO!B30) -> Geita | C30: =IF(COUNTRY_INFO!C30=0," ",COUNTRY_INFO!C30) -> Chato District Council | D30: =IF(COUNTRY_INFO!$T$9:$T$1000="MDA2 (DEC+ALB)", COUNTRY_INFO!$T$9:$T$1000, " ") ->  | I30: 0 | M30: 0
A31: =IF(COUNTRY_INFO!A31=0," ",COUNTRY_INFO!A31) -> Tanzania | B31: =IF(COUNTRY_INFO!B31=0," ",COUNTRY_INFO!B31) -> Geita | C31: =IF(COUNTRY_INFO!C31=0," ",COUNTRY_INFO!C31) -> Geita District Council | D31: =IF(COUNTRY_INFO!$T$9:$T$1000="MDA2 (DEC+ALB)", COUNTRY_INFO!$T$9:$T$1000, " ") ->  | I31: 0 | M31: 0
A32: =IF(COUNTRY_INFO!A32=0," ",COUNTRY_INFO!A32) -> Tanzania | B32: =IF(COUNTRY_INFO!B32=0," ",COUNTRY_INFO!B32) -> Geita | C32: =IF(COUNTRY_INFO!C32=0," ",COUNTRY_INFO!C32) -> Geita Town Council | D32: =IF(COUNTRY_INFO!$T$9:$T$1000="MDA2 (DEC+ALB)", COUNTRY_INFO!$T$9:$T$1000, " ") ->  | I32: 0 | M32: 0
A33: =IF(COUNTRY_INFO!A33=0," ",COUNTRY_INFO!A33) -> Tanzania | B33: =IF(COUNTRY_INFO!B33=0," ",COUNTRY_INFO!B33) -> Geita | C33: =IF(COUNTRY_INFO!C33=0," ",COUNTRY_INFO!C33) -> Mbogwe District Council | D33: =IF(COUNTRY_INFO!$T$9:$T$1000="MDA2 (DEC+ALB)", COUNTRY_INFO!$T$9:$T$1000, " ") ->  | I33: 0 | M33: 0
A34: =IF(COUNTRY_INFO!A34=0," ",COUNTRY_INFO!A34) -> Tanzania | B34: =IF(COUNTRY_INFO!B34=0," ",COUNTRY_INFO!B34) -> Geita | C34: =IF(COUNTRY_INFO!C34=0," ",COUNTRY_INFO!C34) -> Nyang'hwale District Council | D34: =IF(COUNTRY_INFO!$T$9:$T$1000="MDA2 (DEC+ALB)", COUNTRY_INFO!$T$9:$T$1000, " ") ->  | I34: 0 | M34: 0
A35: =IF(COUNTRY_INFO!A35=0," ",COUNTRY_INFO!A35) -> Tanzania | B35: =IF(COUNTRY_INFO!B35=0," ",COUNTRY_INFO!B35) -> Iringa | C35: =IF(COUNTRY_INFO!C35=0," ",COUNTRY_INFO!C35) -> Iringa District Council | D35: =IF(COUNTRY_INFO!$T$9:$T$1000="MDA2 (DEC+ALB)", COUNTRY_INFO!$T$9:$T$1000, " ") ->  | I35: 0 | M35: 0
A36: =IF(COUNTRY_INFO!A36=0," ",COUNTRY_INFO!A36) -> Tanzania | B36: =IF(COUNTRY_INFO!B36=0," ",COUNTRY_INFO!B36) -> Iringa | C36: =IF(COUNTRY_INFO!C36=0," ",COUNTRY_INFO!C36) -> Iringa Municipal Council | D36: =IF(COUNTRY_INFO!$T$9:$T$1000="MDA2 (DEC+ALB)", COUNTRY_INFO!$T$9:$T$1000, " ") ->  | I36: 0 | M36: 0
A37: =IF(COUNTRY_INFO!A37=0," ",COUNTRY_INFO!A37) -> Tanzania | B37: =IF(COUNTRY_INFO!B37=0," ",COUNTRY_INFO!B37) -> Iringa | C37: =IF(COUNTRY_INFO!C37=0," ",COUNTRY_INFO!C37) -> Kilolo District Council | D37: =IF(COUNTRY_INFO!$T$9:$T$1000="MDA2 (DEC+ALB)", COUNTRY_INFO!$T$9:$T$1000, " ") ->  | I37: 0 | M37: 0
A38: =IF(COUNTRY_INFO!A38=0," ",COUNTRY_INFO!A38) -> Tanzania | B38: =IF(COUNTRY_INFO!B38=0," ",COUNTRY_INFO!B38) -> Iringa | C38: =IF(COUNTRY_INFO!C38=0," ",COUNTRY_INFO!C38) -> Mafinga Town Council | D38: =IF(COUNTRY_INFO!$T$9:$T$1000="MDA2 (DEC+ALB)", COUNTRY_INFO!$T$9:$T$1000, " ") ->  | I38: 0 | M38: 0
A39: =IF(COUNTRY_INFO!A39=0," ",COUNTRY_INFO!A39) -> Tanzania | B39: =IF(COUNTRY_INFO!B39=0," ",COUNTRY_INFO!B39) -> Iringa | C39: =IF(COUNTRY_INFO!C39=0," ",COUNTRY_INFO!C39) -> Mufindi District Council | D39: =IF(COUNTRY_INFO!$T$9:$T$1000="MDA2 (DEC+ALB)", COUNTRY_INFO!$T$9:$T$1000, " ") ->  | I39: 0 | M39: 0
A40: =IF(COUNTRY_INFO!A40=0," ",COUNTRY_INFO!A40) -> Tanzania | B40: =IF(COUNTRY_INFO!B40=0," ",COUNTRY_INFO!B40) -> Kagera | C40: =IF(COUNTRY_INFO!C40=0," ",COUNTRY_INFO!C40) -> Biharamulo District Council | D40: =IF(COUNTRY_INFO!$T$9:$T$1000="MDA2 (DEC+ALB)", COUNTRY_INFO!$T$9:$T$1000, " ") ->  | I40: 0 | M40: 0
A41: =IF(COUNTRY_INFO!A41=0," ",COUNTRY_INFO!A41) -> Tanzania | B41: =IF(COUNTRY_INFO!B41=0," ",COUNTRY_INFO!B41) -> Kagera | C41: =IF(COUNTRY_INFO!C41=0," ",COUNTRY_INFO!C41) -> Bukoba District Council | D41: =IF(COUNTRY_INFO!$T$9:$T$1000="MDA2 (DEC+ALB)", COUNTRY_INFO!$T$9:$T$1000, " ") ->  | I41: 0 | M41: 0
A42: =IF(COUNTRY_INFO!A42=0," ",COUNTRY_INFO!A42) -> Tanzania | B42: =IF(COUNTRY_INFO!B42=0," ",COUNTRY_INFO!B42) -> Kagera | C42: =IF(COUNTRY_INFO!C42=0," ",COUNTRY_INFO!C42) -> Bukoba Municipal Council | D42: =IF(COUNTRY_INFO!$T$9:$T$1000="MDA2 (DEC+ALB)", COUNTRY_INFO!$T$9:$T$1000, " ") ->  | I42: 0 | M42: 0
A43: =IF(COUNTRY_INFO!A43=0," ",COUNTRY_INFO!A43) -> Tanzania | B43: =IF(COUNTRY_INFO!B43=0," ",COUNTRY_INFO!B43) -> Kagera | C43: =IF(COUNTRY_INFO!C43=0," ",COUNTRY_INFO!C43) -> Karagwe District Council | D43: =IF(COUNTRY_INFO!$T$9:$T$1000="MDA2 (DEC+ALB)", COUNTRY_INFO!$T$9:$T$1000, " ") ->  | I43: 0 | M43: 0
A44: =IF(COUNTRY_INFO!A44=0," ",COUNTRY_INFO!A44) -> Tanzania | B44: =IF(COUNTRY_INFO!B44=0," ",COUNTRY_INFO!B44) -> Kagera | C44: =IF(COUNTRY_INFO!C44=0," ",COUNTRY_INFO!C44) -> Kyerwa District Council | D44: =IF(COUNTRY_INFO!$T$9:$T$1000="MDA2 (DEC+ALB)", COUNTRY_INFO!$T$9:$T$1000, " ") ->  | I44: 0 | M44: 0
A45: =IF(COUNTRY_INFO!A45=0," ",COUNTRY_INFO!A45) -> Tanzania | B45: =IF(COUNTRY_INFO!B45=0," ",COUNTRY_INFO!B45) -> Kagera | C45: =IF(COUNTRY_INFO!C45=0," ",COUNTRY_INFO!C45) -> Missenyi District Council | D45: =IF(COUNTRY_INFO!$T$9:$T$1000="MDA2 (DEC+ALB)", COUNTRY_INFO!$T$9:$T$1000, " ") ->  | I45: 0 | M45: 0
A46: =IF(COUNTRY_INFO!A46=0," ",COUNTRY_INFO!A46) -> Tanzania | B46: =IF(COUNTRY_INFO!B46=0," ",COUNTRY_INFO!B46) -> Kagera | C46: =IF(COUNTRY_INFO!C46=0," ",COUNTRY_INFO!C46) -> Muleba District Council | D46: =IF(COUNTRY_INFO!$T$9:$T$1000="MDA2 (DEC+ALB)", COUNTRY_INFO!$T$9:$T$1000, " ") ->  | I46: 0 | M46: 0
A47: =IF(COUNTRY_INFO!A47=0," ",COUNTRY_INFO!A47) -> Tanzania | B47: =IF(COUNTRY_INFO!B47=0," ",COUNTRY_INFO!B47) -> Kagera | C47: =IF(COUNTRY_INFO!C47=0," ",COUNTRY_INFO!C47) -> Ngara District Council | D47: =IF(COUNTRY_INFO!$T$9:$T$1000="MDA2 (DEC+ALB)", COUNTRY_INFO!$T$9:$T$1000, " ") ->  | I47: 0 | M47: 0
A48: =IF(COUNTRY_INFO!A48=0," ",COUNTRY_INFO!A48) -> Tanzania | B48: =IF(COUNTRY_INFO!B48=0," ",COUNTRY_INFO!B48) -> Katavi | C48: =IF(COUNTRY_INFO!C48=0," ",COUNTRY_INFO!C48) -> Mlele District Council | D48: =IF(COUNTRY_INFO!$T$9:$T$1000="MDA2 (DEC+ALB)", COUNTRY_INFO!$T$9:$T$1000, " ") ->  | I48: 0 | M48: 0
A49: =IF(COUNTRY_INFO!A49=0," ",COUNTRY_INFO!A49) -> Tanzania | B49: =IF(COUNTRY_INFO!B49=0," ",COUNTRY_INFO!B49) -> Katavi | C49: =IF(COUNTRY_INFO!C49=0," ",COUNTRY_INFO!C49) -> Mpanda District Council | D49: =IF(COUNTRY_INFO!$T$9:$T$1000="MDA2 (DEC+ALB)", COUNTRY_INFO!$T$9:$T$1000, " ") ->  | I49: 0 | M49: 0
A50: =IF(COUNTRY_INFO!A50=0," ",COUNTRY_INFO!A50) -> Tanzania | B50: =IF(COUNTRY_INFO!B50=0," ",COUNTRY_INFO!B50) -> Katavi | C50: =IF(COUNTRY_INFO!C50=0," ",COUNTRY_INFO!C50) -> Mpanda Municipal Council | D50: =IF(COUNTRY_INFO!$T$9:$T$1000="MDA2 (DEC+ALB)", COUNTRY_INFO!$T$9:$T$1000, " ") ->  | I50: 0 | M50: 0
A51: =IF(COUNTRY_INFO!A51=0," ",COUNTRY_INFO!A51) -> Tanzania | B51: =IF(COUNTRY_INFO!B51=0," ",COUNTRY_INFO!B51) -> Katavi | C51: =IF(COUNTRY_INFO!C51=0," ",COUNTRY_INFO!C51) -> Mpimbwe District Council | D51: =IF(COUNTRY_INFO!$T$9:$T$1000="MDA2 (DEC+ALB)", COUNTRY_INFO!$T$9:$T$1000, " ") ->  | I51: 0 | M51: 0
A52: =IF(COUNTRY_INFO!A52=0," ",COUNTRY_INFO!A52) -> Tanzania | B52: =IF(COUNTRY_INFO!B52=0," ",COUNTRY_INFO!B52) -> Katavi | C52: =IF(COUNTRY_INFO!C52=0," ",COUNTRY_INFO!C52) -> Nsimbo District Council | D52: =IF(COUNTRY_INFO!$T$9:$T$1000="MDA2 (DEC+ALB)", COUNTRY_INFO!$T$9:$T$1000, " ") ->  | I52: 0 | M52: 0
A53: =IF(COUNTRY_INFO!A53=0," ",COUNTRY_INFO!A53) -> Tanzania | B53: =IF(COUNTRY_INFO!B53=0," ",COUNTRY_INFO!B53) -> Kigoma | C53: =IF(COUNTRY_INFO!C53=0," ",COUNTRY_INFO!C53) -> Buhigwe District Council | D53: =IF(COUNTRY_INFO!$T$9:$T$1000="MDA2 (DEC+ALB)", COUNTRY_INFO!$T$9:$T$1000, " ") ->  | I53: 0 | M53: 0
A54: =IF(COUNTRY_INFO!A54=0," ",COUNTRY_INFO!A54) -> Tanzania | B54: =IF(COUNTRY_INFO!B54=0," ",COUNTRY_INFO!B54) -> Kigoma | C54: =IF(COUNTRY_INFO!C54=0," ",COUNTRY_INFO!C54) -> Kakonko District Council | D54: =IF(COUNTRY_INFO!$T$9:$T$1000="MDA2 (DEC+ALB)", COUNTRY_INFO!$T$9:$T$1000, " ") ->  | I54: 0 | M54: 0
A55: =IF(COUNTRY_INFO!A55=0," ",COUNTRY_INFO!A55) -> Tanzania | B55: =IF(COUNTRY_INFO!B55=0," ",COUNTRY_INFO!B55) -> Kigoma | C55: =IF(COUNTRY_INFO!C55=0," ",COUNTRY_INFO!C55) -> Kasulu District Council | D55: =IF(COUNTRY_INFO!$T$9:$T$1000="MDA2 (DEC+ALB)", COUNTRY_INFO!$T$9:$T$1000, " ") ->  | I55: 0 | M55: 0
A56: =IF(COUNTRY_INFO!A56=0," ",COUNTRY_INFO!A56) -> Tanzania | B56: =IF(COUNTRY_INFO!B56=0," ",COUNTRY_INFO!B56) -> Kigoma | C56: =IF(COUNTRY_INFO!C56=0," ",COUNTRY_INFO!C56) -> Kasulu Town Council | D56: =IF(COUNTRY_INFO!$T$9:$T$1000="MDA2 (DEC+ALB)", COUNTRY_INFO!$T$9:$T$1000, " ") ->  | I56: 0 | M56: 0
A57: =IF(COUNTRY_INFO!A57=0," ",COUNTRY_INFO!A57) -> Tanzania | B57: =IF(COUNTRY_INFO!B57=0," ",COUNTRY_INFO!B57) -> Kigoma | C57: =IF(COUNTRY_INFO!C57=0," ",COUNTRY_INFO!C57) -> Kibondo District Council | D57: =IF(COUNTRY_INFO!$T$9:$T$1000="MDA2 (DEC+ALB)", COUNTRY_INFO!$T$9:$T$1000, " ") ->  | I57: 0 | M57: 0
A58: =IF(COUNTRY_INFO!A58=0," ",COUNTRY_INFO!A58) -> Tanzania | B58: =IF(COUNTRY_INFO!B58=0," ",COUNTRY_INFO!B58) -> Kigoma | C58: =IF(COUNTRY_INFO!C58=0," ",COUNTRY_INFO!C58) -> Kigoma District Council | D58: =IF(COUNTRY_INFO!$T$9:$T$1000="MDA2 (DEC+ALB)", COUNTRY_INFO!$T$9:$T$1000, " ") ->  | I58: 0 | M58: 0
A59: =IF(COUNTRY_INFO!A59=0," ",COUNTRY_INFO!A59) -> Tanzania | B59: =IF(COUNTRY_INFO!B59=0," ",COUNTRY_INFO!B59) -> Kigoma | C59: =IF(COUNTRY_INFO!C59=0," ",COUNTRY_INFO!C59) -> Kigoma-Ujiji Municipal Council | D59: =IF(COUNTRY_INFO!$T$9:$T$1000="MDA2 (DEC+ALB)", COUNTRY_INFO!$T$9:$T$1000, " ") ->  | I59: 0 | M59: 0
A60: =IF(COUNTRY_INFO!A60=0," ",COUNTRY_INFO!A60) -> Tanzania | B60: =IF(COUNTRY_INFO!B60=0," ",COUNTRY_INFO!B60) -> Kigoma | C60: =IF(COUNTRY_INFO!C60=0," ",COUNTRY_INFO!C60) -> Uvinza District Council | D60: =IF(COUNTRY_INFO!$T$9:$T$1000="MDA2 (DEC+ALB)", COUNTRY_INFO!$T$9:$T$1000, " ") ->  | I60: 0 | M60: 0
A61: =IF(COUNTRY_INFO!A61=0," ",COUNTRY_INFO!A61) -> Tanzania | B61: =IF(COUNTRY_INFO!B61=0," ",COUNTRY_INFO!B61) -> Kilimanjaro | C61: =IF(COUNTRY_INFO!C61=0," ",COUNTRY_INFO!C61) -> Hai District Council | D61: =IF(COUNTRY_INFO!$T$9:$T$1000="MDA2 (DEC+ALB)", COUNTRY_INFO!$T$9:$T$1000, " ") ->  | I61: 0 | M61: 0
A62: =IF(COUNTRY_INFO!A62=0," ",COUNTRY_INFO!A62) -> Tanzania | B62: =IF(COUNTRY_INFO!B62=0," ",COUNTRY_INFO!B62) -> Kilimanjaro | C62: =IF(COUNTRY_INFO!C62=0," ",COUNTRY_INFO!C62) -> Moshi District Council | D62: =IF(COUNTRY_INFO!$T$9:$T$1000="MDA2 (DEC+ALB)", COUNTRY_INFO!$T$9:$T$1000, " ") ->  | I62: 0 | M62: 0
A63: =IF(COUNTRY_INFO!A63=0," ",COUNTRY_INFO!A63) -> Tanzania | B63: =IF(COUNTRY_INFO!B63=0," ",COUNTRY_INFO!B63) -> Kilimanjaro | C63: =IF(COUNTRY_INFO!C63=0," ",COUNTRY_INFO!C63) -> Moshi Municipal Council | D63: =IF(COUNTRY_INFO!$T$9:$T$1000="MDA2 (DEC+ALB)", COUNTRY_INFO!$T$9:$T$1000, " ") ->  | I63: 0 | M63: 0
A64: =IF(COUNTRY_INFO!A64=0," ",COUNTRY_INFO!A64) -> Tanzania | B64: =IF(COUNTRY_INFO!B64=0," ",COUNTRY_INFO!B64) -> Kilimanjaro | C64: =IF(COUNTRY_INFO!C64=0," ",COUNTRY_INFO!C64) -> Mwanga District Council | D64: =IF(COUNTRY_INFO!$T$9:$T$1000="MDA2 (DEC+ALB)", COUNTRY_INFO!$T$9:$T$1000, " ") ->  | I64: 0 | M64: 0
A65: =IF(COUNTRY_INFO!A65=0," ",COUNTRY_INFO!A65) -> Tanzania | B65: =IF(COUNTRY_INFO!B65=0," ",COUNTRY_INFO!B65) -> Kilimanjaro | C65: =IF(COUNTRY_INFO!C65=0," ",COUNTRY_INFO!C65) -> Rombo District Council | D65: =IF(COUNTRY_INFO!$T$9:$T$1000="MDA2 (DEC+ALB)", COUNTRY_INFO!$T$9:$T$1000, " ") ->  | I65: 0 | M65: 0
A66: =IF(COUNTRY_INFO!A66=0," ",COUNTRY_INFO!A66) -> Tanzania | B66: =IF(COUNTRY_INFO!B66=0," ",COUNTRY_INFO!B66) -> Kilimanjaro | C66: =IF(COUNTRY_INFO!C66=0," ",COUNTRY_INFO!C66) -> Same District Council | D66: =IF(COUNTRY_INFO!$T$9:$T$1000="MDA2 (DEC+ALB)", COUNTRY_INFO!$T$9:$T$1000, " ") ->  | I66: 0 | M66: 0
A67: =IF(COUNTRY_INFO!A67=0," ",COUNTRY_INFO!A67) -> Tanzania | B67: =IF(COUNTRY_INFO!B67=0," ",COUNTRY_INFO!B67) -> Kilimanjaro | C67: =IF(COUNTRY_INFO!C67=0," ",COUNTRY_INFO!C67) -> Siha District Council | D67: =IF(COUNTRY_INFO!$T$9:$T$1000="MDA2 (DEC+ALB)", COUNTRY_INFO!$T$9:$T$1000, " ") ->  | I67: 0 | M67: 0
A68: =IF(COUNTRY_INFO!A68=0," ",COUNTRY_INFO!A68) -> Tanzania | B68: =IF(COUNTRY_INFO!B68=0," ",COUNTRY_INFO!B68) -> Lindi | C68: =IF(COUNTRY_INFO!C68=0," ",COUNTRY_INFO!C68) -> Kilwa District Council | D68: =IF(COUNTRY_INFO!$T$9:$T$1000="MDA2 (DEC+ALB)", COUNTRY_INFO!$T$9:$T$1000, " ") ->  | I68: 0 | M68: 0
A69: =IF(COUNTRY_INFO!A69=0," ",COUNTRY_INFO!A69) -> Tanzania | B69: =IF(COUNTRY_INFO!B69=0," ",COUNTRY_INFO!B69) -> Lindi | C69: =IF(COUNTRY_INFO!C69=0," ",COUNTRY_INFO!C69) -> Mtama District Council | D69: =IF(COUNTRY_INFO!$T$9:$T$1000="MDA2 (DEC+ALB)", COUNTRY_INFO!$T$9:$T$1000, " ") ->  | I69: 0 | M69: 0
A70: =IF(COUNTRY_INFO!A70=0," ",COUNTRY_INFO!A70) -> Tanzania | B70: =IF(COUNTRY_INFO!B70=0," ",COUNTRY_INFO!B70) -> Lindi | C70: =IF(COUNTRY_INFO!C70=0," ",COUNTRY_INFO!C70) -> Lindi Municipal Council | D70: =IF(COUNTRY_INFO!$T$9:$T$1000="MDA2 (DEC+ALB)", COUNTRY_INFO!$T$9:$T$1000, " ") ->  | I70: 0 | M70: 0
A71: =IF(COUNTRY_INFO!A71=0," ",COUNTRY_INFO!A71) -> Tanzania | B71: =IF(COUNTRY_INFO!B71=0," ",COUNTRY_INFO!B71) -> Lindi | C71: =IF(COUNTRY_INFO!C71=0," ",COUNTRY_INFO!C71) -> Liwale District Council | D71: =IF(COUNTRY_INFO!$T$9:$T$1000="MDA2 (DEC+ALB)", COUNTRY_INFO!$T$9:$T$1000, " ") ->  | I71: 0 | M71: 0
A72: =IF(COUNTRY_INFO!A72=0," ",COUNTRY_INFO!A72) -> Tanzania | B72: =IF(COUNTRY_INFO!B72=0," ",COUNTRY_INFO!B72) -> Lindi | C72: =IF(COUNTRY_INFO!C72=0," ",COUNTRY_INFO!C72) -> Nachingwea District Council | D72: =IF(COUNTRY_INFO!$T$9:$T$1000="MDA2 (DEC+ALB)", COUNTRY_INFO!$T$9:$T$1000, " ") ->  | I72: 0 | M72: 0
A73: =IF(COUNTRY_INFO!A73=0," ",COUNTRY_INFO!A73) -> Tanzania | B73: =IF(COUNTRY_INFO!B73=0," ",COUNTRY_INFO!B73) -> Lindi | C73: =IF(COUNTRY_INFO!C73=0," ",COUNTRY_INFO!C73) -> Ruangwa District Council | D73: =IF(COUNTRY_INFO!$T$9:$T$1000="MDA2 (DEC+ALB)", COUNTRY_INFO!$T$9:$T$1000, " ") ->  | I73: 0 | M73: 0
A74: =IF(COUNTRY_INFO!A74=0," ",COUNTRY_INFO!A74) -> Tanzania | B74: =IF(COUNTRY_INFO!B74=0," ",COUNTRY_INFO!B74) -> Manyara | C74: =IF(COUNTRY_INFO!C74=0," ",COUNTRY_INFO!C74) -> Babati District Council | D74: =IF(COUNTRY_INFO!$T$9:$T$1000="MDA2 (DEC+ALB)", COUNTRY_INFO!$T$9:$T$1000, " ") ->  | I74: =SUM(F74:H74) -> 0 | M74: =SUM(J74:L74) -> 0 | N74: =IF(F74<>0, IF(J74/F74*100=0, "-", J74/F74*100), " ") ->  | O74: =IF(G74<>0, IF(K74/G74*100=0, "-", K74/G74*100), " ") ->  | P74: =IF(H74<>0, IF(L74/H74*100=0, "-", L74/H74*100), " ") ->  | Q74: =IF(I74<>0, IF(M74/I74*100=0, "-", M74/I74*100), " ") -> 
A75: =IF(COUNTRY_INFO!A75=0," ",COUNTRY_INFO!A75) -> Tanzania | B75: =IF(COUNTRY_INFO!B75=0," ",COUNTRY_INFO!B75) -> Manyara | C75: =IF(COUNTRY_INFO!C75=0," ",COUNTRY_INFO!C75) -> Babati Town Council | D75: =IF(COUNTRY_INFO!$T$9:$T$1000="MDA2 (DEC+ALB)", COUNTRY_INFO!$T$9:$T$1000, " ") ->  | I75: 0 | M75: 0
A76: =IF(COUNTRY_INFO!A76=0," ",COUNTRY_INFO!A76) -> Tanzania | B76: =IF(COUNTRY_INFO!B76=0," ",COUNTRY_INFO!B76) -> Manyara | C76: =IF(COUNTRY_INFO!C76=0," ",COUNTRY_INFO!C76) -> Hanang District Council | D76: =IF(COUNTRY_INFO!$T$9:$T$1000="MDA2 (DEC+ALB)", COUNTRY_INFO!$T$9:$T$1000, " ") ->  | I76: 0 | M76: 0
A77: =IF(COUNTRY_INFO!A77=0," ",COUNTRY_INFO!A77) -> Tanzania | B77: =IF(COUNTRY_INFO!B77=0," ",COUNTRY_INFO!B77) -> Manyara | C77: =IF(COUNTRY_INFO!C77=0," ",COUNTRY_INFO!C77) -> Kiteto District Council | D77: =IF(COUNTRY_INFO!$T$9:$T$1000="MDA2 (DEC+ALB)", COUNTRY_INFO!$T$9:$T$1000, " ") ->  | I77: 0 | M77: 0
A78: =IF(COUNTRY_INFO!A78=0," ",COUNTRY_INFO!A78) -> Tanzania | B78: =IF(COUNTRY_INFO!B78=0," ",COUNTRY_INFO!B78) -> Manyara | C78: =IF(COUNTRY_INFO!C78=0," ",COUNTRY_INFO!C78) -> Mbulu District Council | D78: =IF(COUNTRY_INFO!$T$9:$T$1000="MDA2 (DEC+ALB)", COUNTRY_INFO!$T$9:$T$1000, " ") ->  | I78: 0 | M78: 0
A79: =IF(COUNTRY_INFO!A79=0," ",COUNTRY_INFO!A79) -> Tanzania | B79: =IF(COUNTRY_INFO!B79=0," ",COUNTRY_INFO!B79) -> Manyara | C79: =IF(COUNTRY_INFO!C79=0," ",COUNTRY_INFO!C79) -> Mbulu Town Council | D79: =IF(COUNTRY_INFO!$T$9:$T$1000="MDA2 (DEC+ALB)", COUNTRY_INFO!$T$9:$T$1000, " ") ->  | I79: 0 | M79: 0
A80: =IF(COUNTRY_INFO!A80=0," ",COUNTRY_INFO!A80) -> Tanzania | B80: =IF(COUNTRY_INFO!B80=0," ",COUNTRY_INFO!B80) -> Manyara | C80: =IF(COUNTRY_INFO!C80=0," ",COUNTRY_INFO!C80) -> Simanjiro District Council | D80: =IF(COUNTRY_INFO!$T$9:$T$1000="MDA2 (DEC+ALB)", COUNTRY_INFO!$T$9:$T$1000, " ") ->  | I80: 0 | M80: 0
A81: =IF(COUNTRY_INFO!A81=0," ",COUNTRY_INFO!A81) -> Tanzania | B81: =IF(COUNTRY_INFO!B81=0," ",COUNTRY_INFO!B81) -> Mara | C81: =IF(COUNTRY_INFO!C81=0," ",COUNTRY_INFO!C81) -> Bunda District Council | D81: =IF(COUNTRY_INFO!$T$9:$T$1000="MDA2 (DEC+ALB)", COUNTRY_INFO!$T$9:$T$1000, " ") ->  | I81: 0 | M81: 0
A82: =IF(COUNTRY_INFO!A82=0," ",COUNTRY_INFO!A82) -> Tanzania | B82: =IF(COUNTRY_INFO!B82=0," ",COUNTRY_INFO!B82) -> Mara | C82: =IF(COUNTRY_INFO!C82=0," ",COUNTRY_INFO!C82) -> Bunda Town Council | D82: =IF(COUNTRY_INFO!$T$9:$T$1000="MDA2 (DEC+ALB)", COUNTRY_INFO!$T$9:$T$1000, " ") ->  | I82: 0 | M82: 0
